Workbook

Sheet plot-EX
A1: oxy | B1: deoxy | C1: total | D1: diff | F1: oxy | G1: deoxy | H1: total | I1: diff | J1: ID | K1: Min D before EX | L1: PFC Channel Time Hb | N1: Max D before EX | O1: PFC Channel Time Hb | P1: ID | Q1: Gender | R1: BMI | S1: ADD | T1: ID (reds lack HR data) | U1: Trial averaged REL. change after exercise from - | V1: PFC Channel Time Hb | W1: Trial averaged REL. change after exercise from + | X1: PFC Channel Time Hb | Z1: %Stroop effect RT | AA1: %Stroop effect ER | AB1: ID (reds lack HR data) | AC1: change in HR incong-cong | AD1: %Stroop effect RT | AE1: %Stroop effect ER | AM1: Deactivated channels before exercise | AN1: Trial averaged REL. change after exercise from - | AO1: PFC Channel Time Hb | AP1: %Stroop effect RT | AQ1: %Stroop effect ER | AR1: Activated channels before exercise | AS1: Trial averaged REL. change after exercise from + | AT1: PFC Channel Time Hb | AU1: %Stroop effect RT | AV1: %Stroop effect ER | AW1: Stroop effect change after exercise | CF1: B. Stroop effect change after exercise, n=70
A2: -1.47 | B2: -0.47 | C2: -1.43 | D2: -1.18 | F2: 0.93 | G2: 1.57 | H2: 1.43 | I2: 0.90 | J2: AA102 | K2: -1.47 | L2: oxyHb-post-B2 | M2: AA102 | N2: 0.93 | O2: oxyHb-task-A6 | P2: AA102 | Q2: F | R2: 21 | S2: F | T2: AA102 | U2: =((AfterEX!MX6-AfterEX!NJ6)-(BeforeEX!MX6-BeforeEX!NJ6))/ABS(BeforeEX!MX6-BeforeEX!NJ6) -> 0.90 | V2: oxyHb-post-B2 | W2: =((AfterEX!IH6-AfterEX!IT6)-(BeforeEX!IH6-BeforeEX!IT6))/ABS(BeforeEX!IH6-BeforeEX!IT6) -> -2121.39 | X2: oxyHb-task-A6 | Z2: 2.71 | AA2: -3.00 | AB2: AA102 | AC2: -6.06 | AD2: 2.71 | AE2: -3.00 | AM2: AA102 | AN2: 0.8983432695 | AO2: oxyHb-post-B2 | AP2: 2.71461567 | AQ2: -3 | AR2: AA102 | AS2: -0.87 | AT2: oxyHb-task-A6 | AU2: 2.71461567 | AV2: -3
A3: -0.68 | B3: -1.14 | C3: -1.25 | D3: -1.31 | F3: 0.69 | G3: 0.78 | H3: 1.22 | I3: 1.07 | J3: FA102 | K3: -0.68 | L3: oxyHb-post-A6 | M3: CN101 | N3: 0.69 | O3: oxyHb-task-A5 | P3: CJ101 | Q3: M | R3: 26.78 | S3: F | T3: CJ101 | U3: =((AfterEX!IQ7-AfterEX!JC7)-(BeforeEX!IQ7-BeforeEX!JC7))/ABS(BeforeEX!IQ7-BeforeEX!JC7) -> 0.90 | V3: diffHb-task-A6 | W3: =((AfterEX!MI7-AfterEX!MU7)-(BeforeEX!MI7-BeforeEX!MU7))/ABS(BeforeEX!MI7-BeforeEX!MU7) -> 0.75 | X3: diffHb-task-B2 | Z3: 9.51 | AA3: 0.50 | AB3: CJ101 | AC3: 1.48 | AD3: 9.51 | AE3: 0.50 | AM3: FA102 | AN3: 0.5964990305 | AO3: oxyHb-post-a6 | AP3: -1.981867451 | AQ3: 3 | AR3: CN101 | AS3: -2.290547887 | AT3: oxyHb-task-A5 | AU3: -3.360731109 | AV3: -1.75
A4: -0.99 | B4: -0.60 | C4: -1.47 | D4: -1.20 | F4: 1.26 | G4: 4.58 | H4: 2.75 | I4: 0.97 | J4: JF101 | K4: -0.99 | L4: oxyHb-post-A5 | M4: FA102 | N4: 1.26 | O4: oxyHb-post-B7 | P4: CN101 | Q4: F | R4: 32 | S4: T | T4: CN101 | U4: =((AfterEX!LK8-AfterEX!LW8)-(BeforeEX!LK8-BeforeEX!LW8))/ABS(BeforeEX!LK8-BeforeEX!LW8) -> 0.68 | V4: diffHb-post-B1 | W4: =((AfterEX!GL8-AfterEX!GX8)-(BeforeEX!GL8-BeforeEX!GX8))/ABS(BeforeEX!GL8-BeforeEX!GX8) -> -2.29 | X4: oxyHb-task-A5 | Z4: -3.36 | AA4: -1.75 | AB4: CN101 | AC4: 4.30 | AD4: -3.36 | AE4: -1.75 | AM4: JF101 | AN4: 1.33195308 | AO4: oxyHb-post-A5 | AP4: -5.775389734 | AQ4: 0.25 | AR4: FA102 | AS4: -1.235758889 | AT4: oxyHb-post-B7 | AU4: -1.981867451 | AV4: 3
A5: -1.19 | B5: -1.30 | C5: -1.68 | D5: -1.19 | F5: 1.45 | G5: 2.81 | H5: 1.21 | I5: 1.20 | J5: JH102 | K5: -1.19 | L5: oxyHb-post-A6 | M5: RS101 | N5: 1.45 | O5: oxyHb-post-A6 | P5: DD101 | Q5: M | R5: 23 | S5: T | T5: DD101 | U5: =((AfterEX!IQ9-AfterEX!JC9)-(BeforeEX!IQ9-BeforeEX!JC9))/ABS(BeforeEX!IQ9-BeforeEX!JC9) -> 1.07 | V5: diffHb-task-A6 | W5: =((AfterEX!HP9-AfterEX!IB9)-(BeforeEX!HP9-BeforeEX!IB9))/ABS(BeforeEX!HP9-BeforeEX!IB9) -> -0.89 | X5: totalHb-post-A5 | Z5: -11.43 | AA5: -1.25 | AB5: DD101 | AC5: -4.63 | AD5: -11.43 | AE5: -1.25 | AM5: JH102 | AN5: 0.9659332254 | AO5: oxyHb-post-a6 | AP5: 3.348789202 | AQ5: -0.25 | AR5: RS101 | AS5: -0.1822746609 | AT5: oxyHb-post-a6 | AU5: 16.07397949 | AV5: 1
A6: -1.37 | B6: -0.63 | C6: -1.24 | D6: -0.82 | F6: 0.83 | G6: 0.67 | H6: 0.89 | I6: 0.88 | J6: JR101 | K6: -1.37 | L6: oxyHb-post-A6 | M6: SN102 | N6: 0.83 | O6: oxyHb-post-B8 | P6: FA102 | Q6: F | R6: 21 | S6: F | T6: FA102 | U6: =((AfterEX!JF10-AfterEX!JR10)-(BeforeEX!JF10-BeforeEX!JR10))/ABS(BeforeEX!JF10-BeforeEX!JR10) -> 0.60 | V6: oxyHb-post-a6 | W6: =((AfterEX!SL10-AfterEX!SX10)-(BeforeEX!SL10-BeforeEX!SX10))/ABS(BeforeEX!SL10-BeforeEX!SX10) -> -1.24 | X6: oxyHb-post-B7 | Z6: -1.98 | AA6: 3.00 | AB6: FA102 | AC6: 2.69 | AD6: -1.98 | AE6: 3.00 | AM6: JR101 | AN6: 0.7372437153 | AO6: oxyHb-post-a6 | AP6: -0.5354716808 | AQ6: -0.25 | AR6: SN102 | AS6: -0.9437133849 | AT6: oxyHb-post-B8 | AU6: -8.882745338 | AV6: 1
A7: -2.42 | B7: -0.65 | C7: -0.87 | D7: -0.67 | F7: 2.02 | G7: 0.94 | H7: 1.88 | I7: 0.78 | J7: TB101 | K7: -2.42 | L7: oxyHb-post-A4 | M7: AA101 | N7: 2.02 | O7: oxyHb-post-B2 | P7: JF101 | Q7: M | R7: 30 | S7: T | T7: JF101 | U7: =((AfterEX!HJ11-AfterEX!HV11)-(BeforeEX!HJ11-BeforeEX!HV11))/ABS(BeforeEX!HJ11-BeforeEX!HV11) -> 1.33 | V7: oxyHb-post-A5 | W7: =((AfterEX!IQ11-AfterEX!JC11)-(BeforeEX!IQ11-BeforeEX!JC11))/ABS(BeforeEX!IQ11-BeforeEX!JC11) -> 1.16 | X7: diffHb-task-A6 | Z7: -5.78 | AA7: 0.25 | AB7: JF101 | AC7: 3.99 | AD7: -5.78 | AE7: 0.25 | AM7: TB101 | AN7: 0.3160411564 | AO7: oxyHb-post-A4 | AP7: -4.069269713 | AQ7: 0 | AR7: AA101 | AS7: -0.1158724808 | AT7: oxyHb-post-B2 | AU7: 7.861328702 | AV7: -0.25
A8: -1.57 | B8: -0.84 | C8: -1.03 | D8: -8.24 | F8: 1.09 | G8: 0.74 | H8: 0.98 | I8: 1.11 | J8: SW101 | K8: -1.57 | L8: oxyHb-post-A6 | M8: AI101 | N8: 1.09 | O8: oxyHb-post-B5 | P8: JH102 | Q8: F | R8: 19 | S8: F | T8: JH102 | U8: =((AfterEX!JF12-AfterEX!JR12)-(BeforeEX!JF12-BeforeEX!JR12))/ABS(BeforeEX!JF12-BeforeEX!JR12) -> 0.97 | V8: oxyHb-post-a6 | W8: =((AfterEX!FT12-AfterEX!GF12)-(BeforeEX!FT12-BeforeEX!GF12))/ABS(BeforeEX!FT12-BeforeEX!GF12) -> -1.07 | X8: diffHb-post-A4 | Z8: 3.35 | AA8: -0.25 | AB8: JH102 | AC8: -19.91 | AD8: 3.35 | AE8: -0.25 | AM8: SW101 | AN8: -0.4889676068 | AO8: oxyHb-post-a6 | AP8: -8.249656061 | AQ8: -1.5 | AR8: AI101 | AS8: -1.244859887 | AT8: oxyHb-post-B5 | AU8: 11.21069784 | AV8: 1
A9: -1.70 | B9: -0.82 | C9: -2.89 | D9: -3.95 | F9: 2.07 | G9: 0.39 | I9: 1.31 | J9: AP102 | K9: -1.70 | L9: oxyHb-task-A5 | M9: AK101 | N9: 2.07 | O9: oxyHb-task-A6 | P9: JR101 | Q9: F | R9: 27 | S9: F | T9: JR101 | U9: =((AfterEX!JF13-AfterEX!JR13)-(BeforeEX!JF13-BeforeEX!JR13))/ABS(BeforeEX!JF13-BeforeEX!JR13) -> 0.74 | V9: oxyHb-post-a6 | W9: =((AfterEX!HS13-AfterEX!IE13)-(BeforeEX!HS13-BeforeEX!IE13))/ABS(BeforeEX!HS13-BeforeEX!IE13) -> -0.97 | X9: diffHb-post-A5 | Z9: -0.54 | AA9: -0.25 | AB9: JR101 | AC9: 1.77 | AD9: -0.54 | AE9: -0.25 | AM9: AP102 | AN9: 0.739919843 | AO9: oxyHb-task-A5 | AP9: -4.596340545 | AQ9: 0.25 | AR9: AK101 | AS9: -1.886026431 | AT9: oxyHb-task-A6 | AU9: 9.418045338 | AV9: -0.5
A10: -1.37 | B10: -1.50 | C10: -1.59 | D10: -2.16 | F10: 0.89 | G10: 0.96 | I10: 0.98 | J10: AS102 | K10: -1.37 | L10: oxyHb-post-A3 | M10: AS102 | N10: 0.89 | O10: oxyHb-task-B5 | P10: MR101 | Q10: F | R10: 22 | S10: F | T10: MR101 | U10: =((AfterEX!QY14-AfterEX!RK14)-(BeforeEX!QY14-BeforeEX!RK14))/ABS(BeforeEX!QY14-BeforeEX!RK14) -> 0.26 | V10: diffHb-post-B6 | W10: =((AfterEX!JI14-AfterEX!JU14)-(BeforeEX!JI14-BeforeEX!JU14))/ABS(BeforeEX!JI14-BeforeEX!JU14) -> -0.31 | X10: deoxyHb-post-A6 | Z10: -3.05 | AA10: 2.25 | AB10: MR101 | AC10: -3.45 | AD10: -3.05 | AE10: 2.25 | AM10: AS102 | AN10: 0.5451042989 | AO10: oxyHb-post-A3 | AP10: -2.529693388 | AQ10: -0.25 | AR10: AS102 | AS10: -2.235736845 | AT10: oxyHb-task-B5 | AU10: -2.529693388 | AV10: -0.25
A11: -0.84 | B11: -0.98 | D11: -0.90 | F11: 3.37 | G11: 0.72 | I11: 0.90 | J11: DI101 | K11: -0.84 | L11: oxyHb-task-A2 | M11: CC101 | N11: 3.37 | O11: oxyHb-post-A6 | P11: RS101 | Q11: F | R11: 25 | S11: F | T11: RS101 | U11: =((AfterEX!ND15-AfterEX!NP15)-(BeforeEX!ND15-BeforeEX!NP15))/ABS(BeforeEX!ND15-BeforeEX!NP15) -> 0.84 | V11: totalHb-post-B2 | W11: =((AfterEX!JF15-AfterEX!JR15)-(BeforeEX!JF15-BeforeEX!JR15))/ABS(BeforeEX!JF15-BeforeEX!JR15) -> -0.18 | X11: oxyHb-post-a6 | Z11: 16.07 | AA11: 1.00 | AB11: RS101 | AC11: -4.94 | AD11: 16.07 | AE11: 1.00 | AM11: DI101 | AN11: 0.3892379753 | AO11: oxyHb-task-A2 | AP11: 2.139757101 | AQ11: -0.75 | AR11: CC101 | AS11: 0.605665433 | AT11: oxyHb-post-a6 | AU11: 4.623842848 | AV11: -3
A12: -2.68 | B12: -0.96 | D12: -1.62 | F12: 1.77 | G12: 0.70 | I12: 0.90 | J12: DY101 | K12: -2.68 | L12: oxyHb-post-A4 | M12: DS101 | N12: 1.77 | O12: oxyHb-post-A6 | P12: SN102 | Q12: F | R12: 28 | S12: F | T12: SN102 | U12: =((AfterEX!HM16-AfterEX!HY16)-(BeforeEX!HM16-BeforeEX!HY16))/ABS(BeforeEX!HM16-BeforeEX!HY16) -> 0.73 | V12: deoxyHb-post-A5 | W12: =((AfterEX!UH16-AfterEX!UT16)-(BeforeEX!UH16-BeforeEX!UT16))/ABS(BeforeEX!UH16-BeforeEX!UT16) -> -0.94 | X12: oxyHb-post-B8 | Z12: -8.88 | AA12: 1.00 | AB12: SN102 | AC12: 1.47 | AD12: -8.88 | AE12: 1.00 | AM12: DY101 | AN12: 0.9950481007 | AO12: oxyHb-post-A4 | AP12: 19.96646771 | AQ12: 0.25 | AR12: DS101 | AS12: -0.4461853007 | AT12: oxyHb-post-a6 | AU12: -7.322322309 | AV12: -0.25
A13: -1.21 | B13: -0.89 | D13: -1.39 | F13: 0.99 | G13: 0.93 | I13: 2.43 | J13: EC101 | K13: -1.21 | L13: oxyHb-task-A6 | M13: DY101 | N13: 0.99 | O13: oxyHb-post-B7 | P13: TB101 | Q13: F | R13: 31 | S13: F | T13: TB101 | U13: =((AfterEX!FN17-AfterEX!FZ17)-(BeforeEX!FN17-BeforeEX!FZ17))/ABS(BeforeEX!FN17-BeforeEX!FZ17) -> 0.32 | V13: oxyHb-post-A4 | W13: =((AfterEX!JL17-AfterEX!JX17)-(BeforeEX!JL17-BeforeEX!JX17))/ABS(BeforeEX!JL17-BeforeEX!JX17) -> -0.74 | X13: totalHb-post-A6 | Z13: -4.07 | AA13: 0.00 | AB13: TB101 | AC13: 4.26 | AD13: -4.07 | AE13: 0.00 | AM13: EC101 | AN13: 1.848050449 | AO13: oxyHb-task-A6 | AP13: 25.83360273 | AQ13: 0.25 | AR13: DY101 | AS13: -0.9586121787 | AT13: oxyHb-post-B7 | AU13: 19.96646771 | AV13: 0.25
A14: -1.39 | B14: -0.77 | D14: -0.68 | F14: 2.90 | I14: 1.19 | J14: GH101 | K14: -1.39 | L14: oxyHb-post-A6 | M14: EF101 | N14: 2.90 | O14: oxyHb-post-A6 | P14: SW101 | Q14: M | R14: 26 | S14: F | T14: SW101 | U14: =((AfterEX!JF18-AfterEX!JR18)-(BeforeEX!JF18-BeforeEX!JR18))/ABS(BeforeEX!JF18-BeforeEX!JR18) -> -0.49 | V14: oxyHb-post-a6 | W14: =((AfterEX!BA18-AfterEX!BM18)-(BeforeEX!BA18-BeforeEX!BM18))/ABS(BeforeEX!BA18-BeforeEX!BM18) -> -0.91 | X14: deoxyHb-task-A2 | Z14: -8.25 | AA14: -1.50 | AB14: SW101 | AC14: 2.68 | AD14: -8.25 | AE14: -1.50 | AM14: GH101 | AN14: 0.04705775434 | AO14: oxyHb-post-A6 | AP14: 10.08044553 | AQ14: 0.75 | AR14: EF101 | AS14: -0.1808788516 | AT14: oxyHb-post-a6 | AU14: -6.723433046 | AV14: -0.25
A15: -2.66 | D15: -0.93 | F15: 1.37 | I15: 0.69 | J15: IOD101 | K15: -2.66 | L15: oxyHb-post-A6 | M15: ER101 | N15: 1.37 | O15: oxyHb-post-A5 | P15: AA101 | Q15: F | R15: 20 | S15: T | T15: AA101 | U15: =((AfterEX!PC19-AfterEX!PO19)-(BeforeEX!PC19-BeforeEX!PO19))/ABS(BeforeEX!PC19-BeforeEX!PO19) -> 1.10 | V15: diffHb-post-B5 | W15: =((AfterEX!MX19-AfterEX!NJ19)-(BeforeEX!MX19-BeforeEX!NJ19))/ABS(BeforeEX!MX19-BeforeEX!NJ19) -> -0.12 | X15: oxyHb-post-B2 | Z15: 7.86 | AA15: -0.25 | AB15: AA101 | AC15: -3.88 | AD15: 7.86 | AE15: -0.25 | AM15: IOD101 | AN15: 1.431993307 | AO15: oxyHb-post-a6 | AP15: 11.24394217 | AQ15: -0.25 | AR15: ER101 | AS15: -0.2989684798 | AT15: oxyHb-post-A5 | AU15: -3.835001406 | AV15: 0.75
... 18 more rows

Sheet plot-Rest
A1: ID | B1: Min D before EX | C1: PFC Channel Time Hb | D1: Trial averaged REL. change after rest from - | E1: Max D before EX | F1: PFC Channel Time Hb | G1: Trial averaged REL. change after rest from + | H1: Stroop Effect HR | I1: Stroop effect %RT | J1: Stroop effect %ER | K1: ID | L1: Min D before EX | M1: PFC Channel Time Hb | N1: Max D before EX | O1: PFC Channel Time Hb | Q1: ID | R1: Max D before EX | S1: PFC Channel Time Hb | T1: ID | U1: Max D before EX | V1: PFC Channel Time Hb | X1: ID | Y1: Max D before EX | Z1: PFC Channel Time Hb | AA1: ID | AB1: Max D before EX | AC1: PFC Channel Time Hb | AD1: ID (reds lack HR data) | AE1: Stroop effect RT | AF1: Stroop effect ER | AH1: ID | AI1: Min D before EX | AJ1: PFC Channel Time Hb | AK1: Trial averaged REL. change after rest from - | AL1: Stroop Effect HR | AM1: Stroop effect %RT | AN1: Stroop effect %ER | AO1: ID | AP1: Max D before EX | AQ1: PFC Channel Time Hb | AR1: Trial averaged REL. change after rest from + | AS1: Stroop Effect HR | AT1: Stroop effect %RT | AU1: Stroop effect %ER | AV1: Stroop effect change after rest | CC1: A. Stroop effect change after practice (rest), n=30
A2: AA102 | B2: -0.8959522314 | C2: totalHb-task-A6 | D2: =((AfterNonEX!IN6-AfterNonEX!IZ6)-(BeforeNonEX!IN6-BeforeNonEX!IZ6))/ABS(BeforeNonEX!IN6-BeforeNonEX!IZ6) -> -2.00E+00 | E2: 1.24773596 | F2: oxyHb-post-B2 | G2: =((AfterNonEX!MX6-AfterNonEX!NJ6)-(BeforeNonEX!MX6-BeforeNonEX!NJ6))/ABS(BeforeNonEX!MX6-BeforeNonEX!NJ6) -> 9.88E-01 | H2: -2.743945002 | I2: -8.228225097 | J2: 1.625 | K2: AA102 | L2: -0.8959522314 | M2: totalHb-task-A6 | N2: 1.24773596 | O2: oxyHb-post-B2 | Q2: AA102 | R2: 1.24773596 | S2: oxyHb-post-B2 | T2: SW101 | U2: 0.9242113352 | V2: deoxyHb-post-B2 | X2: RS101 | Y2: 1.374807677 | Z2: totalHb-post-B2 | AA2: DD101 | AB2: 1.290179349 | AC2: diffHb-post-A3 | AD2: AA102-nonexercise | AE2: -8.228225097 | AF2: 1.625 | AH2: CJ101 | AI2: -1.114383921 | AJ2: oxyHb-task-A4 | AK2: 0.3333262372 | AL2: -3.29723225 | AM2: 8.969208342 | AN2: -0.25 | AO2: AA102 | AP2: 1.24773596 | AQ2: oxyHb-post-B2 | AR2: 9.88E-01 | AS2: -2.743945002 | AT2: -8.228225097 | AU2: 1.625
A3: CJ101 | B3: -1.114383921 | C3: oxyHb-task-A4 | D3: =((AfterNonEX!EP7-AfterNonEX!FB7)-(BeforeNonEX!EP7-BeforeNonEX!FB7))/ABS(BeforeNonEX!EP7-BeforeNonEX!FB7) -> 3.33E-01 | E3: 0.7642901104 | F3: oxyHb-post-B7 | G3: =((AfterNonEX!SL7-AfterNonEX!SX7)-(BeforeNonEX!SL7-BeforeNonEX!SX7))/ABS(BeforeNonEX!SL7-BeforeNonEX!SX7) -> -1.76E+00 | H3: -3.29723225 | I3: 8.969208342 | J3: -0.25 | K3: JF101 | L3: -0.9066853621 | M3: totalHb-post-A4 | N3: 1.382496662 | O3: oxyHb-task-A6 | Q3: CJ101 | R3: 0.7642901104 | S3: oxyHb-post-B7 | T3: DJ102 | U3: 0.8523388467 | V3: deoxyHb-task-A5 | X3: RA101 | Y3: 1.342723951 | Z3: totalHb-task-A6 | AA3: FA102 | AB3: 1.048603481 | AC3: diffHb-post-A5 | AD3: CJ101-nonexercise | AE3: 8.969208342 | AF3: -0.25 | AH3: CN101 | AI3: -0.6723006876 | AJ3: oxyHb-task-B2 | AK3: 2.211782207 | AL3: -2.612757613 | AM3: 3.914848077 | AN3: 6.125 | AO3: CJ101 | AP3: 0.7642901104 | AQ3: oxyHb-post-B7 | AR3: -1.76E+00 | AS3: -3.29723225 | AT3: 8.969208342 | AU3: -0.25
A4: CN101 | B4: -0.6723006876 | C4: oxyHb-task-B2 | D4: =((AfterNonEX!LZ8-AfterNonEX!ML8)-(BeforeNonEX!LZ8-BeforeNonEX!ML8))/ABS(BeforeNonEX!LZ8-BeforeNonEX!ML8) -> 2.21E+00 | E4: 1.19185363 | F4: oxyHb-post-B6 | G4: =((AfterNonEX!QP8-AfterNonEX!RB8)-(BeforeNonEX!QP8-BeforeNonEX!RB8))/ABS(BeforeNonEX!QP8-BeforeNonEX!RB8) -> -1.48E+00 | H4: -2.612757613 | I4: 3.914848077 | J4: 6.125 | K4: DJ102 | L4: -1.914420942 | M4: totalHb-post-A6 | N4: 0.8523388467 | O4: deoxyHb-task-A5 | Q4: CN101 | R4: 1.19185363 | S4: oxyHb-post-B6 | AA4: JH102 | AB4: 0.6429896932 | AC4: diffHb-task-B8 | AD4: CN101-nonexercise | AE4: 3.914848077 | AF4: 6.125 | AH4: DD101 | AI4: -0.6689317327 | AJ4: oxyHb-post-B7 | AK4: 2.140232034 | AL4: 0.597454268 | AM4: -2.741084594 | AN4: 0.0625 | AO4: CN101 | AP4: 1.19185363 | AQ4: oxyHb-post-B6 | AR4: -1.48E+00 | AS4: -2.612757613 | AT4: 3.914848077 | AU4: 6.125
A5: DD101 | B5: -0.6689317327 | C5: oxyHb-post-B7 | D5: =((AfterNonEX!SL9-AfterNonEX!SX9)-(BeforeNonEX!SL9-BeforeNonEX!SX9))/ABS(BeforeNonEX!SL9-BeforeNonEX!SX9) -> 2.14E+00 | E5: 1.290179349 | F5: diffHb-post-A3 | G5: =((AfterNonEX!EA9-AfterNonEX!EM9)-(BeforeNonEX!EA9-BeforeNonEX!EM9))/ABS(BeforeNonEX!EA9-BeforeNonEX!EM9) -> -7.66E-01 | H5: 0.597454268 | I5: -2.741084594 | J5: 0.0625 | K5: FH101 | L5: -2.050774721 | M5: totalHb-post-A6 | N5: 2.929377067 | O5: oxyHb-post-A5 | Q5: JF101 | R5: 1.382496662 | S5: oxyHb-task-A6 | AA5: JR101 | AB5: 1.029799282 | AC5: diffHb-post-B8 | AD5: DD101-nonexercise | AE5: -2.741084594 | AF5: 0.0625 | AH5: FA102 | AI5: -2.43581211 | AJ5: oxyHb-post-B2 | AK5: 0.7051299735 | AL5: 1.673510016 | AM5: -2.527141942 | AN5: -3.6875 | AO5: JF101 | AP5: 1.382496662 | AQ5: oxyHb-task-A6 | AR5: 2.14E+00 | AS5: -2.624701969 | AT5: -4.838233472 | AU5: -1.8125
A6: FA102 | B6: -2.43581211 | C6: oxyHb-post-B2 | D6: =((AfterNonEX!MX10-AfterNonEX!NJ10)-(BeforeNonEX!MX10-BeforeNonEX!NJ10))/ABS(BeforeNonEX!MX10-BeforeNonEX!NJ10) -> 7.05E-01 | E6: 1.048603481 | F6: diffHb-post-A5 | G6: =((AfterNonEX!HS10-AfterNonEX!IE10)-(BeforeNonEX!HS10-BeforeNonEX!IE10))/ABS(BeforeNonEX!HS10-BeforeNonEX!IE10) -> -1.41E+00 | H6: 1.673510016 | I6: -2.527141942 | J6: -3.6875 | K6: JL101 | L6: -2.526188577 | M6: totalHb-post-B2 | N6: 1.957760039 | O6: oxyHb-task-A6 | Q6: MR101 | R6: 1.452053707 | S6: oxyHb-task-A3 | AA6: TB101 | AB6: 1.092042358 | AC6: diffHb-post-B6 | AD6: FA102-nonexercise | AE6: -2.527141942 | AF6: -3.6875 | AH6: JH102 | AI6: -2.192226243 | AJ6: oxyHb-post-A6 | AK6: 0.3916198989 | AL6: -1.952757435 | AM6: 7.392107069 | AN6: -3.3125 | AO6: MR101 | AP6: 1.452053707 | AQ6: oxyHb-task-A3 | AR6: -7.09E-01 | AS6: -1.294056253 | AT6: -3.495077471 | AU6: 2.3125
A7: JF101 | B7: -0.9066853621 | C7: totalHb-post-A4 | D7: =((AfterNonEX!FT11-AfterNonEX!GG11)-(BeforeNonEX!FT11-BeforeNonEX!GG11))/ABS(BeforeNonEX!FT11-BeforeNonEX!GG11) -> -7.48E+00 | E7: 1.382496662 | F7: oxyHb-task-A6 | G7: =((AfterNonEX!IH11-AfterNonEX!IT11)-(BeforeNonEX!IH11-BeforeNonEX!IT11))/ABS(BeforeNonEX!IH11-BeforeNonEX!IT11) -> 2.14E+00 | H7: -2.624701969 | I7: -4.838233472 | J7: -1.8125 | K7: KK101 | L7: -4.912181442 | M7: totalHb-post-A6 | N7: 1.074060246 | O7: diffHb-task-B8 | Q7: SN102 | R7: 1.267545505 | S7: oxyHb-task-B2 | AA7: JF102 | AB7: 0.8605374152 | AC7: diffHb-task-B6 | AD7: JF101-nonexercise | AE7: -4.838233472 | AF7: -1.8125 | AH7: RS101 | AI7: -1.600052636 | AJ7: oxyHb-task-B6 | AK7: 1.11875639 | AL7: 3.947848971 | AM7: 2.873724612 | AN7: -4.25 | AO7: SN102 | AP7: 1.267545505 | AQ7: oxyHb-task-B2 | AR7: -1.35E-02 | AS7: -5.980437183 | AT7: 16.21038521 | AU7: 5.25
A8: JH102 | B8: -2.192226243 | C8: oxyHb-post-A6 | D8: =((AfterNonEX!JF12-AfterNonEX!JR12)-(BeforeNonEX!JF12-BeforeNonEX!JR12))/ABS(BeforeNonEX!JF12-BeforeNonEX!JR12) -> 3.92E-01 | E8: 0.6429896932 | F8: diffHb-task-B8 | G8: =((AfterNonEX!TS12-AfterNonEX!UE12)-(BeforeNonEX!TS12-BeforeNonEX!UE12))/ABS(BeforeNonEX!TS12-BeforeNonEX!UE12) -> -2.49E+00 | H8: -1.952757435 | I8: 7.392107069 | J8: -3.3125 | K8: MT102 | L8: -2.365438352 | M8: totalHb-post-A6 | N8: 1.017987337 | O8: oxyHb-task-B2 | Q8: BR102 | R8: 1.630627408 | S8: oxyHb-post-B6 | AA8: KK101 | AB8: 1.074060246 | AC8: diffHb-task-B8 | AD8: JH102-nonexercise | AE8: 7.392107069 | AF8: -3.3125 | AH8: SN102 | AI8: -1.202236377 | AJ8: oxyHb-post-A4 | AK8: 2.853918837 | AL8: -5.980437183 | AM8: 16.21038521 | AN8: 5.25 | AO8: BR102 | AP8: 1.630627408 | AQ8: oxyHb-post-B6 | AR8: -4.66E-01 | AS8: 0.1470248313 | AT8: 1.78241741 | AU8: -1.25
A9: JR101 | B9: -1.132945278 | C9: deoxyHb-post-A6 | D9: =((AfterNonEX!JI13-AfterNonEX!JU13)-(BeforeNonEX!JI13-BeforeNonEX!JU13))/ABS(BeforeNonEX!JI13-BeforeNonEX!JU13) -> -3.61E-01 | E9: 1.029799282 | F9: diffHb-post-B8 | G9: =((AfterNonEX!UQ13-AfterNonEX!VC13)-(BeforeNonEX!UQ13-BeforeNonEX!VC13))/ABS(BeforeNonEX!UQ13-BeforeNonEX!VC13) -> -8.66E-01 | H9: 2.864949258 | I9: -0.5024883111 | J9: -0.4375 | Q9: FH101 | R9: 2.929377067 | S9: oxyHb-post-A5 | AA9: KV101 | AB9: 1.670500465 | AC9: diffHb-post-B6 | AD9: JR101-nonexercise | AE9: -0.5024883111 | AF9: -0.4375 | AH9: TB101 | AI9: -1.397164727 | AJ9: oxyHb-post-B1 | AK9: 0.4929338423 | AL9: 4.345825677 | AM9: -0.871236318 | AN9: -3.6875 | AO9: FH101 | AP9: 2.929377067 | AQ9: oxyHb-post-A5 | AR9: -9.62E-01 | AS9: 0.313532696 | AT9: 2.105205181 | AU9: -2
A10: MR101 | B10: -0.5566273037 | C10: deoxyHb-post-A5 | D10: =((AfterNonEX!HM14-AfterNonEX!HY14)-(BeforeNonEX!HM14-BeforeNonEX!HY14))/ABS(BeforeNonEX!HM14-BeforeNonEX!HY14) -> 4.17E-01 | E10: 1.452053707 | F10: oxyHb-task-A3 | G10: =((AfterNonEX!CT14-AfterNonEX!DF14)-(BeforeNonEX!CT14-BeforeNonEX!DF14))/ABS(BeforeNonEX!CT14-BeforeNonEX!DF14) -> -7.09E-01 | H10: -1.294056253 | I10: -3.495077471 | J10: 2.3125 | Q10: JL101 | R10: 1.957760039 | S10: oxyHb-task-A6 | AA10: RO101 | AB10: 1.067473284 | AC10: diffHb-post-A5 | AD10: MR101-nonexercise | AE10: -3.495077471 | AF10: 2.3125 | AH10: SW101 | AI10: -1.957728801 | AJ10: oxyHb-post-A6 | AK10: 1.046968549 | AL10: -2.957070487 | AM10: -3.425004019 | AN10: 1.4375 | AO10: JL101 | AP10: 1.957760039 | AQ10: oxyHb-task-A6 | AR10: -3.84E-01 | AS10: 3.209876543 | AT10: -2.448667012 | AU10: -3.625
A11: RS101 | B11: -1.600052636 | C11: oxyHb-task-B6 | D11: =((AfterNonEX!PR15-AfterNonEX!QD15)-(BeforeNonEX!PR15-BeforeNonEX!QD15))/ABS(BeforeNonEX!PR15-BeforeNonEX!QD15) -> 1.12E+00 | E11: 1.374807677 | F11: totalHb-post-B2 | G11: =((AfterNonEX!ND15-AfterNonEX!NP15)-(BeforeNonEX!ND15-BeforeNonEX!NP15))/ABS(BeforeNonEX!ND15-BeforeNonEX!NP15) -> -9.21E-02 | H11: 3.947848971 | I11: 2.873724612 | J11: -4.25 | Q11: MA101 | R11: 1.154735211 | S11: oxyHb-post-B1 | AA11: TM101 | AB11: 0.9213141555 | AC11: diffHb-task-B6 | AD11: RS101-nonexercise | AE11: 2.873724612 | AF11: -4.25 | AH11: BR102 | AI11: -1.172132283 | AJ11: oxyHb-post-A6 | AK11: 0.6340980657 | AL11: 0.1470248313 | AM11: 1.78241741 | AN11: -1.25 | AO11: MA101 | AP11: 1.154735211 | AQ11: oxyHb-post-B1 | AR11: -2.27E+00 | AS11: 0.2145626581 | AT11: -3.966646703 | AU11: 2.9375
A12: SN102 | B12: -1.202236377 | C12: oxyHb-post-A4 | D12: =((AfterNonEX!FN16-AfterNonEX!FZ16)-(BeforeNonEX!FN16-BeforeNonEX!FZ16))/ABS(BeforeNonEX!FN16-BeforeNonEX!FZ16) -> 2.85E+00 | E12: 1.267545505 | F12: oxyHb-task-B2 | G12: =((AfterNonEX!LZ16-AfterNonEX!ML16)-(BeforeNonEX!LZ16-BeforeNonEX!ML16))/ABS(BeforeNonEX!LZ16-BeforeNonEX!ML16) -> -1.35E-02 | H12: -5.980437183 | I12: 16.21038521 | J12: 5.25 | Q12: MT102 | R12: 1.017987337 | S12: oxyHb-task-B2 | AA12: TP101 | AB12: 1.619958796 | AC12: diffHb-post-B8 | AD12: SN102-nonexercise | AE12: 16.21038521 | AF12: 5.25 | AH12: JF102 | AI12: -1.781830868 | AJ12: oxyHb-post-B8 | AK12: 1.135341948 | AL12: 1.267398967 | AM12: 6.744343686 | AN12: 2 | AO12: MT102 | AP12: 1.017987337 | AQ12: oxyHb-task-B2 | AR12: -6.11E-01 | AS12: -3.784970915 | AT12: 5.734328804 | AU12: 2.25
A13: TB101 | B13: -1.397164727 | C13: oxyHb-post-B1 | D13: =((AfterNonEX!LB17-AfterNonEX!LN17)-(BeforeNonEX!LB17-BeforeNonEX!LN17))/ABS(BeforeNonEX!LB17-BeforeNonEX!LN17) -> 4.93E-01 | E13: 1.092042358 | F13: diffHb-post-B6 | G13: =((AfterNonEX!QY17-AfterNonEX!RK17)-(BeforeNonEX!QY17-BeforeNonEX!RK17))/ABS(BeforeNonEX!QY17-BeforeNonEX!RK17) -> -1.24E+00 | H13: 4.345825677 | I13: -0.871236318 | J13: -3.6875 | Q13: SA102 | R13: 5.086793075 | S13: oxyHb-post-A5 | AA13: TR101 | AB13: 0.8423024837 | AC13: diffHb-task-B8 | AD13: TB101-nonexercise | AE13: -0.871236318 | AF13: -3.6875 | AH13: KV101 | AI13: -0.8273010981 | AJ13: oxyHb-post-A1 | AK13: 0.7784013876 | AL13: -6.19 | AM13: -4.709580688 | AN13: 0.75 | AO13: SA102 | AP13: 5.086793075 | AQ13: oxyHb-post-A5 | AR13: -1.59E+00 | AS13: -0.5233215908 | AT13: -6.121088967 | AU13: -0.3125
A14: SW101 | B14: -1.957728801 | C14: oxyHb-post-A6 | D14: =((AfterNonEX!JF18-AfterNonEX!JR18)-(BeforeNonEX!JF18-BeforeNonEX!JR18))/ABS(BeforeNonEX!JF18-BeforeNonEX!JR18) -> 1.05E+00 | E14: 0.9242113352 | F14: deoxyHb-post-B2 | G14: =((AfterNonEX!NA18-AfterNonEX!NM18)-(BeforeNonEX!NA18-BeforeNonEX!NM18))/ABS(BeforeNonEX!NA18-BeforeNonEX!NM18) -> 4.85E-01 | H14: -2.957070487 | I14: -3.425004019 | J14: 1.4375 | Q14: YS102 | R14: 1.022464788 | S14: oxyHb-post-A6 | AD14: SW101-nonexercise | AE14: -3.425004019 | AF14: 1.4375 | AH14: RA101 | AI14: -1.383613616 | AJ14: oxyHb-post-B7 | AK14: 1.016225014 | AL14: -3.561369805 | AM14: 3.14139495 | AN14: 1.6875 | AO14: YS102 | AP14: 1.022464788 | AQ14: oxyHb-post-A6 | AR14: -1.02E+00 | AS14: -0.8333571572 | AT14: -5.26675351 | AU14: -2.875
A15: BR102 | B15: -1.172132283 | C15: oxyHb-post-A6 | D15: =((AfterNonEX!JF19-AfterNonEX!JR19)-(BeforeNonEX!JF19-BeforeNonEX!JR19))/ABS(BeforeNonEX!JF19-BeforeNonEX!JR19) -> 6.34E-01 | E15: 1.630627408 | F15: oxyHb-post-B6 | G15: =((AfterNonEX!QP19-AfterNonEX!RB19)-(BeforeNonEX!QP19-BeforeNonEX!RB19))/ABS(BeforeNonEX!QP19-BeforeNonEX!RB19) -> -4.66E-01 | H15: 0.1470248313 | I15: 1.78241741 | J15: -1.25 | AD15: BR102-nonexercise | AE15: 1.78241741 | AF15: -1.25 | AH15: RO101 | AI15: -0.9120564507 | AJ15: oxyHb-task-A1 | AK15: 1.088881008 | AL15: -2.674569286 | AM15: -1.194622373 | AN15: -0.0625 | AO15: SW101 | AP15: 0.9242113352 | AQ15: deoxyHb-post-B2 | AR15: 4.85E-01 | AS15: -2.957070487 | AT15: -3.425004019 | AU15: 1.4375
... 18 more rows

Sheet Cohen's D Rest
A1: ID | B1: Min D before EX | C1: PFC Channel Time Hb | D1: Max D before EX | E1: PFC Channel Time Hb | F1: oxyHb-task-A1 | G1: deoxyHb-task-A1 | H1: totalHb-task-A1 | I1: diffHb-task-A1 | J1: oxyHb-post-A1 | K1: deoxyHb-post-A1 | L1: totalHb-post-A1 | M1: diffHb-post-A1 | N1: oxyHb-task-A2 | O1: deoxyHb-task-A2 | P1: totalHb-task-A2 | Q1: diffHb-task-A2 | R1: oxyHb-post-A2 | S1: deoxyHb-post-A2 | T1: totalHb-post-A2 | U1: diffHb-post-A2 | V1: oxyHb-task-A3 | W1: deoxyHb-task-A3 | X1: totalHb-task-A3 | Y1: diffHb-task-A3 | Z1: oxyHb-post-A3 | AA1: deoxyHb-post-A3 | AB1: totalHb-post-A3 | AC1: diffHb-post-A3 | AD1: oxyHb-task-A4 | AE1: deoxyHb-task-A4 | AF1: totalHb-task-A4 | AG1: diffHb-task-A4 | AH1: oxyHb-post-A4 | AI1: deoxyHb-post-A4 | AJ1: totalHb-post-A4 | AK1: diffHb-post-A4 | AL1: oxyHb-task-A5 | AM1: deoxyHb-task-A5 | AN1: totalHb-task-A5 | AO1: diffHb-task-A5 | AP1: oxyHb-post-A5 | AQ1: deoxyHb-post-A5 | AR1: totalHb-post-A5 | AS1: diffHb-post-A5 | AT1: oxyHb-task-A6 | AU1: deoxyHb-task-A6 | AV1: totalHb-task-A6 | AW1: diffHb-task-A6 | AX1: oxyHb-post-A6 | AY1: deoxyHb-post-A6 | AZ1: totalHb-post-A6 | BA1: diffHb-post-A6 | BB1: oxyHb-task-B1 | BC1: deoxyHb-task-B1 | BD1: totalHb-task-B1 | BE1: diffHb-task-B1 | BF1: oxyHb-post-B1 | BG1: deoxyHb-post-B1 | BH1: totalHb-post-B1 | BI1: diffHb-post-B1 | BJ1: oxyHb-task-B2 | BK1: deoxyHb-task-B2 | BL1: totalHb-task-B2 | BM1: diffHb-task-B2 | BN1: oxyHb-post-B2 | BO1: deoxyHb-post-B2 | BP1: totalHb-post-B2 | BQ1: diffHb-post-B2 | BR1: oxyHb-task-B5 | BS1: deoxyHb-task-B5 | BT1: totalHb-task-B5 | BU1: diffHb-task-B5 | BV1: oxyHb-post-B5 | BW1: deoxyHb-post-B5 | BX1: totalHb-post-B5 | BY1: diffHb-post-B5 | BZ1: oxyHb-task-B6 | CA1: deoxyHb-task-B6 | CB1: totalHb-task-B6 | CC1: diffHb-task-B6 | CD1: oxyHb-post-B6 | CE1: deoxyHb-post-B6 | CF1: totalHb-post-B6 | CG1: diffHb-post-B6 | CH1: oxyHb-task-B7 | CI1: deoxyHb-task-B7 | CJ1: totalHb-task-B7 | CK1: diffHb-task-B7 | CL1: oxyHb-post-B7 | CM1: deoxyHb-post-B7 | CN1: totalHb-post-B7 | CO1: diffHb-post-B7 | CP1: oxyHb-task-B8 | CQ1: deoxyHb-task-B8 | CR1: totalHb-task-B8 | CS1: diffHb-task-B8 | CT1: oxyHb-post-B8 | CU1: deoxyHb-post-B8 | CV1: totalHb-post-B8 | CW1: diffHb-post-B8
A2: AA102 | B2: =MIN(F2:CW2) -> -0.8959522314 | C2: =INDEX($F$1:$CW$1,MATCH(MIN(F2:CW2),F2:CW2,0)) -> totalHb-task-A6 | D2: =MAX(F2:CW2) -> 1.24773596 | E2: =INDEX($F$1:$CW$1,MATCH(MAX(F2:CW2),F2:CW2,0)) -> oxyHb-post-B2 | F2: ='D Rest incong'!B2-'D Rest cong'!B2 -> -0.163616246 | G2: ='D Rest incong'!C2-'D Rest cong'!C2 -> 0.5588367743 | H2: ='D Rest incong'!D2-'D Rest cong'!D2 -> -0.4746574024 | I2: ='D Rest incong'!E2-'D Rest cong'!E2 -> -0.5446800513 | J2: ='D Rest incong'!F2-'D Rest cong'!F2 -> 0.1418014771 | K2: ='D Rest incong'!G2-'D Rest cong'!G2 -> 0.5760214196 | L2: ='D Rest incong'!H2-'D Rest cong'!H2 -> -0.2003922853 | M2: ='D Rest incong'!I2-'D Rest cong'!I2 -> -0.3231483094 | N2: ='D Rest incong'!J2-'D Rest cong'!J2 -> 0.1347260033 | O2: ='D Rest incong'!K2-'D Rest cong'!K2 -> 0.09430900638 | P2: ='D Rest incong'!L2-'D Rest cong'!L2 -> 0.1149400838 | Q2: ='D Rest incong'!M2-'D Rest cong'!M2 -> -0.01912881913 | R2: ='D Rest incong'!N2-'D Rest cong'!N2 -> 0.0240191057 | S2: ='D Rest incong'!O2-'D Rest cong'!O2 -> 0.2468013492 | T2: ='D Rest incong'!P2-'D Rest cong'!P2 -> 0.1700606226 | U2: ='D Rest incong'!Q2-'D Rest cong'!Q2 -> -0.2237667266 | V2: ='D Rest incong'!R2-'D Rest cong'!R2 -> -0.03571192059 | W2: ='D Rest incong'!S2-'D Rest cong'!S2 -> 0.5315252602 | X2: ='D Rest incong'!T2-'D Rest cong'!T2 -> -0.1509996527 | Y2: ='D Rest incong'!U2-'D Rest cong'!U2 -> -0.5864134827 | Z2: ='D Rest incong'!V2-'D Rest cong'!V2 -> -0.05627507079 | AA2: ='D Rest incong'!W2-'D Rest cong'!W2 -> 0.4847732339 | AB2: ='D Rest incong'!X2-'D Rest cong'!X2 -> -0.1488843966 | AC2: ='D Rest incong'!Y2-'D Rest cong'!Y2 -> -0.5125374005 | AD2: ='D Rest incong'!Z2-'D Rest cong'!Z2 -> 0.2419007339 | AE2: ='D Rest incong'!AA2-'D Rest cong'!AA2 -> 0.3811288836 | AF2: ='D Rest incong'!AB2-'D Rest cong'!AB2 -> -0.07842252664 | AG2: ='D Rest incong'!AC2-'D Rest cong'!AC2 -> -0.02400338366 | AH2: ='D Rest incong'!AD2-'D Rest cong'!AD2 -> -0.1649461162 | AI2: ='D Rest incong'!AE2-'D Rest cong'!AE2 -> 0.5215289628 | AJ2: ='D Rest incong'!AF2-'D Rest cong'!AF2 -> -0.3099167803 | AK2: ='D Rest incong'!AG2-'D Rest cong'!AG2 -> -0.4729935439 | AL2: ='D Rest incong'!AH2-'D Rest cong'!AH2 -> 0.06164533009 | AM2: ='D Rest incong'!AI2-'D Rest cong'!AI2 -> -0.699286905 | AN2: ='D Rest incong'!AJ2-'D Rest cong'!AJ2 -> -0.04754102812 | AO2: ='D Rest incong'!AK2-'D Rest cong'!AK2 -> 0.5626770816 | AP2: ='D Rest incong'!AL2-'D Rest cong'!AL2 -> 0.4761631706 | AQ2: ='D Rest incong'!AM2-'D Rest cong'!AM2 -> -0.6440911317 | AR2: ='D Rest incong'!AN2-'D Rest cong'!AN2 -> 0.487082031 | AS2: ='D Rest incong'!AO2-'D Rest cong'!AO2 -> 0.9224695686 | AT2: ='D Rest incong'!AP2-'D Rest cong'!AP2 -> -0.601648178 | AU2: ='D Rest incong'!AQ2-'D Rest cong'!AQ2 -> -0.3407027092 | AV2: ='D Rest incong'!AR2-'D Rest cong'!AR2 -> -0.8959522314 | AW2: ='D Rest incong'!AS2-'D Rest cong'!AS2 -> -0.2606735783 | AX2: ='D Rest incong'!AT2-'D Rest cong'!AT2 -> -0.06595176147 | AY2: ='D Rest incong'!AU2-'D Rest cong'!AU2 -> -0.4225116795 | AZ2: ='D Rest incong'!AV2-'D Rest cong'!AV2 -> -0.1230190347 | BA2: ='D Rest incong'!AW2-'D Rest cong'!AW2 -> 0.2398676515 | BB2: ='D Rest incong'!AX2-'D Rest cong'!AX2 -> -0.3261187025 | BC2: ='D Rest incong'!AY2-'D Rest cong'!AY2 -> -0.3453211617 | BD2: ='D Rest incong'!AZ2-'D Rest cong'!AZ2 -> -0.1704520744 | BE2: ='D Rest incong'!BA2-'D Rest cong'!BA2 -> -0.01539503231 | BF2: ='D Rest incong'!BB2-'D Rest cong'!BB2 -> 0.3429844872 | BG2: ='D Rest incong'!BC2-'D Rest cong'!BC2 -> -0.2553372997 | BH2: ='D Rest incong'!BD2-'D Rest cong'!BD2 -> 0.5171487417 | BI2: ='D Rest incong'!BE2-'D Rest cong'!BE2 -> 0.4429677683 | BJ2: ='D Rest incong'!BF2-'D Rest cong'!BF2 -> 0.8453013414 | BK2: ='D Rest incong'!BG2-'D Rest cong'!BG2 -> 0.9323456416 | BL2: ='D Rest incong'!BH2-'D Rest cong'!BH2 -> -0.0023941001 | BM2: ='D Rest incong'!BI2-'D Rest cong'!BI2 -> 0.4140928498 | BN2: ='D Rest incong'!BJ2-'D Rest cong'!BJ2 -> 1.24773596 | BO2: ='D Rest incong'!BK2-'D Rest cong'!BK2 -> 1.180053373 | BP2: ='D Rest incong'!BL2-'D Rest cong'!BL2 -> 0.7449552416 | BQ2: ='D Rest incong'!BM2-'D Rest cong'!BM2 -> 0.6199333254 | BR2: ='D Rest incong'!BN2-'D Rest cong'!BN2 -> 0.1692638028 | BS2: ='D Rest incong'!BO2-'D Rest cong'!BO2 -> 0.4271592876 | BT2: ='D Rest incong'!BP2-'D Rest cong'!BP2 -> -0.03526792634 | BU2: ='D Rest incong'!BQ2-'D Rest cong'!BQ2 -> -0.2679508136 | BV2: ='D Rest incong'!BR2-'D Rest cong'!BR2 -> 0.3216241194 | BW2: ='D Rest incong'!BS2-'D Rest cong'!BS2 -> 0.3442459075 | BX2: ='D Rest incong'!BT2-'D Rest cong'!BT2 -> -0.07265184743 | BY2: ='D Rest incong'!BU2-'D Rest cong'!BU2 -> -0.1452224395 | BZ2: ='D Rest incong'!BV2-'D Rest cong'!BV2 -> -0.05426113808 | CA2: ='D Rest incong'!BW2-'D Rest cong'!BW2 -> 0.01450028618 | CB2: ='D Rest incong'!BX2-'D Rest cong'!BX2 -> -0.2156174467 | CC2: ='D Rest incong'!BY2-'D Rest cong'!BY2 -> 0.1106577171 | CD2: ='D Rest incong'!BZ2-'D Rest cong'!BZ2 -> 0.02712700304 | CE2: ='D Rest incong'!CA2-'D Rest cong'!CA2 -> -0.03564470034 | CF2: ='D Rest incong'!CB2-'D Rest cong'!CB2 -> -0.2000108428 | CG2: ='D Rest incong'!CC2-'D Rest cong'!CC2 -> 0.2045924288 | CH2: ='D Rest incong'!CD2-'D Rest cong'!CD2 -> -0.105963569 | CI2: ='D Rest incong'!CE2-'D Rest cong'!CE2 -> -0.06625435243 | CJ2: ='D Rest incong'!CF2-'D Rest cong'!CF2 -> -0.1457332338 | CK2: ='D Rest incong'!CG2-'D Rest cong'!CG2 -> -0.05348821137 | CL2: ='D Rest incong'!CH2-'D Rest cong'!CH2 -> 0.2153138362 | CM2: ='D Rest incong'!CI2-'D Rest cong'!CI2 -> -0.1749901257 | CN2: ='D Rest incong'!CJ2-'D Rest cong'!CJ2 -> 0.05541398088 | CO2: ='D Rest incong'!CK2-'D Rest cong'!CK2 -> 0.3142011524 | CP2: ='D Rest incong'!CL2-'D Rest cong'!CL2 -> 0.2551852316 | CQ2: ='D Rest incong'!CM2-'D Rest cong'!CM2 -> 0.6380894292 | CR2: ='D Rest incong'!CN2-'D Rest cong'!CN2 -> -0.2236133688 | CS2: ='D Rest incong'!CO2-'D Rest cong'!CO2 -> -0.1902652105 | CT2: ='D Rest incong'!CP2-'D Rest cong'!CP2 -> -0.06385685736 | CU2: ='D Rest incong'!CQ2-'D Rest cong'!CQ2 -> 0.6762468042 | CV2: ='D Rest incong'!CR2-'D Rest cong'!CR2 -> -0.42961296 | CW2: ='D Rest incong'!CS2-'D Rest cong'!CS2 -> -0.4509187091
A3: CJ101 | B3: =MIN(F3:CW3) -> -1.114383921 | C3: =INDEX($F$1:$CW$1,MATCH(MIN(F3:CW3),F3:CW3,0)) -> oxyHb-task-A4 | D3: 0.7642901104 | E3: =INDEX($F$1:$CW$1,MATCH(MAX(F3:CW3),F3:CW3,0)) -> oxyHb-post-B7 | F3: ='D Rest incong'!B3-'D Rest cong'!B3 -> 0.009608961703 | G3: ='D Rest incong'!C3-'D Rest cong'!C3 -> 0.3328202846 | H3: ='D Rest incong'!D3-'D Rest cong'!D3 -> -0.09693424854 | I3: ='D Rest incong'!E3-'D Rest cong'!E3 -> -0.6224036417 | J3: ='D Rest incong'!F3-'D Rest cong'!F3 -> -0.308822321 | K3: ='D Rest incong'!G3-'D Rest cong'!G3 -> 0.3194642603 | L3: ='D Rest incong'!H3-'D Rest cong'!H3 -> -0.2813658646 | M3: ='D Rest incong'!I3-'D Rest cong'!I3 -> -0.7229862601 | N3: ='D Rest incong'!J3-'D Rest cong'!J3 -> -0.3746640224 | O3: ='D Rest incong'!K3-'D Rest cong'!K3 -> -0.02931784842 | P3: ='D Rest incong'!L3-'D Rest cong'!L3 -> -0.0342926838 | Q3: ='D Rest incong'!M3-'D Rest cong'!M3 -> -0.2581967471 | R3: ='D Rest incong'!N3-'D Rest cong'!N3 -> -0.9392087224 | S3: ='D Rest incong'!O3-'D Rest cong'!O3 -> 0.1107719942 | T3: ='D Rest incong'!P3-'D Rest cong'!P3 -> -0.1783665762 | U3: ='D Rest incong'!Q3-'D Rest cong'!Q3 -> -0.6809624051 | V3: ='D Rest incong'!R3-'D Rest cong'!R3 -> -0.1645254289 | W3: ='D Rest incong'!S3-'D Rest cong'!S3 -> 0.1835473671 | X3: ='D Rest incong'!T3-'D Rest cong'!T3 -> -0.2625269526 | Y3: ='D Rest incong'!U3-'D Rest cong'!U3 -> -0.09093534524 | Z3: ='D Rest incong'!V3-'D Rest cong'!V3 -> -0.4658178968 | AA3: ='D Rest incong'!W3-'D Rest cong'!W3 -> 0.2940968153 | AB3: ='D Rest incong'!X3-'D Rest cong'!X3 -> -0.3353544333 | AC3: ='D Rest incong'!Y3-'D Rest cong'!Y3 -> -0.3721817878 | AD3: ='D Rest incong'!Z3-'D Rest cong'!Z3 -> -1.114383921 | AE3: ='D Rest incong'!AA3-'D Rest cong'!AA3 -> -0.3233437694 | AF3: ='D Rest incong'!AB3-'D Rest cong'!AB3 -> -0.193007877 | AG3: ='D Rest incong'!AC3-'D Rest cong'!AC3 -> -0.3808723987 | AH3: ='D Rest incong'!AD3-'D Rest cong'!AD3 -> -0.8799242969 | AI3: ='D Rest incong'!AE3-'D Rest cong'!AE3 -> -0.3891669264 | AJ3: ='D Rest incong'!AF3-'D Rest cong'!AF3 -> -0.1112559872 | AK3: ='D Rest incong'!AG3-'D Rest cong'!AG3 -> -0.1836265149 | AL3: ='D Rest incong'!AH3-'D Rest cong'!AH3 -> -0.6778917687 | AM3: ='D Rest incong'!AI3-'D Rest cong'!AI3 -> -0.2611294338 | AN3: ='D Rest incong'!AJ3-'D Rest cong'!AJ3 -> -0.1231737225 | AO3: ='D Rest incong'!AK3-'D Rest cong'!AK3 -> -0.02469163584 | AP3: ='D Rest incong'!AL3-'D Rest cong'!AL3 -> -0.4927880189 | AQ3: ='D Rest incong'!AM3-'D Rest cong'!AM3 -> -0.2029047831 | AR3: ='D Rest incong'!AN3-'D Rest cong'!AN3 -> 0.07629516688 | AS3: ='D Rest incong'!AO3-'D Rest cong'!AO3 -> 0.03109218841 | AT3: ='D Rest incong'!AP3-'D Rest cong'!AP3 -> 0.6072809978 | AU3: ='D Rest incong'!AQ3-'D Rest cong'!AQ3 -> -0.1141624024 | AV3: ='D Rest incong'!AR3-'D Rest cong'!AR3 -> 0.4812141341 | AW3: ='D Rest incong'!AS3-'D Rest cong'!AS3 -> 0.4340943007 | AX3: ='D Rest incong'!AT3-'D Rest cong'!AT3 -> 0.4590766463 | AY3: ='D Rest incong'!AU3-'D Rest cong'!AU3 -> -0.06951230574 | AZ3: ='D Rest incong'!AV3-'D Rest cong'!AV3 -> 0.4165325345 | BA3: ='D Rest incong'!AW3-'D Rest cong'!AW3 -> 0.2945883871 | BB3: ='D Rest incong'!AX3-'D Rest cong'!AX3 -> -0.1101313477 | BC3: ='D Rest incong'!AY3-'D Rest cong'!AY3 -> 0.1667395072 | BD3: ='D Rest incong'!AZ3-'D Rest cong'!AZ3 -> -0.2324264642 | BE3: ='D Rest incong'!BA3-'D Rest cong'!BA3 -> -0.2705989843 | BF3: ='D Rest incong'!BB3-'D Rest cong'!BB3 -> -0.4797711055 | BG3: ='D Rest incong'!BC3-'D Rest cong'!BC3 -> 0.01451491073 | BH3: ='D Rest incong'!BD3-'D Rest cong'!BD3 -> -0.6578935688 | BI3: ='D Rest incong'!BE3-'D Rest cong'!BE3 -> -0.3495633951 | BJ3: ='D Rest incong'!BF3-'D Rest cong'!BF3 -> -0.9273124662 | BK3: ='D Rest incong'!BG3-'D Rest cong'!BG3 -> -0.4831797091 | BL3: ='D Rest incong'!BH3-'D Rest cong'!BH3 -> -0.3757914304 | BM3: ='D Rest incong'!BI3-'D Rest cong'!BI3 -> -0.4408636052 | BN3: ='D Rest incong'!BJ3-'D Rest cong'!BJ3 -> -0.7927333172 | BO3: ='D Rest incong'!BK3-'D Rest cong'!BK3 -> -0.6533659212 | BP3: ='D Rest incong'!BL3-'D Rest cong'!BL3 -> -0.4126494583 | BQ3: ='D Rest incong'!BM3-'D Rest cong'!BM3 -> -0.144397551 | BR3: ='D Rest incong'!BN3-'D Rest cong'!BN3 -> -0.9405998341 | BS3: ='D Rest incong'!BO3-'D Rest cong'!BO3 -> 0.340986005 | BT3: ='D Rest incong'!BP3-'D Rest cong'!BP3 -> -0.4702569376 | BU3: ='D Rest incong'!BQ3-'D Rest cong'!BQ3 -> -0.9914063388 | BV3: ='D Rest incong'!BR3-'D Rest cong'!BR3 -> 0.04166777944 | BW3: ='D Rest incong'!BS3-'D Rest cong'!BS3 -> 0.06898227949 | BX3: ='D Rest incong'!BT3-'D Rest cong'!BT3 -> -0.009140892525 | BY3: ='D Rest incong'!BU3-'D Rest cong'!BU3 -> -0.05071830411 | BZ3: ='D Rest incong'!BV3-'D Rest cong'!BV3 -> -0.1002871549 | CA3: ='D Rest incong'!BW3-'D Rest cong'!BW3 -> -0.1206225766 | CB3: ='D Rest incong'!BX3-'D Rest cong'!BX3 -> -0.1591169164 | CC3: ='D Rest incong'!BY3-'D Rest cong'!BY3 -> 0.1223678677 | CD3: ='D Rest incong'!BZ3-'D Rest cong'!BZ3 -> -0.467987057 | CE3: ='D Rest incong'!CA3-'D Rest cong'!CA3 -> 0.05032510795 | CF3: ='D Rest incong'!CB3-'D Rest cong'!CB3 -> -0.2459707621 | CG3: ='D Rest incong'!CC3-'D Rest cong'!CC3 -> -0.2668898677 | CH3: ='D Rest incong'!CD3-'D Rest cong'!CD3 -> 0.389381302 | CI3: ='D Rest incong'!CE3-'D Rest cong'!CE3 -> -0.02880821875 | CJ3: ='D Rest incong'!CF3-'D Rest cong'!CF3 -> 0.3257775088 | CK3: ='D Rest incong'!CG3-'D Rest cong'!CG3 -> 0.1154625882 | CL3: ='D Rest incong'!CH3-'D Rest cong'!CH3 -> 0.7642901104 | CM3: ='D Rest incong'!CI3-'D Rest cong'!CI3 -> -0.118329378 | CN3: ='D Rest incong'!CJ3-'D Rest cong'!CJ3 -> 0.4666658721 | CO3: ='D Rest incong'!CK3-'D Rest cong'!CK3 -> 0.4032337605 | CP3: ='D Rest incong'!CL3-'D Rest cong'!CL3 -> -0.8955471721 | CQ3: ='D Rest incong'!CM3-'D Rest cong'!CM3 -> 0.3625061911 | CR3: ='D Rest incong'!CN3-'D Rest cong'!CN3 -> -0.4972142556 | CS3: ='D Rest incong'!CO3-'D Rest cong'!CO3 -> -1.081793386 | CT3: ='D Rest incong'!CP3-'D Rest cong'!CP3 -> -0.6260411039 | CU3: ='D Rest incong'!CQ3-'D Rest cong'!CQ3 -> 0.1821165203 | CV3: ='D Rest incong'!CR3-'D Rest cong'!CR3 -> -0.4401893652 | CW3: ='D Rest incong'!CS3-'D Rest cong'!CS3 -> -0.6999595668
A4: CN101 | B4: -0.6723006876 | C4: =INDEX($F$1:$CW$1,MATCH(MIN(F4:CW4),F4:CW4,0)) -> oxyHb-task-B2 | D4: 1.19185363 | E4: oxyHb-post-B6 | F4: ='D Rest incong'!B4-'D Rest cong'!B4 -> -0.3206694934 | G4: ='D Rest incong'!C4-'D Rest cong'!C4 -> -0.1990887225 | H4: ='D Rest incong'!D4-'D Rest cong'!D4 -> -0.02874453262 | I4: ='D Rest incong'!E4-'D Rest cong'!E4 -> -0.3062194283 | J4: ='D Rest incong'!F4-'D Rest cong'!F4 -> -0.3173680212 | K4: ='D Rest incong'!G4-'D Rest cong'!G4 -> -0.183310578 | L4: ='D Rest incong'!H4-'D Rest cong'!H4 -> 0.009819118349 | M4: ='D Rest incong'!I4-'D Rest cong'!I4 -> -0.3071172893 | N4: ='D Rest incong'!J4-'D Rest cong'!J4 -> 0.215782955 | O4: ='D Rest incong'!K4-'D Rest cong'!K4 -> -0.01250867017 | P4: ='D Rest incong'!L4-'D Rest cong'!L4 -> 0.002436229751 | Q4: ='D Rest incong'!M4-'D Rest cong'!M4 -> 0.2111059317 | R4: ='D Rest incong'!N4-'D Rest cong'!N4 -> -0.2246248778 | S4: ='D Rest incong'!O4-'D Rest cong'!O4 -> 0.1450315972 | T4: ='D Rest incong'!P4-'D Rest cong'!P4 -> -0.1053677653 | U4: ='D Rest incong'!Q4-'D Rest cong'!Q4 -> -0.1704674881 | V4: ='D Rest incong'!R4-'D Rest cong'!R4 -> -0.04873452704 | W4: ='D Rest incong'!S4-'D Rest cong'!S4 -> -0.3488198864 | X4: ='D Rest incong'!T4-'D Rest cong'!T4 -> -0.07014432668 | Y4: ='D Rest incong'!U4-'D Rest cong'!U4 -> 0.33706288 | Z4: ='D Rest incong'!V4-'D Rest cong'!V4 -> -0.03372662942 | AA4: ='D Rest incong'!W4-'D Rest cong'!W4 -> -0.2534109035 | AB4: ='D Rest incong'!X4-'D Rest cong'!X4 -> 0.03701205572 | AC4: ='D Rest incong'!Y4-'D Rest cong'!Y4 -> 0.2634305722 | AD4: ='D Rest incong'!Z4-'D Rest cong'!Z4 -> 0.2217375639 | AE4: ='D Rest incong'!AA4-'D Rest cong'!AA4 -> -0.1293840705 | AF4: ='D Rest incong'!AB4-'D Rest cong'!AB4 -> 0.06753892057 | AG4: ='D Rest incong'!AC4-'D Rest cong'!AC4 -> 0.2620834909 | AH4: ='D Rest incong'!AD4-'D Rest cong'!AD4 -> 0.002184717952 | AI4: ='D Rest incong'!AE4-'D Rest cong'!AE4 -> -0.08080493511 | AJ4: ='D Rest incong'!AF4-'D Rest cong'!AF4 -> -0.06364648304 | AK4: ='D Rest incong'!AG4-'D Rest cong'!AG4 -> 0.06242148357 | AL4: ='D Rest incong'!AH4-'D Rest cong'!AH4 -> -0.2178457679 | AM4: ='D Rest incong'!AI4-'D Rest cong'!AI4 -> 0.1291121858 | AN4: ='D Rest incong'!AJ4-'D Rest cong'!AJ4 -> 0.01209000849 | AO4: ='D Rest incong'!AK4-'D Rest cong'!AK4 -> -0.2902674811 | AP4: ='D Rest incong'!AL4-'D Rest cong'!AL4 -> 0.0106658969 | AQ4: ='D Rest incong'!AM4-'D Rest cong'!AM4 -> 0.2458487052 | AR4: ='D Rest incong'!AN4-'D Rest cong'!AN4 -> 0.3594553077 | AS4: ='D Rest incong'!AO4-'D Rest cong'!AO4 -> -0.2193254818 | AT4: ='D Rest incong'!AP4-'D Rest cong'!AP4 -> -0.03407545718 | AU4: ='D Rest incong'!AQ4-'D Rest cong'!AQ4 -> 0.5465195902 | AV4: ='D Rest incong'!AR4-'D Rest cong'!AR4 -> 0.2662259317 | AW4: ='D Rest incong'!AS4-'D Rest cong'!AS4 -> -0.2681140823 | AX4: ='D Rest incong'!AT4-'D Rest cong'!AT4 -> 0.8691625961 | AY4: ='D Rest incong'!AU4-'D Rest cong'!AU4 -> 0.6207436986 | AZ4: ='D Rest incong'!AV4-'D Rest cong'!AV4 -> 0.9589868862 | BA4: ='D Rest incong'!AW4-'D Rest cong'!AW4 -> 0.1995592363 | BB4: ='D Rest incong'!AX4-'D Rest cong'!AX4 -> -0.124672045 | BC4: ='D Rest incong'!AY4-'D Rest cong'!AY4 -> 0.06629652495 | BD4: ='D Rest incong'!AZ4-'D Rest cong'!AZ4 -> 0.1027451288 | BE4: ='D Rest incong'!BA4-'D Rest cong'!BA4 -> -0.5349278356 | BF4: ='D Rest incong'!BB4-'D Rest cong'!BB4 -> 0.08077887277 | BG4: ='D Rest incong'!BC4-'D Rest cong'!BC4 -> 0.06947355108 | BH4: ='D Rest incong'!BD4-'D Rest cong'!BD4 -> 0.2791691558 | BI4: ='D Rest incong'!BE4-'D Rest cong'!BE4 -> -0.3761240203 | BJ4: ='D Rest incong'!BF4-'D Rest cong'!BF4 -> -0.6723006876 | BK4: ='D Rest incong'!BG4-'D Rest cong'!BG4 -> -0.2341090982 | BL4: ='D Rest incong'!BH4-'D Rest cong'!BH4 -> -0.416284498 | BM4: ='D Rest incong'!BI4-'D Rest cong'!BI4 -> -0.2520931437 | BN4: ='D Rest incong'!BJ4-'D Rest cong'!BJ4 -> -0.6593620142 | BO4: ='D Rest incong'!BK4-'D Rest cong'!BK4 -> -0.2622769325 | BP4: ='D Rest incong'!BL4-'D Rest cong'!BL4 -> -0.4069772043 | BQ4: ='D Rest incong'!BM4-'D Rest cong'!BM4 -> -0.1829385081 | BR4: ='D Rest incong'!BN4-'D Rest cong'!BN4 -> -0.2485029981 | BS4: ='D Rest incong'!BO4-'D Rest cong'!BO4 -> -0.04944781243 | BT4: ='D Rest incong'!BP4-'D Rest cong'!BP4 -> -0.08446247886 | BU4: ='D Rest incong'!BQ4-'D Rest cong'!BQ4 -> -0.1988690821 | BV4: ='D Rest incong'!BR4-'D Rest cong'!BR4 -> -0.4533449443 | BW4: ='D Rest incong'!BS4-'D Rest cong'!BS4 -> 0.02131334002 | BX4: ='D Rest incong'!BT4-'D Rest cong'!BT4 -> -0.2091746733 | BY4: ='D Rest incong'!BU4-'D Rest cong'!BU4 -> -0.4372287419 | BZ4: ='D Rest incong'!BV4-'D Rest cong'!BV4 -> 0.4672934945 | CA4: ='D Rest incong'!BW4-'D Rest cong'!BW4 -> 0.1708804269 | CB4: ='D Rest incong'!BX4-'D Rest cong'!BX4 -> 0.1123834643 | CC4: ='D Rest incong'!BY4-'D Rest cong'!BY4 -> -0.09150556509 | CD4: ='D Rest incong'!BZ4-'D Rest cong'!BZ4 -> 1.19185363 | CE4: ='D Rest incong'!CA4-'D Rest cong'!CA4 -> 0.04288867767 | CF4: ='D Rest incong'!CB4-'D Rest cong'!CB4 -> 0.426890412 | CG4: ='D Rest incong'!CC4-'D Rest cong'!CC4 -> 0.4208100197 | CH4: ='D Rest incong'!CD4-'D Rest cong'!CD4 -> 0.347153823 | CI4: ='D Rest incong'!CE4-'D Rest cong'!CE4 -> -0.09554104977 | CJ4: ='D Rest incong'!CF4-'D Rest cong'!CF4 -> 0.03212620255 | CK4: ='D Rest incong'!CG4-'D Rest cong'!CG4 -> 0.2061099266 | CL4: ='D Rest incong'!CH4-'D Rest cong'!CH4 -> 0.2186003782 | CM4: ='D Rest incong'!CI4-'D Rest cong'!CI4 -> -0.09285172565 | CN4: ='D Rest incong'!CJ4-'D Rest cong'!CJ4 -> -0.05852977352 | CO4: ='D Rest incong'!CK4-'D Rest cong'!CK4 -> 0.1214460692 | CP4: ='D Rest incong'!CL4-'D Rest cong'!CL4 -> -0.2360225088 | CQ4: ='D Rest incong'!CM4-'D Rest cong'!CM4 -> 0.1952519571 | CR4: ='D Rest incong'!CN4-'D Rest cong'!CN4 -> -0.2018560913 | CS4: ='D Rest incong'!CO4-'D Rest cong'!CO4 -> -0.256376512 | CT4: ='D Rest incong'!CP4-'D Rest cong'!CP4 -> -0.2673217264 | CU4: ='D Rest incong'!CQ4-'D Rest cong'!CQ4 -> 0.160443853 | CV4: ='D Rest incong'!CR4-'D Rest cong'!CR4 -> -0.2054919135 | CW4: ='D Rest incong'!CS4-'D Rest cong'!CS4 -> -0.1902890446
A5: DD101 | B5: -0.6689317327 | C5: oxyHb-post-B7 | D5: 1.290179349 | E5: diffHb-post-A3 | F5: ='D Rest incong'!B5-'D Rest cong'!B5 -> 0.06201711769 | G5: ='D Rest incong'!C5-'D Rest cong'!C5 -> 0.4415633322 | H5: ='D Rest incong'!D5-'D Rest cong'!D5 -> 0.03786704533 | I5: ='D Rest incong'!E5-'D Rest cong'!E5 -> -0.4163168685 | J5: ='D Rest incong'!F5-'D Rest cong'!F5 -> 0.5869695427 | K5: ='D Rest incong'!G5-'D Rest cong'!G5 -> 0.4046379627 | L5: ='D Rest incong'!H5-'D Rest cong'!H5 -> 0.264100088 | M5: ='D Rest incong'!I5-'D Rest cong'!I5 -> -0.1621788762 | N5: ='D Rest incong'!J5-'D Rest cong'!J5 -> 0.1047554661 | O5: ='D Rest incong'!K5-'D Rest cong'!K5 -> 0.1628932101 | P5: ='D Rest incong'!L5-'D Rest cong'!L5 -> -0.1369996451 | Q5: ='D Rest incong'!M5-'D Rest cong'!M5 -> -0.3129260901 | R5: ='D Rest incong'!N5-'D Rest cong'!N5 -> 0.4549774048 | S5: ='D Rest incong'!O5-'D Rest cong'!O5 -> 0.08368161965 | T5: ='D Rest incong'!P5-'D Rest cong'!P5 -> -0.009494801931 | U5: ='D Rest incong'!Q5-'D Rest cong'!Q5 -> -0.05270627496 | V5: ='D Rest incong'!R5-'D Rest cong'!R5 -> 0.7523597476 | W5: ='D Rest incong'!S5-'D Rest cong'!S5 -> -0.2721454918 | X5: ='D Rest incong'!T5-'D Rest cong'!T5 -> 0.3932484842 | Y5: ='D Rest incong'!U5-'D Rest cong'!U5 -> 0.9255333443 | Z5: ='D Rest incong'!V5-'D Rest cong'!V5 -> 1.132922223 | AA5: ='D Rest incong'!W5-'D Rest cong'!W5 -> -0.406595987 | AB5: ='D Rest incong'!X5-'D Rest cong'!X5 -> 0.5600500081 | AC5: ='D Rest incong'!Y5-'D Rest cong'!Y5 -> 1.290179349 | AD5: ='D Rest incong'!Z5-'D Rest cong'!Z5 -> 0.0396404693 | AE5: ='D Rest incong'!AA5-'D Rest cong'!AA5 -> 0.4297915158 | AF5: ='D Rest incong'!AB5-'D Rest cong'!AB5 -> -0.1476202391 | AG5: ='D Rest incong'!AC5-'D Rest cong'!AC5 -> -0.5128184086 | AH5: ='D Rest incong'!AD5-'D Rest cong'!AD5 -> 0.4872498581 | AI5: ='D Rest incong'!AE5-'D Rest cong'!AE5 -> 0.3492423452 | AJ5: ='D Rest incong'!AF5-'D Rest cong'!AF5 -> 0.09130257345 | AK5: ='D Rest incong'!AG5-'D Rest cong'!AG5 -> -0.1719921302 | AL5: ='D Rest incong'!AH5-'D Rest cong'!AH5 -> 0.4675086254 | AM5: ='D Rest incong'!AI5-'D Rest cong'!AI5 -> 0.5533892782 | AN5: ='D Rest incong'!AJ5-'D Rest cong'!AJ5 -> 0.1980376988 | AO5: ='D Rest incong'!AK5-'D Rest cong'!AK5 -> -0.3036711207 | AP5: ='D Rest incong'!AL5-'D Rest cong'!AL5 -> 0.2114284808 | AQ5: ='D Rest incong'!AM5-'D Rest cong'!AM5 -> 0.7128182902 | AR5: ='D Rest incong'!AN5-'D Rest cong'!AN5 -> 0.144803135 | AS5: ='D Rest incong'!AO5-'D Rest cong'!AO5 -> -0.6463871836 | AT5: ='D Rest incong'!AP5-'D Rest cong'!AP5 -> 0.1188156299 | AU5: ='D Rest incong'!AQ5-'D Rest cong'!AQ5 -> -0.2586994273 | AV5: ='D Rest incong'!AR5-'D Rest cong'!AR5 -> 0.3022889029 | AW5: ='D Rest incong'!AS5-'D Rest cong'!AS5 -> 0.2773955058 | AX5: ='D Rest incong'!AT5-'D Rest cong'!AT5 -> -0.5600263892 | AY5: ='D Rest incong'!AU5-'D Rest cong'!AU5 -> -0.1589269886 | AZ5: ='D Rest incong'!AV5-'D Rest cong'!AV5 -> -0.2084536533 | BA5: ='D Rest incong'!AW5-'D Rest cong'!AW5 -> -0.3341099918 | BB5: ='D Rest incong'!AX5-'D Rest cong'!AX5 -> -0.1032126776 | BC5: ='D Rest incong'!AY5-'D Rest cong'!AY5 -> 0.1493887982 | BD5: ='D Rest incong'!AZ5-'D Rest cong'!AZ5 -> -0.1129045982 | BE5: ='D Rest incong'!BA5-'D Rest cong'!BA5 -> -0.4126181301 | BF5: ='D Rest incong'!BB5-'D Rest cong'!BB5 -> 0.5085928184 | BG5: ='D Rest incong'!BC5-'D Rest cong'!BC5 -> -0.1363825456 | BH5: ='D Rest incong'!BD5-'D Rest cong'!BD5 -> 0.112834294 | BI5: ='D Rest incong'!BE5-'D Rest cong'!BE5 -> 0.298133383 | BJ5: ='D Rest incong'!BF5-'D Rest cong'!BF5 -> 0.3551418294 | BK5: ='D Rest incong'!BG5-'D Rest cong'!BG5 -> -0.04891502345 | BL5: ='D Rest incong'!BH5-'D Rest cong'!BH5 -> 0.4165469407 | BM5: ='D Rest incong'!BI5-'D Rest cong'!BI5 -> 0.28103053 | BN5: ='D Rest incong'!BJ5-'D Rest cong'!BJ5 -> 0.3751723003 | BO5: ='D Rest incong'!BK5-'D Rest cong'!BK5 -> -0.1267541906 | BP5: ='D Rest incong'!BL5-'D Rest cong'!BL5 -> 0.3420970869 | BQ5: ='D Rest incong'!BM5-'D Rest cong'!BM5 -> 0.3666498667 | BR5: ='D Rest incong'!BN5-'D Rest cong'!BN5 -> 0.5806099265 | BS5: ='D Rest incong'!BO5-'D Rest cong'!BO5 -> -0.3136306591 | BT5: ='D Rest incong'!BP5-'D Rest cong'!BP5 -> 0.4069657717 | BU5: ='D Rest incong'!BQ5-'D Rest cong'!BQ5 -> 0.7767693039 | BV5: ='D Rest incong'!BR5-'D Rest cong'!BR5 -> 0.3536226918 | BW5: ='D Rest incong'!BS5-'D Rest cong'!BS5 -> -0.09742535831 | BX5: ='D Rest incong'!BT5-'D Rest cong'!BT5 -> 0.4709414518 | BY5: ='D Rest incong'!BU5-'D Rest cong'!BU5 -> 0.4219204212 | BZ5: ='D Rest incong'!BV5-'D Rest cong'!BV5 -> -0.05890171796 | CA5: ='D Rest incong'!BW5-'D Rest cong'!BW5 -> -0.3153167436 | CB5: ='D Rest incong'!BX5-'D Rest cong'!BX5 -> 0.3293025104 | CC5: ='D Rest incong'!BY5-'D Rest cong'!BY5 -> 0.2127167245 | CD5: ='D Rest incong'!BZ5-'D Rest cong'!BZ5 -> -0.3722923975 | CE5: ='D Rest incong'!CA5-'D Rest cong'!CA5 -> -0.3947373578 | CF5: ='D Rest incong'!CB5-'D Rest cong'!CB5 -> 0.0122365426 | CG5: ='D Rest incong'!CC5-'D Rest cong'!CC5 -> 0.09119755053 | CH5: ='D Rest incong'!CD5-'D Rest cong'!CD5 -> -0.3951936393 | CI5: ='D Rest incong'!CE5-'D Rest cong'!CE5 -> -0.1219305073 | CJ5: ='D Rest incong'!CF5-'D Rest cong'!CF5 -> -0.09450697777 | CK5: ='D Rest incong'!CG5-'D Rest cong'!CG5 -> -0.09614522421 | CL5: ='D Rest incong'!CH5-'D Rest cong'!CH5 -> -0.6689317327 | CM5: ='D Rest incong'!CI5-'D Rest cong'!CI5 -> -0.04831516308 | CN5: ='D Rest incong'!CJ5-'D Rest cong'!CJ5 -> -0.2067813189 | CO5: ='D Rest incong'!CK5-'D Rest cong'!CK5 -> -0.3307455772 | CP5: ='D Rest incong'!CL5-'D Rest cong'!CL5 -> 0.4739882274 | CQ5: ='D Rest incong'!CM5-'D Rest cong'!CM5 -> 0.5711086046 | CR5: ='D Rest incong'!CN5-'D Rest cong'!CN5 -> 0.3055048005 | CS5: ='D Rest incong'!CO5-'D Rest cong'!CO5 -> -0.5869839986 | CT5: ='D Rest incong'!CP5-'D Rest cong'!CP5 -> 0.3924712191 | CU5: ='D Rest incong'!CQ5-'D Rest cong'!CQ5 -> 0.5189351954 | CV5: ='D Rest incong'!CR5-'D Rest cong'!CR5 -> 0.2067631584 | CW5: ='D Rest incong'!CS5-'D Rest cong'!CS5 -> -0.5715999349
A6: FA102 | B6: -2.43581211 | C6: oxyHb-post-B2 | D6: 1.048603481 | E6: diffHb-post-A5 | F6: ='D Rest incong'!B6-'D Rest cong'!B6 -> -0.4058095265 | G6: ='D Rest incong'!C6-'D Rest cong'!C6 -> 0.3373127736 | H6: ='D Rest incong'!D6-'D Rest cong'!D6 -> -0.3536795574 | I6: ='D Rest incong'!E6-'D Rest cong'!E6 -> -0.4415172752 | J6: ='D Rest incong'!F6-'D Rest cong'!F6 -> -0.7682065087 | K6: ='D Rest incong'!G6-'D Rest cong'!G6 -> 0.4595562182 | L6: ='D Rest incong'!H6-'D Rest cong'!H6 -> -0.5611167428 | M6: ='D Rest incong'!I6-'D Rest cong'!I6 -> -0.8325656238 | N6: ='D Rest incong'!J6-'D Rest cong'!J6 -> 0.08854053132 | O6: ='D Rest incong'!K6-'D Rest cong'!K6 -> 0.03949145423 | P6: ='D Rest incong'!L6-'D Rest cong'!L6 -> -0.2823262401 | Q6: ='D Rest incong'!M6-'D Rest cong'!M6 -> 0.0937361171 | R6: ='D Rest incong'!N6-'D Rest cong'!N6 -> 0.1371316371 | S6: ='D Rest incong'!O6-'D Rest cong'!O6 -> 0.08946975302 | T6: ='D Rest incong'!P6-'D Rest cong'!P6 -> -0.1724874566 | U6: ='D Rest incong'!Q6-'D Rest cong'!Q6 -> 0.08805719011 | V6: ='D Rest incong'!R6-'D Rest cong'!R6 -> -0.08653078882 | W6: ='D Rest incong'!S6-'D Rest cong'!S6 -> -0.08531247774 | X6: ='D Rest incong'!T6-'D Rest cong'!T6 -> 0.04507187612 | Y6: ='D Rest incong'!U6-'D Rest cong'!U6 -> 0.03165461754 | Z6: ='D Rest incong'!V6-'D Rest cong'!V6 -> -0.6662502597 | AA6: ='D Rest incong'!W6-'D Rest cong'!W6 -> 0.08576323564 | AB6: ='D Rest incong'!X6-'D Rest cong'!X6 -> -0.1580614831 | AC6: ='D Rest incong'!Y6-'D Rest cong'!Y6 -> -0.4755287827 | AD6: ='D Rest incong'!Z6-'D Rest cong'!Z6 -> 0.4733013016 | AE6: ='D Rest incong'!AA6-'D Rest cong'!AA6 -> 0.394363339 | AF6: ='D Rest incong'!AB6-'D Rest cong'!AB6 -> 0.1456291247 | AG6: ='D Rest incong'!AC6-'D Rest cong'!AC6 -> 0.1193431665 | AH6: ='D Rest incong'!AD6-'D Rest cong'!AD6 -> 0.6870262376 | AI6: ='D Rest incong'!AE6-'D Rest cong'!AE6 -> 0.3731860759 | AJ6: ='D Rest incong'!AF6-'D Rest cong'!AF6 -> 0.2741857164 | AK6: ='D Rest incong'!AG6-'D Rest cong'!AG6 -> 0.2697907378 | AL6: ='D Rest incong'!AH6-'D Rest cong'!AH6 -> 0.6842912793 | AM6: ='D Rest incong'!AI6-'D Rest cong'!AI6 -> -0.2589070081 | AN6: ='D Rest incong'!AJ6-'D Rest cong'!AJ6 -> 0.3234408562 | AO6: ='D Rest incong'!AK6-'D Rest cong'!AK6 -> 0.8953125483 | AP6: ='D Rest incong'!AL6-'D Rest cong'!AL6 -> 0.9349954147 | AQ6: ='D Rest incong'!AM6-'D Rest cong'!AM6 -> -0.2489300812 | AR6: ='D Rest incong'!AN6-'D Rest cong'!AN6 -> 0.5204325785 | AS6: ='D Rest incong'!AO6-'D Rest cong'!AO6 -> 1.048603481 | AT6: ='D Rest incong'!AP6-'D Rest cong'!AP6 -> -0.112574125 | AU6: ='D Rest incong'!AQ6-'D Rest cong'!AQ6 -> -0.4147576442 | AV6: ='D Rest incong'!AR6-'D Rest cong'!AR6 -> -0.05564066086 | AW6: ='D Rest incong'!AS6-'D Rest cong'!AS6 -> 0.4137642468 | AX6: ='D Rest incong'!AT6-'D Rest cong'!AT6 -> -0.5951376374 | AY6: ='D Rest incong'!AU6-'D Rest cong'!AU6 -> -0.1719881552 | AZ6: ='D Rest incong'!AV6-'D Rest cong'!AV6 -> -0.2161561486 | BA6: ='D Rest incong'!AW6-'D Rest cong'!AW6 -> -0.1629246056 | BB6: ='D Rest incong'!AX6-'D Rest cong'!AX6 -> -0.3867055839 | BC6: ='D Rest incong'!AY6-'D Rest cong'!AY6 -> -0.02019719511 | BD6: ='D Rest incong'!AZ6-'D Rest cong'!AZ6 -> -0.1863186641 | BE6: ='D Rest incong'!BA6-'D Rest cong'!BA6 -> -0.2237333417 | BF6: ='D Rest incong'!BB6-'D Rest cong'!BB6 -> -0.3676304784 | BG6: ='D Rest incong'!BC6-'D Rest cong'!BC6 -> 0.07309620051 | BH6: ='D Rest incong'!BD6-'D Rest cong'!BD6 -> -0.03774655939 | BI6: ='D Rest incong'!BE6-'D Rest cong'!BE6 -> -0.2867254135 | BJ6: ='D Rest incong'!BF6-'D Rest cong'!BF6 -> -1.153429353 | BK6: ='D Rest incong'!BG6-'D Rest cong'!BG6 -> -0.178711326 | BL6: ='D Rest incong'!BH6-'D Rest cong'!BH6 -> -0.6938138683 | BM6: ='D Rest incong'!BI6-'D Rest cong'!BI6 -> -0.4520454556 | BN6: ='D Rest incong'!BJ6-'D Rest cong'!BJ6 -> -2.43581211 | BO6: ='D Rest incong'!BK6-'D Rest cong'!BK6 -> -0.08857876194 | BP6: ='D Rest incong'!BL6-'D Rest cong'!BL6 -> -1.31061746 | BQ6: ='D Rest incong'!BM6-'D Rest cong'!BM6 -> -1.193306442 | BR6: ='D Rest incong'!BN6-'D Rest cong'!BN6 -> 0.1002861188 | BS6: ='D Rest incong'!BO6-'D Rest cong'!BO6 -> 0.6440896715 | BT6: ='D Rest incong'!BP6-'D Rest cong'!BP6 -> 0.006567080657 | BU6: ='D Rest incong'!BQ6-'D Rest cong'!BQ6 -> -0.7046145538 | BV6: ='D Rest incong'!BR6-'D Rest cong'!BR6 -> -0.1239646727 | BW6: ='D Rest incong'!BS6-'D Rest cong'!BS6 -> 0.7475815174 | BX6: ='D Rest incong'!BT6-'D Rest cong'!BT6 -> 0.007581739422 | BY6: ='D Rest incong'!BU6-'D Rest cong'!BU6 -> -0.9247043771 | BZ6: ='D Rest incong'!BV6-'D Rest cong'!BV6 -> -0.1308946178 | CA6: ='D Rest incong'!BW6-'D Rest cong'!BW6 -> 0.1471632914 | CB6: ='D Rest incong'!BX6-'D Rest cong'!BX6 -> 0.03764059497 | CC6: ='D Rest incong'!BY6-'D Rest cong'!BY6 -> -0.1603320633 | CD6: ='D Rest incong'!BZ6-'D Rest cong'!BZ6 -> -0.4155202095 | CE6: ='D Rest incong'!CA6-'D Rest cong'!CA6 -> 0.2881398727 | CF6: ='D Rest incong'!CB6-'D Rest cong'!CB6 -> -0.02281784472 | CG6: ='D Rest incong'!CC6-'D Rest cong'!CC6 -> -0.4669794988 | CH6: ='D Rest incong'!CD6-'D Rest cong'!CD6 -> -0.4720153361 | CI6: ='D Rest incong'!CE6-'D Rest cong'!CE6 -> 0.4708580755 | CJ6: ='D Rest incong'!CF6-'D Rest cong'!CF6 -> -0.3343287227 | CK6: ='D Rest incong'!CG6-'D Rest cong'!CG6 -> -0.6764340768 | CL6: ='D Rest incong'!CH6-'D Rest cong'!CH6 -> -0.6757010406 | CM6: ='D Rest incong'!CI6-'D Rest cong'!CI6 -> 0.5370159441 | CN6: ='D Rest incong'!CJ6-'D Rest cong'!CJ6 -> -0.4195969593 | CO6: ='D Rest incong'!CK6-'D Rest cong'!CK6 -> -0.8741191777 | CP6: ='D Rest incong'!CL6-'D Rest cong'!CL6 -> -0.3025230759 | CQ6: ='D Rest incong'!CM6-'D Rest cong'!CM6 -> 0.2190350182 | CR6: ='D Rest incong'!CN6-'D Rest cong'!CN6 -> -0.4764919304 | CS6: ='D Rest incong'!CO6-'D Rest cong'!CO6 -> -0.4988184138 | CT6: ='D Rest incong'!CP6-'D Rest cong'!CP6 -> 0.2135838992 | CU6: ='D Rest incong'!CQ6-'D Rest cong'!CQ6 -> 0.144107282 | CV6: ='D Rest incong'!CR6-'D Rest cong'!CR6 -> -0.09439124973 | CW6: ='D Rest incong'!CS6-'D Rest cong'!CS6 -> -0.05171293621
A7: JF101 | B7: -0.9066853621 | C7: totalHb-post-A4 | D7: 1.382496662 | E7: oxyHb-task-A6 | F7: ='D Rest incong'!B7-'D Rest cong'!B7 -> -0.5594975491 | G7: ='D Rest incong'!C7-'D Rest cong'!C7 -> 0.001567721343 | H7: ='D Rest incong'!D7-'D Rest cong'!D7 -> -0.3111117204 | I7: ='D Rest incong'!E7-'D Rest cong'!E7 -> -0.5800121425 | J7: ='D Rest incong'!F7-'D Rest cong'!F7 -> -0.2953968269 | K7: ='D Rest incong'!G7-'D Rest cong'!G7 -> 0.02407487082 | L7: ='D Rest incong'!H7-'D Rest cong'!H7 -> -0.05402994942 | M7: ='D Rest incong'!I7-'D Rest cong'!I7 -> -0.3982277823 | N7: ='D Rest incong'!J7-'D Rest cong'!J7 -> 1.004106788 | O7: ='D Rest incong'!K7-'D Rest cong'!K7 -> 0.5784672086 | P7: ='D Rest incong'!L7-'D Rest cong'!L7 -> 0.07185295002 | Q7: ='D Rest incong'!M7-'D Rest cong'!M7 -> -0.06154061783 | R7: ='D Rest incong'!N7-'D Rest cong'!N7 -> 0.8778926385 | S7: ='D Rest incong'!O7-'D Rest cong'!O7 -> 0.5865392013 | T7: ='D Rest incong'!P7-'D Rest cong'!P7 -> 0.007860964691 | U7: ='D Rest incong'!Q7-'D Rest cong'!Q7 -> -0.1305797517 | V7: ='D Rest incong'!R7-'D Rest cong'!R7 -> 0.1196643925 | W7: ='D Rest incong'!S7-'D Rest cong'!S7 -> -0.4362721311 | X7: ='D Rest incong'!T7-'D Rest cong'!T7 -> 0.2779784928 | Y7: ='D Rest incong'!U7-'D Rest cong'!U7 -> 0.5052395467 | Z7: ='D Rest incong'!V7-'D Rest cong'!V7 -> 0.6579078335 | AA7: ='D Rest incong'!W7-'D Rest cong'!W7 -> -0.4545216855 | AB7: ='D Rest incong'!X7-'D Rest cong'!X7 -> 0.5576909523 | AC7: ='D Rest incong'!Y7-'D Rest cong'!Y7 -> 0.8009963294 | AD7: ='D Rest incong'!Z7-'D Rest cong'!Z7 -> -0.07804535112 | AE7: ='D Rest incong'!AA7-'D Rest cong'!AA7 -> -0.6810809942 | AF7: ='D Rest incong'!AB7-'D Rest cong'!AB7 -> -0.06420970689 | AG7: ='D Rest incong'!AC7-'D Rest cong'!AC7 -> 0.7335111695 | AH7: ='D Rest incong'!AD7-'D Rest cong'!AD7 -> -0.7492349584 | AI7: ='D Rest incong'!AE7-'D Rest cong'!AE7 -> -0.9041143778 | AJ7: ='D Rest incong'!AF7-'D Rest cong'!AF7 -> -0.9066853621 | AK7: ='D Rest incong'!AG7-'D Rest cong'!AG7 -> 0.4866058518 | AL7: ='D Rest incong'!AH7-'D Rest cong'!AH7 -> 0.2143090519 | AM7: ='D Rest incong'!AI7-'D Rest cong'!AI7 -> 0.4390056051 | AN7: ='D Rest incong'!AJ7-'D Rest cong'!AJ7 -> -0.03636266727 | AO7: ='D Rest incong'!AK7-'D Rest cong'!AK7 -> -0.2666856887 | AP7: ='D Rest incong'!AL7-'D Rest cong'!AL7 -> 0.9050137392 | AQ7: ='D Rest incong'!AM7-'D Rest cong'!AM7 -> 0.5014423562 | AR7: ='D Rest incong'!AN7-'D Rest cong'!AN7 -> 0.4940327052 | AS7: ='D Rest incong'!AO7-'D Rest cong'!AO7 -> 0.08816791083 | AT7: ='D Rest incong'!AP7-'D Rest cong'!AP7 -> 1.382496662 | AU7: ='D Rest incong'!AQ7-'D Rest cong'!AQ7 -> 0.7094963464 | AV7: ='D Rest incong'!AR7-'D Rest cong'!AR7 -> 0.6013043007 | AW7: ='D Rest incong'!AS7-'D Rest cong'!AS7 -> -0.03285366248 | AX7: ='D Rest incong'!AT7-'D Rest cong'!AT7 -> 1.033926273 | AY7: ='D Rest incong'!AU7-'D Rest cong'!AU7 -> 0.5346822947 | AZ7: ='D Rest incong'!AV7-'D Rest cong'!AV7 -> 0.02283044974 | BA7: ='D Rest incong'!AW7-'D Rest cong'!AW7 -> -0.197051934 | BB7: ='D Rest incong'!AX7-'D Rest cong'!AX7 -> 0.324294807 | BC7: ='D Rest incong'!AY7-'D Rest cong'!AY7 -> -0.3147085519 | BD7: ='D Rest incong'!AZ7-'D Rest cong'!AZ7 -> 0.4214697701 | BE7: ='D Rest incong'!BA7-'D Rest cong'!BA7 -> 0.1869103998 | BF7: ='D Rest incong'!BB7-'D Rest cong'!BB7 -> 0.04056972237 | BG7: ='D Rest incong'!BC7-'D Rest cong'!BC7 -> -0.4090393901 | BH7: ='D Rest incong'!BD7-'D Rest cong'!BD7 -> 0.1473423099 | BI7: ='D Rest incong'!BE7-'D Rest cong'!BE7 -> 0.1298047542 | BJ7: ='D Rest incong'!BF7-'D Rest cong'!BF7 -> 1.001939867 | BK7: ='D Rest incong'!BG7-'D Rest cong'!BG7 -> -0.09334582115 | BL7: ='D Rest incong'!BH7-'D Rest cong'!BH7 -> 0.549900444 | BM7: ='D Rest incong'!BI7-'D Rest cong'!BI7 -> 0.595097958 | BN7: ='D Rest incong'!BJ7-'D Rest cong'!BJ7 -> 0.6068830971 | BO7: ='D Rest incong'!BK7-'D Rest cong'!BK7 -> -0.09670941595 | BP7: ='D Rest incong'!BL7-'D Rest cong'!BL7 -> 0.2639033239 | BQ7: ='D Rest incong'!BM7-'D Rest cong'!BM7 -> 0.3393317226 | BR7: ='D Rest incong'!BN7-'D Rest cong'!BN7 -> 0.1705944346 | BS7: ='D Rest incong'!BO7-'D Rest cong'!BO7 -> -0.6507911237 | BT7: ='D Rest incong'!BP7-'D Rest cong'!BP7 -> 0.2516770843 | BU7: ='D Rest incong'!BQ7-'D Rest cong'!BQ7 -> 0.8349428686 | BV7: ='D Rest incong'!BR7-'D Rest cong'!BR7 -> 0.5362421426 | BW7: ='D Rest incong'!BS7-'D Rest cong'!BS7 -> -0.7392732492 | BX7: ='D Rest incong'!BT7-'D Rest cong'!BT7 -> 0.3994584855 | BY7: ='D Rest incong'!BU7-'D Rest cong'!BU7 -> 1.11974511 | BZ7: ='D Rest incong'!BV7-'D Rest cong'!BV7 -> 0.4861028956 | CA7: ='D Rest incong'!BW7-'D Rest cong'!BW7 -> -0.001300020701 | CB7: ='D Rest incong'!BX7-'D Rest cong'!BX7 -> 0.1165771016 | CC7: ='D Rest incong'!BY7-'D Rest cong'!BY7 -> 0.3092576507 | CD7: ='D Rest incong'!BZ7-'D Rest cong'!BZ7 -> 0.4166307325 | CE7: ='D Rest incong'!CA7-'D Rest cong'!CA7 -> 0.0823517268 | CF7: ='D Rest incong'!CB7-'D Rest cong'!CB7 -> 0.1607226565 | CG7: ='D Rest incong'!CC7-'D Rest cong'!CC7 -> 0.1839233792 | CH7: ='D Rest incong'!CD7-'D Rest cong'!CD7 -> 0.1264346272 | CI7: ='D Rest incong'!CE7-'D Rest cong'!CE7 -> 0.2725491578 | CJ7: ='D Rest incong'!CF7-'D Rest cong'!CF7 -> -0.00628049563 | CK7: ='D Rest incong'!CG7-'D Rest cong'!CG7 -> -0.3491187881 | CL7: ='D Rest incong'!CH7-'D Rest cong'!CH7 -> 0.4980741304 | CM7: ='D Rest incong'!CI7-'D Rest cong'!CI7 -> 0.1947260387 | CN7: ='D Rest incong'!CJ7-'D Rest cong'!CJ7 -> 0.2277295169 | CO7: ='D Rest incong'!CK7-'D Rest cong'!CK7 -> 0.003960051733 | CP7: ='D Rest incong'!CL7-'D Rest cong'!CL7 -> 0.3663879718 | CQ7: ='D Rest incong'!CM7-'D Rest cong'!CM7 -> -0.4448061252 | CR7: ='D Rest incong'!CN7-'D Rest cong'!CN7 -> 0.2518244853 | CS7: ='D Rest incong'!CO7-'D Rest cong'!CO7 -> 0.5982179217 | CT7: ='D Rest incong'!CP7-'D Rest cong'!CP7 -> 0.5399482518 | CU7: ='D Rest incong'!CQ7-'D Rest cong'!CQ7 -> -0.4642434356 | CV7: ='D Rest incong'!CR7-'D Rest cong'!CR7 -> 0.344607032 | CW7: ='D Rest incong'!CS7-'D Rest cong'!CS7 -> 0.7186027609
A8: JH102 | B8: -2.192226243 | C8: oxyHb-post-A6 | D8: 0.6429896932 | E8: diffHb-task-B8 | F8: ='D Rest incong'!B8-'D Rest cong'!B8 -> -1.040613977 | G8: ='D Rest incong'!C8-'D Rest cong'!C8 -> -0.3133998796 | H8: ='D Rest incong'!D8-'D Rest cong'!D8 -> -0.1168338204 | I8: ='D Rest incong'!E8-'D Rest cong'!E8 -> -0.6352964856 | J8: ='D Rest incong'!F8-'D Rest cong'!F8 -> -1.96670214 | K8: ='D Rest incong'!G8-'D Rest cong'!G8 -> -0.1993633828 | L8: ='D Rest incong'!H8-'D Rest cong'!H8 -> -0.7232686326 | M8: ='D Rest incong'!I8-'D Rest cong'!I8 -> -1.396234529 | N8: ='D Rest incong'!J8-'D Rest cong'!J8 -> 0.6238004488 | O8: ='D Rest incong'!K8-'D Rest cong'!K8 -> 0.01007429533 | P8: ='D Rest incong'!L8-'D Rest cong'!L8 -> 0.2117779534 | Q8: ='D Rest incong'!M8-'D Rest cong'!M8 -> 0.5925793189 | R8: ='D Rest incong'!N8-'D Rest cong'!N8 -> 0.2411470811 | S8: ='D Rest incong'!O8-'D Rest cong'!O8 -> 0.08883625618 | T8: ='D Rest incong'!P8-'D Rest cong'!P8 -> -0.0440342837 | U8: ='D Rest incong'!Q8-'D Rest cong'!Q8 -> 0.2160032738 | V8: ='D Rest incong'!R8-'D Rest cong'!R8 -> 0.1815157254 | W8: ='D Rest incong'!S8-'D Rest cong'!S8 -> -0.3039150514 | X8: ='D Rest incong'!T8-'D Rest cong'!T8 -> 0.3148256423 | Y8: ='D Rest incong'!U8-'D Rest cong'!U8 -> 0.4658761853 | Z8: ='D Rest incong'!V8-'D Rest cong'!V8 -> -0.2320031526 | AA8: ='D Rest incong'!W8-'D Rest cong'!W8 -> -0.3029544287 | AB8: ='D Rest incong'!X8-'D Rest cong'!X8 -> 0.03682994808 | AC8: ='D Rest incong'!Y8-'D Rest cong'!Y8 -> 0.2198918398 | AD8: ='D Rest incong'!Z8-'D Rest cong'!Z8 -> 0.3007461773 | AE8: ='D Rest incong'!AA8-'D Rest cong'!AA8 -> 0.4417360246 | AF8: ='D Rest incong'!AB8-'D Rest cong'!AB8 -> -0.07082280628 | AG8: ='D Rest incong'!AC8-'D Rest cong'!AC8 -> -0.2747372399 | AH8: ='D Rest incong'!AD8-'D Rest cong'!AD8 -> -0.2139273861 | AI8: ='D Rest incong'!AE8-'D Rest cong'!AE8 -> 0.3326289564 | AJ8: ='D Rest incong'!AF8-'D Rest cong'!AF8 -> -0.5368493824 | AK8: ='D Rest incong'!AG8-'D Rest cong'!AG8 -> -0.4908333891 | AL8: ='D Rest incong'!AH8-'D Rest cong'!AH8 -> 0.2525463944 | AM8: ='D Rest incong'!AI8-'D Rest cong'!AI8 -> 0.1462529171 | AN8: ='D Rest incong'!AJ8-'D Rest cong'!AJ8 -> 0.08104233209 | AO8: ='D Rest incong'!AK8-'D Rest cong'!AK8 -> -0.06825779641 | AP8: ='D Rest incong'!AL8-'D Rest cong'!AL8 -> -0.4116337349 | AQ8: ='D Rest incong'!AM8-'D Rest cong'!AM8 -> 0.1945667117 | AR8: ='D Rest incong'!AN8-'D Rest cong'!AN8 -> -0.3680133433 | AS8: ='D Rest incong'!AO8-'D Rest cong'!AO8 -> -0.5374519972 | AT8: ='D Rest incong'!AP8-'D Rest cong'!AP8 -> -0.9395722555 | AU8: ='D Rest incong'!AQ8-'D Rest cong'!AQ8 -> -0.5136064373 | AV8: ='D Rest incong'!AR8-'D Rest cong'!AR8 -> -0.09122779364 | AW8: ='D Rest incong'!AS8-'D Rest cong'!AS8 -> -0.3128366555 | AX8: ='D Rest incong'!AT8-'D Rest cong'!AT8 -> -2.192226243 | AY8: ='D Rest incong'!AU8-'D Rest cong'!AU8 -> -0.5974386818 | AZ8: ='D Rest incong'!AV8-'D Rest cong'!AV8 -> -1.269501195 | BA8: ='D Rest incong'!AW8-'D Rest cong'!AW8 -> -1.194104816 | BB8: ='D Rest incong'!AX8-'D Rest cong'!AX8 -> -0.0358003334 | BC8: ='D Rest incong'!AY8-'D Rest cong'!AY8 -> 0.3489867154 | BD8: ='D Rest incong'!AZ8-'D Rest cong'!AZ8 -> -0.03788717351 | BE8: ='D Rest incong'!BA8-'D Rest cong'!BA8 -> -0.4067256382 | BF8: ='D Rest incong'!BB8-'D Rest cong'!BB8 -> -1.233632653 | BG8: ='D Rest incong'!BC8-'D Rest cong'!BC8 -> 0.6365091828 | BH8: ='D Rest incong'!BD8-'D Rest cong'!BD8 -> -0.7135021945 | BI8: ='D Rest incong'!BE8-'D Rest cong'!BE8 -> -1.603429114 | BJ8: ='D Rest incong'!BF8-'D Rest cong'!BF8 -> -0.83682186 | BK8: ='D Rest incong'!BG8-'D Rest cong'!BG8 -> 0.2189391075 | BL8: ='D Rest incong'!BH8-'D Rest cong'!BH8 -> -0.533079153 | BM8: ='D Rest incong'!BI8-'D Rest cong'!BI8 -> -0.8672996257 | BN8: ='D Rest incong'!BJ8-'D Rest cong'!BJ8 -> -1.557811891 | BO8: ='D Rest incong'!BK8-'D Rest cong'!BK8 -> 0.2693871607 | BP8: ='D Rest incong'!BL8-'D Rest cong'!BL8 -> -1.042402472 | BQ8: ='D Rest incong'!BM8-'D Rest cong'!BM8 -> -1.423463999 | BR8: ='D Rest incong'!BN8-'D Rest cong'!BN8 -> -0.6524240196 | BS8: ='D Rest incong'!BO8-'D Rest cong'!BO8 -> 0.460512016 | BT8: ='D Rest incong'!BP8-'D Rest cong'!BP8 -> -0.50545904 | BU8: ='D Rest incong'!BQ8-'D Rest cong'!BQ8 -> -0.8552057142 | BV8: ='D Rest incong'!BR8-'D Rest cong'!BR8 -> -0.6893480777 | BW8: ='D Rest incong'!BS8-'D Rest cong'!BS8 -> 0.42457679 | BX8: ='D Rest incong'!BT8-'D Rest cong'!BT8 -> -0.4821800588 | BY8: ='D Rest incong'!BU8-'D Rest cong'!BU8 -> -0.7727050871 | BZ8: ='D Rest incong'!BV8-'D Rest cong'!BV8 -> -0.1839147837 | CA8: ='D Rest incong'!BW8-'D Rest cong'!BW8 -> -0.007014962827 | CB8: ='D Rest incong'!BX8-'D Rest cong'!BX8 -> -0.09064524749 | CC8: ='D Rest incong'!BY8-'D Rest cong'!BY8 -> -0.1205839992 | CD8: ='D Rest incong'!BZ8-'D Rest cong'!BZ8 -> -0.2993617965 | CE8: ='D Rest incong'!CA8-'D Rest cong'!CA8 -> -0.09705401022 | CF8: ='D Rest incong'!CB8-'D Rest cong'!CB8 -> -0.2751606707 | CG8: ='D Rest incong'!CC8-'D Rest cong'!CC8 -> -0.0964973008 | CH8: ='D Rest incong'!CD8-'D Rest cong'!CD8 -> -0.5522859398 | CI8: ='D Rest incong'!CE8-'D Rest cong'!CE8 -> -0.2196587625 | CJ8: ='D Rest incong'!CF8-'D Rest cong'!CF8 -> -0.403266399 | CK8: ='D Rest incong'!CG8-'D Rest cong'!CG8 -> -0.07519409761 | CL8: ='D Rest incong'!CH8-'D Rest cong'!CH8 -> -1.225610772 | CM8: ='D Rest incong'!CI8-'D Rest cong'!CI8 -> 0.0499376139 | CN8: ='D Rest incong'!CJ8-'D Rest cong'!CJ8 -> -0.6773571741 | CO8: ='D Rest incong'!CK8-'D Rest cong'!CK8 -> -0.8301834961 | CP8: ='D Rest incong'!CL8-'D Rest cong'!CL8 -> 0.6091585605 | CQ8: ='D Rest incong'!CM8-'D Rest cong'!CM8 -> -0.2605119612 | CR8: ='D Rest incong'!CN8-'D Rest cong'!CN8 -> 0.1934828513 | CS8: ='D Rest incong'!CO8-'D Rest cong'!CO8 -> 0.6429896932 | CT8: ='D Rest incong'!CP8-'D Rest cong'!CP8 -> 0.02601145775 | CU8: ='D Rest incong'!CQ8-'D Rest cong'!CQ8 -> -0.06545355147 | CV8: ='D Rest incong'!CR8-'D Rest cong'!CR8 -> -0.1107101002 | CW8: ='D Rest incong'!CS8-'D Rest cong'!CS8 -> 0.03182037562
A9: JR101 | B9: -1.132945278 | C9: deoxyHb-post-A6 | D9: 1.029799282 | E9: diffHb-post-B8 | F9: ='D Rest incong'!B9-'D Rest cong'!B9 -> -0.5788971971 | G9: ='D Rest incong'!C9-'D Rest cong'!C9 -> -0.2319748519 | H9: ='D Rest incong'!D9-'D Rest cong'!D9 -> -0.4287209825 | I9: ='D Rest incong'!E9-'D Rest cong'!E9 -> -0.4436078957 | J9: ='D Rest incong'!F9-'D Rest cong'!F9 -> -0.4661398817 | K9: ='D Rest incong'!G9-'D Rest cong'!G9 -> -0.221265811 | L9: ='D Rest incong'!H9-'D Rest cong'!H9 -> -0.2467304 | M9: ='D Rest incong'!I9-'D Rest cong'!I9 -> -0.286676176 | N9: ='D Rest incong'!J9-'D Rest cong'!J9 -> -0.4619921858 | O9: ='D Rest incong'!K9-'D Rest cong'!K9 -> -0.07015859809 | P9: ='D Rest incong'!L9-'D Rest cong'!L9 -> -0.4441729595 | Q9: ='D Rest incong'!M9-'D Rest cong'!M9 -> -0.1887568607 | R9: ='D Rest incong'!N9-'D Rest cong'!N9 -> -0.650749725 | S9: ='D Rest incong'!O9-'D Rest cong'!O9 -> -0.2618018983 | T9: ='D Rest incong'!P9-'D Rest cong'!P9 -> -0.8050589921 | U9: ='D Rest incong'!Q9-'D Rest cong'!Q9 -> -0.2142298688 | V9: ='D Rest incong'!R9-'D Rest cong'!R9 -> -0.8816320156 | W9: ='D Rest incong'!S9-'D Rest cong'!S9 -> -0.28106177 | X9: ='D Rest incong'!T9-'D Rest cong'!T9 -> -0.8208211122 | Y9: ='D Rest incong'!U9-'D Rest cong'!U9 -> -0.4351030793 | Z9: ='D Rest incong'!V9-'D Rest cong'!V9 -> -0.4329799331 | AA9: ='D Rest incong'!W9-'D Rest cong'!W9 -> -0.3144729552 | AB9: ='D Rest incong'!X9-'D Rest cong'!X9 -> -0.5167076539 | AC9: ='D Rest incong'!Y9-'D Rest cong'!Y9 -> -0.06554241372 | AD9: ='D Rest incong'!Z9-'D Rest cong'!Z9 -> -0.02036147862 | AE9: ='D Rest incong'!AA9-'D Rest cong'!AA9 -> -0.07572440776 | AF9: ='D Rest incong'!AB9-'D Rest cong'!AB9 -> -0.1442886549 | AG9: ='D Rest incong'!AC9-'D Rest cong'!AC9 -> 0.1274324693 | AH9: ='D Rest incong'!AD9-'D Rest cong'!AD9 -> -0.03467666474 | AI9: ='D Rest incong'!AE9-'D Rest cong'!AE9 -> -0.3542539512 | AJ9: ='D Rest incong'!AF9-'D Rest cong'!AF9 -> -0.4440374418 | AK9: ='D Rest incong'!AG9-'D Rest cong'!AG9 -> 0.3385009118 | AL9: ='D Rest incong'!AH9-'D Rest cong'!AH9 -> -0.1065567559 | AM9: ='D Rest incong'!AI9-'D Rest cong'!AI9 -> -0.0006504397309 | AN9: ='D Rest incong'!AJ9-'D Rest cong'!AJ9 -> -0.2308528711 | AO9: ='D Rest incong'!AK9-'D Rest cong'!AK9 -> -0.296684404 | AP9: ='D Rest incong'!AL9-'D Rest cong'!AL9 -> -0.4088604959 | AQ9: ='D Rest incong'!AM9-'D Rest cong'!AM9 -> 0.08265733531 | AR9: ='D Rest incong'!AN9-'D Rest cong'!AN9 -> -0.4231838251 | AS9: ='D Rest incong'!AO9-'D Rest cong'!AO9 -> -0.6113121285 | AT9: ='D Rest incong'!AP9-'D Rest cong'!AP9 -> 0.2534127365 | AU9: ='D Rest incong'!AQ9-'D Rest cong'!AQ9 -> -1.08125939 | AV9: ='D Rest incong'!AR9-'D Rest cong'!AR9 -> -0.369396263 | AW9: ='D Rest incong'!AS9-'D Rest cong'!AS9 -> 0.677034387 | AX9: ='D Rest incong'!AT9-'D Rest cong'!AT9 -> 0.08363431374 | AY9: ='D Rest incong'!AU9-'D Rest cong'!AU9 -> -1.132945278 | AZ9: ='D Rest incong'!AV9-'D Rest cong'!AV9 -> -0.4636274644 | BA9: ='D Rest incong'!AW9-'D Rest cong'!AW9 -> 0.6701738229 | BB9: ='D Rest incong'!AX9-'D Rest cong'!AX9 -> -0.2774702177 | BC9: ='D Rest incong'!AY9-'D Rest cong'!AY9 -> -0.190617859 | BD9: ='D Rest incong'!AZ9-'D Rest cong'!AZ9 -> 0.1506410903 | BE9: ='D Rest incong'!BA9-'D Rest cong'!BA9 -> -0.1158614804 | BF9: ='D Rest incong'!BB9-'D Rest cong'!BB9 -> 0.4918684902 | BG9: ='D Rest incong'!BC9-'D Rest cong'!BC9 -> -0.4971735002 | BH9: ='D Rest incong'!BD9-'D Rest cong'!BD9 -> 0.5701875887 | BI9: ='D Rest incong'!BE9-'D Rest cong'!BE9 -> 0.8380155883 | BJ9: ='D Rest incong'!BF9-'D Rest cong'!BF9 -> -0.1374659138 | BK9: ='D Rest incong'!BG9-'D Rest cong'!BG9 -> 0.5720241299 | BL9: ='D Rest incong'!BH9-'D Rest cong'!BH9 -> -0.0888000731 | BM9: ='D Rest incong'!BI9-'D Rest cong'!BI9 -> -0.1828951207 | BN9: ='D Rest incong'!BJ9-'D Rest cong'!BJ9 -> -0.3175996806 | BO9: ='D Rest incong'!BK9-'D Rest cong'!BK9 -> 0.4264793894 | BP9: ='D Rest incong'!BL9-'D Rest cong'!BL9 -> -0.4244827566 | BQ9: ='D Rest incong'!BM9-'D Rest cong'!BM9 -> -0.2621060581 | BR9: ='D Rest incong'!BN9-'D Rest cong'!BN9 -> 0.08965763698 | BS9: ='D Rest incong'!BO9-'D Rest cong'!BO9 -> -0.4760526296 | BT9: ='D Rest incong'!BP9-'D Rest cong'!BP9 -> 0.2012713096 | BU9: ='D Rest incong'!BQ9-'D Rest cong'!BQ9 -> 0.5108228228 | BV9: ='D Rest incong'!BR9-'D Rest cong'!BR9 -> 0.3287938833 | BW9: ='D Rest incong'!BS9-'D Rest cong'!BS9 -> -0.5056138999 | BX9: ='D Rest incong'!BT9-'D Rest cong'!BT9 -> 0.3787908665 | BY9: ='D Rest incong'!BU9-'D Rest cong'!BU9 -> 0.7115607636 | BZ9: ='D Rest incong'!BV9-'D Rest cong'!BV9 -> 0.4461885824 | CA9: ='D Rest incong'!BW9-'D Rest cong'!BW9 -> -0.1295205324 | CB9: ='D Rest incong'!BX9-'D Rest cong'!BX9 -> 0.4208053791 | CC9: ='D Rest incong'!BY9-'D Rest cong'!BY9 -> 0.5646220519 | CD9: ='D Rest incong'!BZ9-'D Rest cong'!BZ9 -> 0.4583233699 | CE9: ='D Rest incong'!CA9-'D Rest cong'!CA9 -> -0.2447564835 | CF9: ='D Rest incong'!CB9-'D Rest cong'!CB9 -> 0.2611152578 | CG9: ='D Rest incong'!CC9-'D Rest cong'!CC9 -> 0.6425892345 | CH9: ='D Rest incong'!CD9-'D Rest cong'!CD9 -> -0.2874670867 | CI9: ='D Rest incong'!CE9-'D Rest cong'!CE9 -> -0.2317334807 | CJ9: ='D Rest incong'!CF9-'D Rest cong'!CF9 -> -0.1607480883 | CK9: ='D Rest incong'!CG9-'D Rest cong'!CG9 -> 0.2420296345 | CL9: ='D Rest incong'!CH9-'D Rest cong'!CH9 -> -0.06047048692 | CM9: ='D Rest incong'!CI9-'D Rest cong'!CI9 -> -0.3022416098 | CN9: ='D Rest incong'!CJ9-'D Rest cong'!CJ9 -> -0.06293015983 | CO9: ='D Rest incong'!CK9-'D Rest cong'!CK9 -> 0.4500316065 | CP9: ='D Rest incong'!CL9-'D Rest cong'!CL9 -> 0.3055738156 | CQ9: ='D Rest incong'!CM9-'D Rest cong'!CM9 -> -0.3223306718 | CR9: ='D Rest incong'!CN9-'D Rest cong'!CN9 -> 0.38261365 | CS9: ='D Rest incong'!CO9-'D Rest cong'!CO9 -> 0.7209692992 | CT9: ='D Rest incong'!CP9-'D Rest cong'!CP9 -> 0.4503202513 | CU9: ='D Rest incong'!CQ9-'D Rest cong'!CQ9 -> -0.5961657284 | CV9: ='D Rest incong'!CR9-'D Rest cong'!CR9 -> 0.1750432761 | CW9: ='D Rest incong'!CS9-'D Rest cong'!CS9 -> 1.029799282
A10: MR101 | B10: -0.5566273037 | C10: deoxyHb-post-A5 | D10: 1.452053707 | E10: oxyHb-task-A3 | F10: ='D Rest incong'!B10-'D Rest cong'!B10 -> -0.02354609874 | G10: ='D Rest incong'!C10-'D Rest cong'!C10 -> -0.05965690403 | H10: ='D Rest incong'!D10-'D Rest cong'!D10 -> -0.1630173846 | I10: ='D Rest incong'!E10-'D Rest cong'!E10 -> 0.08362504967 | J10: ='D Rest incong'!F10-'D Rest cong'!F10 -> 0.1854572602 | K10: ='D Rest incong'!G10-'D Rest cong'!G10 -> -0.2046781123 | L10: ='D Rest incong'!H10-'D Rest cong'!H10 -> -0.1775165659 | M10: ='D Rest incong'!I10-'D Rest cong'!I10 -> 0.3495629266 | N10: ='D Rest incong'!J10-'D Rest cong'!J10 -> 0.01483395095 | O10: ='D Rest incong'!K10-'D Rest cong'!K10 -> 0.3605809097 | P10: ='D Rest incong'!L10-'D Rest cong'!L10 -> -0.3931827267 | Q10: ='D Rest incong'!M10-'D Rest cong'!M10 -> -0.2028828308 | R10: ='D Rest incong'!N10-'D Rest cong'!N10 -> 0.1220566669 | S10: ='D Rest incong'!O10-'D Rest cong'!O10 -> 0.4032076078 | T10: ='D Rest incong'!P10-'D Rest cong'!P10 -> -0.2246345479 | U10: ='D Rest incong'!Q10-'D Rest cong'!Q10 -> -0.159067859 | V10: ='D Rest incong'!R10-'D Rest cong'!R10 -> 1.452053707 | W10: ='D Rest incong'!S10-'D Rest cong'!S10 -> -0.2232731191 | X10: ='D Rest incong'!T10-'D Rest cong'!T10 -> 1.020919531 | Y10: ='D Rest incong'!U10-'D Rest cong'!U10 -> 0.9537974787 | Z10: ='D Rest incong'!V10-'D Rest cong'!V10 -> 1.297890371 | AA10: ='D Rest incong'!W10-'D Rest cong'!W10 -> -0.1174872968 | AB10: ='D Rest incong'!X10-'D Rest cong'!X10 -> 1.046123555 | AC10: ='D Rest incong'!Y10-'D Rest cong'!Y10 -> 0.7567799044 | AD10: ='D Rest incong'!Z10-'D Rest cong'!Z10 -> 0.08425086113 | AE10: ='D Rest incong'!AA10-'D Rest cong'!AA10 -> 0.2876288685 | AF10: ='D Rest incong'!AB10-'D Rest cong'!AB10 -> 0.02656011957 | AG10: ='D Rest incong'!AC10-'D Rest cong'!AC10 -> -0.1705890311 | AH10: ='D Rest incong'!AD10-'D Rest cong'!AD10 -> 0.08890783196 | AI10: ='D Rest incong'!AE10-'D Rest cong'!AE10 -> 0.1982856014 | AJ10: ='D Rest incong'!AF10-'D Rest cong'!AF10 -> -0.07872594208 | AK10: ='D Rest incong'!AG10-'D Rest cong'!AG10 -> -0.1118538208 | AL10: ='D Rest incong'!AH10-'D Rest cong'!AH10 -> -0.2777400029 | AM10: ='D Rest incong'!AI10-'D Rest cong'!AI10 -> -0.507840727 | AN10: ='D Rest incong'!AJ10-'D Rest cong'!AJ10 -> 0.172668818 | AO10: ='D Rest incong'!AK10-'D Rest cong'!AK10 -> 0.3196507407 | AP10: ='D Rest incong'!AL10-'D Rest cong'!AL10 -> -0.3853644113 | AQ10: ='D Rest incong'!AM10-'D Rest cong'!AM10 -> -0.5566273037 | AR10: ='D Rest incong'!AN10-'D Rest cong'!AN10 -> 0.05067900653 | AS10: ='D Rest incong'!AO10-'D Rest cong'!AO10 -> 0.3133360382 | AT10: ='D Rest incong'!AP10-'D Rest cong'!AP10 -> 0.6295945047 | AU10: ='D Rest incong'!AQ10-'D Rest cong'!AQ10 -> -0.07985661785 | AV10: ='D Rest incong'!AR10-'D Rest cong'!AR10 -> 0.6688567639 | AW10: ='D Rest incong'!AS10-'D Rest cong'!AS10 -> 0.3988757975 | AX10: ='D Rest incong'!AT10-'D Rest cong'!AT10 -> 0.3094311674 | AY10: ='D Rest incong'!AU10-'D Rest cong'!AU10 -> 0.1765629177 | AZ10: ='D Rest incong'!AV10-'D Rest cong'!AV10 -> 0.7351732517 | BA10: ='D Rest incong'!AW10-'D Rest cong'!AW10 -> 0.01281549447 | BB10: ='D Rest incong'!AX10-'D Rest cong'!AX10 -> 0.322676753 | BC10: ='D Rest incong'!AY10-'D Rest cong'!AY10 -> -0.3069084699 | BD10: ='D Rest incong'!AZ10-'D Rest cong'!AZ10 -> 0.2982134021 | BE10: ='D Rest incong'!BA10-'D Rest cong'!BA10 -> 0.1846653038 | BF10: ='D Rest incong'!BB10-'D Rest cong'!BB10 -> 0.1557672367 | BG10: ='D Rest incong'!BC10-'D Rest cong'!BC10 -> -0.3526038181 | BH10: ='D Rest incong'!BD10-'D Rest cong'!BD10 -> 0.2956979592 | BI10: ='D Rest incong'!BE10-'D Rest cong'!BE10 -> 0.2238226741 | BJ10: ='D Rest incong'!BF10-'D Rest cong'!BF10 -> 0.2321878427 | BK10: ='D Rest incong'!BG10-'D Rest cong'!BG10 -> -0.1732313143 | BL10: ='D Rest incong'!BH10-'D Rest cong'!BH10 -> 0.4112003386 | BM10: ='D Rest incong'!BI10-'D Rest cong'!BI10 -> 0.2841830626 | BN10: ='D Rest incong'!BJ10-'D Rest cong'!BJ10 -> -0.2407868991 | BO10: ='D Rest incong'!BK10-'D Rest cong'!BK10 -> -0.02921828063 | BP10: ='D Rest incong'!BL10-'D Rest cong'!BL10 -> 0.1346097339 | BQ10: ='D Rest incong'!BM10-'D Rest cong'!BM10 -> -0.2176572588 | BR10: ='D Rest incong'!BN10-'D Rest cong'!BN10 -> 0.750232926 | BS10: ='D Rest incong'!BO10-'D Rest cong'!BO10 -> 0.1429834644 | BT10: ='D Rest incong'!BP10-'D Rest cong'!BP10 -> 0.1484722128 | BU10: ='D Rest incong'!BQ10-'D Rest cong'!BQ10 -> 0.3361309411 | BV10: ='D Rest incong'!BR10-'D Rest cong'!BR10 -> 1.215864759 | BW10: ='D Rest incong'!BS10-'D Rest cong'!BS10 -> -0.07582995657 | BX10: ='D Rest incong'!BT10-'D Rest cong'!BT10 -> 0.2251401387 | BY10: ='D Rest incong'!BU10-'D Rest cong'!BU10 -> 0.8010334044 | BZ10: ='D Rest incong'!BV10-'D Rest cong'!BV10 -> -0.2313261705 | CA10: ='D Rest incong'!BW10-'D Rest cong'!BW10 -> -0.07073583915 | CB10: ='D Rest incong'!BX10-'D Rest cong'!BX10 -> -0.06173038368 | CC10: ='D Rest incong'!BY10-'D Rest cong'!BY10 -> -0.2732413112 | CD10: ='D Rest incong'!BZ10-'D Rest cong'!BZ10 -> -0.2042907935 | CE10: ='D Rest incong'!CA10-'D Rest cong'!CA10 -> 0.007410973168 | CF10: ='D Rest incong'!CB10-'D Rest cong'!CB10 -> 0.05192667501 | CG10: ='D Rest incong'!CC10-'D Rest cong'!CC10 -> -0.3220260942 | CH10: ='D Rest incong'!CD10-'D Rest cong'!CD10 -> -0.106270095 | CI10: ='D Rest incong'!CE10-'D Rest cong'!CE10 -> 0.06799983204 | CJ10: ='D Rest incong'!CF10-'D Rest cong'!CF10 -> -0.07365299598 | CK10: ='D Rest incong'!CG10-'D Rest cong'!CG10 -> -0.3076587719 | CL10: ='D Rest incong'!CH10-'D Rest cong'!CH10 -> -0.3238202717 | CM10: ='D Rest incong'!CI10-'D Rest cong'!CI10 -> 0.01577804572 | CN10: ='D Rest incong'!CJ10-'D Rest cong'!CJ10 -> -0.2781507659 | CO10: ='D Rest incong'!CK10-'D Rest cong'!CK10 -> -0.3803649137 | CP10: ='D Rest incong'!CL10-'D Rest cong'!CL10 -> 0.2086354651 | CQ10: ='D Rest incong'!CM10-'D Rest cong'!CM10 -> 0.04696615133 | CR10: ='D Rest incong'!CN10-'D Rest cong'!CN10 -> 0.1091135843 | CS10: ='D Rest incong'!CO10-'D Rest cong'!CO10 -> 0.0826583477 | CT10: ='D Rest incong'!CP10-'D Rest cong'!CP10 -> -0.1844152267 | CU10: ='D Rest incong'!CQ10-'D Rest cong'!CQ10 -> 0.2127078126 | CV10: ='D Rest incong'!CR10-'D Rest cong'!CR10 -> 0.01796180821 | CW10: ='D Rest incong'!CS10-'D Rest cong'!CS10 -> -0.3131196529
A11: RS101 | B11: -1.600052636 | C11: oxyHb-task-B6 | D11: 1.374807677 | E11: totalHb-post-B2 | F11: ='D Rest incong'!B11-'D Rest cong'!B11 -> -0.4790185219 | G11: ='D Rest incong'!C11-'D Rest cong'!C11 -> 0.09323589647 | H11: ='D Rest incong'!D11-'D Rest cong'!D11 -> -0.1008260798 | I11: ='D Rest incong'!E11-'D Rest cong'!E11 -> -0.5139800216 | J11: ='D Rest incong'!F11-'D Rest cong'!F11 -> -0.2365328171 | K11: ='D Rest incong'!G11-'D Rest cong'!G11 -> 0.02343997758 | L11: ='D Rest incong'!H11-'D Rest cong'!H11 -> 0.04592269051 | M11: ='D Rest incong'!I11-'D Rest cong'!I11 -> -0.2908174314 | N11: ='D Rest incong'!J11-'D Rest cong'!J11 -> 0.4872009355 | O11: ='D Rest incong'!K11-'D Rest cong'!K11 -> 0.4230042805 | P11: ='D Rest incong'!L11-'D Rest cong'!L11 -> 0.1450727656 | Q11: ='D Rest incong'!M11-'D Rest cong'!M11 -> -0.1727660085 | R11: ='D Rest incong'!N11-'D Rest cong'!N11 -> 1.039591649 | S11: ='D Rest incong'!O11-'D Rest cong'!O11 -> 0.457043483 | T11: ='D Rest incong'!P11-'D Rest cong'!P11 -> 0.4924600545 | U11: ='D Rest incong'!Q11-'D Rest cong'!Q11 -> 0.05705355255 | V11: ='D Rest incong'!R11-'D Rest cong'!R11 -> 0.2642033881 | W11: ='D Rest incong'!S11-'D Rest cong'!S11 -> 0.1953103515 | X11: ='D Rest incong'!T11-'D Rest cong'!T11 -> 0.4792073362 | Y11: ='D Rest incong'!U11-'D Rest cong'!U11 -> 0.01547770452 | Z11: ='D Rest incong'!V11-'D Rest cong'!V11 -> 0.04786040849 | AA11: ='D Rest incong'!W11-'D Rest cong'!W11 -> 0.154027326 | AB11: ='D Rest incong'!X11-'D Rest cong'!X11 -> 0.2833112249 | AC11: ='D Rest incong'!Y11-'D Rest cong'!Y11 -> -0.08494632931 | AD11: ='D Rest incong'!Z11-'D Rest cong'!Z11 -> 1.050661291 | AE11: ='D Rest incong'!AA11-'D Rest cong'!AA11 -> -0.3238653561 | AF11: ='D Rest incong'!AB11-'D Rest cong'!AB11 -> 0.9993719655 | AG11: ='D Rest incong'!AC11-'D Rest cong'!AC11 -> 0.9174001703 | AH11: ='D Rest incong'!AD11-'D Rest cong'!AD11 -> 1.243256927 | AI11: ='D Rest incong'!AE11-'D Rest cong'!AE11 -> -0.4167248245 | AJ11: ='D Rest incong'!AF11-'D Rest cong'!AF11 -> 1.064832685 | AK11: ='D Rest incong'!AG11-'D Rest cong'!AG11 -> 1.178496208 | AL11: ='D Rest incong'!AH11-'D Rest cong'!AH11 -> 1.069833346 | AM11: ='D Rest incong'!AI11-'D Rest cong'!AI11 -> -0.4586173535 | AN11: ='D Rest incong'!AJ11-'D Rest cong'!AJ11 -> 1.038000419 | AO11: ='D Rest incong'!AK11-'D Rest cong'!AK11 -> 1.262246864 | AP11: ='D Rest incong'!AL11-'D Rest cong'!AL11 -> 0.8054243892 | AQ11: ='D Rest incong'!AM11-'D Rest cong'!AM11 -> -0.3184095296 | AR11: ='D Rest incong'!AN11-'D Rest cong'!AN11 -> 1.003814839 | AS11: ='D Rest incong'!AO11-'D Rest cong'!AO11 -> 0.9680086232 | AT11: ='D Rest incong'!AP11-'D Rest cong'!AP11 -> 0.3674064882 | AU11: ='D Rest incong'!AQ11-'D Rest cong'!AQ11 -> 0.2962405422 | AV11: ='D Rest incong'!AR11-'D Rest cong'!AR11 -> 0.7700008483 | AW11: ='D Rest incong'!AS11-'D Rest cong'!AS11 -> -0.1883997227 | AX11: ='D Rest incong'!AT11-'D Rest cong'!AT11 -> 0.5289153151 | AY11: ='D Rest incong'!AU11-'D Rest cong'!AU11 -> 0.05853352775 | AZ11: ='D Rest incong'!AV11-'D Rest cong'!AV11 -> 0.6632148547 | BA11: ='D Rest incong'!AW11-'D Rest cong'!AW11 -> 0.1650533725 | BB11: ='D Rest incong'!AX11-'D Rest cong'!AX11 -> -0.2786763488 | BC11: ='D Rest incong'!AY11-'D Rest cong'!AY11 -> -0.3427019404 | BD11: ='D Rest incong'!AZ11-'D Rest cong'!AZ11 -> -0.376134822 | BE11: ='D Rest incong'!BA11-'D Rest cong'!BA11 -> -0.3585478496 | BF11: ='D Rest incong'!BB11-'D Rest cong'!BB11 -> 0.003079507277 | BG11: ='D Rest incong'!BC11-'D Rest cong'!BC11 -> -0.3000610839 | BH11: ='D Rest incong'!BD11-'D Rest cong'!BD11 -> 0.209217746 | BI11: ='D Rest incong'!BE11-'D Rest cong'!BE11 -> 0.05272454642 | BJ11: ='D Rest incong'!BF11-'D Rest cong'!BF11 -> 0.2780526604 | BK11: ='D Rest incong'!BG11-'D Rest cong'!BG11 -> 0.1526506881 | BL11: ='D Rest incong'!BH11-'D Rest cong'!BH11 -> 0.7797847717 | BM11: ='D Rest incong'!BI11-'D Rest cong'!BI11 -> -0.2645590879 | BN11: ='D Rest incong'!BJ11-'D Rest cong'!BJ11 -> 1.061970131 | BO11: ='D Rest incong'!BK11-'D Rest cong'!BK11 -> 0.1868338092 | BP11: ='D Rest incong'!BL11-'D Rest cong'!BL11 -> 1.374807677 | BQ11: ='D Rest incong'!BM11-'D Rest cong'!BM11 -> 0.2386158983 | BR11: ='D Rest incong'!BN11-'D Rest cong'!BN11 -> -0.3526675652 | BS11: ='D Rest incong'!BO11-'D Rest cong'!BO11 -> -0.2165853487 | BT11: ='D Rest incong'!BP11-'D Rest cong'!BP11 -> 0.229270883 | BU11: ='D Rest incong'!BQ11-'D Rest cong'!BQ11 -> -0.07656610647 | BV11: ='D Rest incong'!BR11-'D Rest cong'!BR11 -> 0.0271467979 | BW11: ='D Rest incong'!BS11-'D Rest cong'!BS11 -> -0.4004994842 | BX11: ='D Rest incong'!BT11-'D Rest cong'!BT11 -> 0.1873830294 | BY11: ='D Rest incong'!BU11-'D Rest cong'!BU11 -> 0.2597319445 | BZ11: ='D Rest incong'!BV11-'D Rest cong'!BV11 -> -1.600052636 | CA11: ='D Rest incong'!BW11-'D Rest cong'!BW11 -> 0.02641967903 | CB11: ='D Rest incong'!BX11-'D Rest cong'!BX11 -> -0.3163427403 | CC11: ='D Rest incong'!BY11-'D Rest cong'!BY11 -> -0.8844188713 | CD11: ='D Rest incong'!BZ11-'D Rest cong'!BZ11 -> -1.495616914 | CE11: ='D Rest incong'!CA11-'D Rest cong'!CA11 -> 0.02563379472 | CF11: ='D Rest incong'!CB11-'D Rest cong'!CB11 -> -0.2602203522 | CG11: ='D Rest incong'!CC11-'D Rest cong'!CC11 -> -0.8335918221 | CH11: ='D Rest incong'!CD11-'D Rest cong'!CD11 -> -0.6846099546 | CI11: ='D Rest incong'!CE11-'D Rest cong'!CE11 -> 0.592974479 | CJ11: ='D Rest incong'!CF11-'D Rest cong'!CF11 -> -0.3076391755 | CK11: ='D Rest incong'!CG11-'D Rest cong'!CG11 -> -1.222920114 | CL11: ='D Rest incong'!CH11-'D Rest cong'!CH11 -> -0.5366712968 | CM11: ='D Rest incong'!CI11-'D Rest cong'!CI11 -> 0.6037775567 | CN11: ='D Rest incong'!CJ11-'D Rest cong'!CJ11 -> -0.2042086946 | CO11: ='D Rest incong'!CK11-'D Rest cong'!CK11 -> -1.158163937 | CP11: ='D Rest incong'!CL11-'D Rest cong'!CL11 -> -0.8160969788 | CQ11: ='D Rest incong'!CM11-'D Rest cong'!CM11 -> -0.5149775975 | CR11: ='D Rest incong'!CN11-'D Rest cong'!CN11 -> -0.2020905414 | CS11: ='D Rest incong'!CO11-'D Rest cong'!CO11 -> -0.2654014739 | CT11: ='D Rest incong'!CP11-'D Rest cong'!CP11 -> -0.5151052257 | CU11: ='D Rest incong'!CQ11-'D Rest cong'!CQ11 -> -0.4522517271 | CV11: ='D Rest incong'!CR11-'D Rest cong'!CR11 -> 0.09887433568 | CW11: ='D Rest incong'!CS11-'D Rest cong'!CS11 -> -0.1192314273
A12: SN102 | B12: -1.202236377 | C12: oxyHb-post-A4 | D12: 1.267545505 | E12: oxyHb-task-B2 | F12: ='D Rest incong'!B12-'D Rest cong'!B12 -> -0.2603020505 | G12: ='D Rest incong'!C12-'D Rest cong'!C12 -> -0.6142223927 | H12: ='D Rest incong'!D12-'D Rest cong'!D12 -> 0.2255637526 | I12: ='D Rest incong'!E12-'D Rest cong'!E12 -> 0.5908042191 | J12: ='D Rest incong'!F12-'D Rest cong'!F12 -> -0.08493873177 | K12: ='D Rest incong'!G12-'D Rest cong'!G12 -> -0.4489203347 | L12: ='D Rest incong'!H12-'D Rest cong'!H12 -> 0.5261497623 | M12: ='D Rest incong'!I12-'D Rest cong'!I12 -> 0.5304571777 | N12: ='D Rest incong'!J12-'D Rest cong'!J12 -> -0.3718574335 | O12: ='D Rest incong'!K12-'D Rest cong'!K12 -> -0.09249631249 | P12: ='D Rest incong'!L12-'D Rest cong'!L12 -> -0.2180820296 | Q12: ='D Rest incong'!M12-'D Rest cong'!M12 -> -0.265265474 | R12: ='D Rest incong'!N12-'D Rest cong'!N12 -> -0.05296432289 | S12: ='D Rest incong'!O12-'D Rest cong'!O12 -> -0.01951691998 | T12: ='D Rest incong'!P12-'D Rest cong'!P12 -> 0.1960631642 | U12: ='D Rest incong'!Q12-'D Rest cong'!Q12 -> -0.04011241107 | V12: ='D Rest incong'!R12-'D Rest cong'!R12 -> 0.3203112065 | W12: ='D Rest incong'!S12-'D Rest cong'!S12 -> 0.4494517107 | X12: ='D Rest incong'!T12-'D Rest cong'!T12 -> -0.1416597581 | Y12: ='D Rest incong'!U12-'D Rest cong'!U12 -> -0.1272922103 | Z12: ='D Rest incong'!V12-'D Rest cong'!V12 -> 0.09378310473 | AA12: ='D Rest incong'!W12-'D Rest cong'!W12 -> 0.5838590306 | AB12: ='D Rest incong'!X12-'D Rest cong'!X12 -> -0.1881991782 | AC12: ='D Rest incong'!Y12-'D Rest cong'!Y12 -> -0.4037643123 | AD12: ='D Rest incong'!Z12-'D Rest cong'!Z12 -> -0.765522919 | AE12: ='D Rest incong'!AA12-'D Rest cong'!AA12 -> 0.09672292339 | AF12: ='D Rest incong'!AB12-'D Rest cong'!AB12 -> -0.5864983027 | AG12: ='D Rest incong'!AC12-'D Rest cong'!AC12 -> -0.4921334961 | AH12: ='D Rest incong'!AD12-'D Rest cong'!AD12 -> -1.202236377 | AI12: ='D Rest incong'!AE12-'D Rest cong'!AE12 -> 0.225900004 | AJ12: ='D Rest incong'!AF12-'D Rest cong'!AF12 -> -0.8159391353 | AK12: ='D Rest incong'!AG12-'D Rest cong'!AG12 -> -0.9308862767 | AL12: ='D Rest incong'!AH12-'D Rest cong'!AH12 -> 0.3519126329 | AM12: ='D Rest incong'!AI12-'D Rest cong'!AI12 -> 0.09641412002 | AN12: ='D Rest incong'!AJ12-'D Rest cong'!AJ12 -> 0.1034481549 | AO12: ='D Rest incong'!AK12-'D Rest cong'!AK12 -> 0.06907511414 | AP12: ='D Rest incong'!AL12-'D Rest cong'!AL12 -> 0.8939098462 | AQ12: ='D Rest incong'!AM12-'D Rest cong'!AM12 -> 0.1236176598 | AR12: ='D Rest incong'!AN12-'D Rest cong'!AN12 -> 0.6594256048 | AS12: ='D Rest incong'!AO12-'D Rest cong'!AO12 -> 0.4535961618 | AT12: ='D Rest incong'!AP12-'D Rest cong'!AP12 -> 0.6226987937 | AU12: ='D Rest incong'!AQ12-'D Rest cong'!AQ12 -> 0.1373486401 | AV12: ='D Rest incong'!AR12-'D Rest cong'!AR12 -> 0.1411805433 | AW12: ='D Rest incong'!AS12-'D Rest cong'!AS12 -> 0.1465261599 | AX12: ='D Rest incong'!AT12-'D Rest cong'!AT12 -> 0.9294453078 | AY12: ='D Rest incong'!AU12-'D Rest cong'!AU12 -> 0.08559756961 | AZ12: ='D Rest incong'!AV12-'D Rest cong'!AV12 -> 0.254954995 | BA12: ='D Rest incong'!AW12-'D Rest cong'!AW12 -> 0.3554441138 | BB12: ='D Rest incong'!AX12-'D Rest cong'!AX12 -> 0.6901332943 | BC12: ='D Rest incong'!AY12-'D Rest cong'!AY12 -> 0.7280385835 | BD12: ='D Rest incong'!AZ12-'D Rest cong'!AZ12 -> 0.4169689834 | BE12: ='D Rest incong'!BA12-'D Rest cong'!BA12 -> -0.07820170407 | BF12: ='D Rest incong'!BB12-'D Rest cong'!BB12 -> 0.8915810877 | BG12: ='D Rest incong'!BC12-'D Rest cong'!BC12 -> 1.084883608 | BH12: ='D Rest incong'!BD12-'D Rest cong'!BD12 -> 0.9418422221 | BI12: ='D Rest incong'!BE12-'D Rest cong'!BE12 -> -0.3108956726 | BJ12: ='D Rest incong'!BF12-'D Rest cong'!BF12 -> 1.267545505 | BK12: ='D Rest incong'!BG12-'D Rest cong'!BG12 -> 0.7994865315 | BL12: ='D Rest incong'!BH12-'D Rest cong'!BH12 -> 0.8271616063 | BM12: ='D Rest incong'!BI12-'D Rest cong'!BI12 -> -0.07206239829 | BN12: ='D Rest incong'!BJ12-'D Rest cong'!BJ12 -> 0.7777337395 | BO12: ='D Rest incong'!BK12-'D Rest cong'!BK12 -> 1.070875627 | BP12: ='D Rest incong'!BL12-'D Rest cong'!BL12 -> 0.7561680238 | BQ12: ='D Rest incong'!BM12-'D Rest cong'!BM12 -> -0.6651249406 | BR12: ='D Rest incong'!BN12-'D Rest cong'!BN12 -> 0.2374637138 | BS12: ='D Rest incong'!BO12-'D Rest cong'!BO12 -> 0.7399672043 | BT12: ='D Rest incong'!BP12-'D Rest cong'!BP12 -> -0.1350428401 | BU12: ='D Rest incong'!BQ12-'D Rest cong'!BQ12 -> -0.6933748603 | BV12: ='D Rest incong'!BR12-'D Rest cong'!BR12 -> -0.2173613305 | BW12: ='D Rest incong'!BS12-'D Rest cong'!BS12 -> 0.9388424303 | BX12: ='D Rest incong'!BT12-'D Rest cong'!BT12 -> -0.2502759922 | BY12: ='D Rest incong'!BU12-'D Rest cong'!BU12 -> -1.167080193 | BZ12: ='D Rest incong'!BV12-'D Rest cong'!BV12 -> 0.3239150556 | CA12: ='D Rest incong'!BW12-'D Rest cong'!BW12 -> -0.1635433258 | CB12: ='D Rest incong'!BX12-'D Rest cong'!BX12 -> 0.3139263909 | CC12: ='D Rest incong'!BY12-'D Rest cong'!BY12 -> 0.5456411336 | CD12: ='D Rest incong'!BZ12-'D Rest cong'!BZ12 -> 0.09880940971 | CE12: ='D Rest incong'!CA12-'D Rest cong'!CA12 -> 0.01510303589 | CF12: ='D Rest incong'!CB12-'D Rest cong'!CB12 -> 0.3325672109 | CG12: ='D Rest incong'!CC12-'D Rest cong'!CC12 -> 0.1966873365 | CH12: ='D Rest incong'!CD12-'D Rest cong'!CD12 -> -0.3031005332 | CI12: ='D Rest incong'!CE12-'D Rest cong'!CE12 -> -0.3218084218 | CJ12: ='D Rest incong'!CF12-'D Rest cong'!CF12 -> 0.4003586848 | CK12: ='D Rest incong'!CG12-'D Rest cong'!CG12 -> 0.1065593893 | CL12: ='D Rest incong'!CH12-'D Rest cong'!CH12 -> -0.05910714094 | CM12: ='D Rest incong'!CI12-'D Rest cong'!CI12 -> -0.2021727638 | CN12: ='D Rest incong'!CJ12-'D Rest cong'!CJ12 -> 0.5456723272 | CO12: ='D Rest incong'!CK12-'D Rest cong'!CK12 -> 0.0670588101 | CP12: ='D Rest incong'!CL12-'D Rest cong'!CL12 -> -0.1728575727 | CQ12: ='D Rest incong'!CM12-'D Rest cong'!CM12 -> 0.2084321176 | CR12: ='D Rest incong'!CN12-'D Rest cong'!CN12 -> 0.02432963048 | CS12: ='D Rest incong'!CO12-'D Rest cong'!CO12 -> -0.5951816175 | CT12: ='D Rest incong'!CP12-'D Rest cong'!CP12 -> 0.3522551946 | CU12: ='D Rest incong'!CQ12-'D Rest cong'!CQ12 -> 0.1862954394 | CV12: ='D Rest incong'!CR12-'D Rest cong'!CR12 -> 0.3430670534 | CW12: ='D Rest incong'!CS12-'D Rest cong'!CS12 -> -0.2876504219
A13: TB101 | B13: -1.397164727 | C13: oxyHb-post-B1 | D13: 1.092042358 | E13: diffHb-post-B6 | F13: ='D Rest incong'!B13-'D Rest cong'!B13 -> -0.9569985413 | G13: ='D Rest incong'!C13-'D Rest cong'!C13 -> 0.07978633196 | H13: ='D Rest incong'!D13-'D Rest cong'!D13 -> -0.7313901121 | I13: ='D Rest incong'!E13-'D Rest cong'!E13 -> -0.6393326332 | J13: ='D Rest incong'!F13-'D Rest cong'!F13 -> -1.039684164 | K13: ='D Rest incong'!G13-'D Rest cong'!G13 -> -0.1202925409 | L13: ='D Rest incong'!H13-'D Rest cong'!H13 -> -1.018581104 | M13: ='D Rest incong'!I13-'D Rest cong'!I13 -> -0.4916711932 | N13: ='D Rest incong'!J13-'D Rest cong'!J13 -> -0.8974868329 | O13: ='D Rest incong'!K13-'D Rest cong'!K13 -> -0.07712676134 | P13: ='D Rest incong'!L13-'D Rest cong'!L13 -> -0.3941391333 | Q13: ='D Rest incong'!M13-'D Rest cong'!M13 -> -0.3626186341 | R13: ='D Rest incong'!N13-'D Rest cong'!N13 -> -0.8398628455 | S13: ='D Rest incong'!O13-'D Rest cong'!O13 -> -0.3006071828 | T13: ='D Rest incong'!P13-'D Rest cong'!P13 -> -0.5643560692 | U13: ='D Rest incong'!Q13-'D Rest cong'!Q13 -> -0.0583937187 | V13: ='D Rest incong'!R13-'D Rest cong'!R13 -> -0.6131430296 | W13: ='D Rest incong'!S13-'D Rest cong'!S13 -> 0.1864971314 | X13: ='D Rest incong'!T13-'D Rest cong'!T13 -> -0.6401495884 | Y13: ='D Rest incong'!U13-'D Rest cong'!U13 -> -0.7073318389 | Z13: ='D Rest incong'!V13-'D Rest cong'!V13 -> -1.045192058 | AA13: ='D Rest incong'!W13-'D Rest cong'!W13 -> 0.1527071802 | AB13: ='D Rest incong'!X13-'D Rest cong'!X13 -> -1.007062089 | AC13: ='D Rest incong'!Y13-'D Rest cong'!Y13 -> -0.9281493901 | AD13: ='D Rest incong'!Z13-'D Rest cong'!Z13 -> -0.5553197087 | AE13: ='D Rest incong'!AA13-'D Rest cong'!AA13 -> -0.1284356743 | AF13: ='D Rest incong'!AB13-'D Rest cong'!AB13 -> -0.118075068 | AG13: ='D Rest incong'!AC13-'D Rest cong'!AC13 -> -0.003148608097 | AH13: ='D Rest incong'!AD13-'D Rest cong'!AD13 -> -1.24549109 | AI13: ='D Rest incong'!AE13-'D Rest cong'!AE13 -> -0.09945168233 | AJ13: ='D Rest incong'!AF13-'D Rest cong'!AF13 -> -0.4073765151 | AK13: ='D Rest incong'!AG13-'D Rest cong'!AG13 -> -0.3154958644 | AL13: ='D Rest incong'!AH13-'D Rest cong'!AH13 -> -0.8114008119 | AM13: ='D Rest incong'!AI13-'D Rest cong'!AI13 -> -0.2269736439 | AN13: ='D Rest incong'!AJ13-'D Rest cong'!AJ13 -> -0.6165514479 | AO13: ='D Rest incong'!AK13-'D Rest cong'!AK13 -> -0.6441372612 | AP13: ='D Rest incong'!AL13-'D Rest cong'!AL13 -> -1.274428788 | AQ13: ='D Rest incong'!AM13-'D Rest cong'!AM13 -> -0.1986546207 | AR13: ='D Rest incong'!AN13-'D Rest cong'!AN13 -> -0.9022555507 | AS13: ='D Rest incong'!AO13-'D Rest cong'!AO13 -> -0.9608150296 | AT13: ='D Rest incong'!AP13-'D Rest cong'!AP13 -> 0.4330314827 | AU13: ='D Rest incong'!AQ13-'D Rest cong'!AQ13 -> -0.5752675862 | AV13: ='D Rest incong'!AR13-'D Rest cong'!AR13 -> -0.1611732802 | AW13: ='D Rest incong'!AS13-'D Rest cong'!AS13 -> 0.9164943993 | AX13: ='D Rest incong'!AT13-'D Rest cong'!AT13 -> 0.5032225084 | AY13: ='D Rest incong'!AU13-'D Rest cong'!AU13 -> -0.5664469416 | AZ13: ='D Rest incong'!AV13-'D Rest cong'!AV13 -> -0.1183679125 | BA13: ='D Rest incong'!AW13-'D Rest cong'!AW13 -> 0.9432860743 | BB13: ='D Rest incong'!AX13-'D Rest cong'!AX13 -> -0.6279220669 | BC13: ='D Rest incong'!AY13-'D Rest cong'!AY13 -> -0.7460449758 | BD13: ='D Rest incong'!AZ13-'D Rest cong'!AZ13 -> -0.130874639 | BE13: ='D Rest incong'!BA13-'D Rest cong'!BA13 -> 0.4825135746 | BF13: ='D Rest incong'!BB13-'D Rest cong'!BB13 -> -1.397164727 | BG13: ='D Rest incong'!BC13-'D Rest cong'!BC13 -> -0.6865363813 | BH13: ='D Rest incong'!BD13-'D Rest cong'!BD13 -> -0.5398779521 | BI13: ='D Rest incong'!BE13-'D Rest cong'!BE13 -> -0.003083533269 | BJ13: ='D Rest incong'!BF13-'D Rest cong'!BF13 -> -0.5447164266 | BK13: ='D Rest incong'!BG13-'D Rest cong'!BG13 -> 0.3462861483 | BL13: ='D Rest incong'!BH13-'D Rest cong'!BH13 -> -0.5251792259 | BM13: ='D Rest incong'!BI13-'D Rest cong'!BI13 -> -0.9734144563 | BN13: ='D Rest incong'!BJ13-'D Rest cong'!BJ13 -> -0.4254477371 | BO13: ='D Rest incong'!BK13-'D Rest cong'!BK13 -> 0.1356003414 | BP13: ='D Rest incong'!BL13-'D Rest cong'!BL13 -> -0.6809167364 | BQ13: ='D Rest incong'!BM13-'D Rest cong'!BM13 -> -0.6991777557 | BR13: ='D Rest incong'!BN13-'D Rest cong'!BN13 -> -0.1620958605 | BS13: ='D Rest incong'!BO13-'D Rest cong'!BO13 -> 0.2830346714 | BT13: ='D Rest incong'!BP13-'D Rest cong'!BP13 -> -0.1686911762 | BU13: ='D Rest incong'!BQ13-'D Rest cong'!BQ13 -> -0.6158638355 | BV13: ='D Rest incong'!BR13-'D Rest cong'!BR13 -> 0.006458416044 | BW13: ='D Rest incong'!BS13-'D Rest cong'!BS13 -> 0.1924421913 | BX13: ='D Rest incong'!BT13-'D Rest cong'!BT13 -> -0.1492035706 | BY13: ='D Rest incong'!BU13-'D Rest cong'!BU13 -> -0.4258251635 | BZ13: ='D Rest incong'!BV13-'D Rest cong'!BV13 -> -0.02332022279 | CA13: ='D Rest incong'!BW13-'D Rest cong'!BW13 -> -0.9277824221 | CB13: ='D Rest incong'!BX13-'D Rest cong'!BX13 -> 0.04372138412 | CC13: ='D Rest incong'!BY13-'D Rest cong'!BY13 -> 1.081199032 | CD13: ='D Rest incong'!BZ13-'D Rest cong'!BZ13 -> 0.1221383428 | CE13: ='D Rest incong'!CA13-'D Rest cong'!CA13 -> -0.9360834007 | CF13: ='D Rest incong'!CB13-'D Rest cong'!CB13 -> 0.0127371196 | CG13: ='D Rest incong'!CC13-'D Rest cong'!CC13 -> 1.092042358 | CH13: ='D Rest incong'!CD13-'D Rest cong'!CD13 -> -0.1706784802 | CI13: ='D Rest incong'!CE13-'D Rest cong'!CE13 -> 0.03152663203 | CJ13: ='D Rest incong'!CF13-'D Rest cong'!CF13 -> -0.1647857595 | CK13: ='D Rest incong'!CG13-'D Rest cong'!CG13 -> -0.1946698391 | CL13: ='D Rest incong'!CH13-'D Rest cong'!CH13 -> -0.7983421678 | CM13: ='D Rest incong'!CI13-'D Rest cong'!CI13 -> 0.1125332361 | CN13: ='D Rest incong'!CJ13-'D Rest cong'!CJ13 -> -0.6155813455 | CO13: ='D Rest incong'!CK13-'D Rest cong'!CK13 -> -0.7211968863 | CP13: ='D Rest incong'!CL13-'D Rest cong'!CL13 -> -0.1035666758 | CQ13: ='D Rest incong'!CM13-'D Rest cong'!CM13 -> 0.7055054138 | CR13: ='D Rest incong'!CN13-'D Rest cong'!CN13 -> -0.2144538075 | CS13: ='D Rest incong'!CO13-'D Rest cong'!CO13 -> -1.022779099 | CT13: ='D Rest incong'!CP13-'D Rest cong'!CP13 -> -0.01933211403 | CU13: ='D Rest incong'!CQ13-'D Rest cong'!CQ13 -> 0.7041140664 | CV13: ='D Rest incong'!CR13-'D Rest cong'!CR13 -> -0.1572172533 | CW13: ='D Rest incong'!CS13-'D Rest cong'!CS13 -> -0.9668338218
A14: SW101 | B14: -1.957728801 | C14: oxyHb-post-A6 | D14: 0.9242113352 | E14: deoxyHb-post-B2 | F14: ='D Rest incong'!B14-'D Rest cong'!B14 -> 0.1031864509 | G14: ='D Rest incong'!C14-'D Rest cong'!C14 -> -0.1464676215 | H14: ='D Rest incong'!D14-'D Rest cong'!D14 -> 0.06607875683 | I14: ='D Rest incong'!E14-'D Rest cong'!E14 -> 0.3682895106 | J14: ='D Rest incong'!F14-'D Rest cong'!F14 -> -0.1963335307 | K14: ='D Rest incong'!G14-'D Rest cong'!G14 -> -0.08242970737 | L14: ='D Rest incong'!H14-'D Rest cong'!H14 -> -0.08702961484 | M14: ='D Rest incong'!I14-'D Rest cong'!I14 -> 0.102951311 | N14: ='D Rest incong'!J14-'D Rest cong'!J14 -> 0.2137753773 | O14: ='D Rest incong'!K14-'D Rest cong'!K14 -> 0.6635605648 | P14: ='D Rest incong'!L14-'D Rest cong'!L14 -> -0.02826922567 | Q14: ='D Rest incong'!M14-'D Rest cong'!M14 -> -0.5468791805 | R14: ='D Rest incong'!N14-'D Rest cong'!N14 -> -0.2605193252 | S14: ='D Rest incong'!O14-'D Rest cong'!O14 -> 0.696471139 | T14: ='D Rest incong'!P14-'D Rest cong'!P14 -> -0.3028265096 | U14: ='D Rest incong'!Q14-'D Rest cong'!Q14 -> -0.8562002978 | V14: ='D Rest incong'!R14-'D Rest cong'!R14 -> -0.7431155754 | W14: ='D Rest incong'!S14-'D Rest cong'!S14 -> 0.4652675818 | X14: ='D Rest incong'!T14-'D Rest cong'!T14 -> -0.6962174692 | Y14: ='D Rest incong'!U14-'D Rest cong'!U14 -> -0.9152376491 | Z14: ='D Rest incong'!V14-'D Rest cong'!V14 -> -0.9911390601 | AA14: ='D Rest incong'!W14-'D Rest cong'!W14 -> 0.4152106907 | AB14: ='D Rest incong'!X14-'D Rest cong'!X14 -> -0.9569748704 | AC14: ='D Rest incong'!Y14-'D Rest cong'!Y14 -> -1.060696073 | AD14: ='D Rest incong'!Z14-'D Rest cong'!Z14 -> 0.03294643843 | AE14: ='D Rest incong'!AA14-'D Rest cong'!AA14 -> 0.001598871726 | AF14: ='D Rest incong'!AB14-'D Rest cong'!AB14 -> 0.06997770943 | AG14: ='D Rest incong'!AC14-'D Rest cong'!AC14 -> 0.1094410868 | AH14: ='D Rest incong'!AD14-'D Rest cong'!AD14 -> 0.212774748 | AI14: ='D Rest incong'!AE14-'D Rest cong'!AE14 -> -0.02383412898 | AJ14: ='D Rest incong'!AF14-'D Rest cong'!AF14 -> 0.1723689126 | AK14: ='D Rest incong'!AG14-'D Rest cong'!AG14 -> 0.2580560084 | AL14: ='D Rest incong'!AH14-'D Rest cong'!AH14 -> -1.186578074 | AM14: ='D Rest incong'!AI14-'D Rest cong'!AI14 -> 0.519986661 | AN14: ='D Rest incong'!AJ14-'D Rest cong'!AJ14 -> -0.746129194 | AO14: ='D Rest incong'!AK14-'D Rest cong'!AK14 -> -1.356059979 | AP14: ='D Rest incong'!AL14-'D Rest cong'!AL14 -> -1.254942235 | AQ14: ='D Rest incong'!AM14-'D Rest cong'!AM14 -> 0.481156294 | AR14: ='D Rest incong'!AN14-'D Rest cong'!AN14 -> -0.9497641261 | AS14: ='D Rest incong'!AO14-'D Rest cong'!AO14 -> -1.456838331 | AT14: ='D Rest incong'!AP14-'D Rest cong'!AP14 -> -0.9319366144 | AU14: ='D Rest incong'!AQ14-'D Rest cong'!AQ14 -> -0.1692276353 | AV14: ='D Rest incong'!AR14-'D Rest cong'!AR14 -> -0.5379297111 | AW14: ='D Rest incong'!AS14-'D Rest cong'!AS14 -> -0.04355794144 | AX14: ='D Rest incong'!AT14-'D Rest cong'!AT14 -> -1.957728801 | AY14: ='D Rest incong'!AU14-'D Rest cong'!AU14 -> 0.09878325966 | AZ14: ='D Rest incong'!AV14-'D Rest cong'!AV14 -> -0.8384169065 | BA14: ='D Rest incong'!AW14-'D Rest cong'!AW14 -> -0.8567463431 | BB14: ='D Rest incong'!AX14-'D Rest cong'!AX14 -> 0.5472229074 | BC14: ='D Rest incong'!AY14-'D Rest cong'!AY14 -> 0.5601676754 | BD14: ='D Rest incong'!AZ14-'D Rest cong'!AZ14 -> -0.05309515828 | BE14: ='D Rest incong'!BA14-'D Rest cong'!BA14 -> -0.008254772937 | BF14: ='D Rest incong'!BB14-'D Rest cong'!BB14 -> 0.4572224077 | BG14: ='D Rest incong'!BC14-'D Rest cong'!BC14 -> 0.7553909618 | BH14: ='D Rest incong'!BD14-'D Rest cong'!BD14 -> 0.1755748039 | BI14: ='D Rest incong'!BE14-'D Rest cong'!BE14 -> -0.1241992516 | BJ14: ='D Rest incong'!BF14-'D Rest cong'!BF14 -> 0.2573998949 | BK14: ='D Rest incong'!BG14-'D Rest cong'!BG14 -> 0.264688521 | BL14: ='D Rest incong'!BH14-'D Rest cong'!BH14 -> -0.4706314047 | BM14: ='D Rest incong'!BI14-'D Rest cong'!BI14 -> 0.2327821332 | BN14: ='D Rest incong'!BJ14-'D Rest cong'!BJ14 -> -0.1544516095 | BO14: ='D Rest incong'!BK14-'D Rest cong'!BK14 -> 0.9242113352 | BP14: ='D Rest incong'!BL14-'D Rest cong'!BL14 -> -0.3248328242 | BQ14: ='D Rest incong'!BM14-'D Rest cong'!BM14 -> -0.7640141512 | BR14: ='D Rest incong'!BN14-'D Rest cong'!BN14 -> 0.8394548651 | BS14: ='D Rest incong'!BO14-'D Rest cong'!BO14 -> 0.2570911468 | BT14: ='D Rest incong'!BP14-'D Rest cong'!BP14 -> 0.2800162267 | BU14: ='D Rest incong'!BQ14-'D Rest cong'!BQ14 -> 0.4182860156 | BV14: ='D Rest incong'!BR14-'D Rest cong'!BR14 -> 0.8724609395 | BW14: ='D Rest incong'!BS14-'D Rest cong'!BS14 -> 0.1790620818 | BX14: ='D Rest incong'!BT14-'D Rest cong'!BT14 -> 0.2475844759 | BY14: ='D Rest incong'!BU14-'D Rest cong'!BU14 -> 0.5348864791 | BZ14: ='D Rest incong'!BV14-'D Rest cong'!BV14 -> -1.40845023 | CA14: ='D Rest incong'!BW14-'D Rest cong'!BW14 -> -0.2876636007 | CB14: ='D Rest incong'!BX14-'D Rest cong'!BX14 -> -0.3742875677 | CC14: ='D Rest incong'!BY14-'D Rest cong'!BY14 -> -0.2493648776 | CD14: ='D Rest incong'!BZ14-'D Rest cong'!BZ14 -> -1.069455936 | CE14: ='D Rest incong'!CA14-'D Rest cong'!CA14 -> -0.3784479685 | CF14: ='D Rest incong'!CB14-'D Rest cong'!CB14 -> -0.2744910743 | CG14: ='D Rest incong'!CC14-'D Rest cong'!CC14 -> 0.01619139332 | CH14: ='D Rest incong'!CD14-'D Rest cong'!CD14 -> 0.1815573431 | CI14: ='D Rest incong'!CE14-'D Rest cong'!CE14 -> 0.03825242075 | CJ14: ='D Rest incong'!CF14-'D Rest cong'!CF14 -> -0.04042373613 | CK14: ='D Rest incong'!CG14-'D Rest cong'!CG14 -> 0.2031980925 | CL14: ='D Rest incong'!CH14-'D Rest cong'!CH14 -> 0.06306549562 | CM14: ='D Rest incong'!CI14-'D Rest cong'!CI14 -> 0.07973852885 | CN14: ='D Rest incong'!CJ14-'D Rest cong'!CJ14 -> -0.1163299481 | CO14: ='D Rest incong'!CK14-'D Rest cong'!CK14 -> 0.05393923946 | CP14: ='D Rest incong'!CL14-'D Rest cong'!CL14 -> 0.25563762 | CQ14: ='D Rest incong'!CM14-'D Rest cong'!CM14 -> 0.09970310433 | CR14: ='D Rest incong'!CN14-'D Rest cong'!CN14 -> 0.002645012556 | CS14: ='D Rest incong'!CO14-'D Rest cong'!CO14 -> 0.09886889297 | CT14: ='D Rest incong'!CP14-'D Rest cong'!CP14 -> 0.2081797875 | CU14: ='D Rest incong'!CQ14-'D Rest cong'!CQ14 -> 0.1955262304 | CV14: ='D Rest incong'!CR14-'D Rest cong'!CR14 -> 0.03507671575 | CW14: ='D Rest incong'!CS14-'D Rest cong'!CS14 -> -0.05587700118
A15: BR102 | B15: -1.172132283 | C15: oxyHb-post-A6 | D15: 1.630627408 | E15: oxyHb-post-B6 | F15: ='D Rest incong'!B15-'D Rest cong'!B15 -> -0.2232424882 | G15: ='D Rest incong'!C15-'D Rest cong'!C15 -> -0.2993417697 | H15: ='D Rest incong'!D15-'D Rest cong'!D15 -> 0.1066542663 | I15: ='D Rest incong'!E15-'D Rest cong'!E15 -> 0.006280947816 | J15: ='D Rest incong'!F15-'D Rest cong'!F15 -> -0.3523744717 | K15: ='D Rest incong'!G15-'D Rest cong'!G15 -> -0.2477508401 | L15: ='D Rest incong'!H15-'D Rest cong'!H15 -> 0.06430781291 | M15: ='D Rest incong'!I15-'D Rest cong'!I15 -> -0.1172171271 | N15: ='D Rest incong'!J15-'D Rest cong'!J15 -> -0.2443419454 | O15: ='D Rest incong'!K15-'D Rest cong'!K15 -> -0.7173711442 | P15: ='D Rest incong'!L15-'D Rest cong'!L15 -> 0.2038807177 | Q15: ='D Rest incong'!M15-'D Rest cong'!M15 -> 0.4767861798 | R15: ='D Rest incong'!N15-'D Rest cong'!N15 -> -0.7668765332 | S15: ='D Rest incong'!O15-'D Rest cong'!O15 -> -0.6940544691 | T15: ='D Rest incong'!P15-'D Rest cong'!P15 -> -0.09550841762 | U15: ='D Rest incong'!Q15-'D Rest cong'!Q15 -> 0.1914352758 | V15: ='D Rest incong'!R15-'D Rest cong'!R15 -> 0.6621111744 | W15: ='D Rest incong'!S15-'D Rest cong'!S15 -> -0.4357482499 | X15: ='D Rest incong'!T15-'D Rest cong'!T15 -> 0.5542811396 | Y15: ='D Rest incong'!U15-'D Rest cong'!U15 -> 0.6079336016 | Z15: ='D Rest incong'!V15-'D Rest cong'!V15 -> 0.5149046832 | AA15: ='D Rest incong'!W15-'D Rest cong'!W15 -> -0.3458523814 | AB15: ='D Rest incong'!X15-'D Rest cong'!X15 -> 0.6013103173 | AC15: ='D Rest incong'!Y15-'D Rest cong'!Y15 -> 0.4703326014 | AD15: ='D Rest incong'!Z15-'D Rest cong'!Z15 -> 0.2919842196 | AE15: ='D Rest incong'!AA15-'D Rest cong'!AA15 -> -0.1011866306 | AF15: ='D Rest incong'!AB15-'D Rest cong'!AB15 -> 0.06365463763 | AG15: ='D Rest incong'!AC15-'D Rest cong'!AC15 -> 0.2440860548 | AH15: ='D Rest incong'!AD15-'D Rest cong'!AD15 -> 0.4858892134 | AI15: ='D Rest incong'!AE15-'D Rest cong'!AE15 -> -0.2623637818 | AJ15: ='D Rest incong'!AF15-'D Rest cong'!AF15 -> -0.0451711903 | AK15: ='D Rest incong'!AG15-'D Rest cong'!AG15 -> 0.4631679397 | AL15: ='D Rest incong'!AH15-'D Rest cong'!AH15 -> 0.8166819417 | AM15: ='D Rest incong'!AI15-'D Rest cong'!AI15 -> 0.4419750453 | AN15: ='D Rest incong'!AJ15-'D Rest cong'!AJ15 -> 0.394607513 | AO15: ='D Rest incong'!AK15-'D Rest cong'!AK15 -> 0.07890133547 | AP15: ='D Rest incong'!AL15-'D Rest cong'!AL15 -> 0.6604177843 | AQ15: ='D Rest incong'!AM15-'D Rest cong'!AM15 -> 0.6632461646 | AR15: ='D Rest incong'!AN15-'D Rest cong'!AN15 -> 0.5215984462 | AS15: ='D Rest incong'!AO15-'D Rest cong'!AO15 -> -0.2311611539 | AT15: ='D Rest incong'!AP15-'D Rest cong'!AP15 -> -0.1659420736 | AU15: ='D Rest incong'!AQ15-'D Rest cong'!AQ15 -> -0.2171838416 | AV15: ='D Rest incong'!AR15-'D Rest cong'!AR15 -> -0.09193992016 | AW15: ='D Rest incong'!AS15-'D Rest cong'!AS15 -> 0.1241845068 | AX15: ='D Rest incong'!AT15-'D Rest cong'!AT15 -> -1.172132283 | AY15: ='D Rest incong'!AU15-'D Rest cong'!AU15 -> 0.1046461136 | AZ15: ='D Rest incong'!AV15-'D Rest cong'!AV15 -> -0.3259245807 | BA15: ='D Rest incong'!AW15-'D Rest cong'!AW15 -> -0.6892789727 | BB15: ='D Rest incong'!AX15-'D Rest cong'!AX15 -> 1.299858622 | BC15: ='D Rest incong'!AY15-'D Rest cong'!AY15 -> 0.2563464855 | BD15: ='D Rest incong'!AZ15-'D Rest cong'!AZ15 -> 0.5606245622 | BE15: ='D Rest incong'!BA15-'D Rest cong'!BA15 -> 0.5013385836 | BF15: ='D Rest incong'!BB15-'D Rest cong'!BB15 -> 0.5223019201 | BG15: ='D Rest incong'!BC15-'D Rest cong'!BC15 -> 0.3271001035 | BH15: ='D Rest incong'!BD15-'D Rest cong'!BD15 -> 0.1699323728 | BI15: ='D Rest incong'!BE15-'D Rest cong'!BE15 -> -0.009712092766 | BJ15: ='D Rest incong'!BF15-'D Rest cong'!BF15 -> -0.136760117 | BK15: ='D Rest incong'!BG15-'D Rest cong'!BG15 -> 0.09410386609 | BL15: ='D Rest incong'!BH15-'D Rest cong'!BH15 -> 0.3293926641 | BM15: ='D Rest incong'!BI15-'D Rest cong'!BI15 -> -0.3284253907 | BN15: ='D Rest incong'!BJ15-'D Rest cong'!BJ15 -> -0.3026109299 | BO15: ='D Rest incong'!BK15-'D Rest cong'!BK15 -> 0.1371516222 | BP15: ='D Rest incong'!BL15-'D Rest cong'!BL15 -> 0.3661174058 | BQ15: ='D Rest incong'!BM15-'D Rest cong'!BM15 -> -0.3888272297 | BR15: ='D Rest incong'!BN15-'D Rest cong'!BN15 -> 0.3793732535 | BS15: ='D Rest incong'!BO15-'D Rest cong'!BO15 -> 0.1209594802 | BT15: ='D Rest incong'!BP15-'D Rest cong'!BP15 -> 0.3724876361 | BU15: ='D Rest incong'!BQ15-'D Rest cong'!BQ15 -> 0.313498296 | BV15: ='D Rest incong'!BR15-'D Rest cong'!BR15 -> 0.7265847044 | BW15: ='D Rest incong'!BS15-'D Rest cong'!BS15 -> 0.1527044028 | BX15: ='D Rest incong'!BT15-'D Rest cong'!BT15 -> 0.6815417477 | BY15: ='D Rest incong'!BU15-'D Rest cong'!BU15 -> 0.5100199318 | BZ15: ='D Rest incong'!BV15-'D Rest cong'!BV15 -> 1.031238662 | CA15: ='D Rest incong'!BW15-'D Rest cong'!BW15 -> 0.1991420909 | CB15: ='D Rest incong'!BX15-'D Rest cong'!BX15 -> 0.1466004173 | CC15: ='D Rest incong'!BY15-'D Rest cong'!BY15 -> -0.06112133682 | CD15: ='D Rest incong'!BZ15-'D Rest cong'!BZ15 -> 1.630627408 | CE15: ='D Rest incong'!CA15-'D Rest cong'!CA15 -> 0.2126087755 | CF15: ='D Rest incong'!CB15-'D Rest cong'!CB15 -> 0.4452078489 | CG15: ='D Rest incong'!CC15-'D Rest cong'!CC15 -> 0.1610471454 | CH15: ='D Rest incong'!CD15-'D Rest cong'!CD15 -> 0.5858106374 | CI15: ='D Rest incong'!CE15-'D Rest cong'!CE15 -> 0.3112060878 | CJ15: ='D Rest incong'!CF15-'D Rest cong'!CF15 -> 0.2372393695 | CK15: ='D Rest incong'!CG15-'D Rest cong'!CG15 -> -0.04299041222 | CL15: ='D Rest incong'!CH15-'D Rest cong'!CH15 -> 0.3037222479 | CM15: ='D Rest incong'!CI15-'D Rest cong'!CI15 -> 0.3102927681 | CN15: ='D Rest incong'!CJ15-'D Rest cong'!CJ15 -> 0.07500622383 | CO15: ='D Rest incong'!CK15-'D Rest cong'!CK15 -> -0.1802100903 | CP15: ='D Rest incong'!CL15-'D Rest cong'!CL15 -> 0.4299325926 | CQ15: ='D Rest incong'!CM15-'D Rest cong'!CM15 -> 0.2046843221 | CR15: ='D Rest incong'!CN15-'D Rest cong'!CN15 -> 0.01059053349 | CS15: ='D Rest incong'!CO15-'D Rest cong'!CO15 -> 0.3612522884 | CT15: ='D Rest incong'!CP15-'D Rest cong'!CP15 -> 0.6752533586 | CU15: ='D Rest incong'!CQ15-'D Rest cong'!CQ15 -> 0.1647487022 | CV15: ='D Rest incong'!CR15-'D Rest cong'!CR15 -> 0.1001339984 | CW15: ='D Rest incong'!CS15-'D Rest cong'!CS15 -> 0.5060400322
A16: DJ102 | B16: -1.914420942 | C16: totalHb-post-A6 | D16: 0.8523388467 | E16: deoxyHb-task-A5 | F16: ='D Rest incong'!B16-'D Rest cong'!B16 -> -1.213296742 | G16: ='D Rest incong'!C16-'D Rest cong'!C16 -> 0.10271726 | H16: ='D Rest incong'!D16-'D Rest cong'!D16 -> -0.3258602441 | I16: ='D Rest incong'!E16-'D Rest cong'!E16 -> -0.6809168082 | J16: ='D Rest incong'!F16-'D Rest cong'!F16 -> -1.234701293 | K16: ='D Rest incong'!G16-'D Rest cong'!G16 -> 0.126605289 | L16: ='D Rest incong'!H16-'D Rest cong'!H16 -> -0.2896018627 | M16: ='D Rest incong'!I16-'D Rest cong'!I16 -> -0.706724617 | N16: ='D Rest incong'!J16-'D Rest cong'!J16 -> -0.3238493184 | O16: ='D Rest incong'!K16-'D Rest cong'!K16 -> 0.4557745953 | P16: ='D Rest incong'!L16-'D Rest cong'!L16 -> -0.5493692671 | Q16: ='D Rest incong'!M16-'D Rest cong'!M16 -> -0.8690709411 | R16: ='D Rest incong'!N16-'D Rest cong'!N16 -> -0.7050691036 | S16: ='D Rest incong'!O16-'D Rest cong'!O16 -> 0.4640372754 | T16: ='D Rest incong'!P16-'D Rest cong'!P16 -> -0.8542760412 | U16: ='D Rest incong'!Q16-'D Rest cong'!Q16 -> -1.147899922 | V16: ='D Rest incong'!R16-'D Rest cong'!R16 -> -0.983461455 | W16: ='D Rest incong'!S16-'D Rest cong'!S16 -> -0.1366295643 | X16: ='D Rest incong'!T16-'D Rest cong'!T16 -> -0.2912587137 | Y16: ='D Rest incong'!U16-'D Rest cong'!U16 -> -0.3089189359 | Z16: ='D Rest incong'!V16-'D Rest cong'!V16 -> -1.321032711 | AA16: ='D Rest incong'!W16-'D Rest cong'!W16 -> -0.09463671958 | AB16: ='D Rest incong'!X16-'D Rest cong'!X16 -> -0.4995748362 | AC16: ='D Rest incong'!Y16-'D Rest cong'!Y16 -> -0.5539358275 | AD16: ='D Rest incong'!Z16-'D Rest cong'!Z16 -> -0.1948078801 | AE16: ='D Rest incong'!AA16-'D Rest cong'!AA16 -> -0.2420265396 | AF16: ='D Rest incong'!AB16-'D Rest cong'!AB16 -> -0.06185258651 | AG16: ='D Rest incong'!AC16-'D Rest cong'!AC16 -> -0.04580894419 | AH16: ='D Rest incong'!AD16-'D Rest cong'!AD16 -> -0.6720972342 | AI16: ='D Rest incong'!AE16-'D Rest cong'!AE16 -> -0.225043188 | AJ16: ='D Rest incong'!AF16-'D Rest cong'!AF16 -> -0.4666213971 | AK16: ='D Rest incong'!AG16-'D Rest cong'!AG16 -> -0.4370857734 | AL16: ='D Rest incong'!AH16-'D Rest cong'!AH16 -> 0.3310867216 | AM16: ='D Rest incong'!AI16-'D Rest cong'!AI16 -> 0.8523388467 | AN16: ='D Rest incong'!AJ16-'D Rest cong'!AJ16 -> 0.2922008603 | AO16: ='D Rest incong'!AK16-'D Rest cong'!AK16 -> -0.6515184447 | AP16: ='D Rest incong'!AL16-'D Rest cong'!AL16 -> -0.02570811198 | AQ16: ='D Rest incong'!AM16-'D Rest cong'!AM16 -> 0.7610734125 | AR16: ='D Rest incong'!AN16-'D Rest cong'!AN16 -> -0.1194932597 | AS16: ='D Rest incong'!AO16-'D Rest cong'!AO16 -> -0.8268229762 | AT16: ='D Rest incong'!AP16-'D Rest cong'!AP16 -> -0.841582641 | AU16: ='D Rest incong'!AQ16-'D Rest cong'!AQ16 -> 0.02270227611 | AV16: ='D Rest incong'!AR16-'D Rest cong'!AR16 -> -0.7918523872 | AW16: ='D Rest incong'!AS16-'D Rest cong'!AS16 -> -0.6935720819 | AX16: ='D Rest incong'!AT16-'D Rest cong'!AT16 -> -1.513199894 | AY16: ='D Rest incong'!AU16-'D Rest cong'!AU16 -> -0.3979596357 | AZ16: ='D Rest incong'!AV16-'D Rest cong'!AV16 -> -1.914420942 | BA16: ='D Rest incong'!AW16-'D Rest cong'!AW16 -> -0.855864308 | BB16: ='D Rest incong'!AX16-'D Rest cong'!AX16 -> 0.1103954041 | BC16: ='D Rest incong'!AY16-'D Rest cong'!AY16 -> 0.2260258822 | BD16: ='D Rest incong'!AZ16-'D Rest cong'!AZ16 -> 0.4855078059 | BE16: ='D Rest incong'!BA16-'D Rest cong'!BA16 -> -0.03481268499 | BF16: ='D Rest incong'!BB16-'D Rest cong'!BB16 -> -0.1109406565 | BG16: ='D Rest incong'!BC16-'D Rest cong'!BC16 -> 0.2362967903 | BH16: ='D Rest incong'!BD16-'D Rest cong'!BD16 -> 0.2825562755 | BI16: ='D Rest incong'!BE16-'D Rest cong'!BE16 -> -0.233573388 | BJ16: ='D Rest incong'!BF16-'D Rest cong'!BF16 -> 0.1763779447 | BK16: ='D Rest incong'!BG16-'D Rest cong'!BG16 -> -0.08359451831 | BL16: ='D Rest incong'!BH16-'D Rest cong'!BH16 -> -0.07450054688 | BM16: ='D Rest incong'!BI16-'D Rest cong'!BI16 -> 0.2104158056 | BN16: ='D Rest incong'!BJ16-'D Rest cong'!BJ16 -> 0.1350127766 | BO16: ='D Rest incong'!BK16-'D Rest cong'!BK16 -> -0.3177922726 | BP16: ='D Rest incong'!BL16-'D Rest cong'!BL16 -> -0.3146308527 | BQ16: ='D Rest incong'!BM16-'D Rest cong'!BM16 -> 0.446317149 | BR16: ='D Rest incong'!BN16-'D Rest cong'!BN16 -> 0.3352642939 | BS16: ='D Rest incong'!BO16-'D Rest cong'!BO16 -> -0.03762810654 | BT16: ='D Rest incong'!BP16-'D Rest cong'!BP16 -> 0.1834702367 | BU16: ='D Rest incong'!BQ16-'D Rest cong'!BQ16 -> 0.4428638843 | BV16: ='D Rest incong'!BR16-'D Rest cong'!BR16 -> 0.03123924687 | BW16: ='D Rest incong'!BS16-'D Rest cong'!BS16 -> 0.006010415253 | BX16: ='D Rest incong'!BT16-'D Rest cong'!BT16 -> -0.09679674303 | BY16: ='D Rest incong'!BU16-'D Rest cong'!BU16 -> 0.1540550801 | BZ16: ='D Rest incong'!BV16-'D Rest cong'!BV16 -> -0.3965813965 | CA16: ='D Rest incong'!BW16-'D Rest cong'!BW16 -> 0.1265853777 | CB16: ='D Rest incong'!BX16-'D Rest cong'!BX16 -> -0.2485725801 | CC16: ='D Rest incong'!BY16-'D Rest cong'!BY16 -> -0.3964228939 | CD16: ='D Rest incong'!BZ16-'D Rest cong'!BZ16 -> -1.005946327 | CE16: ='D Rest incong'!CA16-'D Rest cong'!CA16 -> 0.1428271667 | CF16: ='D Rest incong'!CB16-'D Rest cong'!CB16 -> -0.7032111919 | CG16: ='D Rest incong'!CC16-'D Rest cong'!CC16 -> -0.8143631925 | CH16: ='D Rest incong'!CD16-'D Rest cong'!CD16 -> -0.1600083703 | CI16: ='D Rest incong'!CE16-'D Rest cong'!CE16 -> -0.08678482096 | CJ16: ='D Rest incong'!CF16-'D Rest cong'!CF16 -> -0.07153022169 | CK16: ='D Rest incong'!CG16-'D Rest cong'!CG16 -> -0.2364305874 | CL16: ='D Rest incong'!CH16-'D Rest cong'!CH16 -> -0.6548023151 | CM16: ='D Rest incong'!CI16-'D Rest cong'!CI16 -> -0.07321319421 | CN16: ='D Rest incong'!CJ16-'D Rest cong'!CJ16 -> -0.4842617529 | CO16: ='D Rest incong'!CK16-'D Rest cong'!CK16 -> -0.6076724484 | CP16: ='D Rest incong'!CL16-'D Rest cong'!CL16 -> 0.01396968844 | CQ16: ='D Rest incong'!CM16-'D Rest cong'!CM16 -> 0.06928168079 | CR16: ='D Rest incong'!CN16-'D Rest cong'!CN16 -> 0.1441722023 | CS16: ='D Rest incong'!CO16-'D Rest cong'!CO16 -> 0.001369339249 | CT16: ='D Rest incong'!CP16-'D Rest cong'!CP16 -> -0.3337423282 | CU16: ='D Rest incong'!CQ16-'D Rest cong'!CQ16 -> 0.05100893422 | CV16: ='D Rest incong'!CR16-'D Rest cong'!CR16 -> -0.1387160725 | CW16: ='D Rest incong'!CS16-'D Rest cong'!CS16 -> -0.1862571004
A17: FH101 | B17: -2.050774721 | C17: totalHb-post-A6 | D17: 2.929377067 | E17: oxyHb-post-A5 | F17: ='D Rest incong'!B17-'D Rest cong'!B17 -> -0.5400415109 | G17: ='D Rest incong'!C17-'D Rest cong'!C17 -> -0.3461358164 | H17: ='D Rest incong'!D17-'D Rest cong'!D17 -> -0.6558082199 | I17: ='D Rest incong'!E17-'D Rest cong'!E17 -> 0.05576674069 | J17: ='D Rest incong'!F17-'D Rest cong'!F17 -> -0.3350589425 | K17: ='D Rest incong'!G17-'D Rest cong'!G17 -> -0.4332295785 | L17: ='D Rest incong'!H17-'D Rest cong'!H17 -> -0.577697622 | M17: ='D Rest incong'!I17-'D Rest cong'!I17 -> 0.2853935026 | N17: ='D Rest incong'!J17-'D Rest cong'!J17 -> 0.6962538573 | O17: ='D Rest incong'!K17-'D Rest cong'!K17 -> -0.09035301313 | P17: ='D Rest incong'!L17-'D Rest cong'!L17 -> -0.2087988017 | Q17: ='D Rest incong'!M17-'D Rest cong'!M17 -> 0.423587083 | R17: ='D Rest incong'!N17-'D Rest cong'!N17 -> 0.4773187272 | S17: ='D Rest incong'!O17-'D Rest cong'!O17 -> -0.2316671241 | T17: ='D Rest incong'!P17-'D Rest cong'!P17 -> -0.4752453988 | U17: ='D Rest incong'!Q17-'D Rest cong'!Q17 -> 0.4659923525 | V17: ='D Rest incong'!R17-'D Rest cong'!R17 -> -1.101647489 | W17: ='D Rest incong'!S17-'D Rest cong'!S17 -> -0.4625799587 | X17: ='D Rest incong'!T17-'D Rest cong'!T17 -> -0.9922060879 | Y17: ='D Rest incong'!U17-'D Rest cong'!U17 -> -0.1577845305 | Z17: ='D Rest incong'!V17-'D Rest cong'!V17 -> -1.245382536 | AA17: ='D Rest incong'!W17-'D Rest cong'!W17 -> -0.440502713 | AB17: ='D Rest incong'!X17-'D Rest cong'!X17 -> -1.136267982 | AC17: ='D Rest incong'!Y17-'D Rest cong'!Y17 -> -0.2916425199 | AD17: ='D Rest incong'!Z17-'D Rest cong'!Z17 -> -0.3291963055 | AE17: ='D Rest incong'!AA17-'D Rest cong'!AA17 -> 0.05056776411 | AF17: ='D Rest incong'!AB17-'D Rest cong'!AB17 -> -0.3999080525 | AG17: ='D Rest incong'!AC17-'D Rest cong'!AC17 -> -0.4202729503 | AH17: ='D Rest incong'!AD17-'D Rest cong'!AD17 -> -1.044201182 | AI17: ='D Rest incong'!AE17-'D Rest cong'!AE17 -> 0.006902576682 | AJ17: ='D Rest incong'!AF17-'D Rest cong'!AF17 -> -1.149464676 | AK17: ='D Rest incong'!AG17-'D Rest cong'!AG17 -> -0.984675552 | AL17: ='D Rest incong'!AH17-'D Rest cong'!AH17 -> 1.417020364 | AM17: ='D Rest incong'!AI17-'D Rest cong'!AI17 -> -0.371818958 | AN17: ='D Rest incong'!AJ17-'D Rest cong'!AJ17 -> -0.2705068505 | AO17: ='D Rest incong'!AK17-'D Rest cong'!AK17 -> 0.9836979497 | AP17: ='D Rest incong'!AL17-'D Rest cong'!AL17 -> 2.929377067 | AQ17: ='D Rest incong'!AM17-'D Rest cong'!AM17 -> -0.9383275868 | AR17: ='D Rest incong'!AN17-'D Rest cong'!AN17 -> 0.02915199247 | AS17: ='D Rest incong'!AO17-'D Rest cong'!AO17 -> 2.298586573 | AT17: ='D Rest incong'!AP17-'D Rest cong'!AP17 -> -1.048343696 | AU17: ='D Rest incong'!AQ17-'D Rest cong'!AQ17 -> 0.09870478678 | AV17: ='D Rest incong'!AR17-'D Rest cong'!AR17 -> -1.405780677 | AW17: ='D Rest incong'!AS17-'D Rest cong'!AS17 -> -0.9427709641 | AX17: ='D Rest incong'!AT17-'D Rest cong'!AT17 -> -0.9606974709 | AY17: ='D Rest incong'!AU17-'D Rest cong'!AU17 -> -0.1713422525 | AZ17: ='D Rest incong'!AV17-'D Rest cong'!AV17 -> -2.050774721 | BA17: ='D Rest incong'!AW17-'D Rest cong'!AW17 -> -1.019365299 | BB17: ='D Rest incong'!AX17-'D Rest cong'!AX17 -> 1.134594005 | BC17: ='D Rest incong'!AY17-'D Rest cong'!AY17 -> -0.2689173474 | BD17: ='D Rest incong'!AZ17-'D Rest cong'!AZ17 -> 0.5236863582 | BE17: ='D Rest incong'!BA17-'D Rest cong'!BA17 -> 0.7049366918 | BF17: ='D Rest incong'!BB17-'D Rest cong'!BB17 -> 0.9601545321 | BG17: ='D Rest incong'!BC17-'D Rest cong'!BC17 -> -0.3310550521 | BH17: ='D Rest incong'!BD17-'D Rest cong'!BD17 -> 0.4965028494 | BI17: ='D Rest incong'!BE17-'D Rest cong'!BE17 -> 0.8187023633 | BJ17: ='D Rest incong'!BF17-'D Rest cong'!BF17 -> 0.2591767355 | BK17: ='D Rest incong'!BG17-'D Rest cong'!BG17 -> 0.003267881037 | BL17: ='D Rest incong'!BH17-'D Rest cong'!BH17 -> 0.3116832782 | BM17: ='D Rest incong'!BI17-'D Rest cong'!BI17 -> 0.4909050201 | BN17: ='D Rest incong'!BJ17-'D Rest cong'!BJ17 -> 1.389488297 | BO17: ='D Rest incong'!BK17-'D Rest cong'!BK17 -> -0.05227592509 | BP17: ='D Rest incong'!BL17-'D Rest cong'!BL17 -> 0.6543989446 | BQ17: ='D Rest incong'!BM17-'D Rest cong'!BM17 -> 0.918784159 | BR17: ='D Rest incong'!BN17-'D Rest cong'!BN17 -> 1.129612217 | BS17: ='D Rest incong'!BO17-'D Rest cong'!BO17 -> 0.5854920825 | BT17: ='D Rest incong'!BP17-'D Rest cong'!BP17 -> 0.1091635612 | BU17: ='D Rest incong'!BQ17-'D Rest cong'!BQ17 -> -0.04492796594 | BV17: ='D Rest incong'!BR17-'D Rest cong'!BR17 -> 0.6502715285 | BW17: ='D Rest incong'!BS17-'D Rest cong'!BS17 -> 0.5548126958 | BX17: ='D Rest incong'!BT17-'D Rest cong'!BT17 -> -0.2063807382 | BY17: ='D Rest incong'!BU17-'D Rest cong'!BU17 -> -0.2583271833 | BZ17: ='D Rest incong'!BV17-'D Rest cong'!BV17 -> -0.3832059885 | CA17: ='D Rest incong'!BW17-'D Rest cong'!BW17 -> 0.7187984796 | CB17: ='D Rest incong'!BX17-'D Rest cong'!BX17 -> -0.5282791912 | CC17: ='D Rest incong'!BY17-'D Rest cong'!BY17 -> -1.045940391 | CD17: ='D Rest incong'!BZ17-'D Rest cong'!BZ17 -> 0.2038792328 | CE17: ='D Rest incong'!CA17-'D Rest cong'!CA17 -> 0.6147144745 | CF17: ='D Rest incong'!CB17-'D Rest cong'!CB17 -> -0.2241685786 | CG17: ='D Rest incong'!CC17-'D Rest cong'!CC17 -> -0.5593898948 | CH17: ='D Rest incong'!CD17-'D Rest cong'!CD17 -> -0.6077622867 | CI17: ='D Rest incong'!CE17-'D Rest cong'!CE17 -> 0.4628308402 | CJ17: ='D Rest incong'!CF17-'D Rest cong'!CF17 -> -0.5821804674 | CK17: ='D Rest incong'!CG17-'D Rest cong'!CG17 -> -0.9491758444 | CL17: ='D Rest incong'!CH17-'D Rest cong'!CH17 -> -0.7380897878 | CM17: ='D Rest incong'!CI17-'D Rest cong'!CI17 -> 0.4958441544 | CN17: ='D Rest incong'!CJ17-'D Rest cong'!CJ17 -> -0.6121615343 | CO17: ='D Rest incong'!CK17-'D Rest cong'!CK17 -> -1.028047946 | CP17: ='D Rest incong'!CL17-'D Rest cong'!CL17 -> -0.08651174692 | CQ17: ='D Rest incong'!CM17-'D Rest cong'!CM17 -> 0.0308178471 | CR17: ='D Rest incong'!CN17-'D Rest cong'!CN17 -> -0.0552236041 | CS17: ='D Rest incong'!CO17-'D Rest cong'!CO17 -> -0.1307465504 | CT17: ='D Rest incong'!CP17-'D Rest cong'!CP17 -> -0.4129794453 | CU17: ='D Rest incong'!CQ17-'D Rest cong'!CQ17 -> 0.1700100943 | CV17: ='D Rest incong'!CR17-'D Rest cong'!CR17 -> -0.1500864861 | CW17: ='D Rest incong'!CS17-'D Rest cong'!CS17 -> -0.4902388216
A18: JF102 | B18: -1.781830868 | C18: oxyHb-post-B8 | D18: 0.8605374152 | E18: diffHb-task-B6 | F18: ='D Rest incong'!B18-'D Rest cong'!B18 -> 0.1618676217 | G18: ='D Rest incong'!C18-'D Rest cong'!C18 -> 0.4231524192 | H18: ='D Rest incong'!D18-'D Rest cong'!D18 -> -0.06553162797 | I18: ='D Rest incong'!E18-'D Rest cong'!E18 -> -0.39322004 | J18: ='D Rest incong'!F18-'D Rest cong'!F18 -> -0.8367001363 | K18: ='D Rest incong'!G18-'D Rest cong'!G18 -> 0.6499648424 | L18: ='D Rest incong'!H18-'D Rest cong'!H18 -> -0.6112221388 | M18: ='D Rest incong'!I18-'D Rest cong'!I18 -> -1.290272554 | N18: ='D Rest incong'!J18-'D Rest cong'!J18 -> -0.5197361843 | O18: ='D Rest incong'!K18-'D Rest cong'!K18 -> -0.2172084942 | P18: ='D Rest incong'!L18-'D Rest cong'!L18 -> -0.3535925548 | Q18: ='D Rest incong'!M18-'D Rest cong'!M18 -> -0.2597361915 | R18: ='D Rest incong'!N18-'D Rest cong'!N18 -> -0.6715997107 | S18: ='D Rest incong'!O18-'D Rest cong'!O18 -> -0.1138439999 | T18: ='D Rest incong'!P18-'D Rest cong'!P18 -> -0.4402092573 | U18: ='D Rest incong'!Q18-'D Rest cong'!Q18 -> -0.4790007183 | V18: ='D Rest incong'!R18-'D Rest cong'!R18 -> 0.2791529467 | W18: ='D Rest incong'!S18-'D Rest cong'!S18 -> -0.2758787271 | X18: ='D Rest incong'!T18-'D Rest cong'!T18 -> -0.04060271604 | Y18: ='D Rest incong'!U18-'D Rest cong'!U18 -> 0.5571440701 | Z18: ='D Rest incong'!V18-'D Rest cong'!V18 -> -0.07065932215 | AA18: ='D Rest incong'!W18-'D Rest cong'!W18 -> -0.1575853793 | AB18: ='D Rest incong'!X18-'D Rest cong'!X18 -> -0.1133965989 | AC18: ='D Rest incong'!Y18-'D Rest cong'!Y18 -> 0.2533768823 | AD18: ='D Rest incong'!Z18-'D Rest cong'!Z18 -> -0.04642139914 | AE18: ='D Rest incong'!AA18-'D Rest cong'!AA18 -> 0.4537287443 | AF18: ='D Rest incong'!AB18-'D Rest cong'!AB18 -> -0.2434456587 | AG18: ='D Rest incong'!AC18-'D Rest cong'!AC18 -> -0.3364373652 | AH18: ='D Rest incong'!AD18-'D Rest cong'!AD18 -> -0.8331671805 | AI18: ='D Rest incong'!AE18-'D Rest cong'!AE18 -> 0.5499719218 | AJ18: ='D Rest incong'!AF18-'D Rest cong'!AF18 -> -0.5645662208 | AK18: ='D Rest incong'!AG18-'D Rest cong'!AG18 -> -0.8328061524 | AL18: ='D Rest incong'!AH18-'D Rest cong'!AH18 -> -0.4241840649 | AM18: ='D Rest incong'!AI18-'D Rest cong'!AI18 -> -0.1970974672 | AN18: ='D Rest incong'!AJ18-'D Rest cong'!AJ18 -> -0.5282684745 | AO18: ='D Rest incong'!AK18-'D Rest cong'!AK18 -> -0.1513405329 | AP18: ='D Rest incong'!AL18-'D Rest cong'!AL18 -> -0.8029268176 | AQ18: ='D Rest incong'!AM18-'D Rest cong'!AM18 -> -0.100608332 | AR18: ='D Rest incong'!AN18-'D Rest cong'!AN18 -> -0.7255801654 | AS18: ='D Rest incong'!AO18-'D Rest cong'!AO18 -> -0.5222779967 | AT18: ='D Rest incong'!AP18-'D Rest cong'!AP18 -> -0.4144724285 | AU18: ='D Rest incong'!AQ18-'D Rest cong'!AQ18 -> -0.5084069725 | AV18: ='D Rest incong'!AR18-'D Rest cong'!AR18 -> -1.198422659 | AW18: ='D Rest incong'!AS18-'D Rest cong'!AS18 -> 0.108601833 | AX18: ='D Rest incong'!AT18-'D Rest cong'!AT18 -> -0.9083760689 | AY18: ='D Rest incong'!AU18-'D Rest cong'!AU18 -> -0.4561756086 | AZ18: ='D Rest incong'!AV18-'D Rest cong'!AV18 -> -1.526260772 | BA18: ='D Rest incong'!AW18-'D Rest cong'!AW18 -> -0.2694463596 | BB18: ='D Rest incong'!AX18-'D Rest cong'!AX18 -> 0.02018578456 | BC18: ='D Rest incong'!AY18-'D Rest cong'!AY18 -> 0.2747638486 | BD18: ='D Rest incong'!AZ18-'D Rest cong'!AZ18 -> -0.3673667007 | BE18: ='D Rest incong'!BA18-'D Rest cong'!BA18 -> -0.4250296373 | BF18: ='D Rest incong'!BB18-'D Rest cong'!BB18 -> -0.8707065177 | BG18: ='D Rest incong'!BC18-'D Rest cong'!BC18 -> 0.4298404609 | BH18: ='D Rest incong'!BD18-'D Rest cong'!BD18 -> -0.8555378244 | BI18: ='D Rest incong'!BE18-'D Rest cong'!BE18 -> -1.168792072 | BJ18: ='D Rest incong'!BF18-'D Rest cong'!BF18 -> -0.7575924675 | BK18: ='D Rest incong'!BG18-'D Rest cong'!BG18 -> -0.3366296177 | BL18: ='D Rest incong'!BH18-'D Rest cong'!BH18 -> -0.4823694507 | BM18: ='D Rest incong'!BI18-'D Rest cong'!BI18 -> -0.2300902516 | BN18: ='D Rest incong'!BJ18-'D Rest cong'!BJ18 -> -1.776121893 | BO18: ='D Rest incong'!BK18-'D Rest cong'!BK18 -> -0.1658228439 | BP18: ='D Rest incong'!BL18-'D Rest cong'!BL18 -> -1.012468618 | BQ18: ='D Rest incong'!BM18-'D Rest cong'!BM18 -> -1.046966755 | BR18: ='D Rest incong'!BN18-'D Rest cong'!BN18 -> -0.5349201883 | BS18: ='D Rest incong'!BO18-'D Rest cong'!BO18 -> 0.6661977042 | BT18: ='D Rest incong'!BP18-'D Rest cong'!BP18 -> -0.4153034598 | BU18: ='D Rest incong'!BQ18-'D Rest cong'!BQ18 -> -0.8322655938 | BV18: ='D Rest incong'!BR18-'D Rest cong'!BR18 -> -0.157369774 | BW18: ='D Rest incong'!BS18-'D Rest cong'!BS18 -> 0.5833345016 | BX18: ='D Rest incong'!BT18-'D Rest cong'!BT18 -> -0.2658175878 | BY18: ='D Rest incong'!BU18-'D Rest cong'!BU18 -> -0.5417923342 | BZ18: ='D Rest incong'!BV18-'D Rest cong'!BV18 -> 0.1931775769 | CA18: ='D Rest incong'!BW18-'D Rest cong'!BW18 -> -0.6152426624 | CB18: ='D Rest incong'!BX18-'D Rest cong'!BX18 -> 0.275821527 | CC18: ='D Rest incong'!BY18-'D Rest cong'!BY18 -> 0.8605374152 | CD18: ='D Rest incong'!BZ18-'D Rest cong'!BZ18 -> -0.4607515867 | CE18: ='D Rest incong'!CA18-'D Rest cong'!CA18 -> -0.4943539155 | CF18: ='D Rest incong'!CB18-'D Rest cong'!CB18 -> 0.03453170128 | CG18: ='D Rest incong'!CC18-'D Rest cong'!CC18 -> 0.4287693653 | CH18: ='D Rest incong'!CD18-'D Rest cong'!CD18 -> -0.1748367807 | CI18: ='D Rest incong'!CE18-'D Rest cong'!CE18 -> -0.02813324202 | CJ18: ='D Rest incong'!CF18-'D Rest cong'!CF18 -> -0.3809904155 | CK18: ='D Rest incong'!CG18-'D Rest cong'!CG18 -> 0.04366569217 | CL18: ='D Rest incong'!CH18-'D Rest cong'!CH18 -> -0.2908828542 | CM18: ='D Rest incong'!CI18-'D Rest cong'!CI18 -> -0.09942012056 | CN18: ='D Rest incong'!CJ18-'D Rest cong'!CJ18 -> -0.5221897 | CO18: ='D Rest incong'!CK18-'D Rest cong'!CK18 -> 0.06268970636 | CP18: ='D Rest incong'!CL18-'D Rest cong'!CL18 -> -0.9866901967 | CQ18: ='D Rest incong'!CM18-'D Rest cong'!CM18 -> -0.2220729397 | CR18: ='D Rest incong'!CN18-'D Rest cong'!CN18 -> -0.4037038589 | CS18: ='D Rest incong'!CO18-'D Rest cong'!CO18 -> -0.5105030486 | CT18: ='D Rest incong'!CP18-'D Rest cong'!CP18 -> -1.781830868 | CU18: ='D Rest incong'!CQ18-'D Rest cong'!CQ18 -> -0.09565183644 | CV18: ='D Rest incong'!CR18-'D Rest cong'!CR18 -> -0.8123059738 | CW18: ='D Rest incong'!CS18-'D Rest cong'!CS18 -> -1.102101633
A19: JL101 | B19: -2.526188577 | C19: totalHb-post-B2 | D19: 1.957760039 | E19: oxyHb-task-A6 | F19: ='D Rest incong'!B19-'D Rest cong'!B19 -> -0.4439205865 | G19: ='D Rest incong'!C19-'D Rest cong'!C19 -> -0.1126535164 | H19: ='D Rest incong'!D19-'D Rest cong'!D19 -> -0.1829481473 | I19: ='D Rest incong'!E19-'D Rest cong'!E19 -> 0.09723777271 | J19: ='D Rest incong'!F19-'D Rest cong'!F19 -> -1.237679518 | K19: ='D Rest incong'!G19-'D Rest cong'!G19 -> -0.1164426356 | L19: ='D Rest incong'!H19-'D Rest cong'!H19 -> -0.7359908648 | M19: ='D Rest incong'!I19-'D Rest cong'!I19 -> -0.3587707887 | N19: ='D Rest incong'!J19-'D Rest cong'!J19 -> -0.371256074 | O19: ='D Rest incong'!K19-'D Rest cong'!K19 -> -0.7756368516 | P19: ='D Rest incong'!L19-'D Rest cong'!L19 -> -0.670194059 | Q19: ='D Rest incong'!M19-'D Rest cong'!M19 -> 0.3250966244 | R19: ='D Rest incong'!N19-'D Rest cong'!N19 -> -1.445218095 | S19: ='D Rest incong'!O19-'D Rest cong'!O19 -> -0.9046871855 | T19: ='D Rest incong'!P19-'D Rest cong'!P19 -> -1.613967226 | U19: ='D Rest incong'!Q19-'D Rest cong'!Q19 -> -0.2403005578 | V19: ='D Rest incong'!R19-'D Rest cong'!R19 -> 0.03539175219 | W19: ='D Rest incong'!S19-'D Rest cong'!S19 -> -0.2445591943 | X19: ='D Rest incong'!T19-'D Rest cong'!T19 -> 0.01720077783 | Y19: ='D Rest incong'!U19-'D Rest cong'!U19 -> 0.1143959654 | Z19: ='D Rest incong'!V19-'D Rest cong'!V19 -> -0.4794443447 | AA19: ='D Rest incong'!W19-'D Rest cong'!W19 -> 0.09626189466 | AB19: ='D Rest incong'!X19-'D Rest cong'!X19 -> -0.1223952153 | AC19: ='D Rest incong'!Y19-'D Rest cong'!Y19 -> -0.6034576976 | AD19: ='D Rest incong'!Z19-'D Rest cong'!Z19 -> -0.5651754112 | AE19: ='D Rest incong'!AA19-'D Rest cong'!AA19 -> -0.6690682475 | AF19: ='D Rest incong'!AB19-'D Rest cong'!AB19 -> -0.3052763076 | AG19: ='D Rest incong'!AC19-'D Rest cong'!AC19 -> -0.08341797067 | AH19: ='D Rest incong'!AD19-'D Rest cong'!AD19 -> -0.5761025599 | AI19: ='D Rest incong'!AE19-'D Rest cong'!AE19 -> -0.4468161804 | AJ19: ='D Rest incong'!AF19-'D Rest cong'!AF19 -> -0.07545766132 | AK19: ='D Rest incong'!AG19-'D Rest cong'!AG19 -> -0.2905926967 | AL19: ='D Rest incong'!AH19-'D Rest cong'!AH19 -> 1.232857824 | AM19: ='D Rest incong'!AI19-'D Rest cong'!AI19 -> 0.5774146979 | AN19: ='D Rest incong'!AJ19-'D Rest cong'!AJ19 -> 0.4657498879 | AO19: ='D Rest incong'!AK19-'D Rest cong'!AK19 -> 0.05905648711 | AP19: ='D Rest incong'!AL19-'D Rest cong'!AL19 -> 1.902566796 | AQ19: ='D Rest incong'!AM19-'D Rest cong'!AM19 -> 0.5457213902 | AR19: ='D Rest incong'!AN19-'D Rest cong'!AN19 -> 0.8356207471 | AS19: ='D Rest incong'!AO19-'D Rest cong'!AO19 -> 0.4277948418 | AT19: ='D Rest incong'!AP19-'D Rest cong'!AP19 -> 1.957760039 | AU19: ='D Rest incong'!AQ19-'D Rest cong'!AQ19 -> -0.07421641002 | AV19: ='D Rest incong'!AR19-'D Rest cong'!AR19 -> 0.03567170125 | AW19: ='D Rest incong'!AS19-'D Rest cong'!AS19 -> 1.11320457 | AX19: ='D Rest incong'!AT19-'D Rest cong'!AT19 -> 0.7767645338 | AY19: ='D Rest incong'!AU19-'D Rest cong'!AU19 -> -0.183578334 | AZ19: ='D Rest incong'!AV19-'D Rest cong'!AV19 -> -0.8497426108 | BA19: ='D Rest incong'!AW19-'D Rest cong'!AW19 -> 0.5744460401 | BB19: ='D Rest incong'!AX19-'D Rest cong'!AX19 -> 0.2585012731 | BC19: ='D Rest incong'!AY19-'D Rest cong'!AY19 -> 0.6912908877 | BD19: ='D Rest incong'!AZ19-'D Rest cong'!AZ19 -> -0.005088094406 | BE19: ='D Rest incong'!BA19-'D Rest cong'!BA19 -> -0.4892219209 | BF19: ='D Rest incong'!BB19-'D Rest cong'!BB19 -> 0.2180812983 | BG19: ='D Rest incong'!BC19-'D Rest cong'!BC19 -> 0.7263522742 | BH19: ='D Rest incong'!BD19-'D Rest cong'!BD19 -> 0.0114282671 | BI19: ='D Rest incong'!BE19-'D Rest cong'!BE19 -> -0.5541504224 | BJ19: ='D Rest incong'!BF19-'D Rest cong'!BF19 -> -0.3566344987 | BK19: ='D Rest incong'!BG19-'D Rest cong'!BG19 -> -0.727072708 | BL19: ='D Rest incong'!BH19-'D Rest cong'!BH19 -> -1.135149719 | BM19: ='D Rest incong'!BI19-'D Rest cong'!BI19 -> 0.7201351462 | BN19: ='D Rest incong'!BJ19-'D Rest cong'!BJ19 -> -2.091221044 | BO19: ='D Rest incong'!BK19-'D Rest cong'!BK19 -> -0.5907356943 | BP19: ='D Rest incong'!BL19-'D Rest cong'!BL19 -> -2.526188577 | BQ19: ='D Rest incong'!BM19-'D Rest cong'!BM19 -> -0.7059822731 | BR19: ='D Rest incong'!BN19-'D Rest cong'!BN19 -> 0.01643100668 | BS19: ='D Rest incong'!BO19-'D Rest cong'!BO19 -> -0.2224757314 | BT19: ='D Rest incong'!BP19-'D Rest cong'!BP19 -> -0.08543053184 | BU19: ='D Rest incong'!BQ19-'D Rest cong'!BQ19 -> 0.458205775 | BV19: ='D Rest incong'!BR19-'D Rest cong'!BR19 -> 0.1039473127 | BW19: ='D Rest incong'!BS19-'D Rest cong'!BS19 -> -0.1239918776 | BX19: ='D Rest incong'!BT19-'D Rest cong'!BT19 -> 0.119535786 | BY19: ='D Rest incong'!BU19-'D Rest cong'!BU19 -> 0.4318965566 | BZ19: ='D Rest incong'!BV19-'D Rest cong'!BV19 -> -0.287122624 | CA19: ='D Rest incong'!BW19-'D Rest cong'!BW19 -> 0.7972375659 | CB19: ='D Rest incong'!BX19-'D Rest cong'!BX19 -> -0.7432980822 | CC19: ='D Rest incong'!BY19-'D Rest cong'!BY19 -> -0.7988012321 | CD19: ='D Rest incong'!BZ19-'D Rest cong'!BZ19 -> -0.3201315676 | CE19: ='D Rest incong'!CA19-'D Rest cong'!CA19 -> 0.890635106 | CF19: ='D Rest incong'!CB19-'D Rest cong'!CB19 -> -0.6699670969 | CG19: ='D Rest incong'!CC19-'D Rest cong'!CC19 -> -0.9107641439 | CH19: ='D Rest incong'!CD19-'D Rest cong'!CD19 -> 0.6435528664 | CI19: ='D Rest incong'!CE19-'D Rest cong'!CE19 -> -0.3240192828 | CJ19: ='D Rest incong'!CF19-'D Rest cong'!CF19 -> 0.4153503438 | CK19: ='D Rest incong'!CG19-'D Rest cong'!CG19 -> 0.5227212902 | CL19: ='D Rest incong'!CH19-'D Rest cong'!CH19 -> 0.3682584305 | CM19: ='D Rest incong'!CI19-'D Rest cong'!CI19 -> -0.1333328644 | CN19: ='D Rest incong'!CJ19-'D Rest cong'!CJ19 -> 0.4110392366 | CO19: ='D Rest incong'!CK19-'D Rest cong'!CK19 -> 0.1614802418 | CP19: ='D Rest incong'!CL19-'D Rest cong'!CL19 -> -0.5278289805 | CQ19: ='D Rest incong'!CM19-'D Rest cong'!CM19 -> 0.3356582919 | CR19: ='D Rest incong'!CN19-'D Rest cong'!CN19 -> -0.2949850309 | CS19: ='D Rest incong'!CO19-'D Rest cong'!CO19 -> -0.7322542289 | CT19: ='D Rest incong'!CP19-'D Rest cong'!CP19 -> -0.9786099346 | CU19: ='D Rest incong'!CQ19-'D Rest cong'!CQ19 -> 0.5934777043 | CV19: ='D Rest incong'!CR19-'D Rest cong'!CR19 -> -0.2901632499 | CW19: ='D Rest incong'!CS19-'D Rest cong'!CS19 -> -1.235995972
A20: KK101 | B20: -4.912181442 | C20: totalHb-post-A6 | D20: 1.074060246 | E20: diffHb-task-B8 | F20: ='D Rest incong'!B20-'D Rest cong'!B20 -> -1.019047231 | G20: ='D Rest incong'!C20-'D Rest cong'!C20 -> -0.2932270958 | H20: ='D Rest incong'!D20-'D Rest cong'!D20 -> -0.3577785837 | I20: ='D Rest incong'!E20-'D Rest cong'!E20 -> -0.3101955218 | J20: ='D Rest incong'!F20-'D Rest cong'!F20 -> -1.212305174 | K20: ='D Rest incong'!G20-'D Rest cong'!G20 -> -0.3108624527 | L20: ='D Rest incong'!H20-'D Rest cong'!H20 -> -0.5701281682 | M20: ='D Rest incong'!I20-'D Rest cong'!I20 -> -0.4331337755 | N20: ='D Rest incong'!J20-'D Rest cong'!J20 -> 0.2439618967 | O20: ='D Rest incong'!K20-'D Rest cong'!K20 -> 0.624768378 | P20: ='D Rest incong'!L20-'D Rest cong'!L20 -> 0.01602677 | Q20: ='D Rest incong'!M20-'D Rest cong'!M20 -> -0.5205583679 | R20: ='D Rest incong'!N20-'D Rest cong'!N20 -> 0.07291466246 | S20: ='D Rest incong'!O20-'D Rest cong'!O20 -> 0.7814411977 | T20: ='D Rest incong'!P20-'D Rest cong'!P20 -> 0.05706335238 | U20: ='D Rest incong'!Q20-'D Rest cong'!Q20 -> -0.7802433519 | V20: ='D Rest incong'!R20-'D Rest cong'!R20 -> -0.243639916 | W20: ='D Rest incong'!S20-'D Rest cong'!S20 -> 0.4891424095 | X20: ='D Rest incong'!T20-'D Rest cong'!T20 -> -0.268003061 | Y20: ='D Rest incong'!U20-'D Rest cong'!U20 -> -0.7970007067 | Z20: ='D Rest incong'!V20-'D Rest cong'!V20 -> -1.290720239 | AA20: ='D Rest incong'!W20-'D Rest cong'!W20 -> 0.6700716689 | AB20: ='D Rest incong'!X20-'D Rest cong'!X20 -> -0.7567615876 | AC20: ='D Rest incong'!Y20-'D Rest cong'!Y20 -> -1.611386023 | AD20: ='D Rest incong'!Z20-'D Rest cong'!Z20 -> -0.298881721 | AE20: ='D Rest incong'!AA20-'D Rest cong'!AA20 -> 0.2750303124 | AF20: ='D Rest incong'!AB20-'D Rest cong'!AB20 -> -0.114892291 | AG20: ='D Rest incong'!AC20-'D Rest cong'!AC20 -> -0.4748572215 | AH20: ='D Rest incong'!AD20-'D Rest cong'!AD20 -> -0.8049762547 | AI20: ='D Rest incong'!AE20-'D Rest cong'!AE20 -> 0.3373105295 | AJ20: ='D Rest incong'!AF20-'D Rest cong'!AF20 -> -0.3484623226 | AK20: ='D Rest incong'!AG20-'D Rest cong'!AG20 -> -0.7838168479 | AL20: ='D Rest incong'!AH20-'D Rest cong'!AH20 -> 0.7802095256 | AM20: ='D Rest incong'!AI20-'D Rest cong'!AI20 -> 0.6486444961 | AN20: ='D Rest incong'!AJ20-'D Rest cong'!AJ20 -> -0.02276385423 | AO20: ='D Rest incong'!AK20-'D Rest cong'!AK20 -> -0.1409425943 | AP20: ='D Rest incong'!AL20-'D Rest cong'!AL20 -> 0.4621997068 | AQ20: ='D Rest incong'!AM20-'D Rest cong'!AM20 -> 0.6761130184 | AR20: ='D Rest incong'!AN20-'D Rest cong'!AN20 -> -0.1412888552 | AS20: ='D Rest incong'!AO20-'D Rest cong'!AO20 -> -0.3107103502 | AT20: ='D Rest incong'!AP20-'D Rest cong'!AP20 -> -3.0670178 | AU20: ='D Rest incong'!AQ20-'D Rest cong'!AQ20 -> -1.151709306 | AV20: ='D Rest incong'!AR20-'D Rest cong'!AR20 -> -2.218545545 | AW20: ='D Rest incong'!AS20-'D Rest cong'!AS20 -> -0.2619143411 | AX20: ='D Rest incong'!AT20-'D Rest cong'!AT20 -> -4.194563084 | AY20: ='D Rest incong'!AU20-'D Rest cong'!AU20 -> -2.21149606 | AZ20: ='D Rest incong'!AV20-'D Rest cong'!AV20 -> -4.912181442 | BA20: ='D Rest incong'!AW20-'D Rest cong'!AW20 -> -0.9151382515 | BB20: ='D Rest incong'!AX20-'D Rest cong'!AX20 -> -1.458491201 | BC20: ='D Rest incong'!AY20-'D Rest cong'!AY20 -> -0.172267419 | BD20: ='D Rest incong'!AZ20-'D Rest cong'!AZ20 -> -1.388995654 | BE20: ='D Rest incong'!BA20-'D Rest cong'!BA20 -> -1.129598871 | BF20: ='D Rest incong'!BB20-'D Rest cong'!BB20 -> -2.103816425 | BG20: ='D Rest incong'!BC20-'D Rest cong'!BC20 -> -0.3511500588 | BH20: ='D Rest incong'!BD20-'D Rest cong'!BD20 -> -1.993705054 | BI20: ='D Rest incong'!BE20-'D Rest cong'!BE20 -> -1.366509237 | BJ20: ='D Rest incong'!BF20-'D Rest cong'!BF20 -> -0.445478674 | BK20: ='D Rest incong'!BG20-'D Rest cong'!BG20 -> -0.3539831177 | BL20: ='D Rest incong'!BH20-'D Rest cong'!BH20 -> -0.3792000818 | BM20: ='D Rest incong'!BI20-'D Rest cong'!BI20 -> -0.1124421672 | BN20: ='D Rest incong'!BJ20-'D Rest cong'!BJ20 -> -1.536645062 | BO20: ='D Rest incong'!BK20-'D Rest cong'!BK20 -> 0.1075056735 | BP20: ='D Rest incong'!BL20-'D Rest cong'!BL20 -> -0.9239299729 | BQ20: ='D Rest incong'!BM20-'D Rest cong'!BM20 -> -1.425503203 | BR20: ='D Rest incong'!BN20-'D Rest cong'!BN20 -> -0.08130507615 | BS20: ='D Rest incong'!BO20-'D Rest cong'!BO20 -> 0.01137218767 | BT20: ='D Rest incong'!BP20-'D Rest cong'!BP20 -> 0.08745048264 | BU20: ='D Rest incong'!BQ20-'D Rest cong'!BQ20 -> -0.1395778852 | BV20: ='D Rest incong'!BR20-'D Rest cong'!BR20 -> -0.007301591921 | BW20: ='D Rest incong'!BS20-'D Rest cong'!BS20 -> -0.09316146291 | BX20: ='D Rest incong'!BT20-'D Rest cong'!BT20 -> 0.04058865219 | BY20: ='D Rest incong'!BU20-'D Rest cong'!BU20 -> 0.005937268831 | BZ20: ='D Rest incong'!BV20-'D Rest cong'!BV20 -> -1.393222111 | CA20: ='D Rest incong'!BW20-'D Rest cong'!BW20 -> 0.07474050496 | CB20: ='D Rest incong'!BX20-'D Rest cong'!BX20 -> -0.6881472866 | CC20: ='D Rest incong'!BY20-'D Rest cong'!BY20 -> -0.5259097394 | CD20: ='D Rest incong'!BZ20-'D Rest cong'!BZ20 -> -1.638071701 | CE20: ='D Rest incong'!CA20-'D Rest cong'!CA20 -> 0.1759177363 | CF20: ='D Rest incong'!CB20-'D Rest cong'!CB20 -> -0.7275527986 | CG20: ='D Rest incong'!CC20-'D Rest cong'!CC20 -> -0.7558838623 | CH20: ='D Rest incong'!CD20-'D Rest cong'!CD20 -> -0.2824214515 | CI20: ='D Rest incong'!CE20-'D Rest cong'!CE20 -> 0.2081348373 | CJ20: ='D Rest incong'!CF20-'D Rest cong'!CF20 -> -0.138927693 | CK20: ='D Rest incong'!CG20-'D Rest cong'!CG20 -> 0.001686135154 | CL20: ='D Rest incong'!CH20-'D Rest cong'!CH20 -> -0.9935654078 | CM20: ='D Rest incong'!CI20-'D Rest cong'!CI20 -> 0.3677833557 | CN20: ='D Rest incong'!CJ20-'D Rest cong'!CJ20 -> -0.3232939504 | CO20: ='D Rest incong'!CK20-'D Rest cong'!CK20 -> -0.5112616462 | CP20: ='D Rest incong'!CL20-'D Rest cong'!CL20 -> -0.1410519776 | CQ20: ='D Rest incong'!CM20-'D Rest cong'!CM20 -> -1.033668806 | CR20: ='D Rest incong'!CN20-'D Rest cong'!CN20 -> 0.2775943482 | CS20: ='D Rest incong'!CO20-'D Rest cong'!CO20 -> 1.074060246 | CT20: ='D Rest incong'!CP20-'D Rest cong'!CP20 -> -0.6138642469 | CU20: ='D Rest incong'!CQ20-'D Rest cong'!CQ20 -> -1.021007816 | CV20: ='D Rest incong'!CR20-'D Rest cong'!CR20 -> 0.02582794785 | CW20: ='D Rest incong'!CS20-'D Rest cong'!CS20 -> 0.8366227582
A21: KV101 | B21: -0.8273010981 | C21: oxyHb-post-A1 | D21: 1.670500465 | E21: diffHb-post-B6 | F21: ='D Rest incong'!B22-'D Rest cong'!B22 -> -0.4996094932 | G21: ='D Rest incong'!C22-'D Rest cong'!C22 -> -0.04288150451 | H21: ='D Rest incong'!D22-'D Rest cong'!D22 -> -0.02171158275 | I21: ='D Rest incong'!E22-'D Rest cong'!E22 -> -0.4495085248 | J21: ='D Rest incong'!F22-'D Rest cong'!F22 -> -0.8273010981 | K21: ='D Rest incong'!G22-'D Rest cong'!G22 -> 0.01964889253 | L21: ='D Rest incong'!H22-'D Rest cong'!H22 -> -0.1519701983 | M21: ='D Rest incong'!I22-'D Rest cong'!I22 -> -0.6880331531 | N21: ='D Rest incong'!J22-'D Rest cong'!J22 -> 0.5283646073 | O21: ='D Rest incong'!K22-'D Rest cong'!K22 -> -0.2841831137 | P21: ='D Rest incong'!L22-'D Rest cong'!L22 -> 0.4502268918 | Q21: ='D Rest incong'!M22-'D Rest cong'!M22 -> 0.6500998893 | R21: ='D Rest incong'!N22-'D Rest cong'!N22 -> 0.01247052406 | S21: ='D Rest incong'!O22-'D Rest cong'!O22 -> -0.303975979 | T21: ='D Rest incong'!P22-'D Rest cong'!P22 -> 0.03956272713 | U21: ='D Rest incong'!Q22-'D Rest cong'!Q22 -> 0.3354973954 | V21: ='D Rest incong'!R22-'D Rest cong'!R22 -> 0.4404051509 | W21: ='D Rest incong'!S22-'D Rest cong'!S22 -> 0.3577440449 | X21: ='D Rest incong'!T22-'D Rest cong'!T22 -> 0.3045128585 | Y21: ='D Rest incong'!U22-'D Rest cong'!U22 -> -0.1211957291 | Z21: ='D Rest incong'!V22-'D Rest cong'!V22 -> 0.5888856592 | AA21: ='D Rest incong'!W22-'D Rest cong'!W22 -> 0.3545487544 | AB21: ='D Rest incong'!X22-'D Rest cong'!X22 -> 0.4407233243 | AC21: ='D Rest incong'!Y22-'D Rest cong'!Y22 -> -0.000205759845 | AD21: ='D Rest incong'!Z22-'D Rest cong'!Z22 -> -0.1935533562 | AE21: ='D Rest incong'!AA22-'D Rest cong'!AA22 -> 0.296238448 | AF21: ='D Rest incong'!AB22-'D Rest cong'!AB22 -> -0.1908353316 | AG21: ='D Rest incong'!AC22-'D Rest cong'!AC22 -> -0.3286954202 | AH21: ='D Rest incong'!AD22-'D Rest cong'!AD22 -> -0.5984996024 | AI21: ='D Rest incong'!AE22-'D Rest cong'!AE22 -> 0.3267167528 | AJ21: ='D Rest incong'!AF22-'D Rest cong'!AF22 -> -0.374356741 | AK21: ='D Rest incong'!AG22-'D Rest cong'!AG22 -> -0.5356885041 | AL21: ='D Rest incong'!AH22-'D Rest cong'!AH22 -> 0.2415693773 | AM21: ='D Rest incong'!AI22-'D Rest cong'!AI22 -> 0.2082660136 | AN21: ='D Rest incong'!AJ22-'D Rest cong'!AJ22 -> 0.2673599857 | AO21: ='D Rest incong'!AK22-'D Rest cong'!AK22 -> -0.1556351075 | AP21: ='D Rest incong'!AL22-'D Rest cong'!AL22 -> 0.1935815672 | AQ21: ='D Rest incong'!AM22-'D Rest cong'!AM22 -> 0.1168802281 | AR21: ='D Rest incong'!AN22-'D Rest cong'!AN22 -> 0.1678551861 | AS21: ='D Rest incong'!AO22-'D Rest cong'!AO22 -> -0.062152472 | AT21: ='D Rest incong'!AP22-'D Rest cong'!AP22 -> 0.0361242457 | AU21: ='D Rest incong'!AQ22-'D Rest cong'!AQ22 -> -0.3679598244 | AV21: ='D Rest incong'!AR22-'D Rest cong'!AR22 -> 0.3548581979 | AW21: ='D Rest incong'!AS22-'D Rest cong'!AS22 -> 0.396537433 | AX21: ='D Rest incong'!AT22-'D Rest cong'!AT22 -> 0.323435762 | AY21: ='D Rest incong'!AU22-'D Rest cong'!AU22 -> -0.4740129071 | AZ21: ='D Rest incong'!AV22-'D Rest cong'!AV22 -> 0.4195105488 | BA21: ='D Rest incong'!AW22-'D Rest cong'!AW22 -> 0.6412819914 | BB21: ='D Rest incong'!AX22-'D Rest cong'!AX22 -> -0.277142456 | BC21: ='D Rest incong'!AY22-'D Rest cong'!AY22 -> 0.2636100578 | BD21: ='D Rest incong'!AZ22-'D Rest cong'!AZ22 -> -0.1108817543 | BE21: ='D Rest incong'!BA22-'D Rest cong'!BA22 -> -0.3670652403 | BF21: ='D Rest incong'!BB22-'D Rest cong'!BB22 -> -0.6348143851 | BG21: ='D Rest incong'!BC22-'D Rest cong'!BC22 -> 0.2260330732 | BH21: ='D Rest incong'!BD22-'D Rest cong'!BD22 -> -0.4381602643 | BI21: ='D Rest incong'!BE22-'D Rest cong'!BE22 -> -0.595077859 | BJ21: ='D Rest incong'!BF22-'D Rest cong'!BF22 -> 0.1110415761 | BK21: ='D Rest incong'!BG22-'D Rest cong'!BG22 -> -0.7051626936 | BL21: ='D Rest incong'!BH22-'D Rest cong'!BH22 -> 0.2341642716 | BM21: ='D Rest incong'!BI22-'D Rest cong'!BI22 -> 0.8275538367 | BN21: ='D Rest incong'!BJ22-'D Rest cong'!BJ22 -> -0.0175934697 | BO21: ='D Rest incong'!BK22-'D Rest cong'!BK22 -> -0.7100433414 | BP21: ='D Rest incong'!BL22-'D Rest cong'!BL22 -> 0.1389891453 | BQ21: ='D Rest incong'!BM22-'D Rest cong'!BM22 -> 0.7542796034 | BR21: ='D Rest incong'!BN22-'D Rest cong'!BN22 -> 0.1489323388 | BS21: ='D Rest incong'!BO22-'D Rest cong'!BO22 -> -0.5348130102 | BT21: ='D Rest incong'!BP22-'D Rest cong'!BP22 -> -0.03763505417 | BU21: ='D Rest incong'!BQ22-'D Rest cong'!BQ22 -> 0.944084413 | BV21: ='D Rest incong'!BR22-'D Rest cong'!BR22 -> -0.1645323464 | BW21: ='D Rest incong'!BS22-'D Rest cong'!BS22 -> -0.5378811715 | BX21: ='D Rest incong'!BT22-'D Rest cong'!BT22 -> -0.293814388 | BY21: ='D Rest incong'!BU22-'D Rest cong'!BU22 -> 0.7353622354 | BZ21: ='D Rest incong'!BV22-'D Rest cong'!BV22 -> 0.4701834793 | CA21: ='D Rest incong'!BW22-'D Rest cong'!BW22 -> -0.4504012219 | CB21: ='D Rest incong'!BX22-'D Rest cong'!BX22 -> 0.1761992447 | CC21: ='D Rest incong'!BY22-'D Rest cong'!BY22 -> 1.070957802 | CD21: ='D Rest incong'!BZ22-'D Rest cong'!BZ22 -> 1.231194845 | CE21: ='D Rest incong'!CA22-'D Rest cong'!CA22 -> -0.6500685658 | CF21: ='D Rest incong'!CB22-'D Rest cong'!CB22 -> 0.4344459621 | CG21: ='D Rest incong'!CC22-'D Rest cong'!CC22 -> 1.670500465 | CH21: ='D Rest incong'!CD22-'D Rest cong'!CD22 -> 0.622225626 | CI21: ='D Rest incong'!CE22-'D Rest cong'!CE22 -> 0.009433830019 | CJ21: ='D Rest incong'!CF22-'D Rest cong'!CF22 -> 0.3764791344 | CK21: ='D Rest incong'!CG22-'D Rest cong'!CG22 -> 0.3688756599 | CL21: ='D Rest incong'!CH22-'D Rest cong'!CH22 -> 0.3676109005 | CM21: ='D Rest incong'!CI22-'D Rest cong'!CI22 -> 0.01490157406 | CN21: ='D Rest incong'!CJ22-'D Rest cong'!CJ22 -> 0.2038440467 | CO21: ='D Rest incong'!CK22-'D Rest cong'!CK22 -> 0.2122907455 | CP21: ='D Rest incong'!CL22-'D Rest cong'!CL22 -> 0.07286275422 | CQ21: ='D Rest incong'!CM22-'D Rest cong'!CM22 -> 0.1506302691 | CR21: ='D Rest incong'!CN22-'D Rest cong'!CN22 -> -0.06905606476 | CS21: ='D Rest incong'!CO22-'D Rest cong'!CO22 -> -0.01033359427 | CT21: ='D Rest incong'!CP22-'D Rest cong'!CP22 -> -0.5715314837 | CU21: ='D Rest incong'!CQ22-'D Rest cong'!CQ22 -> 0.1444965124 | CV21: ='D Rest incong'!CR22-'D Rest cong'!CR22 -> -0.5164532129 | CW21: ='D Rest incong'!CS22-'D Rest cong'!CS22 -> -0.3720961409
A22: MA101 | B22: -0.9149032395 | C22: deoxyHb-post-A4 | D22: 1.154735211 | E22: oxyHb-post-B1 | F22: ='D Rest incong'!B23-'D Rest cong'!B23 -> 0.8247771122 | G22: ='D Rest incong'!C23-'D Rest cong'!C23 -> 0.1869424591 | H22: ='D Rest incong'!D23-'D Rest cong'!D23 -> 0.3170975032 | I22: ='D Rest incong'!E23-'D Rest cong'!E23 -> 0.4403449353 | J22: ='D Rest incong'!F23-'D Rest cong'!F23 -> 0.9483713504 | K22: ='D Rest incong'!G23-'D Rest cong'!G23 -> 0.2237549356 | L22: ='D Rest incong'!H23-'D Rest cong'!H23 -> 0.3953582733 | M22: ='D Rest incong'!I23-'D Rest cong'!I23 -> 0.4259162725 | N22: ='D Rest incong'!J23-'D Rest cong'!J23 -> 0.01673801568 | O22: ='D Rest incong'!K23-'D Rest cong'!K23 -> -0.4495820755 | P22: ='D Rest incong'!L23-'D Rest cong'!L23 -> 0.05957428142 | Q22: ='D Rest incong'!M23-'D Rest cong'!M23 -> 0.7427829901 | R22: ='D Rest incong'!N23-'D Rest cong'!N23 -> 0.01541100808 | S22: ='D Rest incong'!O23-'D Rest cong'!O23 -> -0.4792569171 | T22: ='D Rest incong'!P23-'D Rest cong'!P23 -> -0.02562575674 | U22: ='D Rest incong'!Q23-'D Rest cong'!Q23 -> 0.7390956937 | V22: ='D Rest incong'!R23-'D Rest cong'!R23 -> -0.3699343469 | W22: ='D Rest incong'!S23-'D Rest cong'!S23 -> 0.03103941897 | X22: ='D Rest incong'!T23-'D Rest cong'!T23 -> -0.2176470738 | Y22: ='D Rest incong'!U23-'D Rest cong'!U23 -> -0.4778140672 | Z22: ='D Rest incong'!V23-'D Rest cong'!V23 -> 0.3529624733 | AA22: ='D Rest incong'!W23-'D Rest cong'!W23 -> -0.1533286235 | AB22: ='D Rest incong'!X23-'D Rest cong'!X23 -> 0.2040208943 | AC22: ='D Rest incong'!Y23-'D Rest cong'!Y23 -> 0.1984254355 | AD22: ='D Rest incong'!Z23-'D Rest cong'!Z23 -> -0.3945600525 | AE22: ='D Rest incong'!AA23-'D Rest cong'!AA23 -> -0.886760461 | AF22: ='D Rest incong'!AB23-'D Rest cong'!AB23 -> -0.1474051708 | AG22: ='D Rest incong'!AC23-'D Rest cong'!AC23 -> 0.5957401007 | AH22: ='D Rest incong'!AD23-'D Rest cong'!AD23 -> -0.3326684107 | AI22: ='D Rest incong'!AE23-'D Rest cong'!AE23 -> -0.9149032395 | AJ22: ='D Rest incong'!AF23-'D Rest cong'!AF23 -> -0.1158686832 | AK22: ='D Rest incong'!AG23-'D Rest cong'!AG23 -> 0.6720423391 | AL22: ='D Rest incong'!AH23-'D Rest cong'!AH23 -> -0.682322818 | AM22: ='D Rest incong'!AI23-'D Rest cong'!AI23 -> 0.4018791206 | AN22: ='D Rest incong'!AJ23-'D Rest cong'!AJ23 -> -0.8230075378 | AO22: ='D Rest incong'!AK23-'D Rest cong'!AK23 -> -0.7483461547 | AP22: ='D Rest incong'!AL23-'D Rest cong'!AL23 -> -0.4902349549 | AQ22: ='D Rest incong'!AM23-'D Rest cong'!AM23 -> 0.3502422479 | AR22: ='D Rest incong'!AN23-'D Rest cong'!AN23 -> -0.7043496775 | AS22: ='D Rest incong'!AO23-'D Rest cong'!AO23 -> -0.5555809811 | AT22: ='D Rest incong'!AP23-'D Rest cong'!AP23 -> -0.3924420032 | AU22: ='D Rest incong'!AQ23-'D Rest cong'!AQ23 -> -0.2102820675 | AV22: ='D Rest incong'!AR23-'D Rest cong'!AR23 -> -0.2050278551 | AW22: ='D Rest incong'!AS23-'D Rest cong'!AS23 -> -0.1959351792 | AX22: ='D Rest incong'!AT23-'D Rest cong'!AT23 -> -0.2656838476 | AY22: ='D Rest incong'!AU23-'D Rest cong'!AU23 -> -0.1968946022 | AZ22: ='D Rest incong'!AV23-'D Rest cong'!AV23 -> -0.01762608348 | BA22: ='D Rest incong'!AW23-'D Rest cong'!AW23 -> -0.062046951 | BB22: ='D Rest incong'!AX23-'D Rest cong'!AX23 -> 0.8386407686 | BC22: ='D Rest incong'!AY23-'D Rest cong'!AY23 -> 0.2167835034 | BD22: ='D Rest incong'!AZ23-'D Rest cong'!AZ23 -> 0.5606877877 | BE22: ='D Rest incong'!BA23-'D Rest cong'!BA23 -> 0.5927027828 | BF22: ='D Rest incong'!BB23-'D Rest cong'!BB23 -> 1.154735211 | BG22: ='D Rest incong'!BC23-'D Rest cong'!BC23 -> 0.1047219156 | BH22: ='D Rest incong'!BD23-'D Rest cong'!BD23 -> 0.6668945848 | BI22: ='D Rest incong'!BE23-'D Rest cong'!BE23 -> 0.9140266536 | BJ22: ='D Rest incong'!BF23-'D Rest cong'!BF23 -> 1.046346476 | BK22: ='D Rest incong'!BG23-'D Rest cong'!BG23 -> 0.2376378916 | BL22: ='D Rest incong'!BH23-'D Rest cong'!BH23 -> 0.7150953219 | BM22: ='D Rest incong'!BI23-'D Rest cong'!BI23 -> 0.38284439 | BN22: ='D Rest incong'!BJ23-'D Rest cong'!BJ23 -> 0.8428282011 | BO22: ='D Rest incong'!BK23-'D Rest cong'!BK23 -> 0.1518426269 | BP22: ='D Rest incong'!BL23-'D Rest cong'!BL23 -> 0.4799845484 | BQ22: ='D Rest incong'!BM23-'D Rest cong'!BM23 -> 0.3440632505 | BR22: ='D Rest incong'!BN23-'D Rest cong'!BN23 -> -0.1418812641 | BS22: ='D Rest incong'!BO23-'D Rest cong'!BO23 -> -0.542344909 | BT22: ='D Rest incong'!BP23-'D Rest cong'!BP23 -> -0.03420095548 | BU22: ='D Rest incong'!BQ23-'D Rest cong'!BQ23 -> 0.4163281124 | BV22: ='D Rest incong'!BR23-'D Rest cong'!BR23 -> -0.2606976232 | BW22: ='D Rest incong'!BS23-'D Rest cong'!BS23 -> -0.5707625998 | BX22: ='D Rest incong'!BT23-'D Rest cong'!BT23 -> -0.1811178654 | BY22: ='D Rest incong'!BU23-'D Rest cong'!BU23 -> 0.3471438947 | BZ22: ='D Rest incong'!BV23-'D Rest cong'!BV23 -> -0.02167106732 | CA22: ='D Rest incong'!BW23-'D Rest cong'!BW23 -> 0.04652548277 | CB22: ='D Rest incong'!BX23-'D Rest cong'!BX23 -> -0.1833398586 | CC22: ='D Rest incong'!BY23-'D Rest cong'!BY23 -> 0.0660346385 | CD22: ='D Rest incong'!BZ23-'D Rest cong'!BZ23 -> 0.2296372834 | CE22: ='D Rest incong'!CA23-'D Rest cong'!CA23 -> -0.03630641159 | CF22: ='D Rest incong'!CB23-'D Rest cong'!CB23 -> -0.07366639738 | CG22: ='D Rest incong'!CC23-'D Rest cong'!CC23 -> 0.3300974218 | CH22: ='D Rest incong'!CD23-'D Rest cong'!CD23 -> 0.3133901549 | CI22: ='D Rest incong'!CE23-'D Rest cong'!CE23 -> 0.2547918647 | CJ22: ='D Rest incong'!CF23-'D Rest cong'!CF23 -> -0.09711667796 | CK22: ='D Rest incong'!CG23-'D Rest cong'!CG23 -> -0.1421437501 | CL22: ='D Rest incong'!CH23-'D Rest cong'!CH23 -> 0.3114412199 | CM22: ='D Rest incong'!CI23-'D Rest cong'!CI23 -> 0.2721103785 | CN22: ='D Rest incong'!CJ23-'D Rest cong'!CJ23 -> -0.1094148418 | CO22: ='D Rest incong'!CK23-'D Rest cong'!CK23 -> -0.1742236442 | CP22: ='D Rest incong'!CL23-'D Rest cong'!CL23 -> -0.3651120418 | CQ22: ='D Rest incong'!CM23-'D Rest cong'!CM23 -> -0.02164354244 | CR22: ='D Rest incong'!CN23-'D Rest cong'!CN23 -> 0.01142084098 | CS22: ='D Rest incong'!CO23-'D Rest cong'!CO23 -> -0.3745770918 | CT22: ='D Rest incong'!CP23-'D Rest cong'!CP23 -> -0.3365615011 | CU22: ='D Rest incong'!CQ23-'D Rest cong'!CQ23 -> -0.007257620069 | CV22: ='D Rest incong'!CR23-'D Rest cong'!CR23 -> 0.05835665744 | CW22: ='D Rest incong'!CS23-'D Rest cong'!CS23 -> -0.3655449774
A23: MT102 | B23: -2.365438352 | C23: totalHb-post-A6 | D23: 1.017987337 | E23: oxyHb-task-B2 | F23: ='D Rest incong'!B24-'D Rest cong'!B24 -> 0.3830771343 | G23: ='D Rest incong'!C24-'D Rest cong'!C24 -> -0.8626198354 | H23: ='D Rest incong'!D24-'D Rest cong'!D24 -> 0.4396323735 | I23: ='D Rest incong'!E24-'D Rest cong'!E24 -> 0.9422920081 | J23: ='D Rest incong'!F24-'D Rest cong'!F24 -> -0.0020089709 | K23: ='D Rest incong'!G24-'D Rest cong'!G24 -> -1.021243629 | L23: ='D Rest incong'!H24-'D Rest cong'!H24 -> -0.04348692576 | M23: ='D Rest incong'!I24-'D Rest cong'!I24 -> 0.8050613737 | N23: ='D Rest incong'!J24-'D Rest cong'!J24 -> 0.5406435102 | O23: ='D Rest incong'!K24-'D Rest cong'!K24 -> 0.456320742 | P23: ='D Rest incong'!L24-'D Rest cong'!L24 -> 0.1044000798 | Q23: ='D Rest incong'!M24-'D Rest cong'!M24 -> -0.1533274267 | R23: ='D Rest incong'!N24-'D Rest cong'!N24 -> 0.2683885226 | S23: ='D Rest incong'!O24-'D Rest cong'!O24 -> 0.296094107 | T23: ='D Rest incong'!P24-'D Rest cong'!P24 -> -0.2126858965 | U23: ='D Rest incong'!Q24-'D Rest cong'!Q24 -> -0.1511685064 | V23: ='D Rest incong'!R24-'D Rest cong'!R24 -> 0.04199179557 | W23: ='D Rest incong'!S24-'D Rest cong'!S24 -> 0.07767253469 | X23: ='D Rest incong'!T24-'D Rest cong'!T24 -> 0.005956748412 | Y23: ='D Rest incong'!U24-'D Rest cong'!U24 -> -0.1388887197 | Z23: ='D Rest incong'!V24-'D Rest cong'!V24 -> -0.2111318105 | AA23: ='D Rest incong'!W24-'D Rest cong'!W24 -> 0.005361557028 | AB23: ='D Rest incong'!X24-'D Rest cong'!X24 -> -0.32417904 | AC23: ='D Rest incong'!Y24-'D Rest cong'!Y24 -> -0.2824291483 | AD23: ='D Rest incong'!Z24-'D Rest cong'!Z24 -> -0.2329748856 | AE23: ='D Rest incong'!AA24-'D Rest cong'!AA24 -> -0.2593810795 | AF23: ='D Rest incong'!AB24-'D Rest cong'!AB24 -> -0.1494691474 | AG23: ='D Rest incong'!AC24-'D Rest cong'!AC24 -> 0.0506985898 | AH23: ='D Rest incong'!AD24-'D Rest cong'!AD24 -> -0.8873979198 | AI23: ='D Rest incong'!AE24-'D Rest cong'!AE24 -> -0.2707034474 | AJ23: ='D Rest incong'!AF24-'D Rest cong'!AF24 -> -0.5730408561 | AK23: ='D Rest incong'!AG24-'D Rest cong'!AG24 -> -0.3087455771 | AL23: ='D Rest incong'!AH24-'D Rest cong'!AH24 -> -0.7738491057 | AM23: ='D Rest incong'!AI24-'D Rest cong'!AI24 -> 0.3023733148 | AN23: ='D Rest incong'!AJ24-'D Rest cong'!AJ24 -> -1.002259079 | AO23: ='D Rest incong'!AK24-'D Rest cong'!AK24 -> -0.8523225249 | AP23: ='D Rest incong'!AL24-'D Rest cong'!AL24 -> -1.524100974 | AQ23: ='D Rest incong'!AM24-'D Rest cong'!AM24 -> 0.1454949927 | AR23: ='D Rest incong'!AN24-'D Rest cong'!AN24 -> -1.806279051 | AS23: ='D Rest incong'!AO24-'D Rest cong'!AO24 -> -1.248310356 | AT23: ='D Rest incong'!AP24-'D Rest cong'!AP24 -> -0.6040884358 | AU23: ='D Rest incong'!AQ24-'D Rest cong'!AQ24 -> 0.07461588978 | AV23: ='D Rest incong'!AR24-'D Rest cong'!AR24 -> -1.176607096 | AW23: ='D Rest incong'!AS24-'D Rest cong'!AS24 -> -0.546893831 | AX23: ='D Rest incong'!AT24-'D Rest cong'!AT24 -> -1.809374581 | AY23: ='D Rest incong'!AU24-'D Rest cong'!AU24 -> -0.09253457109 | AZ23: ='D Rest incong'!AV24-'D Rest cong'!AV24 -> -2.365438352 | BA23: ='D Rest incong'!AW24-'D Rest cong'!AW24 -> -1.275868977 | BB23: ='D Rest incong'!AX24-'D Rest cong'!AX24 -> -0.02836214815 | BC23: ='D Rest incong'!AY24-'D Rest cong'!AY24 -> -0.06021251333 | BD23: ='D Rest incong'!AZ24-'D Rest cong'!AZ24 -> 0.2652035959 | BE23: ='D Rest incong'!BA24-'D Rest cong'!BA24 -> 0.2864741685 | BF23: ='D Rest incong'!BB24-'D Rest cong'!BB24 -> -0.2901457799 | BG23: ='D Rest incong'!BC24-'D Rest cong'!BC24 -> -0.2725075756 | BH23: ='D Rest incong'!BD24-'D Rest cong'!BD24 -> -0.1844385152 | BI23: ='D Rest incong'!BE24-'D Rest cong'!BE24 -> 0.2851313401 | BJ23: ='D Rest incong'!BF24-'D Rest cong'!BF24 -> 1.017987337 | BK23: ='D Rest incong'!BG24-'D Rest cong'!BG24 -> -0.02138772937 | BL23: ='D Rest incong'!BH24-'D Rest cong'!BH24 -> 0.3687883668 | BM23: ='D Rest incong'!BI24-'D Rest cong'!BI24 -> 0.5712414197 | BN23: ='D Rest incong'!BJ24-'D Rest cong'!BJ24 -> 0.005485460098 | BO23: ='D Rest incong'!BK24-'D Rest cong'!BK24 -> 0.1619444682 | BP23: ='D Rest incong'!BL24-'D Rest cong'!BL24 -> -0.1598691388 | BQ23: ='D Rest incong'!BM24-'D Rest cong'!BM24 -> -0.2793335405 | BR23: ='D Rest incong'!BN24-'D Rest cong'!BN24 -> -0.7339692345 | BS23: ='D Rest incong'!BO24-'D Rest cong'!BO24 -> 0.04274297228 | BT23: ='D Rest incong'!BP24-'D Rest cong'!BP24 -> -0.08834832646 | BU23: ='D Rest incong'!BQ24-'D Rest cong'!BQ24 -> -0.6196801207 | BV23: ='D Rest incong'!BR24-'D Rest cong'!BR24 -> -0.7498439027 | BW23: ='D Rest incong'!BS24-'D Rest cong'!BS24 -> -0.1273747197 | BX23: ='D Rest incong'!BT24-'D Rest cong'!BT24 -> -0.3160277568 | BY23: ='D Rest incong'!BU24-'D Rest cong'!BU24 -> -0.5481518217 | BZ23: ='D Rest incong'!BV24-'D Rest cong'!BV24 -> -0.736615935 | CA23: ='D Rest incong'!BW24-'D Rest cong'!BW24 -> -0.6486981421 | CB23: ='D Rest incong'!BX24-'D Rest cong'!BX24 -> -0.2547909939 | CC23: ='D Rest incong'!BY24-'D Rest cong'!BY24 -> 0.097803365 | CD23: ='D Rest incong'!BZ24-'D Rest cong'!BZ24 -> -0.741865275 | CE23: ='D Rest incong'!CA24-'D Rest cong'!CA24 -> -0.6325344896 | CF23: ='D Rest incong'!CB24-'D Rest cong'!CB24 -> -0.2276460005 | CG23: ='D Rest incong'!CC24-'D Rest cong'!CC24 -> 0.09790592671 | CH23: ='D Rest incong'!CD24-'D Rest cong'!CD24 -> 0.5911786661 | CI23: ='D Rest incong'!CE24-'D Rest cong'!CE24 -> -0.3692320732 | CJ23: ='D Rest incong'!CF24-'D Rest cong'!CF24 -> 0.2456798935 | CK23: ='D Rest incong'!CG24-'D Rest cong'!CG24 -> 0.8550808708 | CL23: ='D Rest incong'!CH24-'D Rest cong'!CH24 -> 0.122913843 | CM23: ='D Rest incong'!CI24-'D Rest cong'!CI24 -> -0.2352032004 | CN23: ='D Rest incong'!CJ24-'D Rest cong'!CJ24 -> 0.06939950334 | CO23: ='D Rest incong'!CK24-'D Rest cong'!CK24 -> 0.455980474 | CP23: ='D Rest incong'!CL24-'D Rest cong'!CL24 -> -0.05948991007 | CQ23: ='D Rest incong'!CM24-'D Rest cong'!CM24 -> -0.2482772131 | CR23: ='D Rest incong'!CN24-'D Rest cong'!CN24 -> 0.2129749219 | CS23: ='D Rest incong'!CO24-'D Rest cong'!CO24 -> 0.1828425459 | CT23: ='D Rest incong'!CP24-'D Rest cong'!CP24 -> -0.1837648795 | CU23: ='D Rest incong'!CQ24-'D Rest cong'!CQ24 -> -0.252590108 | CV23: ='D Rest incong'!CR24-'D Rest cong'!CR24 -> 0.1717503306 | CW23: ='D Rest incong'!CS24-'D Rest cong'!CS24 -> 0.1383676119
A24: RA101 | B24: -1.383613616 | C24: oxyHb-post-B7 | D24: 1.342723951 | E24: totalHb-task-A6 | F24: ='D Rest incong'!B25-'D Rest cong'!B25 -> 0.1056453864 | G24: ='D Rest incong'!C25-'D Rest cong'!C25 -> -0.2854353887 | H24: ='D Rest incong'!D25-'D Rest cong'!D25 -> 0.1483952541 | I24: ='D Rest incong'!E25-'D Rest cong'!E25 -> 0.3031297261 | J24: ='D Rest incong'!F25-'D Rest cong'!F25 -> -0.35278517 | K24: ='D Rest incong'!G25-'D Rest cong'!G25 -> -0.3379039095 | L24: ='D Rest incong'!H25-'D Rest cong'!H25 -> -0.1500746687 | M24: ='D Rest incong'!I25-'D Rest cong'!I25 -> 0.1549218823 | N24: ='D Rest incong'!J25-'D Rest cong'!J25 -> -0.6302035975 | O24: ='D Rest incong'!K25-'D Rest cong'!K25 -> 0.1420668395 | P24: ='D Rest incong'!L25-'D Rest cong'!L25 -> -0.02351210352 | Q24: ='D Rest incong'!M25-'D Rest cong'!M25 -> -0.6544220767 | R24: ='D Rest incong'!N25-'D Rest cong'!N25 -> -1.006589435 | S24: ='D Rest incong'!O25-'D Rest cong'!O25 -> 0.03149380052 | T24: ='D Rest incong'!P25-'D Rest cong'!P25 -> -0.5017087923 | U24: ='D Rest incong'!Q25-'D Rest cong'!Q25 -> -0.8433391339 | V24: ='D Rest incong'!R25-'D Rest cong'!R25 -> 0.4237826644 | W24: ='D Rest incong'!S25-'D Rest cong'!S25 -> -0.03011544719 | X24: ='D Rest incong'!T25-'D Rest cong'!T25 -> 0.4497875397 | Y24: ='D Rest incong'!U25-'D Rest cong'!U25 -> 0.3490540561 | Z24: ='D Rest incong'!V25-'D Rest cong'!V25 -> -0.2489371225 | AA24: ='D Rest incong'!W25-'D Rest cong'!W25 -> 0.05766900879 | AB24: ='D Rest incong'!X25-'D Rest cong'!X25 -> 0.02968002554 | AC24: ='D Rest incong'!Y25-'D Rest cong'!Y25 -> -0.1663072797 | AD24: ='D Rest incong'!Z25-'D Rest cong'!Z25 -> -0.2868296833 | AE24: ='D Rest incong'!AA25-'D Rest cong'!AA25 -> 0.05903893462 | AF24: ='D Rest incong'!AB25-'D Rest cong'!AB25 -> 0.01589205209 | AG24: ='D Rest incong'!AC25-'D Rest cong'!AC25 -> -0.4526461277 | AH24: ='D Rest incong'!AD25-'D Rest cong'!AD25 -> -0.8765784609 | AI24: ='D Rest incong'!AE25-'D Rest cong'!AE25 -> 0.1897312212 | AJ24: ='D Rest incong'!AF25-'D Rest cong'!AF25 -> -0.2820064091 | AK24: ='D Rest incong'!AG25-'D Rest cong'!AG25 -> -0.9643873731 | AL24: ='D Rest incong'!AH25-'D Rest cong'!AH25 -> 0.4605982178 | AM24: ='D Rest incong'!AI25-'D Rest cong'!AI25 -> 0.03165687333 | AN24: ='D Rest incong'!AJ25-'D Rest cong'!AJ25 -> 0.273249256 | AO24: ='D Rest incong'!AK25-'D Rest cong'!AK25 -> 0.1642878 | AP24: ='D Rest incong'!AL25-'D Rest cong'!AL25 -> -0.03726766149 | AQ24: ='D Rest incong'!AM25-'D Rest cong'!AM25 -> 0.05227066575 | AR24: ='D Rest incong'!AN25-'D Rest cong'!AN25 -> -0.08898070455 | AS24: ='D Rest incong'!AO25-'D Rest cong'!AO25 -> -0.1859575122 | AT24: ='D Rest incong'!AP25-'D Rest cong'!AP25 -> 0.5508999192 | AU24: ='D Rest incong'!AQ25-'D Rest cong'!AQ25 -> 0.4340397658 | AV24: ='D Rest incong'!AR25-'D Rest cong'!AR25 -> 1.342723951 | AW24: ='D Rest incong'!AS25-'D Rest cong'!AS25 -> 0.1088110349 | AX24: ='D Rest incong'!AT25-'D Rest cong'!AT25 -> -0.07352565014 | AY24: ='D Rest incong'!AU25-'D Rest cong'!AU25 -> 0.6776495731 | AZ24: ='D Rest incong'!AV25-'D Rest cong'!AV25 -> 0.9444689038 | BA24: ='D Rest incong'!AW25-'D Rest cong'!AW25 -> -0.5877948443 | BB24: ='D Rest incong'!AX25-'D Rest cong'!AX25 -> -0.1826041495 | BC24: ='D Rest incong'!AY25-'D Rest cong'!AY25 -> -0.2311627478 | BD24: ='D Rest incong'!AZ25-'D Rest cong'!AZ25 -> -0.4206851852 | BE24: ='D Rest incong'!BA25-'D Rest cong'!BA25 -> 0.2342027431 | BF24: ='D Rest incong'!BB25-'D Rest cong'!BB25 -> -1.275880746 | BG24: ='D Rest incong'!BC25-'D Rest cong'!BC25 -> 0.01895869659 | BH24: ='D Rest incong'!BD25-'D Rest cong'!BD25 -> -0.9819393117 | BI24: ='D Rest incong'!BE25-'D Rest cong'!BE25 -> -0.6721186686 | BJ24: ='D Rest incong'!BF25-'D Rest cong'!BF25 -> 0.05298579133 | BK24: ='D Rest incong'!BG25-'D Rest cong'!BG25 -> 0.09411944245 | BL24: ='D Rest incong'!BH25-'D Rest cong'!BH25 -> -0.1877986719 | BM24: ='D Rest incong'!BI25-'D Rest cong'!BI25 -> 0.1030932376 | BN24: ='D Rest incong'!BJ25-'D Rest cong'!BJ25 -> -0.9514904602 | BO24: ='D Rest incong'!BK25-'D Rest cong'!BK25 -> 0.02393471495 | BP24: ='D Rest incong'!BL25-'D Rest cong'!BL25 -> -0.9139446717 | BQ24: ='D Rest incong'!BM25-'D Rest cong'!BM25 -> -0.3991895592 | BR24: ='D Rest incong'!BN25-'D Rest cong'!BN25 -> 0.01407964076 | BS24: ='D Rest incong'!BO25-'D Rest cong'!BO25 -> 0.5146276068 | BT24: ='D Rest incong'!BP25-'D Rest cong'!BP25 -> 0.1107691741 | BU24: ='D Rest incong'!BQ25-'D Rest cong'!BQ25 -> -0.3903077298 | BV24: ='D Rest incong'!BR25-'D Rest cong'!BR25 -> -0.643587153 | BW24: ='D Rest incong'!BS25-'D Rest cong'!BS25 -> 0.6317575795 | BX24: ='D Rest incong'!BT25-'D Rest cong'!BT25 -> -0.3678062816 | BY24: ='D Rest incong'!BU25-'D Rest cong'!BU25 -> -0.9982366953 | BZ24: ='D Rest incong'!BV25-'D Rest cong'!BV25 -> 0.1804810407 | CA24: ='D Rest incong'!BW25-'D Rest cong'!BW25 -> -0.3455069967 | CB24: ='D Rest incong'!BX25-'D Rest cong'!BX25 -> 0.0185264002 | CC24: ='D Rest incong'!BY25-'D Rest cong'!BY25 -> 0.5509279198 | CD24: ='D Rest incong'!BZ25-'D Rest cong'!BZ25 -> -0.5761128927 | CE24: ='D Rest incong'!CA25-'D Rest cong'!CA25 -> -0.1957975262 | CF24: ='D Rest incong'!CB25-'D Rest cong'!CB25 -> -0.293689492 | CG24: ='D Rest incong'!CC25-'D Rest cong'!CC25 -> 0.0179880096 | CH24: ='D Rest incong'!CD25-'D Rest cong'!CD25 -> -0.4175980315 | CI24: ='D Rest incong'!CE25-'D Rest cong'!CE25 -> -0.1473801627 | CJ24: ='D Rest incong'!CF25-'D Rest cong'!CF25 -> -0.2620590023 | CK24: ='D Rest incong'!CG25-'D Rest cong'!CG25 -> -0.1306854106 | CL24: ='D Rest incong'!CH25-'D Rest cong'!CH25 -> -1.383613616 | CM24: ='D Rest incong'!CI25-'D Rest cong'!CI25 -> -0.02662081137 | CN24: ='D Rest incong'!CJ25-'D Rest cong'!CJ25 -> -0.7782420013 | CO24: ='D Rest incong'!CK25-'D Rest cong'!CK25 -> -0.8074934873 | CP24: ='D Rest incong'!CL25-'D Rest cong'!CL25 -> -0.0661057182 | CQ24: ='D Rest incong'!CM25-'D Rest cong'!CM25 -> -0.06172133219 | CR24: ='D Rest incong'!CN25-'D Rest cong'!CN25 -> -0.06876372034 | CS24: ='D Rest incong'!CO25-'D Rest cong'!CO25 -> -0.01944610336 | CT24: ='D Rest incong'!CP25-'D Rest cong'!CP25 -> -0.08203678006 | CU24: ='D Rest incong'!CQ25-'D Rest cong'!CQ25 -> 0.01075244358 | CV24: ='D Rest incong'!CR25-'D Rest cong'!CR25 -> 0.04921350324 | CW24: ='D Rest incong'!CS25-'D Rest cong'!CS25 -> -0.05844235513
A25: RO101 | B25: -0.9120564507 | C25: oxyHb-task-A1 | D25: 1.067473284 | E25: diffHb-post-A5 | F25: ='D Rest incong'!B26-'D Rest cong'!B26 -> -0.9120564507 | G25: ='D Rest incong'!C26-'D Rest cong'!C26 -> -0.5248093243 | H25: ='D Rest incong'!D26-'D Rest cong'!D26 -> -0.2402512474 | I25: ='D Rest incong'!E26-'D Rest cong'!E26 -> 0.007329975466 | J25: ='D Rest incong'!F26-'D Rest cong'!F26 -> -0.291482363 | K25: ='D Rest incong'!G26-'D Rest cong'!G26 -> -0.582090795 | L25: ='D Rest incong'!H26-'D Rest cong'!H26 -> 0.1620228489 | M25: ='D Rest incong'!I26-'D Rest cong'!I26 -> 0.4447646389 | N25: ='D Rest incong'!J26-'D Rest cong'!J26 -> 0.1565016134 | O25: ='D Rest incong'!K26-'D Rest cong'!K26 -> -0.1674441871 | P25: ='D Rest incong'!L26-'D Rest cong'!L26 -> 0.461171689 | Q25: ='D Rest incong'!M26-'D Rest cong'!M26 -> 0.1471967668 | R25: ='D Rest incong'!N26-'D Rest cong'!N26 -> 0.09768463315 | S25: ='D Rest incong'!O26-'D Rest cong'!O26 -> -0.2597316969 | T25: ='D Rest incong'!P26-'D Rest cong'!P26 -> 0.34743146 | U25: ='D Rest incong'!Q26-'D Rest cong'!Q26 -> 0.2067710084 | V25: ='D Rest incong'!R26-'D Rest cong'!R26 -> 0.2141810623 | W25: ='D Rest incong'!S26-'D Rest cong'!S26 -> 0.03517990713 | X25: ='D Rest incong'!T26-'D Rest cong'!T26 -> -0.08519730408 | Y25: ='D Rest incong'!U26-'D Rest cong'!U26 -> 0.4359323546 | Z25: ='D Rest incong'!V26-'D Rest cong'!V26 -> 0.3202917786 | AA25: ='D Rest incong'!W26-'D Rest cong'!W26 -> 0.05976149851 | AB25: ='D Rest incong'!X26-'D Rest cong'!X26 -> 0.04715789493 | AC25: ='D Rest incong'!Y26-'D Rest cong'!Y26 -> 0.4984745715 | AD25: ='D Rest incong'!Z26-'D Rest cong'!Z26 -> -0.4938312569 | AE25: ='D Rest incong'!AA26-'D Rest cong'!AA26 -> -0.6612346336 | AF25: ='D Rest incong'!AB26-'D Rest cong'!AB26 -> -0.04714065375 | AG25: ='D Rest incong'!AC26-'D Rest cong'!AC26 -> 0.4876962912 | AH25: ='D Rest incong'!AD26-'D Rest cong'!AD26 -> -0.8492076558 | AI25: ='D Rest incong'!AE26-'D Rest cong'!AE26 -> -0.525183486 | AJ25: ='D Rest incong'!AF26-'D Rest cong'!AF26 -> -0.1076628268 | AK25: ='D Rest incong'!AG26-'D Rest cong'!AG26 -> 0.1750716719 | AL25: ='D Rest incong'!AH26-'D Rest cong'!AH26 -> 0.1578067282 | AM25: ='D Rest incong'!AI26-'D Rest cong'!AI26 -> -0.07509900391 | AN25: ='D Rest incong'!AJ26-'D Rest cong'!AJ26 -> -0.1012664346 | AO25: ='D Rest incong'!AK26-'D Rest cong'!AK26 -> 0.358437518 | AP25: ='D Rest incong'!AL26-'D Rest cong'!AL26 -> 0.8958388031 | AQ25: ='D Rest incong'!AM26-'D Rest cong'!AM26 -> -0.256408418 | AR25: ='D Rest incong'!AN26-'D Rest cong'!AN26 -> 0.3704059354 | AS25: ='D Rest incong'!AO26-'D Rest cong'!AO26 -> 1.067473284 | AT25: ='D Rest incong'!AP26-'D Rest cong'!AP26 -> -0.2441449993 | AU25: ='D Rest incong'!AQ26-'D Rest cong'!AQ26 -> 0.05940385546 | AV25: ='D Rest incong'!AR26-'D Rest cong'!AR26 -> -0.1102595631 | AW25: ='D Rest incong'!AS26-'D Rest cong'!AS26 -> -0.1664533468 | AX25: ='D Rest incong'!AT26-'D Rest cong'!AT26 -> -0.8129191469 | AY25: ='D Rest incong'!AU26-'D Rest cong'!AU26 -> 0.1831659673 | AZ25: ='D Rest incong'!AV26-'D Rest cong'!AV26 -> -0.4677401308 | BA25: ='D Rest incong'!AW26-'D Rest cong'!AW26 -> -0.6726035593 | BB25: ='D Rest incong'!AX26-'D Rest cong'!AX26 -> -0.09894843339 | BC25: ='D Rest incong'!AY26-'D Rest cong'!AY26 -> 0.2202356697 | BD25: ='D Rest incong'!AZ26-'D Rest cong'!AZ26 -> -0.3891892437 | BE25: ='D Rest incong'!BA26-'D Rest cong'!BA26 -> -0.2130255215 | BF25: ='D Rest incong'!BB26-'D Rest cong'!BB26 -> -0.1406909346 | BG25: ='D Rest incong'!BC26-'D Rest cong'!BC26 -> 0.3393539222 | BH25: ='D Rest incong'!BD26-'D Rest cong'!BD26 -> -0.4782387672 | BI25: ='D Rest incong'!BE26-'D Rest cong'!BE26 -> -0.4899451032 | BJ25: ='D Rest incong'!BF26-'D Rest cong'!BF26 -> 0.5731765366 | BK25: ='D Rest incong'!BG26-'D Rest cong'!BG26 -> -0.2077233743 | BL25: ='D Rest incong'!BH26-'D Rest cong'!BH26 -> 0.190183255 | BM25: ='D Rest incong'!BI26-'D Rest cong'!BI26 -> 0.6105668138 | BN25: ='D Rest incong'!BJ26-'D Rest cong'!BJ26 -> 0.419124953 | BO25: ='D Rest incong'!BK26-'D Rest cong'!BK26 -> -0.2714690901 | BP25: ='D Rest incong'!BL26-'D Rest cong'!BL26 -> 0.07724587146 | BQ25: ='D Rest incong'!BM26-'D Rest cong'!BM26 -> 0.6142640896 | BR25: ='D Rest incong'!BN26-'D Rest cong'!BN26 -> -0.3093452664 | BS25: ='D Rest incong'!BO26-'D Rest cong'!BO26 -> -0.4006400888 | BT25: ='D Rest incong'!BP26-'D Rest cong'!BP26 -> -0.06373611929 | BU25: ='D Rest incong'!BQ26-'D Rest cong'!BQ26 -> 0.2618991983 | BV25: ='D Rest incong'!BR26-'D Rest cong'!BR26 -> 0.1303705455 | BW25: ='D Rest incong'!BS26-'D Rest cong'!BS26 -> -0.5433924168 | BX25: ='D Rest incong'!BT26-'D Rest cong'!BT26 -> 0.0716339291 | BY25: ='D Rest incong'!BU26-'D Rest cong'!BU26 -> 0.644626427 | BZ25: ='D Rest incong'!BV26-'D Rest cong'!BV26 -> -0.3047458942 | CA25: ='D Rest incong'!BW26-'D Rest cong'!BW26 -> -0.3948162175 | CB25: ='D Rest incong'!BX26-'D Rest cong'!BX26 -> 0.2837320015 | CC25: ='D Rest incong'!BY26-'D Rest cong'!BY26 -> 0.08646082481 | CD25: ='D Rest incong'!BZ26-'D Rest cong'!BZ26 -> -0.7010648804 | CE25: ='D Rest incong'!CA26-'D Rest cong'!CA26 -> -0.3271483131 | CF25: ='D Rest incong'!CB26-'D Rest cong'!CB26 -> 0.08992554789 | CG25: ='D Rest incong'!CC26-'D Rest cong'!CC26 -> -0.2193247314 | CH25: ='D Rest incong'!CD26-'D Rest cong'!CD26 -> -0.4196038793 | CI25: ='D Rest incong'!CE26-'D Rest cong'!CE26 -> -0.4336783526 | CJ25: ='D Rest incong'!CF26-'D Rest cong'!CF26 -> -0.004269448928 | CK25: ='D Rest incong'!CG26-'D Rest cong'!CG26 -> -0.0736864914 | CL25: ='D Rest incong'!CH26-'D Rest cong'!CH26 -> -0.3213329265 | CM25: ='D Rest incong'!CI26-'D Rest cong'!CI26 -> -0.4438356933 | CN25: ='D Rest incong'!CJ26-'D Rest cong'!CJ26 -> 0.06310793721 | CO25: ='D Rest incong'!CK26-'D Rest cong'!CK26 -> 0.002612631275 | CP25: ='D Rest incong'!CL26-'D Rest cong'!CL26 -> 0.5243091998 | CQ25: ='D Rest incong'!CM26-'D Rest cong'!CM26 -> 0.7134520292 | CR25: ='D Rest incong'!CN26-'D Rest cong'!CN26 -> 0.1699257473 | CS25: ='D Rest incong'!CO26-'D Rest cong'!CO26 -> -0.2517474518 | CT25: ='D Rest incong'!CP26-'D Rest cong'!CP26 -> 0.7364975513 | CU25: ='D Rest incong'!CQ26-'D Rest cong'!CQ26 -> 0.7586655038 | CV25: ='D Rest incong'!CR26-'D Rest cong'!CR26 -> 0.3765494891 | CW25: ='D Rest incong'!CS26-'D Rest cong'!CS26 -> -0.1553379036
A26: SA102 | B26: -3.391659357 | C26: oxyHb-post-A6 | D26: 5.086793075 | E26: oxyHb-post-A5 | F26: ='D Rest incong'!B27-'D Rest cong'!B27 -> 1.153157243 | G26: ='D Rest incong'!C27-'D Rest cong'!C27 -> -0.3740271479 | H26: ='D Rest incong'!D27-'D Rest cong'!D27 -> 0.08041413703 | I26: ='D Rest incong'!E27-'D Rest cong'!E27 -> 1.28925743 | J26: ='D Rest incong'!F27-'D Rest cong'!F27 -> 1.845377972 | K26: ='D Rest incong'!G27-'D Rest cong'!G27 -> -0.4785452492 | L26: ='D Rest incong'!H27-'D Rest cong'!H27 -> 0.4810421946 | M26: ='D Rest incong'!I27-'D Rest cong'!I27 -> 1.846977515 | N26: ='D Rest incong'!J27-'D Rest cong'!J27 -> 0.461227222 | O26: ='D Rest incong'!K27-'D Rest cong'!K27 -> 0.03419041923 | P26: ='D Rest incong'!L27-'D Rest cong'!L27 -> 0.2420486814 | Q26: ='D Rest incong'!M27-'D Rest cong'!M27 -> 0.3230985824 | R26: ='D Rest incong'!N27-'D Rest cong'!N27 -> 0.8570189142 | S26: ='D Rest incong'!O27-'D Rest cong'!O27 -> 0.06205380549 | T26: ='D Rest incong'!P27-'D Rest cong'!P27 -> 0.5408393953 | U26: ='D Rest incong'!Q27-'D Rest cong'!Q27 -> 0.5255270239 | V26: ='D Rest incong'!R27-'D Rest cong'!R27 -> 0.06506725993 | W26: ='D Rest incong'!S27-'D Rest cong'!S27 -> -0.3088543129 | X26: ='D Rest incong'!T27-'D Rest cong'!T27 -> 0.1668870913 | Y26: ='D Rest incong'!U27-'D Rest cong'!U27 -> 0.5466618694 | Z26: ='D Rest incong'!V27-'D Rest cong'!V27 -> -0.4237589852 | AA26: ='D Rest incong'!W27-'D Rest cong'!W27 -> -0.3422181304 | AB26: ='D Rest incong'!X27-'D Rest cong'!X27 -> -0.2782171847 | AC26: ='D Rest incong'!Y27-'D Rest cong'!Y27 -> 0.2085978601 | AD26: ='D Rest incong'!Z27-'D Rest cong'!Z27 -> -0.17922225 | AE26: ='D Rest incong'!AA27-'D Rest cong'!AA27 -> -0.1276992003 | AF26: ='D Rest incong'!AB27-'D Rest cong'!AB27 -> -0.04440115047 | AG26: ='D Rest incong'!AC27-'D Rest cong'!AC27 -> 0.1187423309 | AH26: ='D Rest incong'!AD27-'D Rest cong'!AD27 -> -0.09971279863 | AI26: ='D Rest incong'!AE27-'D Rest cong'!AE27 -> -0.06527383462 | AJ26: ='D Rest incong'!AF27-'D Rest cong'!AF27 -> 0.08144015499 | AK26: ='D Rest incong'!AG27-'D Rest cong'!AG27 -> 0.1090494238 | AL26: ='D Rest incong'!AH27-'D Rest cong'!AH27 -> 2.016386901 | AM26: ='D Rest incong'!AI27-'D Rest cong'!AI27 -> 0.01451673818 | AN26: ='D Rest incong'!AJ27-'D Rest cong'!AJ27 -> 0.8456951281 | AO26: ='D Rest incong'!AK27-'D Rest cong'!AK27 -> 1.304964927 | AP26: ='D Rest incong'!AL27-'D Rest cong'!AL27 -> 5.086793075 | AQ26: ='D Rest incong'!AM27-'D Rest cong'!AM27 -> -0.6533645106 | AR26: ='D Rest incong'!AN27-'D Rest cong'!AN27 -> 2.166863901 | AS26: ='D Rest incong'!AO27-'D Rest cong'!AO27 -> 3.684902842 | AT26: ='D Rest incong'!AP27-'D Rest cong'!AP27 -> -2.132373126 | AU26: ='D Rest incong'!AQ27-'D Rest cong'!AQ27 -> -0.4195159009 | AV26: ='D Rest incong'!AR27-'D Rest cong'!AR27 -> -1.513463441 | AW26: ='D Rest incong'!AS27-'D Rest cong'!AS27 -> -0.74081409 | AX26: ='D Rest incong'!AT27-'D Rest cong'!AT27 -> -3.391659357 | AY26: ='D Rest incong'!AU27-'D Rest cong'!AU27 -> -0.6927609316 | AZ26: ='D Rest incong'!AV27-'D Rest cong'!AV27 -> -2.680944306 | BA26: ='D Rest incong'!AW27-'D Rest cong'!AW27 -> -1.204169839 | BB26: ='D Rest incong'!AX27-'D Rest cong'!AX27 -> 1.586104343 | BC26: ='D Rest incong'!AY27-'D Rest cong'!AY27 -> -0.7178750125 | BD26: ='D Rest incong'!AZ27-'D Rest cong'!AZ27 -> -0.04643699388 | BE26: ='D Rest incong'!BA27-'D Rest cong'!BA27 -> 1.785409218 | BF26: ='D Rest incong'!BB27-'D Rest cong'!BB27 -> 2.416947539 | BG26: ='D Rest incong'!BC27-'D Rest cong'!BC27 -> -1.102167366 | BH26: ='D Rest incong'!BD27-'D Rest cong'!BD27 -> 0.1382476552 | BI26: ='D Rest incong'!BE27-'D Rest cong'!BE27 -> 2.720095466 | BJ26: ='D Rest incong'!BF27-'D Rest cong'!BF27 -> 0.1212347765 | BK26: ='D Rest incong'!BG27-'D Rest cong'!BG27 -> 0.01700364932 | BL26: ='D Rest incong'!BH27-'D Rest cong'!BH27 -> 0.1530788576 | BM26: ='D Rest incong'!BI27-'D Rest cong'!BI27 -> -0.1674689065 | BN26: ='D Rest incong'!BJ27-'D Rest cong'!BJ27 -> 0.8814716971 | BO26: ='D Rest incong'!BK27-'D Rest cong'!BK27 -> -0.1085130491 | BP26: ='D Rest incong'!BL27-'D Rest cong'!BL27 -> 0.7392316989 | BQ26: ='D Rest incong'!BM27-'D Rest cong'!BM27 -> 0.5981758057 | BR26: ='D Rest incong'!BN27-'D Rest cong'!BN27 -> 0.1396235156 | BS26: ='D Rest incong'!BO27-'D Rest cong'!BO27 -> -0.3807398587 | BT26: ='D Rest incong'!BP27-'D Rest cong'!BP27 -> -0.06480677439 | BU26: ='D Rest incong'!BQ27-'D Rest cong'!BQ27 -> 0.5516701739 | BV26: ='D Rest incong'!BR27-'D Rest cong'!BR27 -> 0.8815004156 | BW26: ='D Rest incong'!BS27-'D Rest cong'!BS27 -> -0.3962323715 | BX26: ='D Rest incong'!BT27-'D Rest cong'!BT27 -> 0.4241522943 | BY26: ='D Rest incong'!BU27-'D Rest cong'!BU27 -> 0.9858485381 | BZ26: ='D Rest incong'!BV27-'D Rest cong'!BV27 -> -0.2693824645 | CA26: ='D Rest incong'!BW27-'D Rest cong'!BW27 -> 0.1335486767 | CB26: ='D Rest incong'!BX27-'D Rest cong'!BX27 -> -0.2450382226 | CC26: ='D Rest incong'!BY27-'D Rest cong'!BY27 -> -0.2275439979 | CD26: ='D Rest incong'!BZ27-'D Rest cong'!BZ27 -> 0.1381194155 | CE26: ='D Rest incong'!CA27-'D Rest cong'!CA27 -> -0.1129521249 | CF26: ='D Rest incong'!CB27-'D Rest cong'!CB27 -> -0.1754011005 | CG26: ='D Rest incong'!CC27-'D Rest cong'!CC27 -> 0.2894622376 | CH26: ='D Rest incong'!CD27-'D Rest cong'!CD27 -> 0.3758596641 | CI26: ='D Rest incong'!CE27-'D Rest cong'!CE27 -> 0.1542321818 | CJ26: ='D Rest incong'!CF27-'D Rest cong'!CF27 -> 0.06711584264 | CK26: ='D Rest incong'!CG27-'D Rest cong'!CG27 -> -0.04573377892 | CL26: ='D Rest incong'!CH27-'D Rest cong'!CH27 -> -0.02580567662 | CM26: ='D Rest incong'!CI27-'D Rest cong'!CI27 -> 0.1088603053 | CN26: ='D Rest incong'!CJ27-'D Rest cong'!CJ27 -> -0.3181054108 | CO26: ='D Rest incong'!CK27-'D Rest cong'!CK27 -> -0.2884029527 | CP26: ='D Rest incong'!CL27-'D Rest cong'!CL27 -> 1.110922623 | CQ26: ='D Rest incong'!CM27-'D Rest cong'!CM27 -> -0.5245257896 | CR26: ='D Rest incong'!CN27-'D Rest cong'!CN27 -> 0.7874672298 | CS26: ='D Rest incong'!CO27-'D Rest cong'!CO27 -> 1.286068532 | CT26: ='D Rest incong'!CP27-'D Rest cong'!CP27 -> 0.5150230094 | CU26: ='D Rest incong'!CQ27-'D Rest cong'!CQ27 -> -0.362248352 | CV26: ='D Rest incong'!CR27-'D Rest cong'!CR27 -> 0.4751575658 | CW26: ='D Rest incong'!CS27-'D Rest cong'!CS27 -> 0.7687930365
A27: TM101 | B27: -1.702586569 | C27: oxyHb-post-A6 | D27: 0.9213141555 | E27: diffHb-task-B6 | F27: ='D Rest incong'!B28-'D Rest cong'!B28 -> -0.9205731107 | G27: ='D Rest incong'!C28-'D Rest cong'!C28 -> 0.3124737121 | H27: ='D Rest incong'!D28-'D Rest cong'!D28 -> -0.5829121065 | I27: ='D Rest incong'!E28-'D Rest cong'!E28 -> -1.148680839 | J27: ='D Rest incong'!F28-'D Rest cong'!F28 -> -1.400142762 | K27: ='D Rest incong'!G28-'D Rest cong'!G28 -> 0.4278454519 | L27: ='D Rest incong'!H28-'D Rest cong'!H28 -> -0.8264817523 | M27: ='D Rest incong'!I28-'D Rest cong'!I28 -> -1.570265923 | N27: ='D Rest incong'!J28-'D Rest cong'!J28 -> -0.4270968715 | O27: ='D Rest incong'!K28-'D Rest cong'!K28 -> -0.2032778565 | P27: ='D Rest incong'!L28-'D Rest cong'!L28 -> -0.308864551 | Q27: ='D Rest incong'!M28-'D Rest cong'!M28 -> -0.001767955363 | R27: ='D Rest incong'!N28-'D Rest cong'!N28 -> -0.06112190309 | S27: ='D Rest incong'!O28-'D Rest cong'!O28 -> -0.3114091873 | T27: ='D Rest incong'!P28-'D Rest cong'!P28 -> -0.1730577268 | U27: ='D Rest incong'!Q28-'D Rest cong'!Q28 -> 0.3292984785 | V27: ='D Rest incong'!R28-'D Rest cong'!R28 -> -0.7837934313 | W27: ='D Rest incong'!S28-'D Rest cong'!S28 -> 0.2119694568 | X27: ='D Rest incong'!T28-'D Rest cong'!T28 -> -0.08705152045 | Y27: ='D Rest incong'!U28-'D Rest cong'!U28 -> -0.467022636 | Z27: ='D Rest incong'!V28-'D Rest cong'!V28 -> -0.8716722749 | AA27: ='D Rest incong'!W28-'D Rest cong'!W28 -> 0.1708972929 | AB27: ='D Rest incong'!X28-'D Rest cong'!X28 -> -0.07772112246 | AC27: ='D Rest incong'!Y28-'D Rest cong'!Y28 -> -0.3874847177 | AD27: ='D Rest incong'!Z28-'D Rest cong'!Z28 -> 0.001020920555 | AE27: ='D Rest incong'!AA28-'D Rest cong'!AA28 -> 0.2266102737 | AF27: ='D Rest incong'!AB28-'D Rest cong'!AB28 -> -0.09868581001 | AG27: ='D Rest incong'!AC28-'D Rest cong'!AC28 -> -0.5543240797 | AH27: ='D Rest incong'!AD28-'D Rest cong'!AD28 -> 0.356704664 | AI27: ='D Rest incong'!AE28-'D Rest cong'!AE28 -> 0.2413572898 | AJ27: ='D Rest incong'!AF28-'D Rest cong'!AF28 -> 0.1411099557 | AK27: ='D Rest incong'!AG28-'D Rest cong'!AG28 -> -0.3912998563 | AL27: ='D Rest incong'!AH28-'D Rest cong'!AH28 -> -0.2115202811 | AM27: ='D Rest incong'!AI28-'D Rest cong'!AI28 -> -0.2369230015 | AN27: ='D Rest incong'!AJ28-'D Rest cong'!AJ28 -> -0.2831008098 | AO27: ='D Rest incong'!AK28-'D Rest cong'!AK28 -> -0.099885787 | AP27: ='D Rest incong'!AL28-'D Rest cong'!AL28 -> -0.8555814022 | AQ27: ='D Rest incong'!AM28-'D Rest cong'!AM28 -> -0.043397615 | AR27: ='D Rest incong'!AN28-'D Rest cong'!AN28 -> -0.5477529982 | AS27: ='D Rest incong'!AO28-'D Rest cong'!AO28 -> -0.6469392678 | AT27: ='D Rest incong'!AP28-'D Rest cong'!AP28 -> -0.8390977722 | AU27: ='D Rest incong'!AQ28-'D Rest cong'!AQ28 -> -0.6775945711 | AV27: ='D Rest incong'!AR28-'D Rest cong'!AR28 -> -0.4331205919 | AW27: ='D Rest incong'!AS28-'D Rest cong'!AS28 -> 0.1757778588 | AX27: ='D Rest incong'!AT28-'D Rest cong'!AT28 -> -1.702586569 | AY27: ='D Rest incong'!AU28-'D Rest cong'!AU28 -> -0.7084974129 | AZ27: ='D Rest incong'!AV28-'D Rest cong'!AV28 -> -1.047953602 | BA27: ='D Rest incong'!AW28-'D Rest cong'!AW28 -> -0.2813352455 | BB27: ='D Rest incong'!AX28-'D Rest cong'!AX28 -> -0.3042957757 | BC27: ='D Rest incong'!AY28-'D Rest cong'!AY28 -> 0.08269344209 | BD27: ='D Rest incong'!AZ28-'D Rest cong'!AZ28 -> -0.1031727604 | BE27: ='D Rest incong'!BA28-'D Rest cong'!BA28 -> -0.2137186344 | BF27: ='D Rest incong'!BB28-'D Rest cong'!BB28 -> 0.662389174 | BG27: ='D Rest incong'!BC28-'D Rest cong'!BC28 -> -0.1287799563 | BH27: ='D Rest incong'!BD28-'D Rest cong'!BD28 -> 0.2716170597 | BI27: ='D Rest incong'!BE28-'D Rest cong'!BE28 -> 0.5107869148 | BJ27: ='D Rest incong'!BF28-'D Rest cong'!BF28 -> -0.3350099655 | BK27: ='D Rest incong'!BG28-'D Rest cong'!BG28 -> 0.1013178966 | BL27: ='D Rest incong'!BH28-'D Rest cong'!BH28 -> -0.2004068317 | BM27: ='D Rest incong'!BI28-'D Rest cong'!BI28 -> -0.3901175229 | BN27: ='D Rest incong'!BJ28-'D Rest cong'!BJ28 -> -0.4344145637 | BO27: ='D Rest incong'!BK28-'D Rest cong'!BK28 -> -0.1054011398 | BP27: ='D Rest incong'!BL28-'D Rest cong'!BL28 -> -0.4363613575 | BQ27: ='D Rest incong'!BM28-'D Rest cong'!BM28 -> -0.1965061541 | BR27: ='D Rest incong'!BN28-'D Rest cong'!BN28 -> 0.09083971443 | BS27: ='D Rest incong'!BO28-'D Rest cong'!BO28 -> -0.3168920019 | BT27: ='D Rest incong'!BP28-'D Rest cong'!BP28 -> 0.05619895185 | BU27: ='D Rest incong'!BQ28-'D Rest cong'!BQ28 -> 0.2896631753 | BV27: ='D Rest incong'!BR28-'D Rest cong'!BR28 -> 0.15729414 | BW27: ='D Rest incong'!BS28-'D Rest cong'!BS28 -> -0.4212774813 | BX27: ='D Rest incong'!BT28-'D Rest cong'!BT28 -> 0.01314319242 | BY27: ='D Rest incong'!BU28-'D Rest cong'!BU28 -> 0.4270020808 | BZ27: ='D Rest incong'!BV28-'D Rest cong'!BV28 -> 0.6001755419 | CA27: ='D Rest incong'!BW28-'D Rest cong'!BW28 -> -0.5905396548 | CB27: ='D Rest incong'!BX28-'D Rest cong'!BX28 -> 0.3312435762 | CC27: ='D Rest incong'!BY28-'D Rest cong'!BY28 -> 0.9213141555 | CD27: ='D Rest incong'!BZ28-'D Rest cong'!BZ28 -> 0.5303128488 | CE27: ='D Rest incong'!CA28-'D Rest cong'!CA28 -> -0.5484560965 | CF27: ='D Rest incong'!CB28-'D Rest cong'!CB28 -> 0.3586903725 | CG27: ='D Rest incong'!CC28-'D Rest cong'!CC28 -> 0.8545625228 | CH27: ='D Rest incong'!CD28-'D Rest cong'!CD28 -> -0.3322696905 | CI27: ='D Rest incong'!CE28-'D Rest cong'!CE28 -> 0.1680876662 | CJ27: ='D Rest incong'!CF28-'D Rest cong'!CF28 -> -0.07683611499 | CK27: ='D Rest incong'!CG28-'D Rest cong'!CG28 -> -0.3268065017 | CL27: ='D Rest incong'!CH28-'D Rest cong'!CH28 -> -0.03983992894 | CM27: ='D Rest incong'!CI28-'D Rest cong'!CI28 -> 0.1449789911 | CN27: ='D Rest incong'!CJ28-'D Rest cong'!CJ28 -> 0.1046379258 | CO27: ='D Rest incong'!CK28-'D Rest cong'!CK28 -> -0.1380055246 | CP27: ='D Rest incong'!CL28-'D Rest cong'!CL28 -> 0.05133463274 | CQ27: ='D Rest incong'!CM28-'D Rest cong'!CM28 -> 0.3268356952 | CR27: ='D Rest incong'!CN28-'D Rest cong'!CN28 -> 0.04573198936 | CS27: ='D Rest incong'!CO28-'D Rest cong'!CO28 -> -0.350938898 | CT27: ='D Rest incong'!CP28-'D Rest cong'!CP28 -> -0.6986761352 | CU27: ='D Rest incong'!CQ28-'D Rest cong'!CQ28 -> 0.4413270121 | CV27: ='D Rest incong'!CR28-'D Rest cong'!CR28 -> -0.3235291196 | CW27: ='D Rest incong'!CS28-'D Rest cong'!CS28 -> -0.8929443021
A28: TP101 | B28: -1.30148469 | C28: oxyHb-task-A6 | D28: 1.619958796 | E28: diffHb-post-B8 | F28: ='D Rest incong'!B29-'D Rest cong'!B29 -> -0.5836110795 | G28: ='D Rest incong'!C29-'D Rest cong'!C29 -> -0.1556143063 | H28: ='D Rest incong'!D29-'D Rest cong'!D29 -> -0.3484281225 | I28: ='D Rest incong'!E29-'D Rest cong'!E29 -> -0.5240909969 | J28: ='D Rest incong'!F29-'D Rest cong'!F29 -> -0.6573591931 | K28: ='D Rest incong'!G29-'D Rest cong'!G29 -> -0.140287015 | L28: ='D Rest incong'!H29-'D Rest cong'!H29 -> -0.3331712859 | M28: ='D Rest incong'!I29-'D Rest cong'!I29 -> -0.5466840298 | N28: ='D Rest incong'!J29-'D Rest cong'!J29 -> 0.3457453724 | O28: ='D Rest incong'!K29-'D Rest cong'!K29 -> -0.8038476333 | P28: ='D Rest incong'!L29-'D Rest cong'!L29 -> 0.05512950903 | Q28: ='D Rest incong'!M29-'D Rest cong'!M29 -> 0.9339068723 | R28: ='D Rest incong'!N29-'D Rest cong'!N29 -> 0.07970705534 | S28: ='D Rest incong'!O29-'D Rest cong'!O29 -> -0.9076720588 | T28: ='D Rest incong'!P29-'D Rest cong'!P29 -> -0.2828352502 | U28: ='D Rest incong'!Q29-'D Rest cong'!Q29 -> 0.8354403927 | V28: ='D Rest incong'!R29-'D Rest cong'!R29 -> 0.09833503457 | W28: ='D Rest incong'!S29-'D Rest cong'!S29 -> 0.6391599721 | X28: ='D Rest incong'!T29-'D Rest cong'!T29 -> -0.3504270256 | Y28: ='D Rest incong'!U29-'D Rest cong'!U29 -> -0.4881872878 | Z28: ='D Rest incong'!V29-'D Rest cong'!V29 -> -0.04507590643 | AA28: ='D Rest incong'!W29-'D Rest cong'!W29 -> 0.7271288041 | AB28: ='D Rest incong'!X29-'D Rest cong'!X29 -> -0.381511941 | AC28: ='D Rest incong'!Y29-'D Rest cong'!Y29 -> -0.6679395564 | AD28: ='D Rest incong'!Z29-'D Rest cong'!Z29 -> -0.7907023116 | AE28: ='D Rest incong'!AA29-'D Rest cong'!AA29 -> -0.02803984456 | AF28: ='D Rest incong'!AB29-'D Rest cong'!AB29 -> -0.2779845917 | AG28: ='D Rest incong'!AC29-'D Rest cong'!AC29 -> -0.3003263181 | AH28: ='D Rest incong'!AD29-'D Rest cong'!AD29 -> -0.7275107568 | AI28: ='D Rest incong'!AE29-'D Rest cong'!AE29 -> -0.05931658578 | AJ28: ='D Rest incong'!AF29-'D Rest cong'!AF29 -> -0.241845263 | AK28: ='D Rest incong'!AG29-'D Rest cong'!AG29 -> -0.202869579 | AL28: ='D Rest incong'!AH29-'D Rest cong'!AH29 -> -0.3032548731 | AM28: ='D Rest incong'!AI29-'D Rest cong'!AI29 -> 0.1846104645 | AN28: ='D Rest incong'!AJ29-'D Rest cong'!AJ29 -> -1.806283724e-05 | AO28: ='D Rest incong'!AK29-'D Rest cong'!AK29 -> -0.6295869755 | AP28: ='D Rest incong'!AL29-'D Rest cong'!AL29 -> -0.5912686055 | AQ28: ='D Rest incong'!AM29-'D Rest cong'!AM29 -> 0.3638280454 | AR28: ='D Rest incong'!AN29-'D Rest cong'!AN29 -> -0.1670299766 | AS28: ='D Rest incong'!AO29-'D Rest cong'!AO29 -> -1.094415577 | AT28: ='D Rest incong'!AP29-'D Rest cong'!AP29 -> -1.30148469 | AU28: ='D Rest incong'!AQ29-'D Rest cong'!AQ29 -> 0.2892280884 | AV28: ='D Rest incong'!AR29-'D Rest cong'!AR29 -> -0.7448437729 | AW28: ='D Rest incong'!AS29-'D Rest cong'!AS29 -> -1.067386671 | AX28: ='D Rest incong'!AT29-'D Rest cong'!AT29 -> -1.089588022 | AY28: ='D Rest incong'!AU29-'D Rest cong'!AU29 -> 0.1991013663 | AZ28: ='D Rest incong'!AV29-'D Rest cong'!AV29 -> -0.6938216009 | BA28: ='D Rest incong'!AW29-'D Rest cong'!AW29 -> -0.8738310827 | BB28: ='D Rest incong'!AX29-'D Rest cong'!AX29 -> 0.5635862582 | BC28: ='D Rest incong'!AY29-'D Rest cong'!AY29 -> 0.2777784683 | BD28: ='D Rest incong'!AZ29-'D Rest cong'!AZ29 -> 0.1584853751 | BE28: ='D Rest incong'!BA29-'D Rest cong'!BA29 -> 0.2170899616 | BF28: ='D Rest incong'!BB29-'D Rest cong'!BB29 -> 0.1108808793 | BG28: ='D Rest incong'!BC29-'D Rest cong'!BC29 -> 0.4042087062 | BH28: ='D Rest incong'!BD29-'D Rest cong'!BD29 -> 0.02925381047 | BI28: ='D Rest incong'!BE29-'D Rest cong'!BE29 -> -0.1505508469 | BJ28: ='D Rest incong'!BF29-'D Rest cong'!BF29 -> -0.5361660983 | BK28: ='D Rest incong'!BG29-'D Rest cong'!BG29 -> -0.07838245453 | BL28: ='D Rest incong'!BH29-'D Rest cong'!BH29 -> -0.487338867 | BM28: ='D Rest incong'!BI29-'D Rest cong'!BI29 -> -0.4622560097 | BN28: ='D Rest incong'!BJ29-'D Rest cong'!BJ29 -> -0.240818421 | BO28: ='D Rest incong'!BK29-'D Rest cong'!BK29 -> -0.2618066285 | BP28: ='D Rest incong'!BL29-'D Rest cong'!BL29 -> -0.5729124088 | BQ28: ='D Rest incong'!BM29-'D Rest cong'!BM29 -> -0.1913604137 | BR28: ='D Rest incong'!BN29-'D Rest cong'!BN29 -> -0.3695720268 | BS28: ='D Rest incong'!BO29-'D Rest cong'!BO29 -> 0.2992768927 | BT28: ='D Rest incong'!BP29-'D Rest cong'!BP29 -> -0.4791207513 | BU28: ='D Rest incong'!BQ29-'D Rest cong'!BQ29 -> -0.3906701586 | BV28: ='D Rest incong'!BR29-'D Rest cong'!BR29 -> -0.7714942121 | BW28: ='D Rest incong'!BS29-'D Rest cong'!BS29 -> 0.4169323563 | BX28: ='D Rest incong'!BT29-'D Rest cong'!BT29 -> -0.5734415416 | BY28: ='D Rest incong'!BU29-'D Rest cong'!BU29 -> -0.7063135143 | BZ28: ='D Rest incong'!BV29-'D Rest cong'!BV29 -> -0.4046960604 | CA28: ='D Rest incong'!BW29-'D Rest cong'!BW29 -> -0.3536106984 | CB28: ='D Rest incong'!BX29-'D Rest cong'!BX29 -> 0.1996262819 | CC28: ='D Rest incong'!BY29-'D Rest cong'!BY29 -> 0.414055872 | CD28: ='D Rest incong'!BZ29-'D Rest cong'!BZ29 -> 0.1332285492 | CE28: ='D Rest incong'!CA29-'D Rest cong'!CA29 -> -0.4948960178 | CF28: ='D Rest incong'!CB29-'D Rest cong'!CB29 -> 0.3235102219 | CG28: ='D Rest incong'!CC29-'D Rest cong'!CC29 -> 0.7884760333 | CH28: ='D Rest incong'!CD29-'D Rest cong'!CD29 -> 0.7745119164 | CI28: ='D Rest incong'!CE29-'D Rest cong'!CE29 -> 0.5382601691 | CJ28: ='D Rest incong'!CF29-'D Rest cong'!CF29 -> 0.2480444509 | CK28: ='D Rest incong'!CG29-'D Rest cong'!CG29 -> 0.04118536799 | CL28: ='D Rest incong'!CH29-'D Rest cong'!CH29 -> 1.085076645 | CM28: ='D Rest incong'!CI29-'D Rest cong'!CI29 -> 0.5111199536 | CN28: ='D Rest incong'!CJ29-'D Rest cong'!CJ29 -> 0.4712640304 | CO28: ='D Rest incong'!CK29-'D Rest cong'!CK29 -> 0.2840573835 | CP28: ='D Rest incong'!CL29-'D Rest cong'!CL29 -> 0.194682194 | CQ28: ='D Rest incong'!CM29-'D Rest cong'!CM29 -> -0.5258418197 | CR28: ='D Rest incong'!CN29-'D Rest cong'!CN29 -> 0.1906532331 | CS28: ='D Rest incong'!CO29-'D Rest cong'!CO29 -> 0.6064564202 | CT28: ='D Rest incong'!CP29-'D Rest cong'!CP29 -> 0.9265055383 | CU28: ='D Rest incong'!CQ29-'D Rest cong'!CQ29 -> -0.9976086989 | CV28: ='D Rest incong'!CR29-'D Rest cong'!CR29 -> 0.40945448 | CW28: ='D Rest incong'!CS29-'D Rest cong'!CS29 -> 1.619958796
A29: TR101 | B29: -1.250768775 | C29: oxyHb-task-B2 | D29: 0.8423024837 | E29: diffHb-task-B8 | F29: ='D Rest incong'!B30-'D Rest cong'!B30 -> -0.1598401318 | G29: ='D Rest incong'!C30-'D Rest cong'!C30 -> -0.2827414352 | H29: ='D Rest incong'!D30-'D Rest cong'!D30 -> -0.1200617105 | I29: ='D Rest incong'!E30-'D Rest cong'!E30 -> 0.09293963659 | J29: ='D Rest incong'!F30-'D Rest cong'!F30 -> -0.2867726008 | K29: ='D Rest incong'!G30-'D Rest cong'!G30 -> -0.1051530718 | L29: ='D Rest incong'!H30-'D Rest cong'!H30 -> -0.06961958524 | M29: ='D Rest incong'!I30-'D Rest cong'!I30 -> -0.1845903323 | N29: ='D Rest incong'!J30-'D Rest cong'!J30 -> 0.1089346884 | O29: ='D Rest incong'!K30-'D Rest cong'!K30 -> 0.08719486592 | P29: ='D Rest incong'!L30-'D Rest cong'!L30 -> -0.08654319203 | Q29: ='D Rest incong'!M30-'D Rest cong'!M30 -> 0.1357174793 | R29: ='D Rest incong'!N30-'D Rest cong'!N30 -> -0.3702960497 | S29: ='D Rest incong'!O30-'D Rest cong'!O30 -> 0.2311533836 | T29: ='D Rest incong'!P30-'D Rest cong'!P30 -> -0.206964552 | U29: ='D Rest incong'!Q30-'D Rest cong'!Q30 -> -0.2406175701 | V29: ='D Rest incong'!R30-'D Rest cong'!R30 -> 0.1361478145 | W29: ='D Rest incong'!S30-'D Rest cong'!S30 -> 0.01373931027 | X29: ='D Rest incong'!T30-'D Rest cong'!T30 -> -0.04368020444 | Y29: ='D Rest incong'!U30-'D Rest cong'!U30 -> 0.08607273636 | Z29: ='D Rest incong'!V30-'D Rest cong'!V30 -> 0.4372043013 | AA29: ='D Rest incong'!W30-'D Rest cong'!W30 -> 0.05424757447 | AB29: ='D Rest incong'!X30-'D Rest cong'!X30 -> 0.2348895692 | AC29: ='D Rest incong'!Y30-'D Rest cong'!Y30 -> 0.264278565 | AD29: ='D Rest incong'!Z30-'D Rest cong'!Z30 -> -0.537607702 | AE29: ='D Rest incong'!AA30-'D Rest cong'!AA30 -> 0.1974234737 | AF29: ='D Rest incong'!AB30-'D Rest cong'!AB30 -> -0.6087134711 | AG29: ='D Rest incong'!AC30-'D Rest cong'!AC30 -> -0.6957559166 | AH29: ='D Rest incong'!AD30-'D Rest cong'!AD30 -> -0.2978407584 | AI29: ='D Rest incong'!AE30-'D Rest cong'!AE30 -> 0.2456457561 | AJ29: ='D Rest incong'!AF30-'D Rest cong'!AF30 -> -0.2337956891 | AK29: ='D Rest incong'!AG30-'D Rest cong'!AG30 -> -0.4995399301 | AL29: ='D Rest incong'!AH30-'D Rest cong'!AH30 -> -0.1636582957 | AM29: ='D Rest incong'!AI30-'D Rest cong'!AI30 -> -0.006614031311 | AN29: ='D Rest incong'!AJ30-'D Rest cong'!AJ30 -> -0.2610114845 | AO29: ='D Rest incong'!AK30-'D Rest cong'!AK30 -> -0.1099186004 | AP29: ='D Rest incong'!AL30-'D Rest cong'!AL30 -> 0.3619660409 | AQ29: ='D Rest incong'!AM30-'D Rest cong'!AM30 -> 0.01353689779 | AR29: ='D Rest incong'!AN30-'D Rest cong'!AN30 -> 0.1913951311 | AS29: ='D Rest incong'!AO30-'D Rest cong'!AO30 -> 0.2357963919 | AT29: ='D Rest incong'!AP30-'D Rest cong'!AP30 -> 0.4048972832 | AU29: ='D Rest incong'!AQ30-'D Rest cong'!AQ30 -> 0.2723026018 | AV29: ='D Rest incong'!AR30-'D Rest cong'!AR30 -> -0.5759778287 | AW29: ='D Rest incong'!AS30-'D Rest cong'!AS30 -> 0.02163193091 | AX29: ='D Rest incong'!AT30-'D Rest cong'!AT30 -> 0.4729792661 | AY29: ='D Rest incong'!AU30-'D Rest cong'!AU30 -> 0.07326657815 | AZ29: ='D Rest incong'!AV30-'D Rest cong'!AV30 -> -0.781990804 | BA29: ='D Rest incong'!AW30-'D Rest cong'!AW30 -> 0.2426874376 | BB29: ='D Rest incong'!AX30-'D Rest cong'!AX30 -> -0.1593512153 | BC29: ='D Rest incong'!AY30-'D Rest cong'!AY30 -> -0.1842199697 | BD29: ='D Rest incong'!AZ30-'D Rest cong'!AZ30 -> -0.2705320849 | BE29: ='D Rest incong'!BA30-'D Rest cong'!BA30 -> 0.2120400046 | BF29: ='D Rest incong'!BB30-'D Rest cong'!BB30 -> -0.7431878527 | BG29: ='D Rest incong'!BC30-'D Rest cong'!BC30 -> 0.004006683218 | BH29: ='D Rest incong'!BD30-'D Rest cong'!BD30 -> -0.6799514692 | BI29: ='D Rest incong'!BE30-'D Rest cong'!BE30 -> -0.4706732351 | BJ29: ='D Rest incong'!BF30-'D Rest cong'!BF30 -> -1.250768775 | BK29: ='D Rest incong'!BG30-'D Rest cong'!BG30 -> -0.1698958192 | BL29: ='D Rest incong'!BH30-'D Rest cong'!BH30 -> -0.7975256733 | BM29: ='D Rest incong'!BI30-'D Rest cong'!BI30 -> -0.1608254884 | BN29: ='D Rest incong'!BJ30-'D Rest cong'!BJ30 -> -0.5730416239 | BO29: ='D Rest incong'!BK30-'D Rest cong'!BK30 -> -0.1266147221 | BP29: ='D Rest incong'!BL30-'D Rest cong'!BL30 -> -0.3647668449 | BQ29: ='D Rest incong'!BM30-'D Rest cong'!BM30 -> 0.1711882472 | BR29: ='D Rest incong'!BN30-'D Rest cong'!BN30 -> -0.1098134627 | BS29: ='D Rest incong'!BO30-'D Rest cong'!BO30 -> -0.06141649049 | BT29: ='D Rest incong'!BP30-'D Rest cong'!BP30 -> -0.09252945704 | BU29: ='D Rest incong'!BQ30-'D Rest cong'!BQ30 -> -0.05124980011 | BV29: ='D Rest incong'!BR30-'D Rest cong'!BR30 -> -0.1747224459 | BW29: ='D Rest incong'!BS30-'D Rest cong'!BS30 -> -0.04138213321 | BX29: ='D Rest incong'!BT30-'D Rest cong'!BT30 -> -0.1381415863 | BY29: ='D Rest incong'!BU30-'D Rest cong'!BU30 -> -0.1295904702 | BZ29: ='D Rest incong'!BV30-'D Rest cong'!BV30 -> -0.04370284787 | CA29: ='D Rest incong'!BW30-'D Rest cong'!BW30 -> 0.189816429 | CB29: ='D Rest incong'!BX30-'D Rest cong'!BX30 -> -0.2082163466 | CC29: ='D Rest incong'!BY30-'D Rest cong'!BY30 -> -0.2313257481 | CD29: ='D Rest incong'!BZ30-'D Rest cong'!BZ30 -> 0.01390808659 | CE29: ='D Rest incong'!CA30-'D Rest cong'!CA30 -> 0.2404809062 | CF29: ='D Rest incong'!CB30-'D Rest cong'!CB30 -> -0.103363249 | CG29: ='D Rest incong'!CC30-'D Rest cong'!CC30 -> -0.2404058996 | CH29: ='D Rest incong'!CD30-'D Rest cong'!CD30 -> 0.352504544 | CI29: ='D Rest incong'!CE30-'D Rest cong'!CE30 -> -0.2586315179 | CJ29: ='D Rest incong'!CF30-'D Rest cong'!CF30 -> 0.0555399881 | CK29: ='D Rest incong'!CG30-'D Rest cong'!CG30 -> 0.691047695 | CL29: ='D Rest incong'!CH30-'D Rest cong'!CH30 -> 0.3615352017 | CM29: ='D Rest incong'!CI30-'D Rest cong'!CI30 -> -0.3410450252 | CN29: ='D Rest incong'!CJ30-'D Rest cong'!CJ30 -> -0.02945312485 | CO29: ='D Rest incong'!CK30-'D Rest cong'!CK30 -> 0.7720762021 | CP29: ='D Rest incong'!CL30-'D Rest cong'!CL30 -> 0.4931516414 | CQ29: ='D Rest incong'!CM30-'D Rest cong'!CM30 -> -0.7187543169 | CR29: ='D Rest incong'!CN30-'D Rest cong'!CN30 -> 0.3280942751 | CS29: ='D Rest incong'!CO30-'D Rest cong'!CO30 -> 0.8423024837 | CT29: ='D Rest incong'!CP30-'D Rest cong'!CP30 -> 0.2937128687 | CU29: ='D Rest incong'!CQ30-'D Rest cong'!CQ30 -> -0.6320467415 | CV29: ='D Rest incong'!CR30-'D Rest cong'!CR30 -> 0.2794085154 | CW29: ='D Rest incong'!CS30-'D Rest cong'!CS30 -> 0.6352650304
A30: YS102 | B30: -1.320138311 | C30: oxyHb-post-B2 | D30: 1.022464788 | E30: oxyHb-post-A6 | F30: ='D Rest incong'!B31-'D Rest cong'!B31 -> 0.6842764084 | G30: ='D Rest incong'!C31-'D Rest cong'!C31 -> 0.6142809457 | H30: ='D Rest incong'!D31-'D Rest cong'!D31 -> -0.1048574536 | I30: ='D Rest incong'!E31-'D Rest cong'!E31 -> -0.1393533736 | J30: ='D Rest incong'!F31-'D Rest cong'!F31 -> 0.2394607227 | K30: ='D Rest incong'!G31-'D Rest cong'!G31 -> 0.675561671 | L30: ='D Rest incong'!H31-'D Rest cong'!H31 -> -0.3234528519 | M30: ='D Rest incong'!I31-'D Rest cong'!I31 -> -0.4500056562 | N30: ='D Rest incong'!J31-'D Rest cong'!J31 -> -0.2273923 | O30: ='D Rest incong'!K31-'D Rest cong'!K31 -> -0.5112189592 | P30: ='D Rest incong'!L31-'D Rest cong'!L31 -> -0.04260811355 | Q30: ='D Rest incong'!M31-'D Rest cong'!M31 -> 0.1043905938 | R30: ='D Rest incong'!N31-'D Rest cong'!N31 -> -0.5264879246 | S30: ='D Rest incong'!O31-'D Rest cong'!O31 -> -0.414087605 | T30: ='D Rest incong'!P31-'D Rest cong'!P31 -> -0.1896903801 | U30: ='D Rest incong'!Q31-'D Rest cong'!Q31 -> -0.1973349768 | V30: ='D Rest incong'!R31-'D Rest cong'!R31 -> -0.2379599605 | W30: ='D Rest incong'!S31-'D Rest cong'!S31 -> -0.4889654327 | X30: ='D Rest incong'!T31-'D Rest cong'!T31 -> 0.489416576 | Y30: ='D Rest incong'!U31-'D Rest cong'!U31 -> -0.01152292166 | Z30: ='D Rest incong'!V31-'D Rest cong'!V31 -> -0.2636491227 | AA30: ='D Rest incong'!W31-'D Rest cong'!W31 -> -0.6223108993 | AB30: ='D Rest incong'!X31-'D Rest cong'!X31 -> 0.451871045 | AC30: ='D Rest incong'!Y31-'D Rest cong'!Y31 -> 0.2008341451 | AD30: ='D Rest incong'!Z31-'D Rest cong'!Z31 -> -0.5868516061 | AE30: ='D Rest incong'!AA31-'D Rest cong'!AA31 -> 0.1039589467 | AF30: ='D Rest incong'!AB31-'D Rest cong'!AB31 -> -0.242453275 | AG30: ='D Rest incong'!AC31-'D Rest cong'!AC31 -> -0.5091365573 | AH30: ='D Rest incong'!AD31-'D Rest cong'!AD31 -> -0.7506553576 | AI30: ='D Rest incong'!AE31-'D Rest cong'!AE31 -> 0.2843952873 | AJ30: ='D Rest incong'!AF31-'D Rest cong'!AF31 -> -0.1506434061 | AK30: ='D Rest incong'!AG31-'D Rest cong'!AG31 -> -0.7582428345 | AL30: ='D Rest incong'!AH31-'D Rest cong'!AH31 -> -0.03128734883 | AM30: ='D Rest incong'!AI31-'D Rest cong'!AI31 -> 0.4018422187 | AN30: ='D Rest incong'!AJ31-'D Rest cong'!AJ31 -> -0.1837336388 | AO30: ='D Rest incong'!AK31-'D Rest cong'!AK31 -> -0.5685012484 | AP30: ='D Rest incong'!AL31-'D Rest cong'!AL31 -> -0.3266779347 | AQ30: ='D Rest incong'!AM31-'D Rest cong'!AM31 -> 0.4796154596 | AR30: ='D Rest incong'!AN31-'D Rest cong'!AN31 -> -0.3226374229 | AS30: ='D Rest incong'!AO31-'D Rest cong'!AO31 -> -0.8408781457 | AT30: ='D Rest incong'!AP31-'D Rest cong'!AP31 -> 0.9282731327 | AU30: ='D Rest incong'!AQ31-'D Rest cong'!AQ31 -> 0.1766390351 | AV30: ='D Rest incong'!AR31-'D Rest cong'!AR31 -> 0.2561892723 | AW30: ='D Rest incong'!AS31-'D Rest cong'!AS31 -> 0.755697188 | AX30: ='D Rest incong'!AT31-'D Rest cong'!AT31 -> 1.022464788 | AY30: ='D Rest incong'!AU31-'D Rest cong'!AU31 -> 0.1580311743 | AZ30: ='D Rest incong'!AV31-'D Rest cong'!AV31 -> 0.3175618365 | BA30: ='D Rest incong'!AW31-'D Rest cong'!AW31 -> 0.8384026891 | BB30: ='D Rest incong'!AX31-'D Rest cong'!AX31 -> -0.938550672 | BC30: ='D Rest incong'!AY31-'D Rest cong'!AY31 -> -0.4188178729 | BD30: ='D Rest incong'!AZ31-'D Rest cong'!AZ31 -> -0.5201865757 | BE30: ='D Rest incong'!BA31-'D Rest cong'!BA31 -> -0.1964898718 | BF30: ='D Rest incong'!BB31-'D Rest cong'!BB31 -> -0.09223877775 | BG30: ='D Rest incong'!BC31-'D Rest cong'!BC31 -> -0.499648486 | BH30: ='D Rest incong'!BD31-'D Rest cong'!BD31 -> 0.04054847775 | BI30: ='D Rest incong'!BE31-'D Rest cong'!BE31 -> 0.4906009757 | BJ30: ='D Rest incong'!BF31-'D Rest cong'!BF31 -> -0.7121068471 | BK30: ='D Rest incong'!BG31-'D Rest cong'!BG31 -> -0.2881459963 | BL30: ='D Rest incong'!BH31-'D Rest cong'!BH31 -> -0.3558503094 | BM30: ='D Rest incong'!BI31-'D Rest cong'!BI31 -> -0.4052844317 | BN30: ='D Rest incong'!BJ31-'D Rest cong'!BJ31 -> -1.320138311 | BO30: ='D Rest incong'!BK31-'D Rest cong'!BK31 -> -0.2053694574 | BP30: ='D Rest incong'!BL31-'D Rest cong'!BL31 -> -0.7621347578 | BQ30: ='D Rest incong'!BM31-'D Rest cong'!BM31 -> -0.915654665 | BR30: ='D Rest incong'!BN31-'D Rest cong'!BN31 -> -0.01197385496 | BS30: ='D Rest incong'!BO31-'D Rest cong'!BO31 -> -0.2042585822 | BT30: ='D Rest incong'!BP31-'D Rest cong'!BP31 -> 0.2369635048 | BU30: ='D Rest incong'!BQ31-'D Rest cong'!BQ31 -> 0.3253850005 | BV30: ='D Rest incong'!BR31-'D Rest cong'!BR31 -> -0.3601000935 | BW30: ='D Rest incong'!BS31-'D Rest cong'!BS31 -> -0.2922472744 | BX30: ='D Rest incong'!BT31-'D Rest cong'!BT31 -> -0.0678174203 | BY30: ='D Rest incong'!BU31-'D Rest cong'!BU31 -> 0.2324403246 | BZ30: ='D Rest incong'!BV31-'D Rest cong'!BV31 -> 0.4229639743 | CA30: ='D Rest incong'!BW31-'D Rest cong'!BW31 -> -0.4830675805 | CB30: ='D Rest incong'!BX31-'D Rest cong'!BX31 -> 0.5502981986 | CC30: ='D Rest incong'!BY31-'D Rest cong'!BY31 -> 0.857461028 | CD30: ='D Rest incong'!BZ31-'D Rest cong'!BZ31 -> -0.07409695799 | CE30: ='D Rest incong'!CA31-'D Rest cong'!CA31 -> -0.4548188648 | CF30: ='D Rest incong'!CB31-'D Rest cong'!CB31 -> 0.2467685255 | CG30: ='D Rest incong'!CC31-'D Rest cong'!CC31 -> 0.5490299456 | CH30: ='D Rest incong'!CD31-'D Rest cong'!CD31 -> 0.2387525047 | CI30: ='D Rest incong'!CE31-'D Rest cong'!CE31 -> -0.1559967828 | CJ30: ='D Rest incong'!CF31-'D Rest cong'!CF31 -> 0.3617019924 | CK30: ='D Rest incong'!CG31-'D Rest cong'!CG31 -> 0.4239078014 | CL30: ='D Rest incong'!CH31-'D Rest cong'!CH31 -> -0.377925171 | CM30: ='D Rest incong'!CI31-'D Rest cong'!CI31 -> -0.03767658861 | CN30: ='D Rest incong'!CJ31-'D Rest cong'!CJ31 -> -0.02105355534 | CO30: ='D Rest incong'!CK31-'D Rest cong'!CK31 -> -0.1227789712 | CP30: ='D Rest incong'!CL31-'D Rest cong'!CL31 -> -0.2823104767 | CQ30: ='D Rest incong'!CM31-'D Rest cong'!CM31 -> -0.1369224489 | CR30: ='D Rest incong'!CN31-'D Rest cong'!CN31 -> -0.2179924249 | CS30: ='D Rest incong'!CO31-'D Rest cong'!CO31 -> -0.03752616826 | CT30: ='D Rest incong'!CP31-'D Rest cong'!CP31 -> -1.231526248 | CU30: ='D Rest incong'!CQ31-'D Rest cong'!CQ31 -> 0.2173323342 | CV30: ='D Rest incong'!CR31-'D Rest cong'!CR31 -> -0.5399307298 | CW30: ='D Rest incong'!CS31-'D Rest cong'!CS31 -> -0.9672212737
A31: KLA101 | B31: -89.03273065 | C31: diffHb-task-A6 | D31: 70.68836807 | E31: deoxyHb-task-A6 | F31: ='D Rest incong'!B21-'D Rest cong'!B21 -> -0.9341022401 | G31: ='D Rest incong'!C21-'D Rest cong'!C21 -> 0.02490172304 | H31: ='D Rest incong'!D21-'D Rest cong'!D21 -> -0.8861766467 | I31: ='D Rest incong'!E21-'D Rest cong'!E21 -> -0.529564477 | J31: ='D Rest incong'!F21-'D Rest cong'!F21 -> -1.756173927 | K31: ='D Rest incong'!G21-'D Rest cong'!G21 -> 0.08341588397 | L31: ='D Rest incong'!H21-'D Rest cong'!H21 -> -1.349239059 | M31: ='D Rest incong'!I21-'D Rest cong'!I21 -> -1.066587812 | N31: ='D Rest incong'!J21-'D Rest cong'!J21 -> -1.661987213 | O31: ='D Rest incong'!K21-'D Rest cong'!K21 -> 0.7920716099 | P31: ='D Rest incong'!L21-'D Rest cong'!L21 -> -0.5529800327 | Q31: ='D Rest incong'!M21-'D Rest cong'!M21 -> -1.595349357 | R31: ='D Rest incong'!N21-'D Rest cong'!N21 -> -1.442473056 | S31: ='D Rest incong'!O21-'D Rest cong'!O21 -> 0.8204085516 | T31: ='D Rest incong'!P21-'D Rest cong'!P21 -> -0.3298119037 | U31: ='D Rest incong'!Q21-'D Rest cong'!Q21 -> -1.481201963 | V31: ='D Rest incong'!R21-'D Rest cong'!R21 -> -0.399639917 | W31: ='D Rest incong'!S21-'D Rest cong'!S21 -> 0.1217933575 | X31: ='D Rest incong'!T21-'D Rest cong'!T21 -> -0.4010734054 | Y31: ='D Rest incong'!U21-'D Rest cong'!U21 -> -0.6036549522 | Z31: ='D Rest incong'!V21-'D Rest cong'!V21 -> -0.6866731032 | AA31: ='D Rest incong'!W21-'D Rest cong'!W21 -> -0.0648490214 | AB31: ='D Rest incong'!X21-'D Rest cong'!X21 -> -0.8836989398 | AC31: ='D Rest incong'!Y21-'D Rest cong'!Y21 -> -0.6966961164 | AD31: ='D Rest incong'!Z21-'D Rest cong'!Z21 -> -1.227843547 | AE31: ='D Rest incong'!AA21-'D Rest cong'!AA21 -> -0.746771503 | AF31: ='D Rest incong'!AB21-'D Rest cong'!AB21 -> -0.4923556281 | AG31: ='D Rest incong'!AC21-'D Rest cong'!AC21 -> 0.1988726768 | AH31: ='D Rest incong'!AD21-'D Rest cong'!AD21 -> -2.077949459 | AI31: ='D Rest incong'!AE21-'D Rest cong'!AE21 -> -0.632894894 | AJ31: ='D Rest incong'!AF21-'D Rest cong'!AF21 -> -0.8805433245 | AK31: ='D Rest incong'!AG21-'D Rest cong'!AG21 -> -0.3571319622 | AL31: ='D Rest incong'!AH21-'D Rest cong'!AH21 -> -0.103266778 | AM31: ='D Rest incong'!AI21-'D Rest cong'!AI21 -> -0.4556360518 | AN31: ='D Rest incong'!AJ21-'D Rest cong'!AJ21 -> 0.03960502948 | AO31: ='D Rest incong'!AK21-'D Rest cong'!AK21 -> 0.3178644881 | AP31: ='D Rest incong'!AL21-'D Rest cong'!AL21 -> -0.2288259475 | AQ31: ='D Rest incong'!AM21-'D Rest cong'!AM21 -> -0.1781585766 | AR31: ='D Rest incong'!AN21-'D Rest cong'!AN21 -> 0.2600894571 | AS31: ='D Rest incong'!AO21-'D Rest cong'!AO21 -> -0.009100789816 | AT31: ='D Rest incong'!AP21-'D Rest cong'!AP21 -> -66.33970273 | AU31: ='D Rest incong'!AQ21-'D Rest cong'!AQ21 -> 70.68836807 | AV31: ='D Rest incong'!AR21-'D Rest cong'!AR21 -> 60.59728687 | AW31: ='D Rest incong'!AS21-'D Rest cong'!AS21 -> -89.03273065 | AX31: ='D Rest incong'!AT21-'D Rest cong'!AT21 -> -0.8592401493 | AY31: ='D Rest incong'!AU21-'D Rest cong'!AU21 -> -0.7118609158 | AZ31: ='D Rest incong'!AV21-'D Rest cong'!AV21 -> -0.2514554682 | BA31: ='D Rest incong'!AW21-'D Rest cong'!AW21 -> 0.4907289446 | BB31: ='D Rest incong'!AX21-'D Rest cong'!AX21 -> -0.9170349322 | BC31: ='D Rest incong'!AY21-'D Rest cong'!AY21 -> 0.1596116656 | BD31: ='D Rest incong'!AZ21-'D Rest cong'!AZ21 -> -0.682404968 | BE31: ='D Rest incong'!BA21-'D Rest cong'!BA21 -> -0.619243384 | BF31: ='D Rest incong'!BB21-'D Rest cong'!BB21 -> -1.12107674 | BG31: ='D Rest incong'!BC21-'D Rest cong'!BC21 -> 0.2207594656 | BH31: ='D Rest incong'!BD21-'D Rest cong'!BD21 -> -0.6897320487 | BI31: ='D Rest incong'!BE21-'D Rest cong'!BE21 -> -0.7176894722 | BJ31: ='D Rest incong'!BF21-'D Rest cong'!BF21 -> -0.285586054 | BK31: ='D Rest incong'!BG21-'D Rest cong'!BG21 -> -0.2611589338 | BL31: ='D Rest incong'!BH21-'D Rest cong'!BH21 -> -0.7350075389 | BM31: ='D Rest incong'!BI21-'D Rest cong'!BI21 -> 0.1195006552 | BN31: ='D Rest incong'!BJ21-'D Rest cong'!BJ21 -> -0.2258237061 | BO31: ='D Rest incong'!BK21-'D Rest cong'!BK21 -> -0.2668420972 | BP31: ='D Rest incong'!BL21-'D Rest cong'!BL21 -> -0.7112597303 | BQ31: ='D Rest incong'!BM21-'D Rest cong'!BM21 -> 0.1569997562 | BR31: ='D Rest incong'!BN21-'D Rest cong'!BN21 -> -0.635495038 | BS31: ='D Rest incong'!BO21-'D Rest cong'!BO21 -> 0.5483336442 | BT31: ='D Rest incong'!BP21-'D Rest cong'!BP21 -> -0.2361558421 | BU31: ='D Rest incong'!BQ21-'D Rest cong'!BQ21 -> -1.006888349 | BV31: ='D Rest incong'!BR21-'D Rest cong'!BR21 -> -0.7995093753 | BW31: ='D Rest incong'!BS21-'D Rest cong'!BS21 -> 0.4851909398 | BX31: ='D Rest incong'!BT21-'D Rest cong'!BT21 -> -0.4292349119 | BY31: ='D Rest incong'!BU21-'D Rest cong'!BU21 -> -1.049267221 | BZ31: ='D Rest incong'!BV21-'D Rest cong'!BV21 -> -1.090084634 | CA31: ='D Rest incong'!BW21-'D Rest cong'!BW21 -> 0.05565721097 | CB31: ='D Rest incong'!BX21-'D Rest cong'!BX21 -> -0.673748992 | CC31: ='D Rest incong'!BY21-'D Rest cong'!BY21 -> -0.6068001389 | CD31: ='D Rest incong'!BZ21-'D Rest cong'!BZ21 -> -0.6322190438 | CE31: ='D Rest incong'!CA21-'D Rest cong'!CA21 -> -0.1616917332 | CF31: ='D Rest incong'!CB21-'D Rest cong'!CB21 -> -0.5956025815 | CG31: ='D Rest incong'!CC21-'D Rest cong'!CC21 -> -0.1464904861 | CH31: ='D Rest incong'!CD21-'D Rest cong'!CD21 -> -0.8606787833 | CI31: ='D Rest incong'!CE21-'D Rest cong'!CE21 -> 0.5290509808 | CJ31: ='D Rest incong'!CF21-'D Rest cong'!CF21 -> -0.8201186465 | CK31: ='D Rest incong'!CG21-'D Rest cong'!CG21 -> -1.278854136 | CL31: ='D Rest incong'!CH21-'D Rest cong'!CH21 -> -0.828893066 | CM31: ='D Rest incong'!CI21-'D Rest cong'!CI21 -> 0.3947314816 | CN31: ='D Rest incong'!CJ21-'D Rest cong'!CJ21 -> -0.9638168693 | CO31: ='D Rest incong'!CK21-'D Rest cong'!CK21 -> -1.147447051 | CP31: ='D Rest incong'!CL21-'D Rest cong'!CL21 -> -0.2569241941 | CQ31: ='D Rest incong'!CM21-'D Rest cong'!CM21 -> -0.07736802688 | CR31: ='D Rest incong'!CN21-'D Rest cong'!CN21 -> -0.229149157 | CS31: ='D Rest incong'!CO21-'D Rest cong'!CO21 -> -0.1495970134 | CT31: ='D Rest incong'!CP21-'D Rest cong'!CP21 -> -0.2748395028 | CU31: ='D Rest incong'!CQ21-'D Rest cong'!CQ21 -> -0.1342402915 | CV31: ='D Rest incong'!CR21-'D Rest cong'!CR21 -> -0.4156109071 | CW31: ='D Rest incong'!CS21-'D Rest cong'!CS21 -> -0.1798924669

Sheet D Rest incong
A1: ID | B1: Cohen's D-oxyHb-incong-deltatask-before-nonex-A1 | C1: Cohen's D-deoxyHb-incong-deltatask-before-nonex-A1 | D1: Cohen's D-totalHb-incong-deltatask-before-nonex-A1 | E1: Cohen's D-diffHb-incong-deltatask-before-nonex-A1 | F1: Cohen's D-oxyHb-incong-deltapost-before-nonex-A1 | G1: Cohen's D-deoxyHb-incong-deltapost-before-nonex-A1 | H1: Cohen's D-totalHb-incong-deltapost-before-nonex-A1 | I1: Cohen's D-diffHb-incong-deltapost-before-nonex-A1 | J1: Cohen's D-oxyHb-incong-deltatask-before-nonex-A2 | K1: Cohen's D-deoxyHb-incong-deltatask-before-nonex-A2 | L1: Cohen's D-totalHb-incong-deltatask-before-nonex-A2 | M1: Cohen's D-diffHb-incong-deltatask-before-nonex-A2 | N1: Cohen's D-oxyHb-incong-deltapost-before-nonex-A2 | O1: Cohen's D-deoxyHb-incong-deltapost-before-nonex-A2 | P1: Cohen's D-totalHb-incong-deltapost-before-nonex-A2 | Q1: Cohen's D-diffHb-incong-deltapost-before-nonex-A2 | R1: Cohen's D-oxyHb-incong-deltatask-before-nonex-A3 | S1: Cohen's D-deoxyHb-incong-deltatask-before-nonex-A3 | T1: Cohen's D-totalHb-incong-deltatask-before-nonex-A3 | U1: Cohen's D-diffHb-incong-deltatask-before-nonex-A3 | V1: Cohen's D-oxyHb-incong-deltapost-before-nonex-A3 | W1: Cohen's D-deoxyHb-incong-deltapost-before-nonex-A3 | X1: Cohen's D-totalHb-incong-deltapost-before-nonex-A3 | Y1: Cohen's D-diffHb-incong-deltapost-before-nonex-A3 | Z1: Cohen's D-oxyHb-incong-deltatask-before-nonex-A4 | AA1: Cohen's D-deoxyHb-incong-deltatask-before-nonex-A4 | AB1: Cohen's D-totalHb-incong-deltatask-before-nonex-A4 | AC1: Cohen's D-diffHb-incong-deltatask-before-nonex-A4 | AD1: Cohen's D-oxyHb-incong-deltapost-before-nonex-A4 | AE1: Cohen's D-deoxyHb-incong-deltapost-before-nonex-A4 | AF1: Cohen's D-totalHb-incong-deltapost-before-nonex-A4 | AG1: Cohen's D-diffHb-incong-deltapost-before-nonex-A4 | AH1: Cohen's D-oxyHb-incong-deltatask-before-nonex-A5 | AI1: Cohen's D-deoxyHb-incong-deltatask-before-nonex-A5 | AJ1: Cohen's D-totalHb-incong-deltatask-before-nonex-A5 | AK1: Cohen's D-diffHb-incong-deltatask-before-nonex-A5 | AL1: Cohen's D-oxyHb-incong-deltapost-before-nonex-A5 | AM1: Cohen's D-deoxyHb-incong-deltapost-before-nonex-A5 | AN1: Cohen's D-totalHb-incong-deltapost-before-nonex-A5 | AO1: Cohen's D-diffHb-incong-deltapost-before-nonex-A5 | AP1: Cohen's D-oxyHb-incong-deltatask-before-nonex-A6 | AQ1: Cohen's D-deoxyHb-incong-deltatask-before-nonex-A6 | AR1: Cohen's D-totalHb-incong-deltatask-before-nonex-A6 | AS1: Cohen's D-diffHb-incong-deltatask-before-nonex-A6 | AT1: Cohen's D-oxyHb-incong-deltapost-before-nonex-A6 | AU1: Cohen's D-deoxyHb-incong-deltapost-before-nonex-A6 | AV1: Cohen's D-totalHb-incong-deltapost-before-nonex-A6 | AW1: Cohen's D-diffHb-incong-deltapost-before-nonex-A6 | AX1: Cohen's D-oxyHb-incong-deltatask-before-nonex-B1 | AY1: Cohen's D-deoxyHb-incong-deltatask-before-nonex-B1 | AZ1: Cohen's D-totalHb-incong-deltatask-before-nonex-B1 | BA1: Cohen's D-diffHb-incong-deltatask-before-nonex-B1 | BB1: Cohen's D-oxyHb-incong-deltapost-before-nonex-B1 | BC1: Cohen's D-deoxyHb-incong-deltapost-before-nonex-B1 | BD1: Cohen's D-totalHb-incong-deltapost-before-nonex-B1 | BE1: Cohen's D-diffHb-incong-deltapost-before-nonex-B1 | BF1: Cohen's D-oxyHb-incong-deltatask-before-nonex-B2 | BG1: Cohen's D-deoxyHb-incong-deltatask-before-nonex-B2 | BH1: Cohen's D-totalHb-incong-deltatask-before-nonex-B2 | BI1: Cohen's D-diffHb-incong-deltatask-before-nonex-B2 | BJ1: Cohen's D-oxyHb-incong-deltapost-before-nonex-B2 | BK1: Cohen's D-deoxyHb-incong-deltapost-before-nonex-B2 | BL1: Cohen's D-totalHb-incong-deltapost-before-nonex-B2 | BM1: Cohen's D-diffHb-incong-deltapost-before-nonex-B2 | BN1: Cohen's D-oxyHb-incong-deltatask-before-nonex-B5 | BO1: Cohen's D-deoxyHb-incong-deltatask-before-nonex-B5 | BP1: Cohen's D-totalHb-incong-deltatask-before-nonex-B5 | BQ1: Cohen's D-diffHb-incong-deltatask-before-nonex-B5 | BR1: Cohen's D-oxyHb-incong-deltapost-before-nonex-B5 | BS1: Cohen's D-deoxyHb-incong-deltapost-before-nonex-B5 | BT1: Cohen's D-totalHb-incong-deltapost-before-nonex-B5 | BU1: Cohen's D-diffHb-incong-deltapost-before-nonex-B5 | BV1: Cohen's D-oxyHb-incong-deltatask-before-nonex-B6 | BW1: Cohen's D-deoxyHb-incong-deltatask-before-nonex-B6 | BX1: Cohen's D-totalHb-incong-deltatask-before-nonex-B6 | BY1: Cohen's D-diffHb-incong-deltatask-before-nonex-B6 | BZ1: Cohen's D-oxyHb-incong-deltapost-before-nonex-B6 | CA1: Cohen's D-deoxyHb-incong-deltapost-before-nonex-B6 | CB1: Cohen's D-totalHb-incong-deltapost-before-nonex-B6 | CC1: Cohen's D-diffHb-incong-deltapost-before-nonex-B6 | CD1: Cohen's D-oxyHb-incong-deltatask-before-nonex-B7 | CE1: Cohen's D-deoxyHb-incong-deltatask-before-nonex-B7 | CF1: Cohen's D-totalHb-incong-deltatask-before-nonex-B7 | CG1: Cohen's D-diffHb-incong-deltatask-before-nonex-B7 | CH1: Cohen's D-oxyHb-incong-deltapost-before-nonex-B7 | CI1: Cohen's D-deoxyHb-incong-deltapost-before-nonex-B7 | CJ1: Cohen's D-totalHb-incong-deltapost-before-nonex-B7 | CK1: Cohen's D-diffHb-incong-deltapost-before-nonex-B7 | CL1: Cohen's D-oxyHb-incong-deltatask-before-nonex-B8 | CM1: Cohen's D-deoxyHb-incong-deltatask-before-nonex-B8 | CN1: Cohen's D-totalHb-incong-deltatask-before-nonex-B8 | CO1: Cohen's D-diffHb-incong-deltatask-before-nonex-B8 | CP1: Cohen's D-oxyHb-incong-deltapost-before-nonex-B8 | CQ1: Cohen's D-deoxyHb-incong-deltapost-before-nonex-B8 | CR1: Cohen's D-totalHb-incong-deltapost-before-nonex-B8 | CS1: Cohen's D-diffHb-incong-deltapost-before-nonex-B8 | CT1: Cohen's D-oxyHb-incong-deltatask-before-nonex-C1 | CU1: Cohen's D-deoxyHb-incong-deltatask-before-nonex-C1 | CV1: Cohen's D-totalHb-incong-deltatask-before-nonex-C1 | CW1: Cohen's D-diffHb-incong-deltatask-before-nonex-C1 | CX1: Cohen's D-oxyHb-incong-deltapost-before-nonex-C1 | CY1: Cohen's D-deoxyHb-incong-deltapost-before-nonex-C1 | CZ1: Cohen's D-totalHb-incong-deltapost-before-nonex-C1 | DA1: Cohen's D-diffHb-incong-deltapost-before-nonex-C1 | DB1: Cohen's D-oxyHb-incong-deltatask-before-nonex-C2 | DC1: Cohen's D-deoxyHb-incong-deltatask-before-nonex-C2 | DD1: Cohen's D-totalHb-incong-deltatask-before-nonex-C2 | DE1: Cohen's D-diffHb-incong-deltatask-before-nonex-C2 | DF1: Cohen's D-oxyHb-incong-deltapost-before-nonex-C2 | DG1: Cohen's D-deoxyHb-incong-deltapost-before-nonex-C2 | DH1: Cohen's D-totalHb-incong-deltapost-before-nonex-C2 | DI1: Cohen's D-diffHb-incong-deltapost-before-nonex-C2 | DJ1: Cohen's D-oxyHb-incong-deltatask-before-nonex-C3 | DK1: Cohen's D-deoxyHb-incong-deltatask-before-nonex-C3 | DL1: Cohen's D-totalHb-incong-deltatask-before-nonex-C3 | DM1: Cohen's D-diffHb-incong-deltatask-before-nonex-C3 | DN1: Cohen's D-oxyHb-incong-deltapost-before-nonex-C3 | DO1: Cohen's D-deoxyHb-incong-deltapost-before-nonex-C3 | DP1: Cohen's D-totalHb-incong-deltapost-before-nonex-C3 | DQ1: Cohen's D-diffHb-incong-deltapost-before-nonex-C3 | DR1: Cohen's D-oxyHb-incong-deltatask-before-nonex-C4 | DS1: Cohen's D-deoxyHb-incong-deltatask-before-nonex-C4 | DT1: Cohen's D-totalHb-incong-deltatask-before-nonex-C4 | DU1: Cohen's D-diffHb-incong-deltatask-before-nonex-C4 | DV1: Cohen's D-oxyHb-incong-deltapost-before-nonex-C4 | DW1: Cohen's D-deoxyHb-incong-deltapost-before-nonex-C4 | DX1: Cohen's D-totalHb-incong-deltapost-before-nonex-C4 | DY1: Cohen's D-diffHb-incong-deltapost-before-nonex-C4 | DZ1: Cohen's D-oxyHb-incong-deltatask-before-nonex-C5 | EA1: Cohen's D-deoxyHb-incong-deltatask-before-nonex-C5 | EB1: Cohen's D-totalHb-incong-deltatask-before-nonex-C5 | EC1: Cohen's D-diffHb-incong-deltatask-before-nonex-C5 | ED1: Cohen's D-oxyHb-incong-deltapost-before-nonex-C5 | EE1: Cohen's D-deoxyHb-incong-deltapost-before-nonex-C5 | EF1: Cohen's D-totalHb-incong-deltapost-before-nonex-C5 | EG1: Cohen's D-diffHb-incong-deltapost-before-nonex-C5 | EH1: Cohen's D-oxyHb-incong-deltatask-before-nonex-C6 | EI1: Cohen's D-deoxyHb-incong-deltatask-before-nonex-C6 | EJ1: Cohen's D-totalHb-incong-deltatask-before-nonex-C6 | EK1: Cohen's D-diffHb-incong-deltatask-before-nonex-C6 | EL1: Cohen's D-oxyHb-incong-deltapost-before-nonex-C6 | EM1: Cohen's D-deoxyHb-incong-deltapost-before-nonex-C6 | EN1: Cohen's D-totalHb-incong-deltapost-before-nonex-C6 | EO1: Cohen's D-diffHb-incong-deltapost-before-nonex-C6 | EP1: Cohen's D-oxyHb-incong-deltatask-before-nonex-D1 | EQ1: Cohen's D-deoxyHb-incong-deltatask-before-nonex-D1 | ER1: Cohen's D-totalHb-incong-deltatask-before-nonex-D1 | ES1: Cohen's D-diffHb-incong-deltatask-before-nonex-D1 | ET1: Cohen's D-oxyHb-incong-deltapost-before-nonex-D1 | EU1: Cohen's D-deoxyHb-incong-deltapost-before-nonex-D1 | EV1: Cohen's D-totalHb-incong-deltapost-before-nonex-D1 | EW1: Cohen's D-diffHb-incong-deltapost-before-nonex-D1 | EX1: Cohen's D-oxyHb-incong-deltatask-before-nonex-D2 | EY1: Cohen's D-deoxyHb-incong-deltatask-before-nonex-D2 | EZ1: Cohen's D-totalHb-incong-deltatask-before-nonex-D2 | FA1: Cohen's D-diffHb-incong-deltatask-before-nonex-D2 | FB1: Cohen's D-oxyHb-incong-deltapost-before-nonex-D2 | FC1: Cohen's D-deoxyHb-incong-deltapost-before-nonex-D2 | FD1: Cohen's D-totalHb-incong-deltapost-before-nonex-D2 | FE1: Cohen's D-diffHb-incong-deltapost-before-nonex-D2 | FF1: Cohen's D-oxyHb-incong-deltatask-before-nonex-D5 | FG1: Cohen's D-deoxyHb-incong-deltatask-before-nonex-D5 | FH1: Cohen's D-totalHb-incong-deltatask-before-nonex-D5 | FI1: Cohen's D-diffHb-incong-deltatask-before-nonex-D5 | FJ1: Cohen's D-oxyHb-incong-deltapost-before-nonex-D5 | FK1: Cohen's D-deoxyHb-incong-deltapost-before-nonex-D5 | FL1: Cohen's D-totalHb-incong-deltapost-before-nonex-D5 | FM1: Cohen's D-diffHb-incong-deltapost-before-nonex-D5 | FN1: Cohen's D-oxyHb-incong-deltatask-before-nonex-D6 | FO1: Cohen's D-deoxyHb-incong-deltatask-before-nonex-D6 | FP1: Cohen's D-totalHb-incong-deltatask-before-nonex-D6 | FQ1: Cohen's D-diffHb-incong-deltatask-before-nonex-D6 | FR1: Cohen's D-oxyHb-incong-deltapost-before-nonex-D6 | FS1: Cohen's D-deoxyHb-incong-deltapost-before-nonex-D6 | FT1: Cohen's D-totalHb-incong-deltapost-before-nonex-D6 | FU1: Cohen's D-diffHb-incong-deltapost-before-nonex-D6 | FV1: Cohen's D-oxyHb-incong-deltatask-before-nonex-D7 | FW1: Cohen's D-deoxyHb-incong-deltatask-before-nonex-D7 | FX1: Cohen's D-totalHb-incong-deltatask-before-nonex-D7 | FY1: Cohen's D-diffHb-incong-deltatask-before-nonex-D7 | FZ1: Cohen's D-oxyHb-incong-deltapost-before-nonex-D7 | GA1: Cohen's D-deoxyHb-incong-deltapost-before-nonex-D7 | GB1: Cohen's D-totalHb-incong-deltapost-before-nonex-D7 | GC1: Cohen's D-diffHb-incong-deltapost-before-nonex-D7 | GD1: Cohen's D-oxyHb-incong-deltatask-before-nonex-D8 | GE1: Cohen's D-deoxyHb-incong-deltatask-before-nonex-D8 | GF1: Cohen's D-totalHb-incong-deltatask-before-nonex-D8 | GG1: Cohen's D-diffHb-incong-deltatask-before-nonex-D8 | GH1: Cohen's D-oxyHb-incong-deltapost-before-nonex-D8 | GI1: Cohen's D-deoxyHb-incong-deltapost-before-nonex-D8 | GJ1: Cohen's D-totalHb-incong-deltapost-before-nonex-D8 | GK1: Cohen's D-diffHb-incong-deltapost-before-nonex-D8 | GL1: Cohen's D-oxyHb-incong-deltatask-after-nonex-A1 | GM1: Cohen's D-deoxyHb-incong-deltatask-after-nonex-A1 | GN1: Cohen's D-totalHb-incong-deltatask-after-nonex-A1 | GO1: Cohen's D-diffHb-incong-deltatask-after-nonex-A1 | GP1: Cohen's D-oxyHb-incong-deltapost-after-nonex-A1 | GQ1: Cohen's D-deoxyHb-incong-deltapost-after-nonex-A1 | GR1: Cohen's D-totalHb-incong-deltapost-after-nonex-A1 | GS1: Cohen's D-diffHb-incong-deltapost-after-nonex-A1 | GT1: Cohen's D-oxyHb-incong-deltatask-after-nonex-A2 | GU1: Cohen's D-deoxyHb-incong-deltatask-after-nonex-A2 | GV1: Cohen's D-totalHb-incong-deltatask-after-nonex-A2 | GW1: Cohen's D-diffHb-incong-deltatask-after-nonex-A2 | GX1: Cohen's D-oxyHb-incong-deltapost-after-nonex-A2 | GY1: Cohen's D-deoxyHb-incong-deltapost-after-nonex-A2 | GZ1: Cohen's D-totalHb-incong-deltapost-after-nonex-A2 | HA1: Cohen's D-diffHb-incong-deltapost-after-nonex-A2 | HB1: Cohen's D-oxyHb-incong-deltatask-after-nonex-A3 | HC1: Cohen's D-deoxyHb-incong-deltatask-after-nonex-A3 | HD1: Cohen's D-totalHb-incong-deltatask-after-nonex-A3 | HE1: Cohen's D-diffHb-incong-deltatask-after-nonex-A3 | HF1: Cohen's D-oxyHb-incong-deltapost-after-nonex-A3 | HG1: Cohen's D-deoxyHb-incong-deltapost-after-nonex-A3 | HH1: Cohen's D-totalHb-incong-deltapost-after-nonex-A3 | HI1: Cohen's D-diffHb-incong-deltapost-after-nonex-A3 | HJ1: Cohen's D-oxyHb-incong-deltatask-after-nonex-A4 | HK1: Cohen's D-deoxyHb-incong-deltatask-after-nonex-A4 | HL1: Cohen's D-totalHb-incong-deltatask-after-nonex-A4 | HM1: Cohen's D-diffHb-incong-deltatask-after-nonex-A4 | HN1: Cohen's D-oxyHb-incong-deltapost-after-nonex-A4 | HO1: Cohen's D-deoxyHb-incong-deltapost-after-nonex-A4 | HP1: Cohen's D-totalHb-incong-deltapost-after-nonex-A4 | HQ1: Cohen's D-diffHb-incong-deltapost-after-nonex-A4 | HR1: Cohen's D-oxyHb-incong-deltatask-after-nonex-A5 | HS1: Cohen's D-deoxyHb-incong-deltatask-after-nonex-A5 | HT1: Cohen's D-totalHb-incong-deltatask-after-nonex-A5 | HU1: Cohen's D-diffHb-incong-deltatask-after-nonex-A5 | HV1: Cohen's D-oxyHb-incong-deltapost-after-nonex-A5 | HW1: Cohen's D-deoxyHb-incong-deltapost-after-nonex-A5 | HX1: Cohen's D-totalHb-incong-deltapost-after-nonex-A5 | HY1: Cohen's D-diffHb-incong-deltapost-after-nonex-A5 | HZ1: Cohen's D-oxyHb-incong-deltatask-after-nonex-A6 | IA1: Cohen's D-deoxyHb-incong-deltatask-after-nonex-A6 | IB1: Cohen's D-totalHb-incong-deltatask-after-nonex-A6 | IC1: Cohen's D-diffHb-incong-deltatask-after-nonex-A6 | ID1: Cohen's D-oxyHb-incong-deltapost-after-nonex-A6 | IE1: Cohen's D-deoxyHb-incong-deltapost-after-nonex-A6 | IF1: Cohen's D-totalHb-incong-deltapost-after-nonex-A6 | IG1: Cohen's D-diffHb-incong-deltapost-after-nonex-A6 | IH1: Cohen's D-oxyHb-incong-deltatask-after-nonex-B1 | II1: Cohen's D-deoxyHb-incong-deltatask-after-nonex-B1 | IJ1: Cohen's D-totalHb-incong-deltatask-after-nonex-B1 | IK1: Cohen's D-diffHb-incong-deltatask-after-nonex-B1 | IL1: Cohen's D-oxyHb-incong-deltapost-after-nonex-B1 | IM1: Cohen's D-deoxyHb-incong-deltapost-after-nonex-B1 | IN1: Cohen's D-totalHb-incong-deltapost-after-nonex-B1 | IO1: Cohen's D-diffHb-incong-deltapost-after-nonex-B1 | IP1: Cohen's D-oxyHb-incong-deltatask-after-nonex-B2 | IQ1: Cohen's D-deoxyHb-incong-deltatask-after-nonex-B2 | IR1: Cohen's D-totalHb-incong-deltatask-after-nonex-B2 | IS1: Cohen's D-diffHb-incong-deltatask-after-nonex-B2 | IT1: Cohen's D-oxyHb-incong-deltapost-after-nonex-B2 | IU1: Cohen's D-deoxyHb-incong-deltapost-after-nonex-B2 | IV1: Cohen's D-totalHb-incong-deltapost-after-nonex-B2 | IW1: Cohen's D-diffHb-incong-deltapost-after-nonex-B2 | IX1: Cohen's D-oxyHb-incong-deltatask-after-nonex-B5 | IY1: Cohen's D-deoxyHb-incong-deltatask-after-nonex-B5 | IZ1: Cohen's D-totalHb-incong-deltatask-after-nonex-B5 | JA1: Cohen's D-diffHb-incong-deltatask-after-nonex-B5 | JB1: Cohen's D-oxyHb-incong-deltapost-after-nonex-B5 | JC1: Cohen's D-deoxyHb-incong-deltapost-after-nonex-B5 | JD1: Cohen's D-totalHb-incong-deltapost-after-nonex-B5 | JE1: Cohen's D-diffHb-incong-deltapost-after-nonex-B5 | JF1: Cohen's D-oxyHb-incong-deltatask-after-nonex-B6 | JG1: Cohen's D-deoxyHb-incong-deltatask-after-nonex-B6 | JH1: Cohen's D-totalHb-incong-deltatask-after-nonex-B6 | JI1: Cohen's D-diffHb-incong-deltatask-after-nonex-B6 | JJ1: Cohen's D-oxyHb-incong-deltapost-after-nonex-B6 | JK1: Cohen's D-deoxyHb-incong-deltapost-after-nonex-B6 | JL1: Cohen's D-totalHb-incong-deltapost-after-nonex-B6 | JM1: Cohen's D-diffHb-incong-deltapost-after-nonex-B6 | JN1: Cohen's D-oxyHb-incong-deltatask-after-nonex-B7 | JO1: Cohen's D-deoxyHb-incong-deltatask-after-nonex-B7 | JP1: Cohen's D-totalHb-incong-deltatask-after-nonex-B7 | JQ1: Cohen's D-diffHb-incong-deltatask-after-nonex-B7 | JR1: Cohen's D-oxyHb-incong-deltapost-after-nonex-B7 | JS1: Cohen's D-deoxyHb-incong-deltapost-after-nonex-B7 | JT1: Cohen's D-totalHb-incong-deltapost-after-nonex-B7 | JU1: Cohen's D-diffHb-incong-deltapost-after-nonex-B7 | JV1: Cohen's D-oxyHb-incong-deltatask-after-nonex-B8 | JW1: Cohen's D-deoxyHb-incong-deltatask-after-nonex-B8 | JX1: Cohen's D-totalHb-incong-deltatask-after-nonex-B8 | JY1: Cohen's D-diffHb-incong-deltatask-after-nonex-B8 | JZ1: Cohen's D-oxyHb-incong-deltapost-after-nonex-B8 | KA1: Cohen's D-deoxyHb-incong-deltapost-after-nonex-B8 | KB1: Cohen's D-totalHb-incong-deltapost-after-nonex-B8 | KC1: Cohen's D-diffHb-incong-deltapost-after-nonex-B8 | KD1: Cohen's D-oxyHb-incong-deltatask-after-nonex-C1 | KE1: Cohen's D-deoxyHb-incong-deltatask-after-nonex-C1 | KF1: Cohen's D-totalHb-incong-deltatask-after-nonex-C1 | KG1: Cohen's D-diffHb-incong-deltatask-after-nonex-C1 | KH1: Cohen's D-oxyHb-incong-deltapost-after-nonex-C1 | KI1: Cohen's D-deoxyHb-incong-deltapost-after-nonex-C1 | KJ1: Cohen's D-totalHb-incong-deltapost-after-nonex-C1 | KK1: Cohen's D-diffHb-incong-deltapost-after-nonex-C1 | KL1: Cohen's D-oxyHb-incong-deltatask-after-nonex-C2 | KM1: Cohen's D-deoxyHb-incong-deltatask-after-nonex-C2 | KN1: Cohen's D-totalHb-incong-deltatask-after-nonex-C2 | KO1: Cohen's D-diffHb-incong-deltatask-after-nonex-C2 | KP1: Cohen's D-oxyHb-incong-deltapost-after-nonex-C2 | KQ1: Cohen's D-deoxyHb-incong-deltapost-after-nonex-C2 | KR1: Cohen's D-totalHb-incong-deltapost-after-nonex-C2 | KS1: Cohen's D-diffHb-incong-deltapost-after-nonex-C2 | KT1: Cohen's D-oxyHb-incong-deltatask-after-nonex-C3 | KU1: Cohen's D-deoxyHb-incong-deltatask-after-nonex-C3 | KV1: Cohen's D-totalHb-incong-deltatask-after-nonex-C3 | KW1: Cohen's D-diffHb-incong-deltatask-after-nonex-C3 | KX1: Cohen's D-oxyHb-incong-deltapost-after-nonex-C3 | KY1: Cohen's D-deoxyHb-incong-deltapost-after-nonex-C3 | KZ1: Cohen's D-totalHb-incong-deltapost-after-nonex-C3 | LA1: Cohen's D-diffHb-incong-deltapost-after-nonex-C3 | LB1: Cohen's D-oxyHb-incong-deltatask-after-nonex-C4 | LC1: Cohen's D-deoxyHb-incong-deltatask-after-nonex-C4 | LD1: Cohen's D-totalHb-incong-deltatask-after-nonex-C4 | LE1: Cohen's D-diffHb-incong-deltatask-after-nonex-C4 | LF1: Cohen's D-oxyHb-incong-deltapost-after-nonex-C4 | LG1: Cohen's D-deoxyHb-incong-deltapost-after-nonex-C4 | LH1: Cohen's D-totalHb-incong-deltapost-after-nonex-C4 | LI1: Cohen's D-diffHb-incong-deltapost-after-nonex-C4 | LJ1: Cohen's D-oxyHb-incong-deltatask-after-nonex-C5 | LK1: Cohen's D-deoxyHb-incong-deltatask-after-nonex-C5 | LL1: Cohen's D-totalHb-incong-deltatask-after-nonex-C5 | LM1: Cohen's D-diffHb-incong-deltatask-after-nonex-C5 | LN1: Cohen's D-oxyHb-incong-deltapost-after-nonex-C5 | LO1: Cohen's D-deoxyHb-incong-deltapost-after-nonex-C5 | LP1: Cohen's D-totalHb-incong-deltapost-after-nonex-C5 | LQ1: Cohen's D-diffHb-incong-deltapost-after-nonex-C5 | LR1: Cohen's D-oxyHb-incong-deltatask-after-nonex-C6 | LS1: Cohen's D-deoxyHb-incong-deltatask-after-nonex-C6 | LT1: Cohen's D-totalHb-incong-deltatask-after-nonex-C6 | LU1: Cohen's D-diffHb-incong-deltatask-after-nonex-C6 | LV1: Cohen's D-oxyHb-incong-deltapost-after-nonex-C6 | LW1: Cohen's D-deoxyHb-incong-deltapost-after-nonex-C6 | LX1: Cohen's D-totalHb-incong-deltapost-after-nonex-C6 | LY1: Cohen's D-diffHb-incong-deltapost-after-nonex-C6 | LZ1: Cohen's D-oxyHb-incong-deltatask-after-nonex-D1 | MA1: Cohen's D-deoxyHb-incong-deltatask-after-nonex-D1 | MB1: Cohen's D-totalHb-incong-deltatask-after-nonex-D1 | MC1: Cohen's D-diffHb-incong-deltatask-after-nonex-D1 | MD1: Cohen's D-oxyHb-incong-deltapost-after-nonex-D1 | ME1: Cohen's D-deoxyHb-incong-deltapost-after-nonex-D1 | MF1: Cohen's D-totalHb-incong-deltapost-after-nonex-D1 | MG1: Cohen's D-diffHb-incong-deltapost-after-nonex-D1 | MH1: Cohen's D-oxyHb-incong-deltatask-after-nonex-D2 | MI1: Cohen's D-deoxyHb-incong-deltatask-after-nonex-D2 | MJ1: Cohen's D-totalHb-incong-deltatask-after-nonex-D2 | MK1: Cohen's D-diffHb-incong-deltatask-after-nonex-D2 | ML1: Cohen's D-oxyHb-incong-deltapost-after-nonex-D2 | MM1: Cohen's D-deoxyHb-incong-deltapost-after-nonex-D2 | MN1: Cohen's D-totalHb-incong-deltapost-after-nonex-D2 | MO1: Cohen's D-diffHb-incong-deltapost-after-nonex-D2 | MP1: Cohen's D-oxyHb-incong-deltatask-after-nonex-D5 | MQ1: Cohen's D-deoxyHb-incong-deltatask-after-nonex-D5 | MR1: Cohen's D-totalHb-incong-deltatask-after-nonex-D5 | MS1: Cohen's D-diffHb-incong-deltatask-after-nonex-D5 | MT1: Cohen's D-oxyHb-incong-deltapost-after-nonex-D5 | MU1: Cohen's D-deoxyHb-incong-deltapost-after-nonex-D5 | MV1: Cohen's D-totalHb-incong-deltapost-after-nonex-D5 | MW1: Cohen's D-diffHb-incong-deltapost-after-nonex-D5 | MX1: Cohen's D-oxyHb-incong-deltatask-after-nonex-D6 | MY1: Cohen's D-deoxyHb-incong-deltatask-after-nonex-D6 | MZ1: Cohen's D-totalHb-incong-deltatask-after-nonex-D6 | NA1: Cohen's D-diffHb-incong-deltatask-after-nonex-D6 | NB1: Cohen's D-oxyHb-incong-deltapost-after-nonex-D6 | NC1: Cohen's D-deoxyHb-incong-deltapost-after-nonex-D6 | ND1: Cohen's D-totalHb-incong-deltapost-after-nonex-D6 | NE1: Cohen's D-diffHb-incong-deltapost-after-nonex-D6 | NF1: Cohen's D-oxyHb-incong-deltatask-after-nonex-D7 | NG1: Cohen's D-deoxyHb-incong-deltatask-after-nonex-D7 | NH1: Cohen's D-totalHb-incong-deltatask-after-nonex-D7 | NI1: Cohen's D-diffHb-incong-deltatask-after-nonex-D7 | NJ1: Cohen's D-oxyHb-incong-deltapost-after-nonex-D7 | NK1: Cohen's D-deoxyHb-incong-deltapost-after-nonex-D7 | NL1: Cohen's D-totalHb-incong-deltapost-after-nonex-D7 | NM1: Cohen's D-diffHb-incong-deltapost-after-nonex-D7 | NN1: Cohen's D-oxyHb-incong-deltatask-after-nonex-D8 | NO1: Cohen's D-deoxyHb-incong-deltatask-after-nonex-D8 | NP1: Cohen's D-totalHb-incong-deltatask-after-nonex-D8 | NQ1: Cohen's D-diffHb-incong-deltatask-after-nonex-D8 | NR1: Cohen's D-oxyHb-incong-deltapost-after-nonex-D8 | NS1: Cohen's D-deoxyHb-incong-deltapost-after-nonex-D8 | NT1: Cohen's D-totalHb-incong-deltapost-after-nonex-D8 | NU1: Cohen's D-diffHb-incong-deltapost-after-nonex-D8
A2: AA102 | B2: 0.2591034468 | C2: 0.1808037996 | D2: 0.3719065921 | E2: -0.02522559593 | F2: -0.1101569344 | G2: 0.1453404979 | H2: 0.05861662357 | I2: -0.2313909249 | J2: -0.1364326502 | K2: -0.2167477517 | L2: -0.01794792556 | M2: 0.3241725492 | N2: -0.1539837628 | O2: -0.282327453 | P2: -0.1043184266 | Q2: 0.363341368 | R2: 0.2145853241 | S2: 0.2333008667 | T2: 0.1845689404 | U2: -0.08780777781 | V2: -0.2880171941 | W2: 0.1851265738 | X2: -0.2801631266 | Y2: -0.3965549212 | Z2: -0.2382376612 | AA2: 0.06178954982 | AB2: -0.2199563765 | AC2: -0.1308717193 | AD2: -0.4631606392 | AE2: 0.0575108806 | AF2: -0.4230898053 | AG2: -0.293735918 | AH2: 0.4049943183 | AI2: -0.1962791552 | AJ2: 0.01698109292 | AK2: 0.7641823992 | AL2: 0.06521107869 | AM2: -0.2636141378 | AN2: -0.3425548368 | AO2: 0.5652328267 | AP2: 0.3994484769 | AQ2: 0.6475042033 | AR2: 0.8533513568 | AS2: -0.6216505915 | AT2: -0.3713283829 | AU2: -0.008586667812 | AV2: -0.1669918875 | AW2: -0.6125456074 | AX2: 0.7260874945 | AY2: 0.1181502185 | AZ2: 1.189550459 | BA2: 0.2531179774 | BB2: 0.8280645779 | BC2: 0.2086872378 | BD2: 1.367613831 | BE2: 0.2468794855 | BF2: 1.706063044 | BG2: 1.140878303 | BH2: 1.379396234 | BI2: 0.8541630626 | BJ2: 1.278107926 | BK2: 0.860873169 | BL2: 0.805855216 | BM2: 0.792315912 | BN2: 0.3804913625 | BO2: -0.1052455543 | BP2: 0.3160145686 | BQ2: 0.399668737 | BR2: -0.01564634193 | BS2: -0.1380183705 | BT2: -0.05317588977 | BU2: 0.1359693058 | BV2: 0.4273709153 | BW2: 0.1708919458 | BX2: 0.7475425382 | BY2: -0.06363434677 | BZ2: 0.009300716605 | CA2: 0.1209072737 | CB2: 0.2863139215 | CC2: -0.3536007497 | CD2: 0.2252375691 | CE2: -0.1167473237 | CF2: 0.1111922495 | CG2: 0.4272699692 | CH2: 0.2830474727 | CI2: -0.1771776758 | CJ2: 0.08131028337 | CK2: 0.5197372277 | CL2: 0.3115849132 | CM2: -0.02488547431 | CN2: 0.158074191 | CO2: 0.3472728835 | CP2: 0.159619416 | CQ2: -0.01134985323 | CR2: 0.05237547834 | CS2: 0.2271542267 | CT2: -0.08951722607 | CU2: -0.4678799818 | CV2: 0.127327406 | CW2: 0.3551244756 | CX2: -0.2210919045 | CY2: -0.4641470296 | CZ2: 0.01629187797 | DA2: 0.2537838533 | DB2: 0.04299654606 | DC2: -0.02496687051 | DD2: -0.1948459334 | DE2: 0.1700861482 | DF2: 0.05245696204 | DG2: -0.1573909705 | DH2: -0.3100774431 | DI2: 0.2626950357 | DJ2: -0.1097799203 | DK2: 0.4990065854 | DL2: -0.2205619691 | DM2: -0.5355637771 | DN2: 0.1776725898 | DO2: 0.5024782479 | DP2: 0.02538548792 | DQ2: -0.3308140532 | DR2: -0.2992521826 | DS2: 0.03204232221 | DT2: -0.1845672968 | DU2: -0.2181823174 | DV2: -0.09524359663 | DW2: -0.0392691179 | DX2: -0.0882790456 | DY2: -0.01150844611 | DZ2: -0.1493449953 | EA2: -0.08361994643 | EB2: -0.14912742 | EC2: 0.08656907495 | ED2: -0.3306717682 | EE2: -0.05338052397 | EF2: -0.2598863646 | EG2: -0.06366508559 | EH2: 0.304049233 | EI2: -0.3013885808 | EJ2: 0.1675055806 | EK2: 0.5664040035 | EL2: -0.008476796472 | EM2: -0.2133444905 | EN2: 0.01337564084 | EO2: 0.2864793185 | EP2: 0.03260528501 | EQ2: -0.02862031242 | ER2: 0.006738382389 | ES2: -0.04913144147 | ET2: -0.05371828458 | EU2: 0.04475520502 | EV2: 0.007695419106 | EW2: -0.1823342177 | EX2: -0.2342235803 | EY2: 0.1942281262 | EZ2: -0.2900793218 | FA2: -0.4410176533 | FB2: 0.2385881234 | FC2: 0.08785012985 | FD2: 0.0863779252 | FE2: 0.04957130959 | FF2: -0.0646793826 | FG2: -0.1189066775 | FH2: -0.03537249728 | FI2: -0.02831918745 | FJ2: -0.07579949093 | FK2: -0.01835901962 | FL2: 0.06466323111 | FM2: -0.1302795565 | FN2: 0.03923502751 | FO2: -0.2040398412 | FP2: 0.08711993294 | FQ2: 0.2920745429 | FR2: 0.1687483629 | FS2: -0.2063747354 | FT2: 0.1746607344 | FU2: 0.3698852787 | FV2: 0.03846922067 | FW2: 0.1236694696 | FX2: -0.197041782 | FY2: 0.09686703763 | FZ2: 0.166638514 | GA2: 0.1684480856 | GB2: -0.0456746487 | GC2: 0.1413369833 | GD2: 0.05551597142 | GE2: 0.116468172 | GF2: -0.1221568438 | GG2: 0.04794256062 | GH2: 0.2478923111 | GI2: 0.08043317945 | GJ2: -0.01565691536 | GK2: 0.2084103045 | GL2: -0.1054873672 | GM2: 0.1935474013 | GN2: -0.01736903914 | GO2: -0.5199101588 | GP2: -0.3793448367 | GQ2: 0.2500844291 | GR2: -0.2556516661 | GS2: -0.8205684618 | GT2: -0.6674198795 | GU2: 0.3150094001 | GV2: -0.4703890178 | GW2: -0.6845057177 | GX2: -0.5628263202 | GY2: 0.2860038974 | GZ2: -0.4209453644 | HA2: -0.5856778713 | HB2: -0.2657904295 | HC2: 0.4707744367 | HD2: -0.356805879 | HE2: -0.5958129455 | HF2: -0.5768853043 | HG2: 0.3141588481 | HH2: -0.79254687 | HI2: -0.6958430229 | HJ2: -0.4916598367 | HK2: 0.8187243842 | HL2: -0.2581620125 | HM2: -0.9123630011 | HN2: -0.3214177887 | HO2: 0.7691973151 | HP2: -0.2053352534 | HQ2: -0.767683376 | HR2: -0.243326044 | HS2: 0.2820551766 | HT2: -0.7472968695 | HU2: -0.03704455842 | HV2: -0.03075003366 | HW2: 0.2099465949 | HX2: -0.6834122211 | HY2: 0.1647120127 | HZ2: -0.3611320387 | IA2: 0.047099046 | IB2: -0.04782999534 | IC2: -0.4396164652 | ID2: -0.2410046899 | IE2: -0.3253278221 | IF2: -0.24186927 | IG2: -0.03407175642 | IH2: 1.106532413 | II2: 0.3962134317 | IJ2: 1.185401119 | IK2: 0.4819383194 | IL2: 0.5737764479 | IM2: 0.315233793 | IN2: 0.6801278879 | IO2: 0.1354163448 | IP2: 1.568736672 | IQ2: 0.599907014 | IR2: 1.778961861 | IS2: 0.7394411294 | IT2: 1.743835609 | IU2: 0.5947303916 | IV2: 1.922737872 | IW2: 0.8814484022 | IX2: 0.2111908191 | IY2: 0.2553417195 | IZ2: 0.15974726 | JA2: -0.00703241492 | JB2: 0.5491201058 | JC2: 0.1242992424 | JD2: 0.2592974789 | JE2: 0.3399041663 | JF2: 0.2164689276 | JG2: 0.1642842064 | JH2: 0.3183427706 | JI2: 0.1585844763 | JJ2: 0.08740628828 | JK2: 0.03981666552 | JL2: 0.06455375749 | JM2: 0.1649815623 | JN2: 0.1857990192 | JO2: 0.5451682161 | JP2: 0.03933672161 | JQ2: 0.003384462279 | JR2: 0.1322951484 | JS2: 0.4589358644 | JT2: -0.09775620071 | JU2: 0.03844400818 | JV2: 0.6004213543 | JW2: 0.07075577972 | JX2: 0.2337486103 | JY2: 0.4906934817 | JZ2: 0.323535655 | KA2: 0.240307213 | KB2: 0.1291944281 | KC2: 0.102209523 | KD2: 0.1176850086 | KE2: -0.4916272881 | KF2: 0.2956149524 | KG2: 0.4205214944 | KH2: 0.08689063712 | KI2: -0.4817219324 | KJ2: 0.2790881989 | KK2: 0.3869112829 | KL2: -0.1638522283 | KM2: -0.5584150723 | KN2: -0.5315992772 | KO2: 0.7812083917 | KP2: -0.1375429154 | KQ2: -0.4600981561 | KR2: -0.4279567835 | KS2: 0.7201946148 | KT2: 0.09981889655 | KU2: -0.448661816 | KV2: 0.1098708633 | KW2: 0.5065736984 | KX2: 0.196868969 | KY2: -0.5271631636 | KZ2: 0.1105939269 | LA2: 0.6499035655 | LB2: 0.1370480015 | LC2: 0.1336577324 | LD2: 0.002894090219 | LE2: 0.05898813257 | LF2: -0.2482892165 | LG2: 0.1980228672 | LH2: -0.2433319264 | LI2: -0.2681162099 | LJ2: -0.1565361078 | LK2: 0.4759256206 | LL2: -0.2108895307 | LM2: -0.6122411422 | LN2: -0.1034568867 | LO2: 0.4245037067 | LP2: -0.2105181145 | LQ2: -0.5214553721 | LR2: 0.05698049993 | LS2: -0.1531240621 | LT2: 0.08679827436 | LU2: 0.2396205072 | LV2: 0.254808543 | LW2: -0.1571840994 | LX2: 0.254759335 | LY2: 0.3814389495 | LZ2: -0.03232342933 | MA2: -0.08104938931 | MB2: 0.002780806492 | MC2: -0.02197705846 | MD2: 0.001421245512 | ME2: -0.05906064335 | MF2: 0.06245190192 | MG2: -0.01052323264 | MH2: -0.1468199739 | MI2: -0.03597036558 | MJ2: -0.2046888412 | MK2: 0.06705919757 | ML2: -0.1936025323 | MM2: -0.006263888212 | MN2: -0.2071120197 | MO2: 0.01001288649 | MP2: 0.000373270303 | MQ2: -0.2393550407 | MR2: -0.06320169516 | MS2: 0.2656143268 | MT2: 0.2547900732 | MU2: -0.3074489952 | MV2: 0.08893531086 | MW2: 0.5229178532 | MX2: -0.1673952878 | MY2: -0.008232786721 | MZ2: -0.1012423119 | NA2: -0.1994239277 | NB2: -0.2062684604 | NC2: 0.08074312112 | ND2: -0.04218893785 | NE2: -0.3111995532 | NF2: 0.2853572289 | NG2: 0.0258975797 | NH2: 0.04081390126 | NI2: 0.1999270057 | NJ2: 0.1318584214 | NK2: 0.04965189534 | NL2: -0.03407634838 | NM2: 0.08797979699 | NN2: -0.08414939316 | NO2: -0.2520708803 | NP2: -0.0946617215 | NQ2: 0.170796141 | NR2: 0.003441850713 | NS2: -0.2272606041 | NT2: 0.01018957142 | NU2: 0.2139848679
A3: CJ101 | B3: -0.6793404228 | C3: 0.03819023977 | D3: -0.5535910255 | E3: -0.4314121011 | F3: -0.5362061175 | G3: -0.07584914199 | H3: -0.5505141947 | I3: -0.2144943077 | J3: -0.5803811382 | K3: -0.1943706678 | L3: -0.1426493946 | M3: -0.1793043126 | N3: -1.170523111 | O3: -0.02252823334 | P3: -0.2682774235 | Q3: -0.6477589591 | R3: -0.4440829087 | S3: 0.3873660472 | T3: -0.3403374174 | U3: -0.487458301 | V3: -0.5995774743 | W3: 0.4965346314 | X3: -0.3056013182 | Y3: -0.672020454 | Z3: -1.252652143 | AA3: -0.07064936863 | AB3: -0.6706357971 | AC3: -0.5862491542 | AD3: -1.08587318 | AE3: 0.00131810914 | AF3: -0.4887737073 | AG3: -0.5702873628 | AH3: -0.07614504912 | AI3: 0.2166496759 | AJ3: 0.1862242032 | AK3: -0.2757185373 | AL3: -0.1420006927 | AM3: 0.2367738612 | AN3: 0.1715522073 | AO3: -0.3297121643 | AP3: -9.499578666e-05 | AQ3: -0.1945207283 | AR3: -0.2229143048 | AS3: 0.210287984 | AT3: -0.07811512311 | AU3: -0.05704510801 | AV3: -0.1395468992 | AW3: 0.02572695579 | AX3: -0.666261179 | AY3: 0.03766671452 | AZ3: -0.6517674867 | BA3: -0.4743156038 | BB3: -0.7730454138 | BC3: 0.0726240946 | BD3: -0.6764278578 | BE3: -0.5654096984 | BF3: -0.8080646102 | BG3: -0.4403671445 | BH3: -0.4269826396 | BI3: -0.3305182782 | BJ3: -0.4646034906 | BK3: -0.5367252999 | BL3: -0.2402075119 | BM3: 0.0242480438 | BN3: -0.5358126842 | BO3: 0.06988052022 | BP3: -0.2391994457 | BQ3: -0.4046003009 | BR3: -0.2357467597 | BS3: -0.02649631961 | BT3: -0.1253478835 | BU3: -0.11209134 | BV3: -0.09267805083 | BW3: -0.2483327832 | BX3: -0.1666268817 | BY3: 0.1999006319 | BZ3: -0.361616159 | CA3: -0.1507671991 | CB3: -0.2506411225 | CC3: -0.05222746607 | CD3: 0.140487323 | CE3: -0.1495741585 | CF3: 0.2480003906 | CG3: 0.2919517164 | CH3: 0.02537203551 | CI3: -0.1798769571 | CJ3: 0.1316053458 | CK3: 0.2518840559 | CL3: -0.7655541049 | CM3: -0.1520503588 | CN3: -0.3457256367 | CO3: -0.6072892082 | CP3: -0.4928470984 | CQ3: -0.1718066293 | CR3: -0.1135109312 | CS3: -0.3615107951 | CT3: 0.2690038253 | CU3: -0.2229032585 | CV3: 0.1876881566 | CW3: 0.4362636755 | CX3: 0.01241652679 | CY3: -0.19907254 | CZ3: 0.03978065845 | DA3: 0.2661329209 | DB3: -0.06080052982 | DC3: 0.4971170638 | DD3: 0.2215213116 | DE3: -0.6351221783 | DF3: 0.02568198354 | DG3: 0.4771887571 | DH3: 0.2338242868 | DI3: -0.5938543406 | DJ3: 0.5541160762 | DK3: 0.2441290804 | DL3: 0.4006845386 | DM3: 0.1250039331 | DN3: 0.7556911103 | DO3: 0.219659464 | DP3: 0.5557713881 | DQ3: 0.2945096089 | DR3: 0.3349262357 | DS3: 0.323965607 | DT3: 0.007879451747 | DU3: -0.182160799 | DV3: 0.1434076842 | DW3: 0.3500760374 | DX3: -0.06880485247 | DY3: -0.3013450095 | DZ3: 0.09285482397 | EA3: -0.07445871385 | EB3: -0.279688546 | EC3: 0.1738263894 | ED3: 0.3555764961 | EE3: 0.2040417706 | EF3: 0.2019956258 | EG3: 0.05676009902 | EH3: -0.2466637029 | EI3: 0.0266373944 | EJ3: 0.1979282162 | EK3: -0.03258211625 | EL3: -0.9941039374 | EM3: 0.01592073906 | EN3: -0.2953531126 | EO3: -0.4159609102 | EP3: 0.3353404317 | EQ3: 0.09366614241 | ER3: 0.1515003458 | ES3: 0.1069618278 | ET3: 0.5272093282 | EU3: 0.07805411345 | EV3: 0.2818552653 | EW3: 0.238862359 | EX3: 0.2556574745 | EY3: -0.2154614822 | EZ3: 0.2107744498 | FA3: 0.3444899178 | FB3: -0.1778199758 | FC3: -0.1391198058 | FD3: -0.001387734005 | FE3: 0.01402845306 | FF3: 0.5750179229 | FG3: -0.1434862906 | FH3: 0.4601086049 | FI3: 0.5017577968 | FJ3: 0.2569351115 | FK3: -0.1038876625 | FL3: 0.2925575007 | FM3: 0.2940303503 | FN3: 0.03537022333 | FO3: 0.2152095518 | FP3: 0.1211904661 | FQ3: -0.2187892678 | FR3: 0.06489202236 | FS3: 0.110885856 | FT3: 0.0296460566 | FU3: -0.104594347 | FV3: 0.7484131529 | FW3: 0.2261648561 | FX3: 0.2257741948 | FY3: 0.3356724642 | FZ3: 0.7336754192 | GA3: 0.2192393495 | GB3: 0.20826683 | GC3: 0.3337333146 | GD3: 0.3258963734 | GE3: 0.2361633419 | GF3: 0.09468174892 | GG3: -0.2380625342 | GH3: 0.4249694215 | GI3: 0.1227915351 | GJ3: 0.04071365436 | GK3: -0.07177509304 | GL3: -0.6447413605 | GM3: -0.1638740426 | GN3: -0.5855174126 | GO3: -0.08881109094 | GP3: -1.148950138 | GQ3: -0.1138076549 | GR3: -0.8117676386 | GS3: -0.3900617931 | GT3: -1.42098743 | GU3: -0.05687711339 | GV3: -1.689375125 | GW3: -1.117034458 | GX3: -2.001755802 | GY3: -0.005281344455 | GZ3: -2.176547384 | HA3: -1.605491788 | HB3: -1.394475187 | HC3: -0.5783268218 | HD3: -1.111959141 | HE3: 0.1094040061 | HF3: -2.491229099 | HG3: -0.4244339152 | HH3: -1.508814171 | HI3: -0.5512267672 | HJ3: -1.617033416 | HK3: -0.5389347536 | HL3: -1.547356536 | HM3: -0.9948389839 | HN3: -1.033699291 | HO3: -0.7540911816 | HP3: -1.214530319 | HQ3: -0.2842665514 | HR3: -0.7182560594 | HS3: -0.1473264275 | HT3: -0.5956227203 | HU3: -0.2715456565 | HV3: -1.807899512 | HW3: -0.1384257921 | HX3: -1.356984767 | HY3: -0.9361916992 | HZ3: -1.243853109 | IA3: -0.4804379913 | IB3: -1.447390351 | IC3: -0.3161337586 | ID3: -1.695788026 | IE3: -0.480726762 | IF3: -1.7476939 | IG3: -0.5775755172 | IH3: -0.7485766416 | II3: -0.8683813235 | IJ3: -1.143445275 | IK3: -0.1901736627 | IL3: -1.096575398 | IM3: -0.6007290291 | IN3: -1.210528086 | IO3: -0.7203533901 | IP3: -0.9849903799 | IQ3: 0.1586624221 | IR3: -0.9860465698 | IS3: -0.762287389 | IT3: -1.725860908 | IU3: 0.1984985583 | IV3: -1.499025775 | IW3: -1.298560601 | IX3: -0.9641028897 | IY3: -0.39898407 | IZ3: -0.2643019385 | JA3: 0.0486644918 | JB3: -1.21587716 | JC3: -0.3897025827 | JD3: -0.3658734039 | JE3: -0.0542992643 | JF3: -0.8527183263 | JG3: 0.03274544916 | JH3: -0.7245694399 | JI3: -0.3299400758 | JJ3: -0.5947492513 | JK3: -0.03349728175 | JL3: -0.6292308246 | JM3: -0.1180884705 | JN3: 0.05449518593 | JO3: -0.5462828609 | JP3: -0.1082889719 | JQ3: 0.6268558957 | JR3: -0.1721956289 | JS3: -0.5691319727 | JT3: -0.3091433128 | JU3: 0.498460245 | JV3: -0.3823405532 | JW3: -0.4200485167 | JX3: -0.1367429728 | JY3: 0.2208976926 | JZ3: -0.7654051756 | KA3: -0.3873399006 | KB3: -0.3971443013 | KC3: -0.06482439797 | KD3: -0.1776743147 | KE3: -0.3726821965 | KF3: 0.02494942931 | KG3: 0.3358899451 | KH3: 0.01701623346 | KI3: -0.3740170622 | KJ3: 0.1459002515 | KK3: 0.4449811609 | KL3: 0.08198220507 | KM3: 0.1740143258 | KN3: 0.1091690593 | KO3: 0.2364831413 | KP3: 0.0782590924 | KQ3: 0.01586030018 | KR3: -0.05022485543 | KS3: 0.340954743 | KT3: 0.0350381999 | KU3: -0.06660878877 | KV3: 0.1337378655 | KW3: 0.1157005045 | KX3: -0.1466584921 | KY3: 0.004630905892 | KZ3: 0.09035784267 | LA3: -0.04782014514 | LB3: 0.3610535708 | LC3: 0.3388164947 | LD3: 0.1782134605 | LE3: -0.2454808455 | LF3: -0.1258155089 | LG3: 0.6038754005 | LH3: 0.1623194974 | LI3: -0.7621256451 | LJ3: 0.3658474183 | LK3: 0.228326698 | LL3: 0.3011940055 | LM3: 0.05958098951 | LN3: 0.3538128908 | LO3: 0.2512585208 | LP3: 0.3172790822 | LQ3: 0.02939286763 | LR3: 0.3131801131 | LS3: 0.05468857694 | LT3: 0.1140077438 | LU3: 0.1113687503 | LV3: 0.5128633174 | LW3: -0.008965086966 | LX3: 0.2093284673 | LY3: 0.3027364243 | LZ3: 0.2991573506 | MA3: 0.2248414455 | MB3: 0.1192274605 | MC3: -0.1273114829 | MD3: -0.1429244493 | ME3: 0.2646110777 | MF3: -0.1819906522 | MG3: -0.4408566006 | MH3: -0.0009063566504 | MI3: 0.09302385329 | MJ3: 0.3018550442 | MK3: -0.02937806106 | ML3: 0.2620714096 | MM3: 0.008007075365 | MN3: 0.4847020321 | MO3: 0.256911978 | MP3: 0.5695740804 | MQ3: 0.2461882492 | MR3: 0.09148854481 | MS3: -0.01606322834 | MT3: 0.3997925137 | MU3: 0.2588918518 | MV3: 0.009465947436 | MW3: -0.110606981 | MX3: 0.1958774674 | MY3: -0.1457687645 | MZ3: 0.09952820062 | NA3: 0.2154123325 | NB3: 0.2503856464 | NC3: -0.07070078421 | ND3: 0.2301632215 | NE3: 0.179114166 | NF3: -0.2821647179 | NG3: 0.03515842151 | NH3: -0.2418670829 | NI3: -0.3742275 | NJ3: -0.1151087597 | NK3: 0.0003904812929 | NL3: -0.1344977712 | NM3: -0.2210751881 | NN3: 0.5505361864 | NO3: 0.2895295178 | NP3: 0.02289248266 | NQ3: -0.009299673698 | NR3: 0.5757100714 | NS3: 0.253843658 | NT3: -0.004058070782 | NU3: 0.03505852437
A4: CN101 | B4: 0.2180185479 | C4: -0.05274717042 | D4: 0.2010520654 | E4: 0.09180913484 | F4: 0.1433554219 | G4: -0.03271613118 | H4: 0.1719714201 | I4: 0.02550801697 | J4: 0.2253930775 | K4: -0.3585045059 | L4: 0.119919033 | M4: 0.6094089138 | N4: -0.1956818704 | O4: -0.3039707223 | P4: -0.0961147754 | Q4: 0.3332364047 | R4: -0.2624988821 | S4: -0.2457412803 | T4: 0.1149108617 | U4: 0.07789425424 | V4: -0.2178964585 | W4: -0.2602990723 | X4: 0.1354896063 | Y4: 0.1232406898 | Z4: 0.2504995382 | AA4: -0.2094800688 | AB4: 0.1585342836 | AC4: 0.3026143308 | AD4: 0.125632647 | AE4: -0.2563674463 | AF4: -0.008107934082 | AG4: 0.2532051841 | AH4: -0.02510802749 | AI4: 0.0441361829 | AJ4: -0.0306728514 | AK4: 0.07626169346 | AL4: -0.3044943953 | AM4: 0.2392933143 | AN4: -0.01521134696 | AO4: -0.2747152858 | AP4: -0.3190534866 | AQ4: 0.7027851178 | AR4: -0.0922561982 | AS4: -0.7047917901 | AT4: -0.09120741315 | AU4: 0.8549210346 | AV4: 0.2577730748 | AW4: -0.6840312109 | AX4: -0.2678110469 | AY4: -0.4473214612 | AZ4: 0.1661212799 | BA4: -0.04904966677 | BB4: -0.09733365232 | BC4: -0.4435949036 | BD4: 0.3221183556 | BE4: 0.09025997516 | BF4: 0.04430972575 | BG4: -0.1419156312 | BH4: -0.07770435385 | BI4: 0.1867169657 | BJ4: -0.2748890328 | BK4: -0.1374461227 | BL4: -0.2801497832 | BM4: 0.00061710851 | BN4: -0.01350487601 | BO4: 0.4562772791 | BP4: -0.1321851577 | BQ4: -0.5137243764 | BR4: -0.3335808204 | BS4: 0.5219485161 | BT4: -0.3400461729 | BU4: -0.8159274153 | BV4: -0.0005412639368 | BW4: 0.05211049236 | BX4: -0.09560069418 | BY4: -0.1164375601 | BZ4: 0.5193774884 | CA4: -0.07619919401 | CB4: 0.08432571728 | CC4: 0.2822625802 | CD4: -0.1612168793 | CE4: -0.2205657708 | CF4: -0.1701821006 | CG4: 0.1234865786 | CH4: -0.3299916766 | CI4: -0.2312468952 | CJ4: -0.3015978897 | CK4: 0.03118900704 | CL4: -0.2035964181 | CM4: 0.1790266393 | CN4: -0.2613408193 | CO4: -0.1904989009 | CP4: -0.4748450325 | CQ4: 0.1303150092 | CR4: -0.4659726888 | CS4: -0.2711680955 | CT4: 0.2811039261 | CU4: 0.05243901273 | CV4: 0.1029014712 | CW4: -0.04425881795 | CX4: 0.1130371027 | CY4: 0.1091849189 | CZ4: 0.05145131472 | DA4: -0.1999384247 | DB4: -0.480319642 | DC4: 0.2284893805 | DD4: 0.2564911538 | DE4: -0.5693382491 | DF4: -0.2687067834 | DG4: 0.2012594986 | DH4: 0.315753889 | DI4: -0.4890890702 | DJ4: 0.363081275 | DK4: 0.01517183379 | DL4: -0.01099960624 | DM4: 0.2813040093 | DN4: 0.5988252958 | DO4: -0.03563192497 | DP4: 0.1057187925 | DQ4: 0.467644965 | DR4: 0.13921014 | DS4: -0.05716589691 | DT4: 0.2437305069 | DU4: 0.09724533902 | DV4: 0.176275031 | DW4: -0.06020525802 | DX4: 0.2711651926 | DY4: 0.1261109189 | DZ4: 0.04800015467 | EA4: -0.2172975639 | EB4: 0.1264038061 | EC4: 0.2944900592 | ED4: 0.2886957107 | EE4: -0.3213547033 | EF4: 0.2313859997 | EG4: 0.5733634058 | EH4: 0.108363238 | EI4: -0.05870885577 | EJ4: -0.1580626707 | EK4: 0.2192432297 | EL4: 0.1113788769 | EM4: 0.03449663261 | EN4: -0.0498426758 | EO4: 0.134738327 | EP4: 0.292657714 | EQ4: -0.1126196489 | ER4: 0.06012453499 | ES4: 0.4848754958 | ET4: 0.6841116416 | EU4: -0.1072221862 | EV4: 0.4742015502 | EW4: 0.8047414115 | EX4: -0.5581431064 | EY4: -0.3402243431 | EZ4: -0.1797980486 | FA4: 0.08433980181 | FB4: -0.4297102982 | FC4: -0.3656880259 | FD4: -0.1210485586 | FE4: 0.1836569636 | FF4: 0.03472914359 | FG4: 0.2055583181 | FH4: 0.03000399681 | FI4: -0.2503988285 | FJ4: -0.1376431407 | FK4: 0.2753620784 | FL4: -0.05642041336 | FM4: -0.4557447936 | FN4: 0.1545751479 | FO4: -0.4266810181 | FP4: 0.06414865376 | FQ4: 0.6133751876 | FR4: 0.2733702114 | FS4: -0.4095284388 | FT4: 0.177083302 | FU4: 0.6767616876 | FV4: 0.4153506355 | FW4: -0.2489940612 | FX4: 0.1552774372 | FY4: 0.5990524457 | FZ4: 0.5301391274 | GA4: -0.2144259942 | GB4: 0.2949226021 | GC4: 0.6486500109 | GD4: 0.1134354337 | GE4: 0.3889221394 | GF4: -0.1341264026 | GG4: -0.2512301192 | GH4: 0.3013147357 | GI4: 0.3997366097 | GJ4: -0.01943397565 | GK4: -0.1711014722 | GL4: -0.3765269663 | GM4: -0.181126344 | GN4: -0.12840765 | GO4: -0.2281181218 | GP4: -0.5562483412 | GQ4: -0.1871686599 | GR4: -0.2840780395 | GS4: -0.3473740588 | GT4: -0.005388345838 | GU4: -0.2435578902 | GV4: 0.2018473866 | GW4: -0.01496812647 | GX4: 0.05888582763 | GY4: -0.2809115518 | GZ4: 0.2168319803 | HA4: 0.06859748069 | HB4: 0.5047139345 | HC4: -0.0673963908 | HD4: 0.1993080458 | HE4: 0.4133271998 | HF4: 0.2624335783 | HG4: 0.09924970423 | HH4: 0.2240422248 | HI4: 0.1122793862 | HJ4: 0.1613300903 | HK4: 0.4585831549 | HL4: 0.003267757782 | HM4: -0.3233976038 | HN4: 0.4385456651 | HO4: 0.3237688951 | HP4: 0.1414661589 | HQ4: 0.0366480038 | HR4: 0.1029975412 | HS4: 0.2043527511 | HT4: -0.01211568371 | HU4: -0.1281328724 | HV4: -0.0004901748898 | HW4: 0.1488252433 | HX4: -0.1717240907 | HY4: -0.1608924235 | HZ4: 0.5901635774 | IA4: 0.05680261457 | IB4: 1.062415777 | IC4: 0.1581295279 | ID4: 2.172523134 | IE4: 0.2871370664 | IF4: 2.604452194 | IG4: 1.001300086 | IH4: -0.3289245441 | II4: -0.1698936081 | IJ4: -0.2284797014 | IK4: -0.1330910574 | IL4: -0.5815653283 | IM4: -0.2195231165 | IN4: -0.4965950359 | IO4: -0.2757467841 | IP4: 0.4100099893 | IQ4: 0.2502579458 | IR4: 0.09587596137 | IS4: 0.09857959042 | IT4: -0.1171063918 | IU4: 0.315294204 | IV4: -0.1940881614 | IW4: -0.2872975046 | IX4: 0.02919991633 | IY4: -0.168270677 | IZ4: 0.1655840866 | JA4: 0.2937130329 | JB4: 0.04652575235 | JC4: -0.2515898596 | JD4: 0.08368487617 | JE4: 0.384440084 | JF4: -0.4330837153 | JG4: 0.2574120551 | JH4: -0.3267273687 | JI4: -0.701120987 | JJ4: -0.2793266331 | JK4: 0.1646890125 | JL4: -0.2951745209 | JM4: -0.5067465341 | JN4: -0.11408994 | JO4: -0.3552489893 | JP4: 0.1466360836 | JQ4: 0.2479288616 | JR4: -0.1145948347 | JS4: -0.4248400107 | JT4: 0.0676282973 | JU4: 0.316999885 | JV4: -0.5071903869 | JW4: 0.4246691559 | JX4: -0.1674265229 | JY4: -0.8687731484 | JZ4: -0.320137153 | KA4: 0.3328027729 | KB4: -0.1078052422 | KC4: -0.6499080514 | KD4: 0.1489224435 | KE4: 0.4094473625 | KF4: -0.08464418104 | KG4: -0.3293432626 | KH4: -0.002169463578 | KI4: 0.4447657824 | KJ4: -0.1415642042 | KK4: -0.4492283016 | KL4: -0.07773823788 | KM4: -0.444038183 | KN4: -0.2140790934 | KO4: 0.3175072182 | KP4: 0.06216209157 | KQ4: -0.7095830639 | KR4: -0.4382901295 | KS4: 0.5289688705 | KT4: -0.5394148004 | KU4: -0.2542353322 | KV4: -0.2151921977 | KW4: -0.002387897797 | KX4: -0.4635272938 | KY4: -0.2815424634 | KZ4: -0.1813364283 | LA4: 0.07579860243 | LB4: 0.220211439 | LC4: 0.05409009799 | LD4: 0.1156890591 | LE4: 0.05976251969 | LF4: -0.05139288027 | LG4: 0.09762225837 | LH4: -0.008446735845 | LI4: -0.1340701438 | LJ4: 0.4556947011 | LK4: 0.1264145333 | LL4: -0.02712413019 | LM4: 0.2073064131 | LN4: 0.4413543921 | LO4: 0.117532155 | LP4: -0.04677573246 | LQ4: 0.2076610563 | LR4: 0.0004779590335 | LS4: -0.1968462519 | LT4: 0.1704493836 | LU4: 0.1705822863 | LV4: 0.3230697129 | LW4: -0.282077548 | LX4: 0.3633088819 | LY4: 0.4883689928 | LZ4: 0.2256934757 | MA4: 0.09142824643 | MB4: -0.03895885123 | MC4: 0.2739307398 | MD4: 0.2381531233 | ME4: 0.08887319355 | MF4: -0.0315864811 | MG4: 0.2846821615 | MH4: 0.07025663575 | MI4: -0.2934975233 | MJ4: 0.2648495076 | MK4: 0.1850419909 | ML4: 0.2718254704 | MM4: -0.3858430171 | MN4: 0.2832964517 | MO4: 0.3817685909 | MP4: 0.1628968416 | MQ4: -0.2389667777 | MR4: 0.08989494945 | MS4: 0.3621486593 | MT4: -0.03445615605 | MU4: -0.1889396022 | MV4: -0.02510364156 | MW4: 0.1788632551 | MX4: 0.2634433401 | MY4: -0.4505867234 | MZ4: 0.3158725513 | NA4: 0.6498720281 | NB4: 0.2230477092 | NC4: -0.4660959705 | ND4: 0.2676901209 | NE4: 0.6390436523 | NF4: 0.1749900105 | NG4: 0.1620785997 | NH4: -0.07584556494 | NI4: 0.1451754919 | NJ4: 0.1885777742 | NK4: 0.203932338 | NL4: -0.01910501544 | NM4: 0.114854227 | NN4: -0.2764808508 | NO4: 0.1251751183 | NP4: -0.200329647 | NQ4: -0.2956724316 | NR4: -0.1361122864 | NS4: 0.06566555904 | NT4: -0.1542063412 | NU4: -0.1474446757
A5: DD101 | B5: 0.1316757674 | C5: -0.1989385241 | D5: 0.1549431389 | E5: 0.3639355949 | F5: 0.6012046203 | G5: -0.2878808403 | H5: 0.283225741 | I5: 0.6344152375 | J5: 0.4211126757 | K5: 0.06299947565 | L5: 0.06304243425 | M5: 0.09580144828 | N5: 0.6646583988 | O5: 0.02520607739 | P5: 0.1541676673 | Q5: 0.2414858412 | R5: 0.2450665897 | S5: -0.4032317726 | T5: 0.1743313955 | U5: 0.7712010275 | V5: 0.2774084934 | W5: -0.5796454037 | X5: 0.01981086756 | Y5: 0.9430409443 | Z5: 0.252213929 | AA5: 0.1553485198 | AB5: -0.005562393659 | AC5: 0.07004715612 | AD5: 0.5651318038 | AE5: 0.201295103 | AF5: 0.2388646247 | AG5: 0.1870987162 | AH5: 0.6300358663 | AI5: 0.4011292614 | AJ5: 0.2455407679 | AK5: -0.05898794397 | AL5: 0.6024470663 | AM5: 0.5507094692 | AN5: 0.3914012872 | AO5: -0.215995523 | AP5: 0.04446436421 | AQ5: -0.3247393515 | AR5: -0.03500384127 | AS5: 0.3687849892 | AT5: 0.2433713638 | AU5: -0.4117563165 | AV5: 0.02010912504 | AW5: 0.58576941 | AX5: 0.5355169515 | AY5: 0.2870168619 | AZ5: 0.325072224 | BA5: 0.1811653411 | BB5: 0.7253420271 | BC5: 0.133211509 | BD5: 0.3271326136 | BE5: 0.4680735972 | BF5: 0.3737602427 | BG5: 0.002799657794 | BH5: 0.4495737743 | BI5: 0.1981881227 | BJ5: 0.364792664 | BK5: -0.01038412414 | BL5: 0.4266943118 | BM5: 0.2038556911 | BN5: 0.2325289314 | BO5: 0.2968659178 | BP5: 0.1577650203 | BQ5: 0.04001372529 | BR5: 0.01083348081 | BS5: 0.4743367306 | BT5: 0.1842343549 | BU5: -0.2761080769 | BV5: -0.1855548742 | BW5: -0.1167528847 | BX5: 0.08900636201 | BY5: -0.116011034 | BZ5: -0.1960941268 | CA5: -0.1998783551 | CB5: -0.01036121239 | CC5: -0.04758887885 | CD5: -0.2784991766 | CE5: -0.1984950876 | CF5: 0.00116796292 | CG5: -0.03482306308 | CH5: -0.2730788262 | CI5: -0.1775825004 | CJ5: 0.02886015624 | CK5: -0.0507433894 | CL5: 0.1816430829 | CM5: 0.2660612686 | CN5: 0.1538415413 | CO5: -0.3387717002 | CP5: 0.09964622168 | CQ5: 0.2709903366 | CR5: 0.1207951333 | CS5: -0.3782216772 | CT5: 0.5892921641 | CU5: 0.5339827145 | CV5: 0.1691682213 | CW5: -0.2013509689 | CX5: 0.719650074 | CY5: 0.56279319 | CZ5: 0.2934648984 | DA5: -0.1526571651 | DB5: -0.1656492263 | DC5: -0.5636079133 | DD5: -0.2776081599 | DE5: 0.5889913379 | DF5: -0.07676774219 | DG5: -0.3657486456 | DH5: -0.0617073628 | DI5: 0.4629665362 | DJ5: 0.2360579594 | DK5: 0.1422760744 | DL5: 0.2376382834 | DM5: -0.07173369035 | DN5: 0.2462618763 | DO5: 0.1834446147 | DP5: 0.2918193027 | DQ5: -0.1013529932 | DR5: 0.2363262205 | DS5: -0.2327969718 | DT5: 0.3135409589 | DU5: 0.1878208806 | DV5: -0.002947678149 | DW5: -0.2662722889 | DX5: 0.08666363059 | DY5: 0.06053816944 | DZ5: -0.9525086977 | EA5: -0.4115751992 | EB5: -1.118870658 | EC5: -0.07420137504 | ED5: -1.074958727 | EE5: -0.5105117687 | EF5: -1.304988778 | EG5: -0.03948531105 | EH5: 0.9764416634 | EI5: 0.1659523167 | EJ5: 0.2436920502 | EK5: 0.2328664781 | EL5: 1.002100635 | EM5: 0.1406715742 | EN5: 0.22901503 | EO5: 0.2698628929 | EP5: 0.04246144445 | EQ5: 0.288308816 | ER5: -0.05983142012 | ES5: -0.2295438195 | ET5: 0.2418971398 | EU5: 0.2374557203 | EV5: 0.01550014081 | EW5: -0.07067833338 | EX5: 0.1633128498 | EY5: 0.1786651157 | EZ5: 0.1163171825 | FA5: -0.1289645673 | FB5: -0.003385266834 | FC5: 0.1144443845 | FD5: -0.070694312 | FE5: -0.1718935342 | FF5: 0.3276155171 | FG5: -0.07941834597 | FH5: 0.1379720514 | FI5: 0.2845793185 | FJ5: 0.5234486961 | FK5: -0.0916356623 | FL5: 0.2345704905 | FM5: 0.3943388483 | FN5: 0.4376166323 | FO5: 0.2330869044 | FP5: 0.2436007804 | FQ5: 0.07350270333 | FR5: 0.2014118472 | FS5: 0.2154017739 | FT5: 0.03119066035 | FU5: -0.06869296728 | FV5: 0.1103999085 | FW5: 0.1829230636 | FX5: 0.1039479784 | FY5: -0.107434584 | FZ5: -0.1884456625 | GA5: 0.1337840106 | GB5: -0.1804936362 | GC5: -0.2620641206 | GD5: -0.7161402345 | GE5: -0.3069343967 | GF5: -0.2642088111 | GG5: -0.1321618614 | GH5: -0.8261923105 | GI5: -0.3279335536 | GJ5: -0.365641638 | GK5: -0.183050474 | GL5: -0.1694199978 | GM5: -0.119647622 | GN5: -0.1547664784 | GO5: -0.01938906983 | GP5: -0.3288213273 | GQ5: -0.1043063274 | GR5: -0.2787158962 | GS5: -0.1553318975 | GT5: 0.2584849131 | GU5: 0.2055146816 | GV5: 0.07053693648 | GW5: -0.1550723844 | GX5: 0.2699954923 | GY5: 0.1897762056 | GZ5: 0.06141981003 | HA5: -0.1330890775 | HB5: 0.1561856735 | HC5: 0.2496571393 | HD5: -0.1632548122 | HE5: -0.1375995524 | HF5: 0.3830608445 | HG5: 0.3504374178 | HH5: 0.1059281801 | HI5: -0.09934544479 | HJ5: 0.3588292121 | HK5: 0.1350323404 | HL5: 0.02969609411 | HM5: 0.258758067 | HN5: 0.08132930932 | HO5: 0.359633844 | HP5: 0.06189877126 | HQ5: -0.1509010898 | HR5: -0.7019715144 | HS5: 0.2448702333 | HT5: -0.4007732303 | HU5: -0.7330174911 | HV5: -0.4387318368 | HW5: 0.2455942384 | HX5: -0.2288154587 | HY5: -0.58167083 | HZ5: -0.4370680038 | IA5: -0.1761184164 | IB5: -0.3993698317 | IC5: -0.03661529411 | ID5: 0.07537474752 | IE5: -0.1944846557 | IF5: -0.02036031413 | IG5: 0.3169284582 | IH5: 0.1764040357 | II5: 0.258194703 | IJ5: -0.1175608819 | IK5: -0.103329846 | IL5: 0.1391412009 | IM5: 0.2825462216 | IN5: -0.1072304984 | IO5: -0.1435226601 | IP5: -0.1732923549 | IQ5: -0.02330474321 | IR5: -0.09092091692 | IS5: 0.09400952958 | IT5: 0.03858099797 | IU5: -0.1305829994 | IV5: -0.06806729433 | IW5: 0.312090091 | IX5: 0.1496742381 | IY5: -0.3334032628 | IZ5: 0.1342177304 | JA5: 0.4621218703 | JB5: 0.1322630374 | JC5: -0.3296075095 | JD5: 0.1292943898 | JE5: 0.4503894268 | JF5: 0.2896762569 | JG5: -0.4582203521 | JH5: 0.3116760171 | JI5: 0.4692950706 | JJ5: 0.3269361446 | JK5: -0.4895136201 | JL5: 0.3050517581 | JM5: 0.5250394682 | JN5: 0.1482311243 | JO5: 0.2455374181 | JP5: 0.1472679386 | JQ5: -0.2132869403 | JR5: 0.1287087361 | JS5: 0.4006333377 | JT5: 0.3083939289 | JU5: -0.3808355487 | JV5: 0.2446035956 | JW5: 0.1113911227 | JX5: 0.001798092541 | JY5: 0.2404978373 | JZ5: 0.313635491 | KA5: 0.09656920624 | KB5: 0.04840311003 | KC5: 0.3065765445 | KD5: -0.1973218502 | KE5: -0.06636239889 | KF5: -0.1889330149 | KG5: -0.03337141856 | KH5: -0.6876648834 | KI5: -0.02940215834 | KJ5: -0.4984673858 | KK5: -0.3704995488 | KL5: -0.1241162688 | KM5: 0.09609660601 | KN5: 0.0870126493 | KO5: 0.1437121657 | KP5: 0.003299472507 | KQ5: 0.3636779634 | KR5: 0.4170967884 | KS5: -0.02131456828 | KT5: -0.2198487579 | KU5: 0.03692621074 | KV5: -0.1710583817 | KW5: -0.09118362621 | KX5: -0.1553081544 | KY5: 0.03659007015 | KZ5: -0.1317695372 | LA5: -0.05653175312 | LB5: -0.2971769797 | LC5: 0.1326643484 | LD5: -0.2377502807 | LE5: -0.4766011401 | LF5: -0.3291659044 | LG5: 0.08154493681 | LH5: -0.3171767335 | LI5: -0.4463663829 | LJ5: -0.3195525844 | LK5: 0.3174254642 | LL5: -0.2549970002 | LM5: -0.5187937949 | LN5: -0.413019509 | LO5: 0.3755467069 | LP5: -0.247704218 | LQ5: -0.6283569454 | LR5: -0.04406541471 | LS5: -0.2197204871 | LT5: -0.01736916624 | LU5: 0.1508147746 | LV5: -0.02784340982 | LW5: -0.265964799 | LX5: -0.05721542123 | LY5: 0.2027674901 | LZ5: -1.025976813 | MA5: 0.06928620153 | MB5: -0.8029945001 | MC5: -0.5362663517 | MD5: -0.9385251277 | ME5: 0.06067911244 | MF5: -0.7582781985 | MG5: -0.4807398612 | MH5: -0.6609524325 | MI5: -0.578267495 | MJ5: -0.4359921982 | MK5: 0.1003344163 | ML5: -0.4773924517 | MM5: -0.6626749148 | MN5: -0.3890776961 | MO5: 0.2956029725 | MP5: -1.013864321 | MQ5: -0.3968918523 | MR5: -0.4538873397 | MS5: -0.2847491872 | MT5: -0.7933163321 | MU5: -0.5598652962 | MV5: -0.5098828695 | MW5: -0.007744608218 | MX5: -0.879184626 | MY5: -0.2118218857 | MZ5: -0.6324783228 | NA5: -0.3135897661 | NB5: -1.295392864 | NC5: -0.2244224393 | ND5: -0.9534156033 | NE5: -0.5606955082 | NF5: -0.3656924196 | NG5: -0.1826877244 | NH5: -0.2555309078 | NI5: 0.1498405631 | NJ5: -0.3244773001 | NK5: -0.2609508387 | NL5: -0.3228259234 | NM5: 0.2490862818 | NN5: -0.310773589 | NO5: 0.02450190351 | NP5: -0.2020120177 | NQ5: -0.4446606288 | NR5: -0.6768095138 | NS5: -0.01302825072 | NT5: -0.5506013641 | NU5: -0.6821965286
A6: FA102 | B6: -0.4424694011 | C6: 0.1128953439 | D6: -0.3835780037 | E6: -0.4666567613 | F6: -0.6192172867 | G6: 0.2994949787 | H6: -0.3539308981 | I6: -0.7770613376 | J6: 0.292540654 | K6: -0.1524115946 | L6: 0.01890720446 | M6: 0.4538391075 | N6: 0.2544745595 | O6: -0.05772932338 | P6: 0.09918493735 | Q6: 0.3396157438 | R6: -0.2057043615 | S6: 0.04723715407 | T6: 0.1015927518 | U6: -0.2575858051 | V6: -0.3483838532 | W6: 0.1187818339 | X6: 0.07757992572 | Y6: -0.4209193148 | Z6: 0.02991323403 | AA6: -0.1161504255 | AB6: 0.1673347006 | AC6: 0.2843293981 | AD6: 0.2885263563 | AE6: -0.1007166751 | AF6: 0.3748253579 | AG6: 0.4331268261 | AH6: 0.2154316436 | AI6: -0.1584664362 | AJ6: 0.02527976701 | AK6: 0.3606867364 | AL6: 0.2863857263 | AM6: 0.007028481844 | AN6: 0.2683002839 | AO6: 0.2564127191 | AP6: 0.1723877272 | AQ6: -0.2221039108 | AR6: -0.06066269373 | AS6: 0.4355748008 | AT6: -0.009221435329 | AU6: -0.05644959246 | AV6: -0.0383168713 | AW6: 0.1547943997 | AX6: -0.1291628863 | AY6: 0.2693899068 | AZ6: -0.3800542494 | BA6: -0.2259058264 | BB6: -0.2133024085 | BC6: 0.4003749038 | BD6: -0.2796881751 | BE6: -0.4026660055 | BF6: -1.000361055 | BG6: -0.3926414349 | BH6: -0.3961264318 | BI6: -0.09736852473 | BJ6: -1.921407356 | BK6: -0.2818598671 | BL6: -0.7226231278 | BM6: -0.6190552221 | BN6: -0.5126216165 | BO6: -0.0227917768 | BP6: -0.3969522681 | BQ6: -0.4263562502 | BR6: -0.9698473217 | BS6: 0.04337354158 | BT6: -0.6230798621 | BU6: -0.7646557102 | BV6: -0.2192676042 | BW6: -0.1662847414 | BX6: -0.08617259368 | BY6: 0.1661741694 | BZ6: -0.3349740822 | CA6: -0.1562279676 | CB6: -0.1459814433 | CC6: 0.09887268943 | CD6: -0.3032413849 | CE6: 0.2638658515 | CF6: -0.3313807474 | CG6: -0.4228725826 | CH6: -0.4477518644 | CI6: 0.2470432526 | CJ6: -0.4615820694 | CK6: -0.502347447 | CL6: -0.4316637742 | CM6: 0.0576138398 | CN6: -0.4974245839 | CO6: -0.2909871914 | CP6: -0.1370401436 | CQ6: -0.0215946514 | CR6: -0.3059068973 | CS6: 0.00396159444 | CT6: -0.7302962768 | CU6: -0.5747958384 | CV6: -1.17283208 | CW6: 0.08925153502 | CX6: -0.2062319628 | CY6: -0.3359683153 | CZ6: -0.4176757091 | DA6: 0.2544125371 | DB6: -0.9321038062 | DC6: -1.210183922 | DD6: -1.69698333 | DE6: 0.6667251409 | DF6: -0.3926405145 | DG6: -0.7065613923 | DH6: -0.9768637513 | DI6: 0.536874459 | DJ6: -1.325578255 | DK6: -0.3712499546 | DL6: -1.163094606 | DM6: -0.6929076724 | DN6: -0.851131578 | DO6: -0.1610055084 | DP6: -0.5144135544 | DQ6: -0.5261077808 | DR6: -1.387645199 | DS6: 0.2132783369 | DT6: -1.387644786 | DU6: -0.899838317 | DV6: -0.841979337 | DW6: 0.4137581962 | DX6: -0.7899120248 | DY6: -0.7496671959 | DZ6: -1.148231586 | EA6: -0.5690837092 | EB6: -1.574170875 | EC6: -0.01839103323 | ED6: -0.6943931537 | EE6: -0.1487339345 | EF6: -0.7645495887 | EG6: -0.09470175019 | EH6: -1.365481032 | EI6: -0.5652645547 | EJ6: -1.117264823 | EK6: -0.2183320992 | EL6: -1.02831637 | EM6: -0.4402317084 | EN6: -0.7097587134 | EO6: -0.1079099397 | EP6: -0.3636057318 | EQ6: -0.3467864476 | ER6: 0.1715172905 | ES6: -0.09557489976 | ET6: -0.8660495609 | EU6: -0.2657584218 | EV6: -0.08946007574 | EW6: -0.4760771445 | EX6: 0.1585057248 | EY6: 0.3992879496 | EZ6: -0.01869061522 | FA6: -0.4499565306 | FB6: 0.2573484811 | FC6: 0.4545537912 | FD6: 0.1101815716 | FE6: -0.4449503235 | FF6: -0.9247816272 | FG6: 0.03870699028 | FH6: -0.2197391904 | FI6: -0.3879082363 | FJ6: -0.6609461586 | FK6: 0.05073443595 | FL6: -0.06997518989 | FM6: -0.2844303959 | FN6: -0.4812272794 | FO6: -0.2219999602 | FP6: -0.1131357233 | FQ6: 0.02950991392 | FR6: -0.1817762768 | FS6: -0.2079486383 | FT6: 0.1017795841 | FU6: 0.1940636185 | FV6: -0.02756890005 | FW6: 0.2375375516 | FX6: -0.1269444118 | FY6: -0.1494422551 | FZ6: -0.08777508486 | GA6: 0.2102157514 | GB6: -0.2097780453 | GC6: -0.1671210303 | GD6: 0.2298351603 | GE6: 0.1597143572 | GF6: 0.1332822973 | GG6: -0.09897855998 | GH6: -0.1005201375 | GI6: 0.2143990544 | GJ6: -0.03274936748 | GK6: -0.3572154273 | GL6: -0.2774977527 | GM6: -0.3012998682 | GN6: -0.1294479689 | GO6: 0.2132490719 | GP6: -0.1207511889 | GQ6: -0.1619642082 | GR6: 0.1398558378 | GS6: 0.1734821447 | GT6: -0.5559923527 | GU6: 0.209755894 | GV6: -0.2961616095 | GW6: -0.3992283256 | GX6: -0.6470792009 | GY6: 0.2580852741 | GZ6: -0.2839026099 | HA6: -0.4884590961 | HB6: 0.3051761626 | HC6: 0.0697182175 | HD6: 0.2437027875 | HE6: -0.07308789878 | HF6: 0.4923594044 | HG6: 0.06064503954 | HH6: 0.3607020807 | HI6: 0.03929744146 | HJ6: -0.4785131811 | HK6: 0.1454466986 | HL6: -0.2752560393 | HM6: -0.4501334057 | HN6: -0.6994773542 | HO6: 0.150757586 | HP6: -0.4071672707 | HQ6: -0.5783176967 | HR6: -0.3867466193 | HS6: -0.4143572635 | HT6: -0.2835109237 | HU6: 0.1852795713 | HV6: -0.5655943709 | HW6: -0.4391049174 | HX6: -0.4290587622 | HY6: 0.1076498058 | HZ6: -0.2818335554 | IA6: -0.1776907285 | IB6: -0.1540713419 | IC6: -0.04468306445 | ID6: 0.1395388554 | IE6: -0.1944737713 | IF6: 0.07418336302 | IG6: 0.1752023676 | IH6: -1.085636066 | II6: -0.7082834708 | IJ6: -0.3289699514 | IK6: 0.1423122515 | IL6: -1.111534576 | IM6: -0.590208715 | IN6: -0.2111002606 | IO6: 0.009547108179 | IP6: -0.3770317643 | IQ6: 0.006504793047 | IR6: -0.2016100996 | IS6: -0.421166906 | IT6: -0.7435416842 | IU6: 0.2852302574 | IV6: -0.2381555041 | IW6: -0.9665357476 | IX6: 0.02998793053 | IY6: -0.2907763341 | IZ6: 0.128004466 | JA6: 0.1465464609 | JB6: -0.1124864401 | JC6: -0.2456443038 | JD6: 0.04634574483 | JE6: -0.001910946783 | JF6: 0.7016997831 | JG6: 0.1890935055 | JH6: 0.3412485583 | JI6: 0.4638678032 | JJ6: 0.6645505501 | JK6: 0.1964269815 | JL6: 0.3210326428 | JM6: 0.4333250032 | JN6: -0.07869528795 | JO6: -0.1399238402 | JP6: -0.004445871594 | JQ6: -0.02147718665 | JR6: -0.2784688973 | JS6: -0.2006647247 | JT6: -0.199359856 | JU6: -0.06856385567 | JV6: 0.3702892995 | JW6: -0.2660706725 | JX6: 0.1997613652 | JY6: 0.4779975171 | JZ6: 0.001734587043 | KA6: -0.2446035223 | KB6: -0.03832541521 | KC6: 0.2339533291 | KD6: -0.3024232464 | KE6: -0.1519998269 | KF6: -0.106618455 | KG6: -0.04207675362 | KH6: -0.6782605138 | KI6: -0.04967203459 | KJ6: -0.2726026775 | KK6: -0.3798212304 | KL6: 0.1686293736 | KM6: 0.2281139116 | KN6: 0.06167516851 | KO6: -0.5564481398 | KP6: 0.5573628514 | KQ6: 0.2257911156 | KR6: 0.1600013683 | KS6: -0.4857104014 | KT6: 0.1806491445 | KU6: 0.5892700313 | KV6: -0.2005751656 | KW6: -0.5051349999 | KX6: 0.3673717484 | KY6: 0.6230567155 | KZ6: -0.04013191 | LA6: -0.4325685315 | LB6: -0.2349502159 | LC6: -0.06662668992 | LD6: -0.2422588993 | LE6: -0.007822222283 | LF6: -0.1271689288 | LG6: -0.06788893466 | LH6: -0.187776924 | LI6: 0.04159181814 | LJ6: -0.6149805734 | LK6: -0.01984480229 | LL6: -0.2607977497 | LM6: -0.3141564293 | LN6: -0.9019866902 | LO6: 0.1077097135 | LP6: -0.3305508293 | LQ6: -0.6220297216 | LR6: 0.1635480848 | LS6: 0.07918850899 | LT6: -0.1094032226 | LU6: 0.1908077016 | LV6: -0.2950256168 | LW6: 0.1191663247 | LX6: -0.3856960037 | LY6: -0.09798635744 | LZ6: -0.4354559275 | MA6: 0.10186661 | MB6: -0.220363616 | MC6: -0.4060441618 | MD6: -0.7372098226 | ME6: 0.1839950141 | MF6: -0.2847015253 | MG6: -0.6272621135 | MH6: 0.2392802007 | MI6: 0.5030133886 | MJ6: -0.01779301319 | MK6: -0.3774728824 | ML6: 0.05874445056 | MM6: 0.4525321376 | MN6: -0.1981847868 | MO6: -0.4327316683 | MP6: 0.1236564279 | MQ6: 0.168681415 | MR6: 0.1983069192 | MS6: 0.08338155431 | MT6: -0.009853472419 | MU6: 0.2612620314 | MV6: 0.2015119895 | MW6: -0.07287465888 | MX6: -0.31243884 | MY6: 0.09212731285 | MZ6: -0.1470396314 | NA6: -0.2299157721 | NB6: 0.1077073138 | NC6: 0.001595873608 | ND6: 0.1076887975 | NE6: 0.1489927674 | NF6: -0.204167315 | NG6: -0.1047112405 | NH6: 0.08707339053 | NI6: 0.1848705861 | NJ6: -0.1096883465 | NK6: -0.1556144548 | NL6: 0.08840083071 | NM6: 0.2800367453 | NN6: 0.192125668 | NO6: -0.457721034 | NP6: 0.03751845828 | NQ6: 0.6880579814 | NR6: 0.6275145709 | NS6: -0.3963223845 | NT6: 0.3637720861 | NU6: 0.8267772188
A7: JF101 | B7: -0.2415908174 | C7: -0.1640412496 | D7: -0.2244483264 | E7: -0.02734804423 | F7: -0.2631322671 | G7: -0.1152444395 | H7: -0.1912120675 | I7: -0.08836071657 | J7: 0.7841891297 | K7: 0.44441359 | L7: 0.07039739459 | M7: -0.1814866289 | N7: 0.6086130115 | O7: 0.3754717943 | P7: -0.1102025104 | Q7: -0.2017776958 | R7: 0.1570419099 | S7: -0.5263056587 | T7: 0.2059091903 | U7: 0.5370039663 | V7: 0.5256993088 | W7: -0.5609158631 | X7: 0.367623299 | Y7: 0.7598354042 | Z7: -0.006839576701 | AA7: -0.4385237378 | AB7: -0.0187941589 | AC7: 0.3927424963 | AD7: 0.2431838106 | AE7: -0.6387124072 | AF7: 0.01906120925 | AG7: 0.8019799748 | AH7: 0.3733057517 | AI7: 0.168045771 | AJ7: 0.1868042072 | AK7: 0.09135959331 | AL7: 0.8596603699 | AM7: 0.1309598383 | AN7: 0.4651307239 | AO7: 0.4182722287 | AP7: 1.539804645 | AQ7: 0.4146974701 | AR7: 0.6100601106 | AS7: 0.4106579885 | AT7: 1.896215385 | AU7: -0.06848641591 | AV7: 0.2945254406 | AW7: 1.065347864 | AX7: 0.2263429247 | AY7: -0.2323261801 | AZ7: 0.2843323923 | BA7: 0.1637983718 | BB7: 0.05613697012 | BC7: -0.313656352 | BD7: 0.09758570993 | BE7: 0.1605722689 | BF7: 0.6304146283 | BG7: -0.2081260217 | BH7: 0.3560098328 | BI7: 0.477947474 | BJ7: 0.6059129282 | BK7: -0.3037841022 | BL7: 0.2315873213 | BM7: 0.5524606333 | BN7: -0.4439938227 | BO7: -0.3840818031 | BP7: -0.05583540847 | BQ7: 0.178817003 | BR7: 0.1654944536 | BS7: -0.4762672882 | BT7: 0.2264349136 | BU7: 0.5872122966 | BV7: 0.3770566322 | BW7: 0.1449182601 | BX7: 0.06712266662 | BY7: 0.07500099055 | BZ7: 0.3166014865 | CA7: 0.1543752364 | CB7: 0.03505800256 | CC7: 0.02842011671 | CD7: 0.31016872 | CE7: 0.1034908087 | CF7: 0.1149343362 | CG7: 0.1062757823 | CH7: 0.5868089728 | CI7: -0.02327189741 | CJ7: 0.2074317066 | CK7: 0.4285758969 | CL7: 0.2390293549 | CM7: -0.5131010256 | CN7: 0.1782563601 | CO7: 0.5322760818 | CP7: 0.1547579027 | CQ7: -0.5103164484 | CR7: 0.1122816091 | CS7: 0.4690198829 | CT7: -0.2592888262 | CU7: -0.1275844993 | CV7: -0.00367438707 | CW7: -0.1310771313 | CX7: 0.03385608744 | CY7: -0.1308234892 | CZ7: 0.203357276 | DA7: 0.04005148717 | DB7: 0.1384227082 | DC7: -0.08225817169 | DD7: 0.00336878111 | DE7: 0.07340714966 | DF7: 0.1249703713 | DG7: 0.8322438502 | DH7: 0.7670236131 | DI7: -0.5684563728 | DJ7: 0.2719150231 | DK7: -0.1941163293 | DL7: 0.1746788841 | DM7: 0.2866796601 | DN7: 0.593766441 | DO7: -0.2306722992 | DP7: 0.3234770878 | DQ7: 0.4838193328 | DR7: -0.1162519511 | DS7: 0.1583877548 | DT7: -0.004839493361 | DU7: -0.2403428587 | DV7: -0.1742831898 | DW7: 0.1868448986 | DX7: -0.008964687769 | DY7: -0.3004806373 | DZ7: -0.06341331677 | EA7: 0.3297498957 | EB7: -0.1724544037 | EC7: -0.5628529986 | ED7: -0.4031091638 | EE7: 0.2766934155 | EF7: -0.523446554 | EG7: -0.7527626531 | EH7: 0.2847912454 | EI7: 0.2428491454 | EJ7: 0.1060772629 | EK7: -0.09077003163 | EL7: 0.06051292454 | EM7: 0.3696912132 | EN7: 0.112540091 | EO7: -0.336643966 | EP7: -0.1824550635 | EQ7: -0.2223816195 | ER7: 0.02328956611 | ES7: 0.1637176439 | ET7: -0.1332291571 | EU7: -0.2576394908 | EV7: 0.01696719851 | EW7: 0.2286753022 | EX7: -0.2753730172 | EY7: -0.5336922633 | EZ7: 0.1722681681 | FA7: 0.1597363828 | FB7: -0.2657918031 | FC7: -0.5802802526 | FD7: 0.1290740594 | FE7: 0.2130604604 | FF7: -0.2322595906 | FG7: -0.004440171838 | FH7: -0.122412392 | FI7: -0.1276834933 | FJ7: -0.1146649854 | FK7: -0.2195656964 | FL7: -0.2690032519 | FM7: 0.1535587477 | FN7: -0.2480815918 | FO7: -0.03573767943 | FP7: -0.05104547683 | FQ7: -0.2075176914 | FR7: -0.2835844686 | FS7: 0.05402323802 | FT7: 0.02626546371 | FU7: -0.311140467 | FV7: 0.3077669691 | FW7: 0.04241408576 | FX7: 0.1184913931 | FY7: 0.1641837928 | FZ7: 0.4411506033 | GA7: 0.01726487811 | GB7: 0.1770689775 | GC7: 0.261122414 | GD7: 0.2940454441 | GE7: -0.03496122877 | GF7: 0.2394775682 | GG7: 0.2012422793 | GH7: 0.406645917 | GI7: -0.08644091008 | GJ7: 0.269381171 | GK7: 0.3262945921 | GL7: 0.3788976934 | GM7: -0.1000147324 | GN7: 0.3803785683 | GO7: 0.08900050989 | GP7: 0.1096220975 | GQ7: 0.02446310006 | GR7: 0.3005685123 | GS7: -0.2082642848 | GT7: -0.1409352436 | GU7: -0.2815181816 | GV7: -0.01035009619 | GW7: 0.2687475922 | GX7: 0.07123060061 | GY7: -0.2980945314 | GZ7: 0.1354921324 | HA7: 0.4199377739 | HB7: 0.08965210067 | HC7: 0.458412705 | HD7: -0.02441804986 | HE7: -0.4314487631 | HF7: 0.2899797182 | HG7: 0.4279649748 | HH7: 0.03900221236 | HI7: -0.3113874671 | HJ7: -0.3143450618 | HK7: 0.08199505328 | HL7: -0.2106948591 | HM7: -0.4093446039 | HN7: -0.3881597315 | HO7: 0.02698322082 | HP7: -0.327917247 | HQ7: -0.4071540198 | HR7: -1.216988749 | HS7: -0.3157733086 | HT7: -0.1473354863 | HU7: -0.4349571523 | HV7: -1.187606543 | HW7: -0.3131824462 | HX7: -0.1271604158 | HY7: -0.4227949134 | HZ7: 0.1682197816 | IA7: 0.3404058585 | IB7: 0.148451668 | IC7: -0.2142944374 | ID7: 0.3408326939 | IE7: 0.3951403839 | IF7: 0.3752565498 | IG7: -0.1206711474 | IH7: 0.06964025683 | II7: 0.04288392739 | IJ7: 0.02664511271 | IK7: 0.143888674 | IL7: 0.06965613887 | IM7: -0.01468751146 | IN7: -0.03579539466 | IO7: 0.1950491625 | IP7: 0.1472786913 | IQ7: -0.01145882065 | IR7: 0.01560373685 | IS7: 0.1607101449 | IT7: 0.5698500968 | IU7: -0.210584078 | IV7: 0.1444260864 | IW7: 0.6448793596 | IX7: 0.4843474656 | IY7: -0.01752764133 | IZ7: 0.02175078798 | JA7: 0.2883896216 | JB7: 0.1496819359 | JC7: 0.02410760318 | JD7: -0.1102257075 | JE7: 0.09473188061 | JF7: 0.0002322572416 | JG7: -0.2478922313 | JH7: 0.3353663901 | JI7: 0.1675408548 | JJ7: -0.4494579224 | JK7: -0.1683786449 | JL7: 0.08705269996 | JM7: -0.1826666559 | JN7: -0.0639570066 | JO7: -0.2638375856 | JP7: 0.08372158262 | JQ7: 0.2047173708 | JR7: -0.2121822398 | JS7: -0.1663563947 | JT7: 0.07064792869 | JU7: 0.01923315961 | JV7: 0.1395972172 | JW7: -0.09487950441 | JX7: 0.07827320007 | JY7: -0.06411214309 | JZ7: 0.3238146442 | KA7: -0.1242148112 | KB7: 0.2193722067 | KC7: 0.09623090873 | KD7: -0.006208638693 | KE7: 0.3717857164 | KF7: -0.1272457428 | KG7: -0.3650834629 | KH7: -0.08822084754 | KI7: 0.3896502683 | KJ7: -0.1636798651 | KK7: -0.4286482433 | KL7: 0.02434324593 | KM7: 0.2204598877 | KN7: 0.4512618332 | KO7: -0.07570238503 | KP7: 0.07874432854 | KQ7: 0.02058990248 | KR7: 0.2807538939 | KS7: 0.07834064267 | KT7: -0.02963209302 | KU7: 0.249432019 | KV7: -0.04092358788 | KW7: -0.3605499979 | KX7: 0.1119064357 | KY7: 0.1686083497 | KZ7: -0.0564053089 | LA7: -0.2184313138 | LB7: -0.01262546679 | LC7: 0.01736207441 | LD7: 0.07923337264 | LE7: 0.0743471763 | LF7: -0.0742489963 | LG7: 0.01152808052 | LH7: 0.02634148699 | LI7: 0.04011591677 | LJ7: -0.01063292964 | LK7: 0.1905251721 | LL7: -0.09652223432 | LM7: -0.3223433464 | LN7: 0.03623464906 | LO7: 0.09758768898 | LP7: -0.1589074028 | LQ7: -0.2009136103 | LR7: -0.01480592212 | LS7: 0.4865211816 | LT7: -0.1204629716 | LU7: -0.5656158546 | LV7: -0.1247529131 | LW7: 0.4974775966 | LX7: -0.1911364133 | LY7: -0.6456251532 | LZ7: -0.4951548568 | MA7: -0.3131738762 | MB7: -0.09717416035 | MC7: -0.1353559405 | MD7: -0.2544651142 | ME7: -0.4519034799 | MF7: -0.07758768858 | MG7: 0.1492721431 | MH7: -0.6627734004 | MI7: -0.04565256001 | MJ7: -0.2627760342 | MK7: -0.4436370767 | ML7: -0.2352092191 | MM7: -0.06238414496 | MN7: -0.002463255594 | MO7: -0.193136819 | MP7: -0.4565553154 | MQ7: -0.4691146672 | MR7: 0.1587638733 | MS7: 0.1933518185 | MT7: -0.2324355463 | MU7: -0.5876944633 | MV7: 0.1472656861 | MW7: 0.4202252055 | MX7: -0.06106385664 | MY7: -0.2257753276 | MZ7: 0.07663753659 | NA7: 0.02569945934 | NB7: -0.1407286025 | NC7: -0.2217815468 | ND7: 0.02978742884 | NE7: -0.0221878232 | NF7: -0.2261354798 | NG7: 0.04933344371 | NH7: 0.01189657713 | NI7: -0.3549536454 | NJ7: -0.6707516626 | NK7: 0.1049356755 | NL7: -0.2962826698 | NM7: -0.7090196851 | NN7: 0.4898036134 | NO7: 0.2468653256 | NP7: 0.01364099669 | NQ7: 0.1462408878 | NR7: 0.4305073197 | NS7: 0.3205161387 | NT7: 0.06199696844 | NU7: 0.04187079983
A8: JH102 | B8: -0.47495716 | C8: -0.005229379439 | D8: -0.1489875192 | E8: -0.3666503047 | F8: -0.9276606584 | G8: 0.03683236239 | H8: -0.4318129152 | I8: -0.7016755321 | J8: 0.4160937148 | K8: -0.2320123062 | L8: 0.1227741519 | M8: 0.5927806281 | N8: 0.2576554159 | O8: -0.2065243024 | P8: 0.0225455753 | Q8: 0.4558256289 | R8: 0.2285820806 | S8: -0.453656061 | T8: 0.4511986252 | U8: 0.5360097988 | V8: 0.392504987 | W8: -0.4611423926 | X8: 0.5780413193 | Y8: 0.6665469259 | Z8: 0.2431549788 | AA8: 0.1923713009 | AB8: 0.004798922148 | AC8: -0.07719527358 | AD8: 0.6055293976 | AE8: 0.03567680097 | AF8: 0.08921525655 | AG8: 0.3101382068 | AH8: -0.07650055813 | AI8: 0.1873733854 | AJ8: -0.1689315504 | AK8: -0.2568753895 | AL8: 0.297685198 | AM8: 0.09018051514 | AN8: -0.03509426426 | AO8: 0.06189166811 | AP8: -0.3008445948 | AQ8: -0.2690379883 | AR8: -0.1595951544 | AS8: 0.003353826177 | AT8: -0.2230172702 | AU8: -0.3402655287 | AV8: -0.1732265111 | AW8: 0.1279004854 | AX8: 0.2425397102 | AY8: 0.1230466697 | AZ8: 0.07708838318 | BA8: 0.1265711435 | BB8: 0.03941894714 | BC8: 0.2069809499 | BD8: 0.004127976176 | BE8: -0.09753515727 | BF8: -0.1539042324 | BG8: 0.3502084779 | BH8: -0.114343091 | BI8: -0.4572781989 | BJ8: -0.1473679721 | BK8: 0.3590819317 | BL8: -0.09911957739 | BM8: -0.4609420827 | BN8: -0.5178346249 | BO8: 0.3509940975 | BP8: -0.40404396 | BQ8: -0.6196426855 | BR8: -0.1179331192 | BS8: 0.2990556381 | BT8: -0.103139422 | BU8: -0.2554204349 | BV8: 0.1419860459 | BW8: 0.422819158 | BX8: -0.145926845 | BY8: -0.4430403631 | BZ8: 0.2777718212 | CA8: 0.3906728349 | CB8: -0.1086770113 | CC8: -0.3456927886 | CD8: -0.4083962771 | CE8: 0.1212934416 | CF8: -0.3115935219 | CG8: -0.4625518692 | CH8: -0.9366525065 | CI8: 0.3461883299 | CJ8: -0.5382187011 | CK8: -1.08867494 | CL8: 0.5394750205 | CM8: -0.4413574555 | CN8: 0.2373433314 | CO8: 0.8112129361 | CP8: 0.4220122336 | CQ8: -0.3144857299 | CR8: 0.2995029997 | CS8: 0.6277960626 | CT8: -0.1872051595 | CU8: -0.1520332414 | CV8: -0.3659355148 | CW8: 0.3459693577 | CX8: 0.06476282056 | CY8: -0.2096096558 | CZ8: -0.2756741291 | DA8: 0.5242925898 | DB8: -0.1408974757 | DC8: -0.4980734248 | DD8: -0.7945503549 | DE8: 0.8735316664 | DF8: -0.3493315881 | DG8: -0.495484158 | DH8: -0.869423699 | DI8: 0.8144008917 | DJ8: -0.1143216891 | DK8: 0.04387859977 | DL8: -0.3163900666 | DM8: -0.01285027535 | DN8: -0.2378316929 | DO8: 0.02968728422 | DP8: -0.4306971348 | DQ8: -0.08443775201 | DR8: -0.602853619 | DS8: 0.02472627567 | DT8: -0.5449370639 | DU8: -0.3761305456 | DV8: -0.30953464 | DW8: 0.1112530224 | DX8: -0.16397419 | DY8: -0.2191721494 | DZ8: -0.3257653558 | EA8: 0.05585827579 | EB8: -0.6243842853 | EC8: -0.07369858593 | ED8: 0.4571079537 | EE8: 0.1488156082 | EF8: 0.08048982139 | EG8: 0.3896879232 | EH8: -0.008646927012 | EI8: -0.01968567839 | EJ8: -0.2834948711 | EK8: -0.002153021384 | EL8: 0.1335023766 | EM8: 0.06163358907 | EN8: -0.07267659168 | EO8: 0.02945043993 | EP8: -0.2157841435 | EQ8: 0.03074130476 | ER8: 0.04134671708 | ES8: -0.2218407185 | ET8: -0.464320215 | EU8: 0.1218950195 | EV8: -0.07069361829 | EW8: -0.4882360055 | EX8: -0.4246231176 | EY8: -0.4690054407 | EZ8: 0.03365576819 | FA8: 0.3536456089 | FB8: -0.3420066617 | FC8: -0.5312866725 | FD8: 0.02646781376 | FE8: 0.4650171477 | FF8: 0.1817394587 | FG8: 0.3845787839 | FH8: -0.1362258123 | FI8: -0.3159040637 | FJ8: -0.09498623221 | FK8: 0.3961225124 | FL8: -0.3180809357 | FM8: -0.4851636955 | FN8: -0.256134299 | FO8: -0.2678691432 | FP8: -0.00653541747 | FQ8: 0.128375353 | FR8: -0.005834622283 | FS8: -0.4030475077 | FT8: 0.06542539181 | FU8: 0.4357858063 | FV8: 0.112783888 | FW8: -0.09594965685 | FX8: -0.06916501577 | FY8: 0.29787468 | FZ8: -0.8738280586 | GA8: 0.1393112563 | GB8: -0.4214608108 | GC8: -0.4713124264 | GD8: 0.3552144109 | GE8: -0.1027905082 | GF8: 0.1778577947 | GG8: 0.3578826167 | GH8: 0.07226617285 | GI8: -0.0001666797288 | GJ8: 0.1019805097 | GK8: 0.09537529811 | GL8: -0.1215256987 | GM8: 0.3989533257 | GN8: -0.3626928314 | GO8: -0.4690423778 | GP8: -0.581663264 | GQ8: 0.5105034685 | GR8: -0.5934745935 | GS8: -0.8871893718 | GT8: -0.3395947285 | GU8: 0.07958129062 | GV8: -0.2477265344 | GW8: -0.2229807897 | GX8: -0.4615910747 | GY8: 0.08198098654 | GZ8: -0.3269447038 | HA8: -0.3000392958 | HB8: -0.3376966655 | HC8: 0.3450599879 | HD8: -0.2171072851 | HE8: -0.582118774 | HF8: -0.08015402344 | HG8: 0.2591114823 | HH8: -0.1632279748 | HI8: -0.3528923862 | HJ8: -0.2978949337 | HK8: -0.1979006778 | HL8: -0.1274555444 | HM8: -0.03187797225 | HN8: -0.2830560441 | HO8: -0.1879813756 | HP8: -0.1030935833 | HQ8: -0.02924281689 | HR8: 0.03171507087 | HS8: 0.008504606437 | HT8: -0.2285593248 | HU8: 0.08578628606 | HV8: 0.5205896318 | HW8: -0.1190392051 | HX8: -0.08168448646 | HY8: 0.4582196393 | HZ8: 0.1093636961 | IA8: -0.002544841594 | IB8: -0.4400080181 | IC8: 0.004206902435 | ID8: -0.723743362 | IE8: -0.1394266473 | IF8: -1.059493011 | IG8: -0.2601518334 | IH8: -0.6511972308 | II8: 0.0470796169 | IJ8: -0.5066931957 | IK8: -0.5520201297 | IL8: -0.5970587869 | IM8: 0.0733227915 | IN8: -0.4362578032 | IO8: -0.5395786553 | IP8: 0.01942469081 | IQ8: 0.1207245291 | IR8: 0.1714667573 | IS8: -0.1616434496 | IT8: 0.08036263664 | IU8: 0.1124650241 | IV8: 0.2098190652 | IW8: -0.1097147163 | IX8: -0.160050641 | IY8: 0.07423300883 | IZ8: -0.1279581257 | JA8: 0.07809295605 | JB8: -0.2944356003 | JC8: 0.08514126461 | JD8: -0.2315713927 | JE8: -0.02636092096 | JF8: 0.02663348614 | JG8: -0.4222394429 | JH8: 0.1402462942 | JI8: 0.6982288702 | JJ8: 0.5273534544 | JK8: -0.3248696319 | JL8: 0.606326357 | JM8: 0.9038728283 | JN8: 0.152795323 | JO8: 0.1135746502 | JP8: -0.05290136581 | JQ8: 0.05717435295 | JR8: -0.2227524294 | JS8: 0.1498507168 | JT8: -0.3103899024 | JU8: -0.2274897246 | JV8: -0.1137825783 | JW8: 0.2827219204 | JX8: 0.0716092092 | JY8: -0.3613763998 | JZ8: -0.2439507489 | KA8: 0.3094681633 | KB8: 0.008176326865 | KC8: -0.4715338711 | KD8: -0.2212045995 | KE8: -0.3156876844 | KF8: -0.1347639901 | KG8: 0.2032918623 | KH8: -0.01464644395 | KI8: -0.2179362536 | KJ8: 0.09784350292 | KK8: 0.2113751866 | KL8: -0.3245309796 | KM8: 0.002017692314 | KN8: -0.1930036963 | KO8: 0.2090715692 | KP8: 0.06989960029 | KQ8: -0.1455538552 | KR8: -0.1882392806 | KS8: 0.4211198002 | KT8: -0.2547028062 | KU8: 0.4790152702 | KV8: -0.4674894557 | KW8: -0.5572875404 | KX8: -0.07553669808 | KY8: 0.5690289863 | KZ8: -0.2459724866 | LA8: -0.542874206 | LB8: -0.5461216155 | LC8: -0.3391113286 | LD8: -0.2287591743 | LE8: -0.08090316546 | LF8: -0.5615408426 | LG8: -0.1548693696 | LH8: -0.03596725799 | LI8: -0.2652377103 | LJ8: 0.06531771906 | LK8: -0.2146066946 | LL8: 0.2451056531 | LM8: 0.1269855158 | LN8: 1.138142731 | LO8: -0.1293507232 | LP8: 1.218395255 | LQ8: 0.764651018 | LR8: -0.2898449519 | LS8: -0.2862675462 | LT8: -0.162470422 | LU8: 0.002708729121 | LV8: -0.03440329537 | LW8: -0.1930772175 | LX8: 0.1243372524 | LY8: 0.06740325387 | LZ8: 0.2755838564 | MA8: 0.1588557234 | MB8: 0.06511945138 | MC8: -0.009945101353 | MD8: -0.1492262243 | ME8: 0.1811492496 | MF8: -0.2173732958 | MG8: -0.278463581 | MH8: -0.1966314229 | MI8: 0.3449573258 | MJ8: -0.2047033606 | MK8: -0.5355499921 | ML8: -0.2969094331 | MM8: 0.2974355077 | MN8: -0.3210851692 | MO8: -0.5419555159 | MP8: -0.5680165051 | MQ8: -0.2430622269 | MR8: -0.10473404 | MS8: 0.1399102226 | MT8: -0.152300245 | MU8: -0.2785773014 | MV8: 0.09131533203 | MW8: 0.3813828751 | MX8: 0.02852499992 | MY8: -0.07328176603 | MZ8: -0.2412182958 | NA8: 0.2193018682 | NB8: -0.02923497611 | NC8: -0.02166167339 | ND8: -0.2383687122 | NE8: 0.1277125916 | NF8: 0.09164672779 | NG8: -0.02189334441 | NH8: 0.0935152432 | NI8: -0.08503991528 | NJ8: 0.3667468895 | NK8: -0.06984061803 | NL8: 0.2747726606 | NM8: 0.1542395421 | NN8: -0.0573774579 | NO8: 0.3259168924 | NP8: -0.2394551413 | NQ8: -0.3140964301 | NR8: 0.1124195517 | NS8: 0.3663943095 | NT8: -0.0997022288 | NU8: -0.2714970751
A9: JR101 | B9: -1.004015208 | C9: -0.4272399487 | D9: -0.7623478239 | E9: -0.6088487667 | F9: -0.4100552013 | G9: -0.4245851122 | H9: -0.1767004368 | I9: -0.08806951497 | J9: -0.878058502 | K9: 0.03314851989 | L9: -0.8025843276 | M9: -0.7061035162 | N9: -0.607158846 | O9: -0.3867697687 | P9: -0.9425645393 | Q9: -0.1275558906 | R9: -1.227724649 | S9: -0.385387639 | T9: -1.058201783 | U9: -0.8120548042 | V9: -0.5886301749 | W9: -0.269175156 | X9: -0.4256062198 | Y9: -0.4263208026 | Z9: -0.240988994 | AA9: -0.1802607565 | AB9: -0.06529023497 | AC9: 0.09594362306 | AD9: -0.1597733219 | AE9: -0.5232267639 | AF9: -0.3506003912 | AG9: 0.4400017782 | AH9: -0.3971019471 | AI9: -0.2279327012 | AJ9: -0.2371614494 | AK9: -0.4088893145 | AL9: -0.3909817652 | AM9: -0.2334750608 | AN9: -0.2378301574 | AO9: -0.3997043772 | AP9: 0.9396435253 | AQ9: 0.2827820459 | AR9: 1.277142289 | AS9: 0.3116782945 | AT9: 0.1866080761 | AU9: -0.06353918019 | AV9: 0.3268855914 | AW9: 0.09042432563 | AX9: -0.8065245809 | AY9: 0.2151635952 | AZ9: -0.2406076547 | BA9: -0.9508696185 | BB9: 0.06578976316 | BC9: -0.1844688334 | BD9: 0.1663700529 | BE9: 0.165881132 | BF9: 0.2936510287 | BG9: 0.7996474124 | BH9: 0.4975037651 | BI9: -0.1386356147 | BJ9: -0.2955481801 | BK9: 0.2689450024 | BL9: -0.542569791 | BM9: -0.2522555338 | BN9: -0.07347735228 | BO9: -0.22317929 | BP9: 0.2396053039 | BQ9: 0.02861369345 | BR9: 0.04328984808 | BS9: -0.2988112369 | BT9: 0.2579589057 | BU9: 0.1832916558 | BV9: 0.5159785122 | BW9: 0.2449759809 | BX9: 0.7876795164 | BY9: 0.1967492998 | BZ9: 0.1644961234 | CA9: 0.07656930517 | CB9: 0.2388251078 | CC9: 0.0426562871 | CD9: -0.2027772188 | CE9: 0.08318602893 | CF9: -0.1349983877 | CG9: -0.07843351221 | CH9: -0.003816136715 | CI9: 0.008477301375 | CJ9: -0.06472335572 | CK9: 0.1140321353 | CL9: 0.3315555782 | CM9: 0.371851196 | CN9: 0.5577195383 | CO9: 0.002507824811 | CP9: 0.1730997729 | CQ9: 0.04253977539 | CR9: 0.03690061172 | CS9: 0.1456912606 | CT9: 0.365495483 | CU9: 0.09821899059 | CV9: 0.2571015803 | CW9: 0.2682179326 | CX9: 0.1553117055 | CY9: 0.02043917154 | CZ9: -0.003456229794 | DA9: 0.1866414022 | DB9: 0.09395346871 | DC9: 0.01127159524 | DD9: -0.02954134138 | DE9: -0.03335918664 | DF9: -0.1001973496 | DG9: 0.1288582724 | DH9: -0.008335133111 | DI9: -0.1720373233 | DJ9: 0.009530141632 | DK9: -0.3737356135 | DL9: 0.00164420976 | DM9: 0.5329479309 | DN9: -0.02980406629 | DO9: -0.3680650486 | DP9: -0.0236909197 | DQ9: 0.5028826519 | DR9: -0.04174092632 | DS9: -0.1685971441 | DT9: -0.01256338427 | DU9: 0.1693880489 | DV9: 0.2240951643 | DW9: -0.1924566262 | DX9: 0.2149577225 | DY9: 0.3939932305 | DZ9: 0.331393086 | EA9: -0.0663278007 | EB9: 0.2968690066 | EC9: 0.3120422141 | ED9: 0.06203760309 | EE9: -0.1505787784 | EF9: -0.01486273694 | EG9: 0.2115372824 | EH9: -0.05742746106 | EI9: 0.3006103462 | EJ9: -0.0654391706 | EK9: -0.3621413465 | EL9: -0.3362588564 | EM9: 0.3124792923 | EN9: -0.3073093371 | EO9: -0.5797181667 | EP9: 0.2997909038 | EQ9: 0.02174960614 | ER9: 0.1542423501 | ES9: 0.227885053 | ET9: 0.1388853678 | EU9: -0.003294612649 | EV9: 0.02272069462 | EW9: 0.1716136175 | EX9: -0.1001475767 | EY9: 0.1202287685 | EZ9: -0.233102664 | FA9: -0.2229492598 | FB9: 0.1727852949 | FC9: 0.1797595974 | FD9: 0.07575348666 | FE9: -0.07912548094 | FF9: 0.1490820176 | FG9: -0.05656984707 | FH9: 0.02515239034 | FI9: 0.2487846318 | FJ9: 0.1264305374 | FK9: -0.05624147247 | FL9: 0.005367825423 | FM9: 0.2314911456 | FN9: -0.2799599274 | FO9: 0.2070836835 | FP9: -0.2491392225 | FQ9: -0.5637268756 | FR9: -0.4499210214 | FS9: 0.3274055549 | FT9: -0.2735121134 | FU9: -0.8052193248 | FV9: 0.07364916067 | FW9: 0.05800894747 | FX9: -0.1814103369 | FY9: 0.1102254177 | FZ9: -0.07069280328 | GA9: 0.186078487 | GB9: -0.1865571424 | GC9: -0.117129497 | GD9: 0.02685585778 | GE9: 0.1005333859 | GF9: -0.08753180667 | GG9: -0.1198402081 | GH9: -0.1454514558 | GI9: 0.2246588792 | GJ9: -0.0897956968 | GK9: -0.3521074211 | GL9: -0.3109363622 | GM9: -0.1619271135 | GN9: 0.1013426448 | GO9: -0.3415350196 | GP9: -0.03217268929 | GQ9: -0.1672956309 | GR9: 0.3721899276 | GS9: -0.09205469387 | GT9: 0.2943805168 | GU9: 0.5309812859 | GV9: 0.5389544061 | GW9: -0.2955494581 | GX9: 0.3927181983 | GY9: 0.1237906814 | GZ9: 0.2348320582 | HA9: 0.1566093955 | HB9: -0.06499002995 | HC9: -0.1623188002 | HD9: -0.1198705648 | HE9: 0.2385588279 | HF9: 0.09267263083 | HG9: -0.01525634695 | HH9: 0.1602642219 | HI9: 0.2228615632 | HJ9: 0.35094565 | HK9: 0.4611988173 | HL9: 0.5795875828 | HM9: -0.1396034654 | HN9: 0.226466642 | HO9: 0.123716524 | HP9: 0.1066684066 | HQ9: 0.07218117477 | HR9: 0.0179562524 | HS9: -0.2082426903 | HT9: 0.0002734579215 | HU9: 0.3049526215 | HV9: -0.08860077485 | HW9: -0.2757196163 | HX9: -0.1596453506 | HY9: 0.2789910386 | HZ9: 1.378896431 | IA9: -0.5831282522 | IB9: 0.6627514623 | IC9: 1.549275088 | ID9: 0.6469304739 | IE9: -0.6516708836 | IF9: -0.01440262662 | IG9: 1.14883412 | IH9: -0.06452719812 | II9: 0.5428737608 | IJ9: 0.3306155804 | IK9: -0.5564249665 | IL9: 1.012395543 | IM9: 0.3288510667 | IN9: 1.157391987 | IO9: 0.5303598711 | IP9: 1.318303484 | IQ9: 0.1109214295 | IR9: 1.313431889 | IS9: 1.109057902 | IT9: 0.5666706543 | IU9: 0.07118312232 | IV9: 0.3876988242 | IW9: 0.4423750804 | IX9: 0.04846715882 | IY9: 0.1770630443 | IZ9: 0.1390183523 | JA9: -0.2866224856 | JB9: -0.1009717363 | JC9: 0.224899359 | JD9: 0.03717820984 | JE9: -0.4530773418 | JF9: 0.4668972225 | JG9: 0.3161558202 | JH9: 0.380549698 | JI9: 0.321045269 | JJ9: 0.1950515738 | JK9: 0.2291879054 | JL9: 0.007998466498 | JM9: 0.1594296092 | JN9: -0.008360572686 | JO9: 0.2400920317 | JP9: -0.04611058351 | JQ9: -0.2410780093 | JR9: 0.2143600301 | JS9: 0.229629753 | JT9: 0.1785295194 | JU9: -0.02864566919 | JV9: 0.3201884025 | JW9: 0.2943248835 | JX9: 0.3768518943 | JY9: 0.06427833188 | JZ9: 0.07535974748 | KA9: 0.2219593432 | KB9: 0.06415501545 | KC9: -0.0613949027 | KD9: 0.1072778767 | KE9: 0.06229788596 | KF9: 0.06642398048 | KG9: 0.12620754 | KH9: -0.1887727446 | KI9: 0.1107947038 | KJ9: -0.1358176188 | KK9: -0.1362419926 | KL9: 0.1535385651 | KM9: -0.3142676997 | KN9: -0.2907874262 | KO9: 0.5071291732 | KP9: 0.2905191534 | KQ9: -0.02529179164 | KR9: 0.03423109319 | KS9: 0.3311539938 | KT9: 0.2406863687 | KU9: -0.09416348794 | KV9: 0.1974182656 | KW9: 0.215045362 | KX9: 0.0660397476 | KY9: -0.05683770953 | KZ9: 0.08770349629 | LA9: 0.05488285705 | LB9: -0.1728198379 | LC9: 0.04639479947 | LD9: 0.1241042319 | LE9: -0.1410821799 | LF9: -0.03204874446 | LG9: -0.1216865443 | LH9: 0.06592199726 | LI9: 0.1185973354 | LJ9: -0.04112644496 | LK9: 0.1030839539 | LL9: 0.1017030237 | LM9: -0.1223366484 | LN9: 0.163885568 | LO9: -8.8704572e-05 | LP9: 0.1713572174 | LQ9: 0.1224801788 | LR9: 0.1161535686 | LS9: -0.2345175814 | LT9: 0.05331225982 | LU9: 0.3689032275 | LV9: -0.01652598858 | LW9: -0.1437312212 | LX9: 0.0446028969 | LY9: 0.1903645531 | LZ9: 0.2417037619 | MA9: 0.0233224375 | MB9: 0.03553468698 | MC9: 0.1301928945 | MD9: 0.09299467191 | ME9: 0.04962453384 | MF9: -0.03815478741 | MG9: 0.02562934651 | MH9: -0.3208628414 | MI9: -0.488150211 | MJ9: -0.2226635097 | MK9: 0.331584413 | ML9: 0.1069894018 | MM9: -0.5292900227 | MN9: 0.08247575279 | MO9: 0.665118636 | MP9: -0.02535871059 | MQ9: -0.4149398303 | MR9: 0.0431096392 | MS9: 0.3710342221 | MT9: 0.287983974 | MU9: -0.4448390123 | MV9: 0.2798109345 | MW9: 0.6193720623 | MX9: -0.08331823586 | MY9: 0.0745140435 | MZ9: -0.1093953537 | NA9: -0.08925099032 | NB9: -0.1075734699 | NC9: 0.128999318 | ND9: -0.06819149796 | NE9: -0.1555532774 | NF9: -0.2874177954 | NG9: 0.2118658335 | NH9: -0.1207227964 | NI9: -0.3795357944 | NJ9: -0.178793812 | NK9: 0.14798692 | NL9: -0.09669584329 | NM9: -0.2392313204 | NN9: -0.0887990052 | NO9: -0.4835284725 | NP9: 0.05165054006 | NQ9: 0.3651588833 | NR9: 0.0117209338 | NS9: -0.457238332 | NT9: 0.1731652435 | NU9: 0.419840933
